Workbook

Sheet Trends
A1: CDI performance over time, 2013 methodology
R2: "Most-improved" standings
A3: Country | B3: 2003 | C3: 2004 | D3: 2005 | E3: 2006 | F3: 2007 | G3: 2008 | H3: 2009 | I3: 2010 | J3: 2011 | K3: 2012 | L3: 2013 | M3: Change, 2003-13 | N3: True rank | O3: "Most improved" rank | S3: Country | T3: Change
A4: Australia | B4: =VLOOKUP($A4,INDIRECT("'CDI "&B$3&"'!Score_table"),9,FALSE) -> 3.351126855 | C4: =VLOOKUP($A4,INDIRECT("'CDI "&C$3&"'!Score_table"),9,FALSE) -> 3.339479203 | D4: 3.822247525 | E4: 3.448648091 | F4: 3.785298742 | G4: 3.819009645 | H4: 3.73527924 | I4: 4.454257831 | J4: 4.005175556 | K4: 4.758341309 | L4: 3.923888724 | M4: =ROUND(L4,1)-ROUND(B4,1) -> 0.5 | N4: =SUM((ROUND(L4,1)-ROUND(B4,1)<ROUND($L$4:$L$24,1)-ROUND($B$4:$B$24,1))+(ROUND(L4,1)-ROUND(B4,1)=ROUND($L$4:$L$24,1)-ROUND($B$4:$B$24,1))*(L4-B4<$L$4:$L$24-$B$4:$B$24))+1 -> 10 | O4: =SUM(IF(ROUND(M4,1)<ROUND($M$4:$M$24,1),1))+1 -> 10 | P4: =A4 -> Australia | Q4: 1 | R4: =VLOOKUP(Q4,$N$4:$O$24,2,FALSE) -> 1 | S4: =VLOOKUP(Q4,$N$4:$P$24,3,FALSE) -> France | T4: =ROUND(VLOOKUP(S4,$A$4:$M$24,COLUMNS($A$4:$M$24),FALSE),1) -> 1.3
A5: Austria | B5: =VLOOKUP($A5,INDIRECT("'CDI "&B$3&"'!Score_table"),9,FALSE) -> 4.875125866 | C5: 5.064857608 | D5: 5.163313805 | E5: 5.101635667 | F5: 5.113992237 | G5: 5.208606793 | H5: 5.068647519 | I5: 5.018138928 | J5: 5.403863197 | K5: 5.749283401 | L5: 5.398110507 | M5: =ROUND(L5,1)-ROUND(B5,1) -> 0.5 | N5: =SUM((ROUND(L5,1)-ROUND(B5,1)<ROUND($L$4:$L$24,1)-ROUND($B$4:$B$24,1))+(ROUND(L5,1)-ROUND(B5,1)=ROUND($L$4:$L$24,1)-ROUND($B$4:$B$24,1))*(L5-B5<$L$4:$L$24-$B$4:$B$24))+1 -> 11 | O5: =SUM(IF(ROUND(M5,1)<ROUND($M$4:$M$24,1),1))+1 -> 10 | P5: Austria | Q5: 2 | R5: 2 | S5: Sweden | T5: =ROUND(VLOOKUP(S5,$A$4:$M$24,COLUMNS($A$4:$M$24),FALSE),1) -> 1.1
A6: Belgium | B6: 4.994597886 | C6: 4.699057052 | D6: 5.028122342 | E6: 5.165611365 | F6: 5.308991019 | G6: 5.436494483 | H6: 5.201342379 | I6: 5.292956486 | J6: 5.318636834 | K6: 5.685053497 | L6: 5.458920815 | M6: 0.5 | N6: =SUM((ROUND(L6,1)-ROUND(B6,1)<ROUND($L$4:$L$24,1)-ROUND($B$4:$B$24,1))+(ROUND(L6,1)-ROUND(B6,1)=ROUND($L$4:$L$24,1)-ROUND($B$4:$B$24,1))*(L6-B6<$L$4:$L$24-$B$4:$B$24))+1 -> 12 | O6: =SUM(IF(ROUND(M6,1)<ROUND($M$4:$M$24,1),1))+1 -> 10 | P6: Belgium | Q6: 3 | R6: 2 | S6: United States | T6: 1.1
A7: Canada | B7: 3.929938065 | C7: 4.04196271 | D7: 4.416493635 | E7: 4.2632325 | F7: 4.139000198 | G7: 4.300186153 | H7: 4.327551824 | I7: 4.535039015 | J7: 4.245478872 | K7: 5.019783227 | L7: 4.291407448 | M7: 0.4 | N7: =SUM((ROUND(L7,1)-ROUND(B7,1)<ROUND($L$4:$L$24,1)-ROUND($B$4:$B$24,1))+(ROUND(L7,1)-ROUND(B7,1)=ROUND($L$4:$L$24,1)-ROUND($B$4:$B$24,1))*(L7-B7<$L$4:$L$24-$B$4:$B$24))+1 -> 13 | O7: =SUM(IF(ROUND(M7,1)<ROUND($M$4:$M$24,1),1))+1 -> 13 | P7: Canada | Q7: 4 | R7: 4 | S7: Denmark | T7: 0.9
A8: Denmark | B8: 5.696231816 | C8: 5.251359797 | D8: 5.447752743 | E8: 5.45069277 | F8: 5.36408621 | G8: 5.943441317 | H8: 5.868859166 | I8: 5.771125293 | J8: 6.106972077 | K8: 7.000954881 | L8: 6.626481153 | M8: 0.9 | N8: =SUM((ROUND(L8,1)-ROUND(B8,1)<ROUND($L$4:$L$24,1)-ROUND($B$4:$B$24,1))+(ROUND(L8,1)-ROUND(B8,1)=ROUND($L$4:$L$24,1)-ROUND($B$4:$B$24,1))*(L8-B8<$L$4:$L$24-$B$4:$B$24))+1 -> 4 | O8: =SUM(IF(ROUND(M8,1)<ROUND($M$4:$M$24,1),1))+1 -> 4 | P8: Denmark | Q8: 5 | R8: 4 | S8: United Kingdom | T8: 0.9
A9: Finland | B9: 5.973671704 | C9: 6.040177015 | D9: 6.063636716 | E9: 5.847979856 | F9: 5.68020904 | G9: 6.079819048 | H9: 5.762510134 | I9: 5.829630693 | J9: 6.134424943 | K9: 6.068980125 | L9: 6.014519272 | M9: 0 | N9: =SUM((ROUND(L9,1)-ROUND(B9,1)<ROUND($L$4:$L$24,1)-ROUND($B$4:$B$24,1))+(ROUND(L9,1)-ROUND(B9,1)=ROUND($L$4:$L$24,1)-ROUND($B$4:$B$24,1))*(L9-B9<$L$4:$L$24-$B$4:$B$24))+1 -> 14 | O9: =SUM(IF(ROUND(M9,1)<ROUND($M$4:$M$24,1),1))+1 -> 14 | P9: Finland | Q9: 6 | R9: 6 | S9: Italy | T9: 0.8
A10: France | B10: 4.798918511 | C10: 5.059480796 | D10: 4.88948694 | E10: 5.409506549 | F10: 5.25078683 | G10: 5.630777837 | H10: 5.319553363 | I10: 5.274899397 | J10: 5.382363238 | K10: 6.104548326 | L10: 6.074253449 | M10: 1.3 | N10: =SUM((ROUND(L10,1)-ROUND(B10,1)<ROUND($L$4:$L$24,1)-ROUND($B$4:$B$24,1))+(ROUND(L10,1)-ROUND(B10,1)=ROUND($L$4:$L$24,1)-ROUND($B$4:$B$24,1))*(L10-B10<$L$4:$L$24-$B$4:$B$24))+1 -> 1 | O10: =SUM(IF(ROUND(M10,1)<ROUND($M$4:$M$24,1),1))+1 -> 1 | P10: France | Q10: 7 | R10: 7 | S10: Spain | T10: 0.7
A11: Germany | B11: 5.029884686 | C11: 4.931721624 | D11: 5.204852629 | E11: 5.112837132 | F11: 4.873873666 | G11: 5.19182955 | H11: 5.032524392 | I11: 4.980744701 | J11: 5.152512762 | K11: 5.4355606 | L11: 4.925583029 | M11: -0.1 | N11: =SUM((ROUND(L11,1)-ROUND(B11,1)<ROUND($L$4:$L$24,1)-ROUND($B$4:$B$24,1))+(ROUND(L11,1)-ROUND(B11,1)=ROUND($L$4:$L$24,1)-ROUND($B$4:$B$24,1))*(L11-B11<$L$4:$L$24-$B$4:$B$24))+1 -> 18 | O11: =SUM(IF(ROUND(M11,1)<ROUND($M$4:$M$24,1),1))+1 -> 17 | P11: Germany | Q11: 8 | R11: 8 | S11: Portugal | T11: 0.6
A12: Greece | B12: 3.589657387 | C12: =VLOOKUP($A12,INDIRECT("'CDI "&C$3&"'!Score_table"),9,FALSE) -> 3.80048521 | D12: 4.215276682 | E12: 4.068433601 | F12: 3.96609363 | G12: 4.473708408 | H12: 4.228866846 | I12: 4.276796763 | J12: 4.425206902 | K12: 4.574022666 | L12: 4.158442549 | M12: 0.6 | N12: =SUM((ROUND(L12,1)-ROUND(B12,1)<ROUND($L$4:$L$24,1)-ROUND($B$4:$B$24,1))+(ROUND(L12,1)-ROUND(B12,1)=ROUND($L$4:$L$24,1)-ROUND($B$4:$B$24,1))*(L12-B12<$L$4:$L$24-$B$4:$B$24))+1 -> 9 | O12: =SUM(IF(ROUND(M12,1)<ROUND($M$4:$M$24,1),1))+1 -> 8 | P12: Greece | Q12: 9 | R12: 8 | S12: Greece | T12: 0.6
A13: Ireland | B13: 6.52339821 | C13: 6.278075543 | D13: 6.732890971 | E13: 6.022196049 | F13: 5.849374145 | G13: 6.371812001 | H13: 5.971826198 | I13: 5.762257652 | J13: 5.857684478 | K13: 5.803839267 | L13: 6.447378523 | M13: -0.1 | N13: =SUM((ROUND(L13,1)-ROUND(B13,1)<ROUND($L$4:$L$24,1)-ROUND($B$4:$B$24,1))+(ROUND(L13,1)-ROUND(B13,1)=ROUND($L$4:$L$24,1)-ROUND($B$4:$B$24,1))*(L13-B13<$L$4:$L$24-$B$4:$B$24))+1 -> 17 | O13: =SUM(IF(ROUND(M13,1)<ROUND($M$4:$M$24,1),1))+1 -> 17 | P13: Ireland | Q13: 10 | R13: 10 | S13: Australia | T13: 0.5
A14: Italy | B14: 4.118903722 | C14: 4.06915588 | D14: 4.309598257 | E14: 4.425887208 | F14: 4.524516348 | G14: 4.851343169 | H14: 4.850528441 | I14: 5.01349293 | J14: 4.925335019 | K14: 5.48044521 | L14: 4.935121171 | M14: 0.8 | N14: =SUM((ROUND(L14,1)-ROUND(B14,1)<ROUND($L$4:$L$24,1)-ROUND($B$4:$B$24,1))+(ROUND(L14,1)-ROUND(B14,1)=ROUND($L$4:$L$24,1)-ROUND($B$4:$B$24,1))*(L14-B14<$L$4:$L$24-$B$4:$B$24))+1 -> 6 | O14: =SUM(IF(ROUND(M14,1)<ROUND($M$4:$M$24,1),1))+1 -> 6 | P14: Italy | Q14: 11 | R14: 10 | S14: Austria | T14: 0.5
A15: Japan | B15: 3.021435292 | C15: 2.935139324 | D15: 2.938457377 | E15: 3.874615625 | F15: 3.140579656 | G15: 3.129117472 | H15: 2.661099114 | I15: 2.876170559 | J15: 3.110999428 | K15: 3.488680002 | L15: 3.018990532 | M15: 0 | N15: =SUM((ROUND(L15,1)-ROUND(B15,1)<ROUND($L$4:$L$24,1)-ROUND($B$4:$B$24,1))+(ROUND(L15,1)-ROUND(B15,1)=ROUND($L$4:$L$24,1)-ROUND($B$4:$B$24,1))*(L15-B15<$L$4:$L$24-$B$4:$B$24))+1 -> 15 | O15: =SUM(IF(ROUND(M15,1)<ROUND($M$4:$M$24,1),1))+1 -> 14 | P15: Japan | Q15: 12 | R15: 10 | S15: Belgium | T15: 0.5
A16: Netherlands | B16: 5.477786099 | C16: 5.64631191 | D16: 6.317671572 | E16: 5.982304149 | F16: 5.558290546 | G16: 5.214666135 | H16: 5.006645735 | I16: 5.117933955 | J16: 4.530570486 | K16: 5.102066928 | L16: 4.779394005 | M16: -0.7 | N16: =SUM((ROUND(L16,1)-ROUND(B16,1)<ROUND($L$4:$L$24,1)-ROUND($B$4:$B$24,1))+(ROUND(L16,1)-ROUND(B16,1)=ROUND($L$4:$L$24,1)-ROUND($B$4:$B$24,1))*(L16-B16<$L$4:$L$24-$B$4:$B$24))+1 -> 20 | O16: =SUM(IF(ROUND(M16,1)<ROUND($M$4:$M$24,1),1))+1 -> 20 | P16: Netherlands | Q16: 13 | R16: 13 | S16: Canada | T16: 0.4
A17: New Zealand | B17: 4.31667242 | C17: 4.296308424 | D17: 4.709364263 | E17: 4.42959422 | F17: 4.330025292 | G17: 4.351792745 | H17: 4.07591383 | I17: 4.395514283 | J17: 4.355462091 | K17: 5.249495305 | L17: 4.309382877 | M17: 0 | N17: =SUM((ROUND(L17,1)-ROUND(B17,1)<ROUND($L$4:$L$24,1)-ROUND($B$4:$B$24,1))+(ROUND(L17,1)-ROUND(B17,1)=ROUND($L$4:$L$24,1)-ROUND($B$4:$B$24,1))*(L17-B17<$L$4:$L$24-$B$4:$B$24))+1 -> 16 | O17: =SUM(IF(ROUND(M17,1)<ROUND($M$4:$M$24,1),1))+1 -> 14 | P17: New Zealand | Q17: 14 | R17: 14 | S17: Finland | T17: 0
A18: Norway | B18: 6.726589517 | C18: 7.017395125 | D18: 7.570348548 | E18: 5.967120325 | F18: 5.642398846 | G18: 5.979934951 | H18: 5.483969649 | I18: 5.148989244 | J18: 4.875825079 | K18: 5.774296788 | L18: 5.107092711 | M18: -1.6 | N18: =SUM((ROUND(L18,1)-ROUND(B18,1)<ROUND($L$4:$L$24,1)-ROUND($B$4:$B$24,1))+(ROUND(L18,1)-ROUND(B18,1)=ROUND($L$4:$L$24,1)-ROUND($B$4:$B$24,1))*(L18-B18<$L$4:$L$24-$B$4:$B$24))+1 -> 21 | O18: =SUM(IF(ROUND(M18,1)<ROUND($M$4:$M$24,1),1))+1 -> 21 | P18: Norway | Q18: 15 | R18: 14 | S18: Japan | T18: 0
A19: Portugal | B19: 4.098157542 | C19: 4.20389343 | D19: 4.540819036 | E19: 4.788892315 | F19: 4.28822888 | G19: 4.578272271 | H19: 4.439986635 | I19: 5.832314475 | J19: 5.186208476 | K19: 4.727594692 | L19: 4.711240122 | M19: 0.6 | N19: =SUM((ROUND(L19,1)-ROUND(B19,1)<ROUND($L$4:$L$24,1)-ROUND($B$4:$B$24,1))+(ROUND(L19,1)-ROUND(B19,1)=ROUND($L$4:$L$24,1)-ROUND($B$4:$B$24,1))*(L19-B19<$L$4:$L$24-$B$4:$B$24))+1 -> 8 | O19: =SUM(IF(ROUND(M19,1)<ROUND($M$4:$M$24,1),1))+1 -> 8 | P19: Portugal | Q19: 16 | R19: 14 | S19: New Zealand | T19: 0
A20: Spain | B20: 4.480455782 | C20: 4.517525322 | D20: 4.610689818 | E20: 4.778624601 | F20: 4.626434586 | G20: 5.684748019 | H20: 5.668897094 | I20: 5.720540722 | J20: 5.682297464 | K20: 6.068981384 | L20: 5.230341967 | M20: 0.7 | N20: =SUM((ROUND(L20,1)-ROUND(B20,1)<ROUND($L$4:$L$24,1)-ROUND($B$4:$B$24,1))+(ROUND(L20,1)-ROUND(B20,1)=ROUND($L$4:$L$24,1)-ROUND($B$4:$B$24,1))*(L20-B20<$L$4:$L$24-$B$4:$B$24))+1 -> 7 | O20: =SUM(IF(ROUND(M20,1)<ROUND($M$4:$M$24,1),1))+1 -> 7 | P20: Spain | Q20: 17 | R20: 17 | S20: Ireland | T20: -0.1
A21: Sweden | B21: =VLOOKUP($A21,INDIRECT("'CDI "&B$3&"'!Score_table"),9,FALSE) -> 6.357746932 | C21: 6.799181796 | D21: 6.726407908 | E21: 6.201482279 | F21: 6.556534462 | G21: 6.518488093 | H21: 7.021929022 | I21: 7.131183394 | J21: 7.854598356 | K21: 7.942427248 | L21: 7.524269891 | M21: 1.1 | N21: =SUM((ROUND(L21,1)-ROUND(B21,1)<ROUND($L$4:$L$24,1)-ROUND($B$4:$B$24,1))+(ROUND(L21,1)-ROUND(B21,1)=ROUND($L$4:$L$24,1)-ROUND($B$4:$B$24,1))*(L21-B21<$L$4:$L$24-$B$4:$B$24))+1 -> 2 | O21: =SUM(IF(ROUND(M21,1)<ROUND($M$4:$M$24,1),1))+1 -> 2 | P21: Sweden | Q21: 18 | R21: 17 | S21: Germany | T21: -0.1
A22: Switzerland | B22: 4.012914088 | C22: 3.884504211 | D22: 4.206108214 | E22: 3.737123814 | F22: 3.478412256 | G22: 3.796791257 | H22: 3.490352723 | I22: 3.407930951 | J22: 3.77466146 | K22: 4.162461606 | L22: 3.933082259 | M22: -0.1 | N22: =SUM((ROUND(L22,1)-ROUND(B22,1)<ROUND($L$4:$L$24,1)-ROUND($B$4:$B$24,1))+(ROUND(L22,1)-ROUND(B22,1)=ROUND($L$4:$L$24,1)-ROUND($B$4:$B$24,1))*(L22-B22<$L$4:$L$24-$B$4:$B$24))+1 -> 19 | O22: =SUM(IF(ROUND(M22,1)<ROUND($M$4:$M$24,1),1))+1 -> 17 | P22: Switzerland | Q22: 19 | R22: 17 | S22: Switzerland | T22: -0.1
A23: United Kingdom | B23: 4.382502693 | C23: 4.39379584 | D23: 5.202329594 | E23: 4.839942461 | F23: 4.456314444 | G23: 5.113419812 | H23: 4.732963477 | I23: 4.819335319 | J23: 5.009021058 | K23: 5.708292763 | L23: 5.276272724 | M23: 0.9 | N23: =SUM((ROUND(L23,1)-ROUND(B23,1)<ROUND($L$4:$L$24,1)-ROUND($B$4:$B$24,1))+(ROUND(L23,1)-ROUND(B23,1)=ROUND($L$4:$L$24,1)-ROUND($B$4:$B$24,1))*(L23-B23<$L$4:$L$24-$B$4:$B$24))+1 -> 5 | O23: =SUM(IF(ROUND(M23,1)<ROUND($M$4:$M$24,1),1))+1 -> 4 | P23: United Kingdom | Q23: 20 | R23: 20 | S23: Netherlands | T23: -0.7
A24: United States | B24: 3.207632494 | C24: 3.45329786 | D24: 3.857988903 | E24: 3.751179861 | F24: 4.566175026 | G24: 3.676761843 | H24: 4.07504953 | I24: 4.129667342 | J24: 4.530632159 | K24: 4.569285388 | L24: 4.345835945 | M24: 1.1 | N24: =SUM((ROUND(L24,1)-ROUND(B24,1)<ROUND($L$4:$L$24,1)-ROUND($B$4:$B$24,1))+(ROUND(L24,1)-ROUND(B24,1)=ROUND($L$4:$L$24,1)-ROUND($B$4:$B$24,1))*(L24-B24<$L$4:$L$24-$B$4:$B$24))+1 -> 3 | O24: =SUM(IF(ROUND(M24,1)<ROUND($M$4:$M$24,1),1))+1 -> 2 | P24: United States | Q24: 21 | R24: 21 | S24: Norway | T24: -1.6
A25: EU | B25: 4.80546434 | C25: 4.830044312 | D25: 5.113721955 | E25: 5.089857763 | F25: 4.897150695 | G25: 5.283987239 | H25: 5.057904145 | I25: 5.089864123 | J25: 5.210122153 | K25: 5.579201121 | L25: 5.229935675 | M25: 0.4 | P25: EU
A26: Europe | B26: 4.830355027 | C26: 4.856502533 | D26: 5.145656501 | E26: 5.069647688 | F26: 4.880335525 | G26: 5.254394041 | H26: 5.03837212 | I26: 5.057696285 | J26: 5.172233713 | K26: 5.51828193 | L26: 5.176761416 | M26: 0.4 | P26: Europe
A28: South Korea | G28: =VLOOKUP($A28,INDIRECT("'CDI "&G$3&"'!Score_table"),9,FALSE) -> 2.648353196 | H28: 2.117500826 | I28: 2.206841837 | J28: 2.333979869 | K28: 3.074260981 | L28: 2.470890521 | M28: =L28-G28 -> -0.1774626749
A29: Czech Republic | K29: 3.534044812 | L29: 3.544178439 | M29: =L29-K29 -> 0.0101336274
A30: Hungary | K30: 4.164306079 | L30: 4.126515783 | M30: =L30-K30 -> -0.03779029663
A31: Luxembourg | K31: 5.364948996 | L31: 4.665498665 | M31: -0.6994503308
A32: Poland | K32: 4.270556517 | L32: 4.175694088 | M32: -0.09486242852
A33: Slovakia | K33: 3.808763813 | L33: 3.802865732 | M33: -0.005898080747
A35: Average, 21 | B35: =AVERAGE(B4:B26) -> 4.72170291 | C35: =AVERAGE(C4:C26) -> 4.756944023 | D35: =AVERAGE(D4:D26) -> 5.053618954 | E35: =AVERAGE(E4:E26) -> 4.905523734 | F35: =AVERAGE(F4:F26) -> 4.794656621 | G35: =AVERAGE(G4:G24) -> 5.016715286 | H35: 4.858299824 | I35: 4.989948568 | J35: 5.041329997 | K35: 5.451161648 | L35: 5.070952842 | M35: =ROUND(L35,1)-ROUND(B35,1) -> 0.4

Sheet CDI 2013
A1: ="Commitment to Development Index "&Region_name&IF(Region_name="",""," ")&Year&IF(Publication_year>Year," ("&Publication_year&" methodology)","") -> Commitment to Development Index Middle East & North Africa 2013 | V1: Standings | Y1: One-year change, latest methodology | AB1: Standings/EU as one | AM1: Standings/Europe as one | BF1: EU countries | BG1: Europe countries
A2: Rank | B2: Country | C2: Aid | D2: Trade | E2: Finance | F2: Migration | G2: Environment | H2: Security | I2: Technology | J2: Overall (Average) | K2: True rank | L2: =Year-1&"-"&Year-2000&" score change" -> 2012-13 score change | M2: Rank | N2: =Year-1&" rank ("&Year&" method)" -> 2012 rank (2013 method) | P2: True rank/EU | Q2: True rank/Europe | R2: Rank/EU | S2: Rank/Europe | W2: Country | X2: Score | Y2: Score | Z2: Rank | AC2: Country | AD2: Aid | AE2: Trade | AF2: Finance | AG2: Migration | AH2: Environment | AI2: Security | AJ2: Technology | AK2: Overall (Average) | AN2: Country | AO2: Aid | AP2: Trade | AQ2: Finance | AR2: Migration | AS2: Environment | AT2: Security | AU2: Technology | AV2: Overall (Average) | BC2: PPP GDP | BD2: Exchange-rate GDP | BI2: Graphing scale factor to deal with negative scores, alpha by country
A3: =M3 -> 22 | B3: Australia | C3: ='Aid 2013'!Q5 -> 2.76543403 | D3: ='Trade 2013'!F5 -> 6.898529928 | E3: ='Finance 2013'!D4 -> 5.745535714 | F3: ='Migration 2013'!E3 -> 1.777609178 | G3: ='Environment 2013'!K5 -> 3.820696554 | H3: ='Security 2013'!J6 -> 1.795303424 | I3: ='Technology 2013'!D5 -> 4.664112239 | J3: =SUMPRODUCT(C3:I3,$C$39:$I$39)/SUM($C$39:$I$39) -> 3.923888724 | K3: =COUNTIF($J$3:$J$29,">"&J3)+1 -> 23 | L3: =ROUND(J3,1)-ROUND(VLOOKUP($B3,INDIRECT("'CDI "&Year-1&"'!Score_table"),9,FALSE),1) -> -0.9 | M3: =SUM(IF(ROUND(J3,1)<ROUND($J$3:$J$29,1),1))+1 -> 22 | N3: =VLOOKUP($B3,INDIRECT("'CDI "&Year-1&"'!Score_table"),12,FALSE) -> 17 | O3: =B3 -> Australia | P3: =(SUM(IF($J3<$J$3:$J$31*(1-BF$3:BF$31),1))+1)*(1-BF3) -> 7 | Q3: =(SUM(IF($J3<$J$3:$J$31*(1-BG$3:BG$31),1))+1)*(1-BG3) -> 5 | R3: =(SUM(IF(ROUND($J3,1)<ROUND($J$3:$J$31,1)*(1-BF$3:BF$31),1))+1)*(1-BF3) -> 6 | S3: =(SUM(IF(ROUND($J3,1)<ROUND($J$3:$J$31,1)*(1-BG$3:BG$31),1))+1)*(1-BG3) -> 5 | T3: =B3 -> Australia | U3: =ROW(U3)-ROW($U$2) -> 1 | V3: =VLOOKUP(U3,$K$3:$O$29,3,FALSE) -> 1 | W3: =VLOOKUP(U3,$K$3:$O$29,5,FALSE) -> Sweden | X3: =VLOOKUP(W3,$B$3:$O$29,9,FALSE) -> 7.524269891 | Y3: =IF(ISNA(VLOOKUP(W3,$B$3:$O$29,11,FALSE)),"",VLOOKUP(W3,$B$3:$O$29,11,FALSE)) -> -0.4 | Z3: =IF(ISNA(VLOOKUP(U3,$K$3:$O$29,4,FALSE)),"",VLOOKUP(U3,$K$3:$O$29,4,FALSE)-V3) -> 0 | AB3: =VLOOKUP(U33,$P$3:$U$31,3,FALSE) -> 1 | AC3: =VLOOKUP(U33,$P$3:$U$31,5,FALSE) -> EU | AD3: =VLOOKUP($AC3,$B$3:$O$31,2,FALSE) -> 6.714681375 | AE3: =VLOOKUP($AC3,$B$3:$O$31,3,FALSE) -> 5.776172487 | AF3: =VLOOKUP($AC3,$B$3:$O$31,4,FALSE) -> 5.352141553 | AG3: =VLOOKUP($AC3,$B$3:$O$31,5,FALSE) -> 2.316049926 | AH3: =VLOOKUP($AC3,$B$3:$O$31,6,FALSE) -> 7.058537187 | AI3: =VLOOKUP($AC3,$B$3:$O$31,7,FALSE) -> 4.542588378 | AJ3: =VLOOKUP($AC3,$B$3:$O$31,8,FALSE) -> 4.849378817 | AK3: =VLOOKUP($AC3,$B$3:$O$31,9,FALSE) -> 5.229935675 | AM3: =VLOOKUP(U44,$Q$3:$V$31,3,FALSE) -> 1 | AN3: =VLOOKUP(U44,$Q$3:$V$31,4,FALSE) -> Europe | AO3: =VLOOKUP($AN3,$B$3:$O$31,2,FALSE) -> 6.857827801 | AP3: =VLOOKUP($AN3,$B$3:$O$31,3,FALSE) -> 5.392554518 | AQ3: =VLOOKUP($AN3,$B$3:$O$31,4,FALSE) -> 5.297348331 | AR3: =VLOOKUP($AN3,$B$3:$O$31,5,FALSE) -> 2.343067155 | AS3: =VLOOKUP($AN3,$B$3:$O$31,6,FALSE) -> 6.988566456 | AT3: =VLOOKUP($AN3,$B$3:$O$31,7,FALSE) -> 4.493680981 | AU3: =VLOOKUP($AN3,$B$3:$O$31,8,FALSE) -> 4.864284669 | AV3: =VLOOKUP(AN3,$B$3:$O$31,9,FALSE) -> 5.176761416 | BC3: 573.4539592 | BD3: 892.1147638 | BF3: 0 | BG3: 0 | BI3: =ABS(SUM($C3:$I3*$C$39:$I$39)/SUM(IF($C3:$I3>0,$C3:$I3*$C$39:$I$39))) -> 1 | BJ3: =VLOOKUP($W3,$B$3:$I$29,COLUMN()-(COLUMN($BI$2)-1),FALSE)*C$39/SUM($C$39:$I$39)*VLOOKUP($W3,$B$3:$BI$29,(COLUMN($BI$2)-1),FALSE) -> 2.358313342 | BK3: =VLOOKUP($W3,$B$3:$I$29,COLUMN()-(COLUMN($BI$2)-1),FALSE)*D$39/SUM($C$39:$I$39)*VLOOKUP($W3,$B$3:$BI$29,(COLUMN($BI$2)-1),FALSE) -> 0.9232479962 | BL3: =VLOOKUP($W3,$B$3:$I$29,COLUMN()-(COLUMN($BI$2)-1),FALSE)*E$39/SUM($C$39:$I$39)*VLOOKUP($W3,$B$3:$BI$29,(COLUMN($BI$2)-1),FALSE) -> 0.8810586735 | BM3: =VLOOKUP($W3,$B$3:$I$29,COLUMN()-(COLUMN($BI$2)-1),FALSE)*F$39/SUM($C$39:$I$39)*VLOOKUP($W3,$B$3:$BI$29,(COLUMN($BI$2)-1),FALSE) -> 0.7785962055 | BN3: =VLOOKUP($W3,$B$3:$I$29,COLUMN()-(COLUMN($BI$2)-1),FALSE)*G$39/SUM($C$39:$I$39)*VLOOKUP($W3,$B$3:$BI$29,(COLUMN($BI$2)-1),FALSE) -> 1.114555526 | BO3: =VLOOKUP($W3,$B$3:$I$29,COLUMN()-(COLUMN($BI$2)-1),FALSE)*H$39/SUM($C$39:$I$39)*VLOOKUP($W3,$B$3:$BI$29,(COLUMN($BI$2)-1),FALSE) -> 0.823934315 | BP3: =VLOOKUP($W3,$B$3:$I$29,COLUMN()-(COLUMN($BI$2)-1),FALSE)*I$39/SUM($C$39:$I$39)*VLOOKUP($W3,$B$3:$BI$29,(COLUMN($BI$2)-1),FALSE) -> 0.6445638324
A4: 7 | B4: Austria | C4: ='Aid 2013'!Q6 -> 4.919028918 | D4: ='Trade 2013'!F6 -> 5.973469136 | E4: ='Finance 2013'!D5 -> 4.017857143 | F4: ='Migration 2013'!E4 -> 2.810687499 | G4: ='Environment 2013'!K6 -> 6.58634202 | H4: ='Security 2013'!J7 -> 7.843920944 | I4: ='Technology 2013'!D6 -> 5.635467888 | J4: 5.398110507 | K4: 7 | L4: =ROUND(J4,1)-ROUND(VLOOKUP($B4,INDIRECT("'CDI "&Year-1&"'!Score_table"),9,FALSE),1) -> -0.3 | M4: =SUM(IF(ROUND(J4,1)<ROUND($J$3:$J$29,1),1))+1 -> 7 | N4: =VLOOKUP($B4,INDIRECT("'CDI "&Year-1&"'!Score_table"),12,FALSE) -> 8 | O4: Austria | P4: =(SUM(IF($J4<$J$3:$J$31*(1-BF$3:BF$31),1))+1)*(1-BF4) -> 0 | Q4: =(SUM(IF($J4<$J$3:$J$31*(1-BG$3:BG$31),1))+1)*(1-BG4) -> 0 | R4: =(SUM(IF(ROUND($J4,1)<ROUND($J$3:$J$31,1)*(1-BF$3:BF$31),1))+1)*(1-BF4) -> 0 | S4: =(SUM(IF(ROUND($J4,1)<ROUND($J$3:$J$31,1)*(1-BG$3:BG$31),1))+1)*(1-BG4) -> 0 | T4: Austria | U4: 2 | V4: 2 | W4: Denmark | X4: 6.626481153 | Y4: -0.4 | Z4: 0 | AB4: 2 | AC4: Norway | AD4: 10.90635 | AE4: -3.457901179 | AF4: 5.866071429 | AG4: 3.404423896 | AH4: 2.832763705 | AI4: 10.48870414 | AJ4: 5.709236995 | AK4: 5.107092711 | AM4: 2 | AN4: United States | AO4: 6.894790853 | AP4: 6.652041564 | AQ4: 5.142857143 | AR4: 1.23355227 | AS4: 4.313976022 | AT4: 1.506148899 | AU4: 4.677484865 | AV4: 4.345835945 | BC4: 230.9133107 | BD4: 355.4940682 | BF4: 1 | BG4: 1 | BI4: =ABS(SUM($C4:$I4*$C$39:$I$39)/SUM(IF($C4:$I4>0,$C4:$I4*$C$39:$I$39))) -> 1 | BJ4: =VLOOKUP($W4,$B$3:$I$29,COLUMN()-(COLUMN($BI$2)-1),FALSE)*C$39/SUM($C$39:$I$39)*VLOOKUP($W4,$B$3:$BI$29,(COLUMN($BI$2)-1),FALSE) -> 1.493048659 | BK4: =VLOOKUP($W4,$B$3:$I$29,COLUMN()-(COLUMN($BI$2)-1),FALSE)*D$39/SUM($C$39:$I$39)*VLOOKUP($W4,$B$3:$BI$29,(COLUMN($BI$2)-1),FALSE) -> 0.8260110596 | BL4: =VLOOKUP($W4,$B$3:$I$29,COLUMN()-(COLUMN($BI$2)-1),FALSE)*E$39/SUM($C$39:$I$39)*VLOOKUP($W4,$B$3:$BI$29,(COLUMN($BI$2)-1),FALSE) -> 0.8810586735 | BM4: =VLOOKUP($W4,$B$3:$I$29,COLUMN()-(COLUMN($BI$2)-1),FALSE)*F$39/SUM($C$39:$I$39)*VLOOKUP($W4,$B$3:$BI$29,(COLUMN($BI$2)-1),FALSE) -> 0.2440185595 | BN4: =VLOOKUP($W4,$B$3:$I$29,COLUMN()-(COLUMN($BI$2)-1),FALSE)*G$39/SUM($C$39:$I$39)*VLOOKUP($W4,$B$3:$BI$29,(COLUMN($BI$2)-1),FALSE) -> 1.003639681 | BO4: =VLOOKUP($W4,$B$3:$I$29,COLUMN()-(COLUMN($BI$2)-1),FALSE)*H$39/SUM($C$39:$I$39)*VLOOKUP($W4,$B$3:$BI$29,(COLUMN($BI$2)-1),FALSE) -> 1.235381873 | BP4: =VLOOKUP($W4,$B$3:$I$29,COLUMN()-(COLUMN($BI$2)-1),FALSE)*I$39/SUM($C$39:$I$39)*VLOOKUP($W4,$B$3:$BI$29,(COLUMN($BI$2)-1),FALSE) -> 0.9433226464
A5: 6 | B5: Belgium | C5: ='Aid 2013'!Q7 -> 9.165227327 | D5: ='Trade 2013'!F7 -> 5.591594902 | E5: ='Finance 2013'!D6 -> 5.665178571 | F5: ='Migration 2013'!E5 -> 3.086392218 | G5: ='Environment 2013'!K7 -> 7.209382229 | H5: ='Security 2013'!J8 -> 3.05345973 | I5: ='Technology 2013'!D7 -> 4.441210731 | J5: 5.458920815 | K5: 6 | L5: =ROUND(J5,1)-ROUND(VLOOKUP($B5,INDIRECT("'CDI "&Year-1&"'!Score_table"),9,FALSE),1) -> -0.2 | M5: =SUM(IF(ROUND(J5,1)<ROUND($J$3:$J$29,1),1))+1 -> 6 | N5: =VLOOKUP($B5,INDIRECT("'CDI "&Year-1&"'!Score_table"),12,FALSE) -> 8 | O5: Belgium | P5: =(SUM(IF($J5<$J$3:$J$31*(1-BF$3:BF$31),1))+1)*(1-BF5) -> 0 | Q5: =(SUM(IF($J5<$J$3:$J$31*(1-BG$3:BG$31),1))+1)*(1-BG5) -> 0 | R5: =(SUM(IF(ROUND($J5,1)<ROUND($J$3:$J$31,1)*(1-BF$3:BF$31),1))+1)*(1-BF5) -> 0 | S5: =(SUM(IF(ROUND($J5,1)<ROUND($J$3:$J$31,1)*(1-BG$3:BG$31),1))+1)*(1-BG5) -> 0 | T5: Belgium | U5: 3 | V5: 3 | W5: Ireland | X5: 6.447378523 | Y5: 0.6 | Z5: 3 | AB5: 3 | AC5: United States | AD5: 6.894790853 | AE5: 6.652041564 | AF5: 5.142857143 | AG5: 1.23355227 | AH5: 4.313976022 | AI5: 1.506148899 | AJ5: 4.677484865 | AK5: 4.345835945 | AM5: 2 | AN5: New Zealand | AO5: 0.9865739384 | AP5: 8.031734055 | AQ5: 4.198660714 | AR5: 1.120523331 | AS5: 6.023383385 | AT5: 5.371245574 | AU5: 4.433559142 | AV5: 4.309382877 | BC5: 272.2710487 | BD5: 424.9662915 | BF5: 1 | BG5: 1 | BI5: =ABS(SUM($C5:$I5*$C$39:$I$39)/SUM(IF($C5:$I5>0,$C5:$I5*$C$39:$I$39))) -> 1 | BJ5: =VLOOKUP($W5,$B$3:$I$29,COLUMN()-(COLUMN($BI$2)-1),FALSE)*C$39/SUM($C$39:$I$39)*VLOOKUP($W5,$B$3:$BI$29,(COLUMN($BI$2)-1),FALSE) -> 1.740184746 | BK5: =VLOOKUP($W5,$B$3:$I$29,COLUMN()-(COLUMN($BI$2)-1),FALSE)*D$39/SUM($C$39:$I$39)*VLOOKUP($W5,$B$3:$BI$29,(COLUMN($BI$2)-1),FALSE) -> 0.81810003 | BL5: =VLOOKUP($W5,$B$3:$I$29,COLUMN()-(COLUMN($BI$2)-1),FALSE)*E$39/SUM($C$39:$I$39)*VLOOKUP($W5,$B$3:$BI$29,(COLUMN($BI$2)-1),FALSE) -> 0.7375637755 | BM5: =VLOOKUP($W5,$B$3:$I$29,COLUMN()-(COLUMN($BI$2)-1),FALSE)*F$39/SUM($C$39:$I$39)*VLOOKUP($W5,$B$3:$BI$29,(COLUMN($BI$2)-1),FALSE) -> 0.2588833707 | BN5: =VLOOKUP($W5,$B$3:$I$29,COLUMN()-(COLUMN($BI$2)-1),FALSE)*G$39/SUM($C$39:$I$39)*VLOOKUP($W5,$B$3:$BI$29,(COLUMN($BI$2)-1),FALSE) -> 0.963129133 | BO5: =VLOOKUP($W5,$B$3:$I$29,COLUMN()-(COLUMN($BI$2)-1),FALSE)*H$39/SUM($C$39:$I$39)*VLOOKUP($W5,$B$3:$BI$29,(COLUMN($BI$2)-1),FALSE) -> 1.39366937 | BP5: =VLOOKUP($W5,$B$3:$I$29,COLUMN()-(COLUMN($BI$2)-1),FALSE)*I$39/SUM($C$39:$I$39)*VLOOKUP($W5,$B$3:$BI$29,(COLUMN($BI$2)-1),FALSE) -> 0.5358480974
A6: 16 | B6: Canada | C6: ='Aid 2013'!Q8 -> 3.426970769 | D6: ='Trade 2013'!F8 -> 4.582942 | E6: ='Finance 2013'!D7 -> 5.323660714 | F6: ='Migration 2013'!E6 -> 2.997215509 | G6: ='Environment 2013'!K8 -> 2.631478908 | H6: ='Security 2013'!J9 -> 5.74527455 | I6: ='Technology 2013'!D8 -> 5.332309685 | J6: 4.291407448 | K6: 18 | L6: =ROUND(J6,1)-ROUND(VLOOKUP($B6,INDIRECT("'CDI "&Year-1&"'!Score_table"),9,FALSE),1) -> -0.7 | M6: =SUM(IF(ROUND(J6,1)<ROUND($J$3:$J$29,1),1))+1 -> 16 | N6: =VLOOKUP($B6,INDIRECT("'CDI "&Year-1&"'!Score_table"),12,FALSE) -> 16 | O6: Canada | P6: =(SUM(IF($J6<$J$3:$J$31*(1-BF$3:BF$31),1))+1)*(1-BF6) -> 5 | Q6: =(SUM(IF($J6<$J$3:$J$31*(1-BG$3:BG$31),1))+1)*(1-BG6) -> 4 | R6: =(SUM(IF(ROUND($J6,1)<ROUND($J$3:$J$31,1)*(1-BF$3:BF$31),1))+1)*(1-BF6) -> 3 | S6: =(SUM(IF(ROUND($J6,1)<ROUND($J$3:$J$31,1)*(1-BG$3:BG$31),1))+1)*(1-BG6) -> 2 | T6: Canada | U6: 4 | V6: 4 | W6: France | X6: 6.074253449 | Y6: 0 | Z6: -1 | AB6: 3 | AC6: New Zealand | AD6: 0.9865739384 | AE6: 8.031734055 | AF6: 4.198660714 | AG6: 1.120523331 | AH6: 6.023383385 | AI6: 5.371245574 | AJ6: 4.433559142 | AK6: 4.309382877 | AM6: 2 | AN6: Canada | AO6: 3.426970769 | AP6: 4.582942 | AQ6: 5.323660714 | AR6: 2.997215509 | AS6: 2.631478908 | AT6: 5.74527455 | AU6: 5.332309685 | AV6: 4.291407448 | BC6: 894.2518272 | BD6: 1394.490343 | BF6: 0 | BG6: 0 | BI6: =ABS(SUM($C6:$I6*$C$39:$I$39)/SUM(IF($C6:$I6>0,$C6:$I6*$C$39:$I$39))) -> 1 | BJ6: =VLOOKUP($W6,$B$3:$I$29,COLUMN()-(COLUMN($BI$2)-1),FALSE)*C$39/SUM($C$39:$I$39)*VLOOKUP($W6,$B$3:$BI$29,(COLUMN($BI$2)-1),FALSE) -> 1.261139414 | BK6: =VLOOKUP($W6,$B$3:$I$29,COLUMN()-(COLUMN($BI$2)-1),FALSE)*D$39/SUM($C$39:$I$39)*VLOOKUP($W6,$B$3:$BI$29,(COLUMN($BI$2)-1),FALSE) -> 0.8016530693 | BL6: =VLOOKUP($W6,$B$3:$I$29,COLUMN()-(COLUMN($BI$2)-1),FALSE)*E$39/SUM($C$39:$I$39)*VLOOKUP($W6,$B$3:$BI$29,(COLUMN($BI$2)-1),FALSE) -> 0.7920918367 | BM6: =VLOOKUP($W6,$B$3:$I$29,COLUMN()-(COLUMN($BI$2)-1),FALSE)*F$39/SUM($C$39:$I$39)*VLOOKUP($W6,$B$3:$BI$29,(COLUMN($BI$2)-1),FALSE) -> 0.4272864505 | BN6: =VLOOKUP($W6,$B$3:$I$29,COLUMN()-(COLUMN($BI$2)-1),FALSE)*G$39/SUM($C$39:$I$39)*VLOOKUP($W6,$B$3:$BI$29,(COLUMN($BI$2)-1),FALSE) -> 1.008394249 | BO6: =VLOOKUP($W6,$B$3:$I$29,COLUMN()-(COLUMN($BI$2)-1),FALSE)*H$39/SUM($C$39:$I$39)*VLOOKUP($W6,$B$3:$BI$29,(COLUMN($BI$2)-1),FALSE) -> 0.8461973083 | BP6: =VLOOKUP($W6,$B$3:$I$29,COLUMN()-(COLUMN($BI$2)-1),FALSE)*I$39/SUM($C$39:$I$39)*VLOOKUP($W6,$B$3:$BI$29,(COLUMN($BI$2)-1),FALSE) -> 0.9374911217
A7: 25 | B7: Czech Republic | C7: ='Aid 2013'!Q9 -> 2.034991177 | D7: ='Trade 2013'!F9 -> 5.427571182 | E7: ='Finance 2013'!D8 -> 4.520089286 | F7: ='Migration 2013'!E7 -> 0.4691662581 | G7: ='Environment 2013'!K9 -> 7.502942589 | H7: ='Security 2013'!J10 -> -0.569957641 | I7: ='Technology 2013'!D9 -> 5.424446221 | J7: 3.544178439 | K7: 25 | L7: =ROUND(J7,1)-ROUND(VLOOKUP($B7,INDIRECT("'CDI "&Year-1&"'!Score_table"),9,FALSE),1) -> 0 | M7: =SUM(IF(ROUND(J7,1)<ROUND($J$3:$J$29,1),1))+1 -> 25 | N7: =VLOOKUP($B7,INDIRECT("'CDI "&Year-1&"'!Score_table"),12,FALSE) -> 25 | O7: Czech Republic | P7: =(SUM(IF($J7<$J$3:$J$31*(1-BF$3:BF$31),1))+1)*(1-BF7) -> 0 | Q7: =(SUM(IF($J7<$J$3:$J$31*(1-BG$3:BG$31),1))+1)*(1-BG7) -> 0 | R7: =(SUM(IF(ROUND($J7,1)<ROUND($J$3:$J$31,1)*(1-BF$3:BF$31),1))+1)*(1-BF7) -> 0 | S7: =(SUM(IF(ROUND($J7,1)<ROUND($J$3:$J$31,1)*(1-BG$3:BG$31),1))+1)*(1-BG7) -> 0 | T7: Czech Republic | U7: 5 | V7: 5 | W7: Finland | X7: 6.014519272 | Y7: -0.1 | Z7: -2 | AB7: 3 | AC7: Canada | AD7: 3.426970769 | AE7: 4.582942 | AF7: 5.323660714 | AG7: 2.997215509 | AH7: 2.631478908 | AI7: 5.74527455 | AJ7: 5.332309685 | AK7: 4.291407448 | AM7: 5 | AN7: Australia | AO7: 2.76543403 | AP7: 6.898529928 | AQ7: 5.745535714 | AR7: 1.777609178 | AS7: 3.820696554 | AT7: 1.795303424 | AU7: 4.664112239 | AV7: 3.923888724 | BC7: 83.4428928 | BD7: 274.6831667 | BF7: 1 | BG7: 1 | BI7: =ABS(SUM($C7:$I7*$C$39:$I$39)/SUM(IF($C7:$I7>0,$C7:$I7*$C$39:$I$39))) -> 0.9775423382 | BJ7: =VLOOKUP($W7,$B$3:$I$29,COLUMN()-(COLUMN($BI$2)-1),FALSE)*C$39/SUM($C$39:$I$39)*VLOOKUP($W7,$B$3:$BI$29,(COLUMN($BI$2)-1),FALSE) -> 1.029867958 | BK7: =VLOOKUP($W7,$B$3:$I$29,COLUMN()-(COLUMN($BI$2)-1),FALSE)*D$39/SUM($C$39:$I$39)*VLOOKUP($W7,$B$3:$BI$29,(COLUMN($BI$2)-1),FALSE) -> 0.8649154818 | BL7: =VLOOKUP($W7,$B$3:$I$29,COLUMN()-(COLUMN($BI$2)-1),FALSE)*E$39/SUM($C$39:$I$39)*VLOOKUP($W7,$B$3:$BI$29,(COLUMN($BI$2)-1),FALSE) -> 0.9040178571 | BM7: =VLOOKUP($W7,$B$3:$I$29,COLUMN()-(COLUMN($BI$2)-1),FALSE)*F$39/SUM($C$39:$I$39)*VLOOKUP($W7,$B$3:$BI$29,(COLUMN($BI$2)-1),FALSE) -> 0.2775096305 | BN7: =VLOOKUP($W7,$B$3:$I$29,COLUMN()-(COLUMN($BI$2)-1),FALSE)*G$39/SUM($C$39:$I$39)*VLOOKUP($W7,$B$3:$BI$29,(COLUMN($BI$2)-1),FALSE) -> 1.110068499 | BO7: =VLOOKUP($W7,$B$3:$I$29,COLUMN()-(COLUMN($BI$2)-1),FALSE)*H$39/SUM($C$39:$I$39)*VLOOKUP($W7,$B$3:$BI$29,(COLUMN($BI$2)-1),FALSE) -> 1.02033534 | BP7: =VLOOKUP($W7,$B$3:$I$29,COLUMN()-(COLUMN($BI$2)-1),FALSE)*I$39/SUM($C$39:$I$39)*VLOOKUP($W7,$B$3:$BI$29,(COLUMN($BI$2)-1),FALSE) -> 0.8078045056
A8: 2 | B8: Denmark | C8: ='Aid 2013'!Q10 -> 10.45134062 | D8: ='Trade 2013'!F10 -> 5.782077417 | E8: ='Finance 2013'!D9 -> 6.167410714 | F8: ='Migration 2013'!E8 -> 1.708129917 | G8: ='Environment 2013'!K10 -> 7.025477768 | H8: ='Security 2013'!J11 -> 8.647673113 | I8: ='Technology 2013'!D10 -> 6.603258525 | J8: 6.626481153 | K8: 2 | L8: =ROUND(J8,1)-ROUND(VLOOKUP($B8,INDIRECT("'CDI "&Year-1&"'!Score_table"),9,FALSE),1) -> -0.4 | M8: =SUM(IF(ROUND(J8,1)<ROUND($J$3:$J$29,1),1))+1 -> 2 | N8: =VLOOKUP($B8,INDIRECT("'CDI "&Year-1&"'!Score_table"),12,FALSE) -> 2 | O8: Denmark | P8: =(SUM(IF($J8<$J$3:$J$31*(1-BF$3:BF$31),1))+1)*(1-BF8) -> 0 | Q8: =(SUM(IF($J8<$J$3:$J$31*(1-BG$3:BG$31),1))+1)*(1-BG8) -> 0 | R8: =(SUM(IF(ROUND($J8,1)<ROUND($J$3:$J$31,1)*(1-BF$3:BF$31),1))+1)*(1-BF8) -> 0 | S8: =(SUM(IF(ROUND($J8,1)<ROUND($J$3:$J$31,1)*(1-BG$3:BG$31),1))+1)*(1-BG8) -> 0 | T8: Denmark | U8: 6 | V8: 6 | W8: Belgium | X8: 5.458920815 | Y8: -0.2 | Z8: 2 | AB8: 6 | AC8: Switzerland | AD8: 7.533729384 | AE8: -0.8834924 | AF8: 3.154017857 | AG8: 2.823341373 | AH8: 6.131272708 | AI8: 3.888733579 | AJ8: 4.883973313 | AK8: 3.933082259 | AM8: 6 | AN8: Japan | AO8: 0.3578014807 | AP8: 1.722419865 | AQ8: 3.897321429 | AR8: 0.9757099098 | AS8: 3.81377891 | AT8: 4.120415735 | AU8: 6.245486397 | AV8: 3.018990532 | BC8: 171.0518764 | BD8: 228.4414075 | BF8: 1 | BG8: 1 | BI8: =ABS(SUM($C8:$I8*$C$39:$I$39)/SUM(IF($C8:$I8>0,$C8:$I8*$C$39:$I$39))) -> 1 | BJ8: =VLOOKUP($W8,$B$3:$I$29,COLUMN()-(COLUMN($BI$2)-1),FALSE)*C$39/SUM($C$39:$I$39)*VLOOKUP($W8,$B$3:$BI$29,(COLUMN($BI$2)-1),FALSE) -> 1.30931819 | BK8: =VLOOKUP($W8,$B$3:$I$29,COLUMN()-(COLUMN($BI$2)-1),FALSE)*D$39/SUM($C$39:$I$39)*VLOOKUP($W8,$B$3:$BI$29,(COLUMN($BI$2)-1),FALSE) -> 0.7987992717 | BL8: =VLOOKUP($W8,$B$3:$I$29,COLUMN()-(COLUMN($BI$2)-1),FALSE)*E$39/SUM($C$39:$I$39)*VLOOKUP($W8,$B$3:$BI$29,(COLUMN($BI$2)-1),FALSE) -> 0.8093112245 | BM8: =VLOOKUP($W8,$B$3:$I$29,COLUMN()-(COLUMN($BI$2)-1),FALSE)*F$39/SUM($C$39:$I$39)*VLOOKUP($W8,$B$3:$BI$29,(COLUMN($BI$2)-1),FALSE) -> 0.4409131739 | BN8: =VLOOKUP($W8,$B$3:$I$29,COLUMN()-(COLUMN($BI$2)-1),FALSE)*G$39/SUM($C$39:$I$39)*VLOOKUP($W8,$B$3:$BI$29,(COLUMN($BI$2)-1),FALSE) -> 1.029911747 | BO8: =VLOOKUP($W8,$B$3:$I$29,COLUMN()-(COLUMN($BI$2)-1),FALSE)*H$39/SUM($C$39:$I$39)*VLOOKUP($W8,$B$3:$BI$29,(COLUMN($BI$2)-1),FALSE) -> 0.4362085328 | BP8: =VLOOKUP($W8,$B$3:$I$29,COLUMN()-(COLUMN($BI$2)-1),FALSE)*I$39/SUM($C$39:$I$39)*VLOOKUP($W8,$B$3:$BI$29,(COLUMN($BI$2)-1),FALSE) -> 0.6344586758
A9: 5 | B9: Finland | C9: ='Aid 2013'!Q11 -> 7.209075709 | D9: ='Trade 2013'!F11 -> 6.054408373 | E9: ='Finance 2013'!D10 -> 6.328125 | F9: ='Migration 2013'!E9 -> 1.942567414 | G9: ='Environment 2013'!K11 -> 7.770479493 | H9: ='Security 2013'!J12 -> 7.142347379 | I9: ='Technology 2013'!D11 -> 5.654631539 | J9: 6.014519272 | K9: 5 | L9: =ROUND(J9,1)-ROUND(VLOOKUP($B9,INDIRECT("'CDI "&Year-1&"'!Score_table"),9,FALSE),1) -> -0.1 | M9: =SUM(IF(ROUND(J9,1)<ROUND($J$3:$J$29,1),1))+1 -> 5 | N9: =VLOOKUP($B9,INDIRECT("'CDI "&Year-1&"'!Score_table"),12,FALSE) -> 3 | O9: Finland | P9: =(SUM(IF($J9<$J$3:$J$31*(1-BF$3:BF$31),1))+1)*(1-BF9) -> 0 | Q9: =(SUM(IF($J9<$J$3:$J$31*(1-BG$3:BG$31),1))+1)*(1-BG9) -> 0 | R9: =(SUM(IF(ROUND($J9,1)<ROUND($J$3:$J$31,1)*(1-BF$3:BF$31),1))+1)*(1-BF9) -> 0 | S9: =(SUM(IF(ROUND($J9,1)<ROUND($J$3:$J$31,1)*(1-BG$3:BG$31),1))+1)*(1-BG9) -> 0 | T9: Finland | U9: 7 | V9: 7 | W9: Austria | X9: 5.398110507 | Y9: -0.3 | Z9: 1 | AB9: 6 | AC9: Australia | AD9: 2.76543403 | AE9: 6.898529928 | AF9: 5.745535714 | AG9: 1.777609178 | AH9: 3.820696554 | AI9: 1.795303424 | AJ9: 4.664112239 | AK9: 3.923888724 | AM9: 7 | AN9: South Korea | AO9: 0.8572165915 | AP9: -2.194798088 | AQ9: 4.881696429 | AR9: 1.188389401 | AS9: 4.326747841 | AT9: 1.41366684 | AU9: 6.823314632 | AV9: 2.470890521 | BC9: 149.5734354 | BD9: 205.1540091 | BF9: 1 | BG9: 1 | BI9: =ABS(SUM($C9:$I9*$C$39:$I$39)/SUM(IF($C9:$I9>0,$C9:$I9*$C$39:$I$39))) -> 1 | BJ9: =VLOOKUP($W9,$B$3:$I$29,COLUMN()-(COLUMN($BI$2)-1),FALSE)*C$39/SUM($C$39:$I$39)*VLOOKUP($W9,$B$3:$BI$29,(COLUMN($BI$2)-1),FALSE) -> 0.7027184169 | BK9: =VLOOKUP($W9,$B$3:$I$29,COLUMN()-(COLUMN($BI$2)-1),FALSE)*D$39/SUM($C$39:$I$39)*VLOOKUP($W9,$B$3:$BI$29,(COLUMN($BI$2)-1),FALSE) -> 0.8533527337 | BL9: =VLOOKUP($W9,$B$3:$I$29,COLUMN()-(COLUMN($BI$2)-1),FALSE)*E$39/SUM($C$39:$I$39)*VLOOKUP($W9,$B$3:$BI$29,(COLUMN($BI$2)-1),FALSE) -> 0.5739795918 | BM9: =VLOOKUP($W9,$B$3:$I$29,COLUMN()-(COLUMN($BI$2)-1),FALSE)*F$39/SUM($C$39:$I$39)*VLOOKUP($W9,$B$3:$BI$29,(COLUMN($BI$2)-1),FALSE) -> 0.4015267856 | BN9: =VLOOKUP($W9,$B$3:$I$29,COLUMN()-(COLUMN($BI$2)-1),FALSE)*G$39/SUM($C$39:$I$39)*VLOOKUP($W9,$B$3:$BI$29,(COLUMN($BI$2)-1),FALSE) -> 0.9409060028 | BO9: =VLOOKUP($W9,$B$3:$I$29,COLUMN()-(COLUMN($BI$2)-1),FALSE)*H$39/SUM($C$39:$I$39)*VLOOKUP($W9,$B$3:$BI$29,(COLUMN($BI$2)-1),FALSE) -> 1.120560135 | BP9: =VLOOKUP($W9,$B$3:$I$29,COLUMN()-(COLUMN($BI$2)-1),FALSE)*I$39/SUM($C$39:$I$39)*VLOOKUP($W9,$B$3:$BI$29,(COLUMN($BI$2)-1),FALSE) -> 0.8050668411
A10: 4 | B10: France | C10: ='Aid 2013'!Q12 -> 8.827975895 | D10: ='Trade 2013'!F12 -> 5.611571485 | E10: ='Finance 2013'!D11 -> 5.544642857 | F10: ='Migration 2013'!E10 -> 2.991005154 | G10: ='Environment 2013'!K12 -> 7.058759744 | H10: ='Security 2013'!J13 -> 5.923381158 | I10: ='Technology 2013'!D12 -> 6.562437852 | J10: 6.074253449 | K10: 4 | L10: =ROUND(J10,1)-ROUND(VLOOKUP($B10,INDIRECT("'CDI "&Year-1&"'!Score_table"),9,FALSE),1) -> 0 | M10: =SUM(IF(ROUND(J10,1)<ROUND($J$3:$J$29,1),1))+1 -> 4 | N10: =VLOOKUP($B10,INDIRECT("'CDI "&Year-1&"'!Score_table"),12,FALSE) -> 3 | O10: France | P10: =(SUM(IF($J10<$J$3:$J$31*(1-BF$3:BF$31),1))+1)*(1-BF10) -> 0 | Q10: =(SUM(IF($J10<$J$3:$J$31*(1-BG$3:BG$31),1))+1)*(1-BG10) -> 0 | R10: =(SUM(IF(ROUND($J10,1)<ROUND($J$3:$J$31,1)*(1-BF$3:BF$31),1))+1)*(1-BF10) -> 0 | S10: =(SUM(IF(ROUND($J10,1)<ROUND($J$3:$J$31,1)*(1-BG$3:BG$31),1))+1)*(1-BG10) -> 0 | T10: France | U10: 8 | V10: 8 | W10: United Kingdom | X10: 5.276272724 | Y10: -0.4 | Z10: 0 | AB10: 8 | AC10: Japan | AD10: 0.3578014807 | AE10: 1.722419865 | AF10: 3.897321429 | AG10: 0.9757099098 | AH10: 3.81377891 | AI10: 4.120415735 | AJ10: 6.245486397 | AK10: 3.018990532 | BC10: 1506.143109 | BD10: 2289.849074 | BF10: 1 | BG10: 1 | BI10: =ABS(SUM($C10:$I10*$C$39:$I$39)/SUM(IF($C10:$I10>0,$C10:$I10*$C$39:$I$39))) -> 1 | BJ10: =VLOOKUP($W10,$B$3:$I$29,COLUMN()-(COLUMN($BI$2)-1),FALSE)*C$39/SUM($C$39:$I$39)*VLOOKUP($W10,$B$3:$BI$29,(COLUMN($BI$2)-1),FALSE) -> 1.063659536 | BK10: =VLOOKUP($W10,$B$3:$I$29,COLUMN()-(COLUMN($BI$2)-1),FALSE)*D$39/SUM($C$39:$I$39)*VLOOKUP($W10,$B$3:$BI$29,(COLUMN($BI$2)-1),FALSE) -> 0.8575271543 | BL10: =VLOOKUP($W10,$B$3:$I$29,COLUMN()-(COLUMN($BI$2)-1),FALSE)*E$39/SUM($C$39:$I$39)*VLOOKUP($W10,$B$3:$BI$29,(COLUMN($BI$2)-1),FALSE) -> 0.84375 | BM10: =VLOOKUP($W10,$B$3:$I$29,COLUMN()-(COLUMN($BI$2)-1),FALSE)*F$39/SUM($C$39:$I$39)*VLOOKUP($W10,$B$3:$BI$29,(COLUMN($BI$2)-1),FALSE) -> 0.2538625109 | BN10: =VLOOKUP($W10,$B$3:$I$29,COLUMN()-(COLUMN($BI$2)-1),FALSE)*G$39/SUM($C$39:$I$39)*VLOOKUP($W10,$B$3:$BI$29,(COLUMN($BI$2)-1),FALSE) -> 1.047883939 | BO10: =VLOOKUP($W10,$B$3:$I$29,COLUMN()-(COLUMN($BI$2)-1),FALSE)*H$39/SUM($C$39:$I$39)*VLOOKUP($W10,$B$3:$BI$29,(COLUMN($BI$2)-1),FALSE) -> 0.6106728761 | BP10: =VLOOKUP($W10,$B$3:$I$29,COLUMN()-(COLUMN($BI$2)-1),FALSE)*I$39/SUM($C$39:$I$39)*VLOOKUP($W10,$B$3:$BI$29,(COLUMN($BI$2)-1),FALSE) -> 0.5989167073
A11: 11 | B11: Germany | C11: ='Aid 2013'!Q13 -> 6.542232048 | D11: ='Trade 2013'!F13 -> 5.879470843 | E11: ='Finance 2013'!D12 -> 4.419642857 | F11: ='Migration 2013'!E11 -> 3.055954118 | G11: ='Environment 2013'!K13 -> 7.066352389 | H11: ='Security 2013'!J14 -> 2.447678861 | I11: ='Technology 2013'!D13 -> 5.067750089 | J11: 4.925583029 | K11: 12 | L11: =ROUND(J11,1)-ROUND(VLOOKUP($B11,INDIRECT("'CDI "&Year-1&"'!Score_table"),9,FALSE),1) -> -0.5 | M11: =SUM(IF(ROUND(J11,1)<ROUND($J$3:$J$29,1),1))+1 -> 11 | N11: =VLOOKUP($B11,INDIRECT("'CDI "&Year-1&"'!Score_table"),12,FALSE) -> 12 | O11: Germany | P11: =(SUM(IF($J11<$J$3:$J$31*(1-BF$3:BF$31),1))+1)*(1-BF11) -> 0 | Q11: =(SUM(IF($J11<$J$3:$J$31*(1-BG$3:BG$31),1))+1)*(1-BG11) -> 0 | R11: =(SUM(IF(ROUND($J11,1)<ROUND($J$3:$J$31,1)*(1-BF$3:BF$31),1))+1)*(1-BF11) -> 0 | S11: =(SUM(IF(ROUND($J11,1)<ROUND($J$3:$J$31,1)*(1-BG$3:BG$31),1))+1)*(1-BG11) -> 0 | T11: Germany | U11: 9 | V11: 9 | W11: Spain | X11: 5.230341967 | Y11: -0.9 | Z11: -6 | AB11: 9 | AC11: South Korea | AD11: 0.8572165915 | AE11: -2.194798088 | AF11: 4.881696429 | AG11: 1.188389401 | AH11: 4.326747841 | AI11: 1.41366684 | AJ11: 6.823314632 | AK11: 2.470890521 | BC11: 2131.456688 | BD11: 3204.596105 | BF11: 1 | BG11: 1 | BI11: =ABS(SUM($C11:$I11*$C$39:$I$39)/SUM(IF($C11:$I11>0,$C11:$I11*$C$39:$I$39))) -> 1 | BJ11: =VLOOKUP($W11,$B$3:$I$29,COLUMN()-(COLUMN($BI$2)-1),FALSE)*C$39/SUM($C$39:$I$39)*VLOOKUP($W11,$B$3:$BI$29,(COLUMN($BI$2)-1),FALSE) -> 0.8656640569 | BK11: =VLOOKUP($W11,$B$3:$I$29,COLUMN()-(COLUMN($BI$2)-1),FALSE)*D$39/SUM($C$39:$I$39)*VLOOKUP($W11,$B$3:$BI$29,(COLUMN($BI$2)-1),FALSE) -> 0.8286066804 | BL11: =VLOOKUP($W11,$B$3:$I$29,COLUMN()-(COLUMN($BI$2)-1),FALSE)*E$39/SUM($C$39:$I$39)*VLOOKUP($W11,$B$3:$BI$29,(COLUMN($BI$2)-1),FALSE) -> 0.8695790816 | BM11: =VLOOKUP($W11,$B$3:$I$29,COLUMN()-(COLUMN($BI$2)-1),FALSE)*F$39/SUM($C$39:$I$39)*VLOOKUP($W11,$B$3:$BI$29,(COLUMN($BI$2)-1),FALSE) -> 0.2761164772 | BN11: =VLOOKUP($W11,$B$3:$I$29,COLUMN()-(COLUMN($BI$2)-1),FALSE)*G$39/SUM($C$39:$I$39)*VLOOKUP($W11,$B$3:$BI$29,(COLUMN($BI$2)-1),FALSE) -> 0.9566880495 | BO11: =VLOOKUP($W11,$B$3:$I$29,COLUMN()-(COLUMN($BI$2)-1),FALSE)*H$39/SUM($C$39:$I$39)*VLOOKUP($W11,$B$3:$BI$29,(COLUMN($BI$2)-1),FALSE) -> 0.6577728301 | BP11: =VLOOKUP($W11,$B$3:$I$29,COLUMN()-(COLUMN($BI$2)-1),FALSE)*I$39/SUM($C$39:$I$39)*VLOOKUP($W11,$B$3:$BI$29,(COLUMN($BI$2)-1),FALSE) -> 0.7759147914
A12: 19 | B12: Greece | C12: ='Aid 2013'!Q14 -> 2.985838556 | D12: ='Trade 2013'!F14 -> 5.347430824 | E12: ='Finance 2013'!D13 -> 4.700892857 | F12: ='Migration 2013'!E12 -> 3.060245717 | G12: ='Environment 2013'!K14 -> 5.862417422 | H12: ='Security 2013'!J15 -> 4.408744673 | I12: ='Technology 2013'!D14 -> 2.743527791 | J12: 4.158442549 | K12: 20 | L12: =ROUND(J12,1)-ROUND(VLOOKUP($B12,INDIRECT("'CDI "&Year-1&"'!Score_table"),9,FALSE),1) -> -0.4 | M12: =SUM(IF(ROUND(J12,1)<ROUND($J$3:$J$29,1),1))+1 -> 19 | N12: =VLOOKUP($B12,INDIRECT("'CDI "&Year-1&"'!Score_table"),12,FALSE) -> 19 | O12: Greece | P12: =(SUM(IF($J12<$J$3:$J$31*(1-BF$3:BF$31),1))+1)*(1-BF12) -> 0 | Q12: =(SUM(IF($J12<$J$3:$J$31*(1-BG$3:BG$31),1))+1)*(1-BG12) -> 0 | R12: =(SUM(IF(ROUND($J12,1)<ROUND($J$3:$J$31,1)*(1-BF$3:BF$31),1))+1)*(1-BF12) -> 0 | S12: =(SUM(IF(ROUND($J12,1)<ROUND($J$3:$J$31,1)*(1-BG$3:BG$31),1))+1)*(1-BG12) -> 0 | T12: Greece | U12: 10 | V12: 10 | W12: Norway | X12: 5.107092711 | Y12: -0.7 | Z12: -4 | BC12: 143.0344991 | BD12: 304.621355 | BF12: 1 | BG12: 1 | BI12: =ABS(SUM($C12:$I12*$C$39:$I$39)/SUM(IF($C12:$I12>0,$C12:$I12*$C$39:$I$39))) -> 1 | BJ12: =VLOOKUP($W12,$B$3:$I$29,COLUMN()-(COLUMN($BI$2)-1),FALSE)*C$39/SUM($C$39:$I$39)*VLOOKUP($W12,$B$3:$BI$29,(COLUMN($BI$2)-1),FALSE) -> 1.420638126 | BK12: =VLOOKUP($W12,$B$3:$I$29,COLUMN()-(COLUMN($BI$2)-1),FALSE)*D$39/SUM($C$39:$I$39)*VLOOKUP($W12,$B$3:$BI$29,(COLUMN($BI$2)-1),FALSE) -> -0.4504189075 | BL12: =VLOOKUP($W12,$B$3:$I$29,COLUMN()-(COLUMN($BI$2)-1),FALSE)*E$39/SUM($C$39:$I$39)*VLOOKUP($W12,$B$3:$BI$29,(COLUMN($BI$2)-1),FALSE) -> 0.7641020802 | BM12: =VLOOKUP($W12,$B$3:$I$29,COLUMN()-(COLUMN($BI$2)-1),FALSE)*F$39/SUM($C$39:$I$39)*VLOOKUP($W12,$B$3:$BI$29,(COLUMN($BI$2)-1),FALSE) -> 0.4434530695 | BN12: =VLOOKUP($W12,$B$3:$I$29,COLUMN()-(COLUMN($BI$2)-1),FALSE)*G$39/SUM($C$39:$I$39)*VLOOKUP($W12,$B$3:$BI$29,(COLUMN($BI$2)-1),FALSE) -> 0.3689898198 | BO12: =VLOOKUP($W12,$B$3:$I$29,COLUMN()-(COLUMN($BI$2)-1),FALSE)*H$39/SUM($C$39:$I$39)*VLOOKUP($W12,$B$3:$BI$29,(COLUMN($BI$2)-1),FALSE) -> 1.366236458 | BP12: =VLOOKUP($W12,$B$3:$I$29,COLUMN()-(COLUMN($BI$2)-1),FALSE)*I$39/SUM($C$39:$I$39)*VLOOKUP($W12,$B$3:$BI$29,(COLUMN($BI$2)-1),FALSE) -> 0.743673158
A13: 21 | B13: Hungary | C13: ='Aid 2013'!Q15 -> 1.685200102 | D13: ='Trade 2013'!F15 -> 5.436035365 | E13: ='Finance 2013'!D14 -> 4.821428571 | F13: ='Migration 2013'!E13 -> 1.033259532 | G13: ='Environment 2013'!K15 -> 8.044721854 | H13: ='Security 2013'!J16 -> 4.658874755 | I13: ='Technology 2013'!D15 -> 3.2060903 | J13: 4.126515783 | K13: 21 | L13: =ROUND(J13,1)-ROUND(VLOOKUP($B13,INDIRECT("'CDI "&Year-1&"'!Score_table"),9,FALSE),1) -> -0.1 | M13: =SUM(IF(ROUND(J13,1)<ROUND($J$3:$J$29,1),1))+1 -> 21 | N13: =VLOOKUP($B13,INDIRECT("'CDI "&Year-1&"'!Score_table"),12,FALSE) -> 22 | O13: Hungary | P13: =(SUM(IF($J13<$J$3:$J$31*(1-BF$3:BF$31),1))+1)*(1-BF13) -> 0 | Q13: =(SUM(IF($J13<$J$3:$J$31*(1-BG$3:BG$31),1))+1)*(1-BG13) -> 0 | R13: =(SUM(IF(ROUND($J13,1)<ROUND($J$3:$J$31,1)*(1-BF$3:BF$31),1))+1)*(1-BF13) -> 0 | S13: =(SUM(IF(ROUND($J13,1)<ROUND($J$3:$J$31,1)*(1-BG$3:BG$31),1))+1)*(1-BG13) -> 0 | T13: Hungary | U13: 11 | V13: 11 | W13: Italy | X13: 4.935121171 | Y13: -0.6 | Z13: 0 | BC13: 57.29318093 | BD13: 215.4781737 | BF13: 1 | BG13: 1 | BI13: =ABS(SUM($C13:$I13*$C$39:$I$39)/SUM(IF($C13:$I13>0,$C13:$I13*$C$39:$I$39))) -> 1 | BJ13: =VLOOKUP($W13,$B$3:$I$29,COLUMN()-(COLUMN($BI$2)-1),FALSE)*C$39/SUM($C$39:$I$39)*VLOOKUP($W13,$B$3:$BI$29,(COLUMN($BI$2)-1),FALSE) -> 0.465302626 | BK13: =VLOOKUP($W13,$B$3:$I$29,COLUMN()-(COLUMN($BI$2)-1),FALSE)*D$39/SUM($C$39:$I$39)*VLOOKUP($W13,$B$3:$BI$29,(COLUMN($BI$2)-1),FALSE) -> 0.7849088613 | BL13: =VLOOKUP($W13,$B$3:$I$29,COLUMN()-(COLUMN($BI$2)-1),FALSE)*E$39/SUM($C$39:$I$39)*VLOOKUP($W13,$B$3:$BI$29,(COLUMN($BI$2)-1),FALSE) -> 0.7863520408 | BM13: =VLOOKUP($W13,$B$3:$I$29,COLUMN()-(COLUMN($BI$2)-1),FALSE)*F$39/SUM($C$39:$I$39)*VLOOKUP($W13,$B$3:$BI$29,(COLUMN($BI$2)-1),FALSE) -> 0.296257911 | BN13: =VLOOKUP($W13,$B$3:$I$29,COLUMN()-(COLUMN($BI$2)-1),FALSE)*G$39/SUM($C$39:$I$39)*VLOOKUP($W13,$B$3:$BI$29,(COLUMN($BI$2)-1),FALSE) -> 0.986071665 | BO13: =VLOOKUP($W13,$B$3:$I$29,COLUMN()-(COLUMN($BI$2)-1),FALSE)*H$39/SUM($C$39:$I$39)*VLOOKUP($W13,$B$3:$BI$29,(COLUMN($BI$2)-1),FALSE) -> 1.054809781 | BP13: =VLOOKUP($W13,$B$3:$I$29,COLUMN()-(COLUMN($BI$2)-1),FALSE)*I$39/SUM($C$39:$I$39)*VLOOKUP($W13,$B$3:$BI$29,(COLUMN($BI$2)-1),FALSE) -> 0.5614182867
A14: 3 | B14: Ireland | C14: ='Aid 2013'!Q16 -> 12.18129322 | D14: ='Trade 2013'!F16 -> 5.72670021 | E14: ='Finance 2013'!D15 -> 5.162946429 | F14: ='Migration 2013'!E14 -> 1.812183595 | G14: ='Environment 2013'!K16 -> 6.741903931 | H14: ='Security 2013'!J17 -> 9.755685593 | I14: ='Technology 2013'!D16 -> 3.750936682 | J14: 6.447378523 | K14: 3 | L14: =ROUND(J14,1)-ROUND(VLOOKUP($B14,INDIRECT("'CDI "&Year-1&"'!Score_table"),9,FALSE),1) -> 0.6 | M14: =SUM(IF(ROUND(J14,1)<ROUND($J$3:$J$29,1),1))+1 -> 3 | N14: =VLOOKUP($B14,INDIRECT("'CDI "&Year-1&"'!Score_table"),12,FALSE) -> 6 | O14: Ireland | P14: =(SUM(IF($J14<$J$3:$J$31*(1-BF$3:BF$31),1))+1)*(1-BF14) -> 0 | Q14: =(SUM(IF($J14<$J$3:$J$31*(1-BG$3:BG$31),1))+1)*(1-BG14) -> 0 | R14: =(SUM(IF(ROUND($J14,1)<ROUND($J$3:$J$31,1)*(1-BF$3:BF$31),1))+1)*(1-BF14) -> 0 | S14: =(SUM(IF(ROUND($J14,1)<ROUND($J$3:$J$31,1)*(1-BG$3:BG$31),1))+1)*(1-BG14) -> 0 | T14: Ireland | U14: 12 | V14: 11 | W14: Germany | X14: 4.925583029 | Y14: -0.5 | Z14: 1 | BC14: 122.623615 | BD14: 186.4046674 | BF14: 1 | BG14: 1 | BI14: =ABS(SUM($C14:$I14*$C$39:$I$39)/SUM(IF($C14:$I14>0,$C14:$I14*$C$39:$I$39))) -> 1 | BJ14: =VLOOKUP($W14,$B$3:$I$29,COLUMN()-(COLUMN($BI$2)-1),FALSE)*C$39/SUM($C$39:$I$39)*VLOOKUP($W14,$B$3:$BI$29,(COLUMN($BI$2)-1),FALSE) -> 0.9346045783 | BK14: =VLOOKUP($W14,$B$3:$I$29,COLUMN()-(COLUMN($BI$2)-1),FALSE)*D$39/SUM($C$39:$I$39)*VLOOKUP($W14,$B$3:$BI$29,(COLUMN($BI$2)-1),FALSE) -> 0.8399244061 | BL14: =VLOOKUP($W14,$B$3:$I$29,COLUMN()-(COLUMN($BI$2)-1),FALSE)*E$39/SUM($C$39:$I$39)*VLOOKUP($W14,$B$3:$BI$29,(COLUMN($BI$2)-1),FALSE) -> 0.631377551 | BM14: =VLOOKUP($W14,$B$3:$I$29,COLUMN()-(COLUMN($BI$2)-1),FALSE)*F$39/SUM($C$39:$I$39)*VLOOKUP($W14,$B$3:$BI$29,(COLUMN($BI$2)-1),FALSE) -> 0.436564874 | BN14: =VLOOKUP($W14,$B$3:$I$29,COLUMN()-(COLUMN($BI$2)-1),FALSE)*G$39/SUM($C$39:$I$39)*VLOOKUP($W14,$B$3:$BI$29,(COLUMN($BI$2)-1),FALSE) -> 1.009478913 | BO14: =VLOOKUP($W14,$B$3:$I$29,COLUMN()-(COLUMN($BI$2)-1),FALSE)*H$39/SUM($C$39:$I$39)*VLOOKUP($W14,$B$3:$BI$29,(COLUMN($BI$2)-1),FALSE) -> 0.3496684087 | BP14: =VLOOKUP($W14,$B$3:$I$29,COLUMN()-(COLUMN($BI$2)-1),FALSE)*I$39/SUM($C$39:$I$39)*VLOOKUP($W14,$B$3:$BI$29,(COLUMN($BI$2)-1),FALSE) -> 0.7239642984
A15: 11 | B15: Italy | C15: ='Aid 2013'!Q17 -> 3.257118382 | D15: ='Trade 2013'!F17 -> 5.494362029 | E15: ='Finance 2013'!D16 -> 5.504464286 | F15: ='Migration 2013'!E15 -> 2.073805377 | G15: ='Environment 2013'!K17 -> 6.902501655 | H15: ='Security 2013'!J18 -> 7.383668464 | I15: ='Technology 2013'!D17 -> 3.929928007 | J15: 4.935121171 | K15: 11 | L15: =ROUND(J15,1)-ROUND(VLOOKUP($B15,INDIRECT("'CDI "&Year-1&"'!Score_table"),9,FALSE),1) -> -0.6 | M15: =SUM(IF(ROUND(J15,1)<ROUND($J$3:$J$29,1),1))+1 -> 11 | N15: =VLOOKUP($B15,INDIRECT("'CDI "&Year-1&"'!Score_table"),12,FALSE) -> 11 | O15: Italy | P15: =(SUM(IF($J15<$J$3:$J$31*(1-BF$3:BF$31),1))+1)*(1-BF15) -> 0 | Q15: =(SUM(IF($J15<$J$3:$J$31*(1-BG$3:BG$31),1))+1)*(1-BG15) -> 0 | R15: =(SUM(IF(ROUND($J15,1)<ROUND($J$3:$J$31,1)*(1-BF$3:BF$31),1))+1)*(1-BF15) -> 0 | S15: =(SUM(IF(ROUND($J15,1)<ROUND($J$3:$J$31,1)*(1-BG$3:BG$31),1))+1)*(1-BG15) -> 0 | T15: Italy | U15: 13 | V15: 13 | W15: Netherlands | X15: 4.779394005 | Y15: -0.3 | Z15: 2 | BC15: 1150.683185 | BD15: 2001.007149 | BF15: 1 | BG15: 1 | BI15: =ABS(SUM($C15:$I15*$C$39:$I$39)/SUM(IF($C15:$I15>0,$C15:$I15*$C$39:$I$39))) -> 1 | BJ15: =VLOOKUP($W15,$B$3:$I$29,COLUMN()-(COLUMN($BI$2)-1),FALSE)*C$39/SUM($C$39:$I$39)*VLOOKUP($W15,$B$3:$BI$29,(COLUMN($BI$2)-1),FALSE) -> 0.9453786906 | BK15: =VLOOKUP($W15,$B$3:$I$29,COLUMN()-(COLUMN($BI$2)-1),FALSE)*D$39/SUM($C$39:$I$39)*VLOOKUP($W15,$B$3:$BI$29,(COLUMN($BI$2)-1),FALSE) -> 0.9262508944 | BL15: =VLOOKUP($W15,$B$3:$I$29,COLUMN()-(COLUMN($BI$2)-1),FALSE)*E$39/SUM($C$39:$I$39)*VLOOKUP($W15,$B$3:$BI$29,(COLUMN($BI$2)-1),FALSE) -> 0.7146045918 | BM15: =VLOOKUP($W15,$B$3:$I$29,COLUMN()-(COLUMN($BI$2)-1),FALSE)*F$39/SUM($C$39:$I$39)*VLOOKUP($W15,$B$3:$BI$29,(COLUMN($BI$2)-1),FALSE) -> 0.2594903279 | BN15: =VLOOKUP($W15,$B$3:$I$29,COLUMN()-(COLUMN($BI$2)-1),FALSE)*G$39/SUM($C$39:$I$39)*VLOOKUP($W15,$B$3:$BI$29,(COLUMN($BI$2)-1),FALSE) -> 0.9910887386 | BO15: =VLOOKUP($W15,$B$3:$I$29,COLUMN()-(COLUMN($BI$2)-1),FALSE)*H$39/SUM($C$39:$I$39)*VLOOKUP($W15,$B$3:$BI$29,(COLUMN($BI$2)-1),FALSE) -> 0.1997175071 | BP15: =VLOOKUP($W15,$B$3:$I$29,COLUMN()-(COLUMN($BI$2)-1),FALSE)*I$39/SUM($C$39:$I$39)*VLOOKUP($W15,$B$3:$BI$29,(COLUMN($BI$2)-1),FALSE) -> 0.7428632545
A16: 26 | B16: Japan | C16: ='Aid 2013'!Q18 -> 0.3578014807 | D16: ='Trade 2013'!F18 -> 1.722419865 | E16: ='Finance 2013'!D17 -> 3.897321429 | F16: ='Migration 2013'!E16 -> 0.9757099098 | G16: ='Environment 2013'!K18 -> 3.81377891 | H16: ='Security 2013'!J19 -> 4.120415735 | I16: ='Technology 2013'!D18 -> 6.245486397 | J16: 3.018990532 | K16: 26 | L16: =ROUND(J16,1)-ROUND(VLOOKUP($B16,INDIRECT("'CDI "&Year-1&"'!Score_table"),9,FALSE),1) -> -0.5 | M16: =SUM(IF(ROUND(J16,1)<ROUND($J$3:$J$29,1),1))+1 -> 26 | N16: =VLOOKUP($B16,INDIRECT("'CDI "&Year-1&"'!Score_table"),12,FALSE) -> 25 | O16: Japan | P16: =(SUM(IF($J16<$J$3:$J$31*(1-BF$3:BF$31),1))+1)*(1-BF16) -> 8 | Q16: =(SUM(IF($J16<$J$3:$J$31*(1-BG$3:BG$31),1))+1)*(1-BG16) -> 6 | R16: =(SUM(IF(ROUND($J16,1)<ROUND($J$3:$J$31,1)*(1-BF$3:BF$31),1))+1)*(1-BF16) -> 8 | S16: =(SUM(IF(ROUND($J16,1)<ROUND($J$3:$J$31,1)*(1-BG$3:BG$31),1))+1)*(1-BG16) -> 6 | T16: Japan | U16: 14 | V16: 14 | W16: Portugal | X16: 4.711240122 | Y16: 0 | Z16: 4 | BC16: 5058.761589 | BD16: 4383.32529 | BF16: 0 | BG16: 0 | BI16: =ABS(SUM($C16:$I16*$C$39:$I$39)/SUM(IF($C16:$I16>0,$C16:$I16*$C$39:$I$39))) -> 1 | BJ16: =VLOOKUP($W16,$B$3:$I$29,COLUMN()-(COLUMN($BI$2)-1),FALSE)*C$39/SUM($C$39:$I$39)*VLOOKUP($W16,$B$3:$BI$29,(COLUMN($BI$2)-1),FALSE) -> 0.2545368154 | BK16: =VLOOKUP($W16,$B$3:$I$29,COLUMN()-(COLUMN($BI$2)-1),FALSE)*D$39/SUM($C$39:$I$39)*VLOOKUP($W16,$B$3:$BI$29,(COLUMN($BI$2)-1),FALSE) -> 0.8015149632 | BL16: =VLOOKUP($W16,$B$3:$I$29,COLUMN()-(COLUMN($BI$2)-1),FALSE)*E$39/SUM($C$39:$I$39)*VLOOKUP($W16,$B$3:$BI$29,(COLUMN($BI$2)-1),FALSE) -> 0.7920918367 | BM16: =VLOOKUP($W16,$B$3:$I$29,COLUMN()-(COLUMN($BI$2)-1),FALSE)*F$39/SUM($C$39:$I$39)*VLOOKUP($W16,$B$3:$BI$29,(COLUMN($BI$2)-1),FALSE) -> 0.1447643942 | BN16: =VLOOKUP($W16,$B$3:$I$29,COLUMN()-(COLUMN($BI$2)-1),FALSE)*G$39/SUM($C$39:$I$39)*VLOOKUP($W16,$B$3:$BI$29,(COLUMN($BI$2)-1),FALSE) -> 1.099823825 | BO16: =VLOOKUP($W16,$B$3:$I$29,COLUMN()-(COLUMN($BI$2)-1),FALSE)*H$39/SUM($C$39:$I$39)*VLOOKUP($W16,$B$3:$BI$29,(COLUMN($BI$2)-1),FALSE) -> 0.7056633665 | BP16: =VLOOKUP($W16,$B$3:$I$29,COLUMN()-(COLUMN($BI$2)-1),FALSE)*I$39/SUM($C$39:$I$39)*VLOOKUP($W16,$B$3:$BI$29,(COLUMN($BI$2)-1),FALSE) -> 0.9128449212
A17: 14 | B17: Luxembourg | C17: ='Aid 2013'!Q19 -> 7.240988043 | D17: ='Trade 2013'!F19 -> 5.67155189 | E17: ='Finance 2013'!D18 -> 3.575892857 | F17: ='Migration 2013'!E17 -> 2.189023836 | G17: ='Environment 2013'!K19 -> 5.756983184 | H17: ='Security 2013'!J20 -> 4.086657192 | I17: ='Technology 2013'!D19 -> 4.137393655 | J17: 4.665498665 | K17: 15 | L17: =ROUND(J17,1)-ROUND(VLOOKUP($B17,INDIRECT("'CDI "&Year-1&"'!Score_table"),9,FALSE),1) -> -0.7 | M17: =SUM(IF(ROUND(J17,1)<ROUND($J$3:$J$29,1),1))+1 -> 14 | N17: =VLOOKUP($B17,INDIRECT("'CDI "&Year-1&"'!Score_table"),12,FALSE) -> 12 | O17: Luxembourg | P17: =(SUM(IF($J17<$J$3:$J$31*(1-BF$3:BF$31),1))+1)*(1-BF17) -> 0 | Q17: =(SUM(IF($J17<$J$3:$J$31*(1-BG$3:BG$31),1))+1)*(1-BG17) -> 0 | R17: =(SUM(IF(ROUND($J17,1)<ROUND($J$3:$J$31,1)*(1-BF$3:BF$31),1))+1)*(1-BF17) -> 0 | S17: =(SUM(IF(ROUND($J17,1)<ROUND($J$3:$J$31,1)*(1-BG$3:BG$31),1))+1)*(1-BG17) -> 0 | T17: Luxembourg | U17: 15 | V17: 14 | W17: Luxembourg | X17: 4.665498665 | Y17: -0.7 | Z17: -2 | BC17: 26.92858675 | BD17: 46.52599296 | BF17: 1 | BG17: 1 | BI17: =ABS(SUM($C17:$I17*$C$39:$I$39)/SUM(IF($C17:$I17>0,$C17:$I17*$C$39:$I$39))) -> 1 | BJ17: =VLOOKUP($W17,$B$3:$I$29,COLUMN()-(COLUMN($BI$2)-1),FALSE)*C$39/SUM($C$39:$I$39)*VLOOKUP($W17,$B$3:$BI$29,(COLUMN($BI$2)-1),FALSE) -> 1.034426863 | BK17: =VLOOKUP($W17,$B$3:$I$29,COLUMN()-(COLUMN($BI$2)-1),FALSE)*D$39/SUM($C$39:$I$39)*VLOOKUP($W17,$B$3:$BI$29,(COLUMN($BI$2)-1),FALSE) -> 0.8102216985 | BL17: =VLOOKUP($W17,$B$3:$I$29,COLUMN()-(COLUMN($BI$2)-1),FALSE)*E$39/SUM($C$39:$I$39)*VLOOKUP($W17,$B$3:$BI$29,(COLUMN($BI$2)-1),FALSE) -> 0.5108418367 | BM17: =VLOOKUP($W17,$B$3:$I$29,COLUMN()-(COLUMN($BI$2)-1),FALSE)*F$39/SUM($C$39:$I$39)*VLOOKUP($W17,$B$3:$BI$29,(COLUMN($BI$2)-1),FALSE) -> 0.3127176908 | BN17: =VLOOKUP($W17,$B$3:$I$29,COLUMN()-(COLUMN($BI$2)-1),FALSE)*G$39/SUM($C$39:$I$39)*VLOOKUP($W17,$B$3:$BI$29,(COLUMN($BI$2)-1),FALSE) -> 0.8224261692 | BO17: =VLOOKUP($W17,$B$3:$I$29,COLUMN()-(COLUMN($BI$2)-1),FALSE)*H$39/SUM($C$39:$I$39)*VLOOKUP($W17,$B$3:$BI$29,(COLUMN($BI$2)-1),FALSE) -> 0.5838081702 | BP17: =VLOOKUP($W17,$B$3:$I$29,COLUMN()-(COLUMN($BI$2)-1),FALSE)*I$39/SUM($C$39:$I$39)*VLOOKUP($W17,$B$3:$BI$29,(COLUMN($BI$2)-1),FALSE) -> 0.5910562365
A18: 13 | B18: Netherlands | C18: ='Aid 2013'!Q20 -> 6.617650834 | D18: ='Trade 2013'!F20 -> 6.483756261 | E18: ='Finance 2013'!D19 -> 5.002232143 | F18: ='Migration 2013'!E18 -> 1.816432295 | G18: ='Environment 2013'!K20 -> 6.937621171 | H18: ='Security 2013'!J21 -> 1.39802255 | I18: ='Technology 2013'!D20 -> 5.200042782 | J18: 4.779394005 | K18: 13 | L18: =ROUND(J18,1)-ROUND(VLOOKUP($B18,INDIRECT("'CDI "&Year-1&"'!Score_table"),9,FALSE),1) -> -0.3 | M18: =SUM(IF(ROUND(J18,1)<ROUND($J$3:$J$29,1),1))+1 -> 13 | N18: =VLOOKUP($B18,INDIRECT("'CDI "&Year-1&"'!Score_table"),12,FALSE) -> 15 | O18: Netherlands | P18: =(SUM(IF($J18<$J$3:$J$31*(1-BF$3:BF$31),1))+1)*(1-BF18) -> 0 | Q18: =(SUM(IF($J18<$J$3:$J$31*(1-BG$3:BG$31),1))+1)*(1-BG18) -> 0 | R18: =(SUM(IF(ROUND($J18,1)<ROUND($J$3:$J$31,1)*(1-BF$3:BF$31),1))+1)*(1-BF18) -> 0 | S18: =(SUM(IF(ROUND($J18,1)<ROUND($J$3:$J$31,1)*(1-BG$3:BG$31),1))+1)*(1-BG18) -> 0 | T18: Netherlands | U18: 16 | V18: 16 | W18: United States | X18: 4.345835945 | Y18: -0.3 | Z18: 3 | BC18: 446.3622226 | BD18: 715.1539323 | BF18: 1 | BG18: 1 | BI18: =ABS(SUM($C18:$I18*$C$39:$I$39)/SUM(IF($C18:$I18>0,$C18:$I18*$C$39:$I$39))) -> 1 | BJ18: =VLOOKUP($W18,$B$3:$I$29,COLUMN()-(COLUMN($BI$2)-1),FALSE)*C$39/SUM($C$39:$I$39)*VLOOKUP($W18,$B$3:$BI$29,(COLUMN($BI$2)-1),FALSE) -> 0.9849701219 | BK18: =VLOOKUP($W18,$B$3:$I$29,COLUMN()-(COLUMN($BI$2)-1),FALSE)*D$39/SUM($C$39:$I$39)*VLOOKUP($W18,$B$3:$BI$29,(COLUMN($BI$2)-1),FALSE) -> 0.950291652 | BL18: =VLOOKUP($W18,$B$3:$I$29,COLUMN()-(COLUMN($BI$2)-1),FALSE)*E$39/SUM($C$39:$I$39)*VLOOKUP($W18,$B$3:$BI$29,(COLUMN($BI$2)-1),FALSE) -> 0.7346938776 | BM18: =VLOOKUP($W18,$B$3:$I$29,COLUMN()-(COLUMN($BI$2)-1),FALSE)*F$39/SUM($C$39:$I$39)*VLOOKUP($W18,$B$3:$BI$29,(COLUMN($BI$2)-1),FALSE) -> 0.1762217528 | BN18: =VLOOKUP($W18,$B$3:$I$29,COLUMN()-(COLUMN($BI$2)-1),FALSE)*G$39/SUM($C$39:$I$39)*VLOOKUP($W18,$B$3:$BI$29,(COLUMN($BI$2)-1),FALSE) -> 0.6162822888 | BO18: =VLOOKUP($W18,$B$3:$I$29,COLUMN()-(COLUMN($BI$2)-1),FALSE)*H$39/SUM($C$39:$I$39)*VLOOKUP($W18,$B$3:$BI$29,(COLUMN($BI$2)-1),FALSE) -> 0.2151641285 | BP18: =VLOOKUP($W18,$B$3:$I$29,COLUMN()-(COLUMN($BI$2)-1),FALSE)*I$39/SUM($C$39:$I$39)*VLOOKUP($W18,$B$3:$BI$29,(COLUMN($BI$2)-1),FALSE) -> 0.6682121235
A19: 16 | B19: New Zealand | C19: ='Aid 2013'!Q21 -> 0.9865739384 | D19: ='Trade 2013'!F21 -> 8.031734055 | E19: ='Finance 2013'!D20 -> 4.198660714 | F19: ='Migration 2013'!E19 -> 1.120523331 | G19: ='Environment 2013'!K21 -> 6.023383385 | H19: ='Security 2013'!J22 -> 5.371245574 | I19: ='Technology 2013'!D21 -> 4.433559142 | J19: 4.309382877 | K19: 17 | L19: =ROUND(J19,1)-ROUND(VLOOKUP($B19,INDIRECT("'CDI "&Year-1&"'!Score_table"),9,FALSE),1) -> -0.9 | M19: =SUM(IF(ROUND(J19,1)<ROUND($J$3:$J$29,1),1))+1 -> 16 | N19: =VLOOKUP($B19,INDIRECT("'CDI "&Year-1&"'!Score_table"),12,FALSE) -> 14 | O19: New Zealand | P19: =(SUM(IF($J19<$J$3:$J$31*(1-BF$3:BF$31),1))+1)*(1-BF19) -> 4 | Q19: =(SUM(IF($J19<$J$3:$J$31*(1-BG$3:BG$31),1))+1)*(1-BG19) -> 3 | R19: =(SUM(IF(ROUND($J19,1)<ROUND($J$3:$J$31,1)*(1-BF$3:BF$31),1))+1)*(1-BF19) -> 3 | S19: =(SUM(IF(ROUND($J19,1)<ROUND($J$3:$J$31,1)*(1-BG$3:BG$31),1))+1)*(1-BG19) -> 2 | T19: New Zealand | U19: 17 | V19: 16 | W19: New Zealand | X19: 4.309382877 | Y19: -0.9 | Z19: -2 | BC19: 65.7117143 | BD19: 130.744492 | BF19: 0 | BG19: 0 | BI19: =ABS(SUM($C19:$I19*$C$39:$I$39)/SUM(IF($C19:$I19>0,$C19:$I19*$C$39:$I$39))) -> 1 | BJ19: =VLOOKUP($W19,$B$3:$I$29,COLUMN()-(COLUMN($BI$2)-1),FALSE)*C$39/SUM($C$39:$I$39)*VLOOKUP($W19,$B$3:$BI$29,(COLUMN($BI$2)-1),FALSE) -> 0.1409391341 | BK19: =VLOOKUP($W19,$B$3:$I$29,COLUMN()-(COLUMN($BI$2)-1),FALSE)*D$39/SUM($C$39:$I$39)*VLOOKUP($W19,$B$3:$BI$29,(COLUMN($BI$2)-1),FALSE) -> 1.147390579 | BL19: =VLOOKUP($W19,$B$3:$I$29,COLUMN()-(COLUMN($BI$2)-1),FALSE)*E$39/SUM($C$39:$I$39)*VLOOKUP($W19,$B$3:$BI$29,(COLUMN($BI$2)-1),FALSE) -> 0.5998086735 | BM19: =VLOOKUP($W19,$B$3:$I$29,COLUMN()-(COLUMN($BI$2)-1),FALSE)*F$39/SUM($C$39:$I$39)*VLOOKUP($W19,$B$3:$BI$29,(COLUMN($BI$2)-1),FALSE) -> 0.1600747616 | BN19: =VLOOKUP($W19,$B$3:$I$29,COLUMN()-(COLUMN($BI$2)-1),FALSE)*G$39/SUM($C$39:$I$39)*VLOOKUP($W19,$B$3:$BI$29,(COLUMN($BI$2)-1),FALSE) -> 0.8604833407 | BO19: =VLOOKUP($W19,$B$3:$I$29,COLUMN()-(COLUMN($BI$2)-1),FALSE)*H$39/SUM($C$39:$I$39)*VLOOKUP($W19,$B$3:$BI$29,(COLUMN($BI$2)-1),FALSE) -> 0.7673207963 | BP19: =VLOOKUP($W19,$B$3:$I$29,COLUMN()-(COLUMN($BI$2)-1),FALSE)*I$39/SUM($C$39:$I$39)*VLOOKUP($W19,$B$3:$BI$29,(COLUMN($BI$2)-1),FALSE) -> 0.6333655917
A20: 10 | B20: Norway | C20: ='Aid 2013'!Q22 -> 10.90635 | D20: ='Trade 2013'!F22 -> -3.457901179 | E20: ='Finance 2013'!D21 -> 5.866071429 | F20: ='Migration 2013'!E20 -> 3.404423896 | G20: ='Environment 2013'!K22 -> 2.832763705 | H20: ='Security 2013'!J23 -> 10.48870414 | I20: ='Technology 2013'!D22 -> 5.709236995 | J20: 5.107092711 | K20: 10 | L20: =ROUND(J20,1)-ROUND(VLOOKUP($B20,INDIRECT("'CDI "&Year-1&"'!Score_table"),9,FALSE),1) -> -0.7 | M20: =SUM(IF(ROUND(J20,1)<ROUND($J$3:$J$29,1),1))+1 -> 10 | N20: =VLOOKUP($B20,INDIRECT("'CDI "&Year-1&"'!Score_table"),12,FALSE) -> 6 | O20: Norway | P20: =(SUM(IF($J20<$J$3:$J$31*(1-BF$3:BF$31),1))+1)*(1-BF20) -> 2 | Q20: =(SUM(IF($J20<$J$3:$J$31*(1-BG$3:BG$31),1))+1)*(1-BG20) -> 0 | R20: =(SUM(IF(ROUND($J20,1)<ROUND($J$3:$J$31,1)*(1-BF$3:BF$31),1))+1)*(1-BF20) -> 2 | S20: =(SUM(IF(ROUND($J20,1)<ROUND($J$3:$J$31,1)*(1-BG$3:BG$31),1))+1)*(1-BG20) -> 0 | T20: Norway | U20: 18 | V20: 16 | W20: Canada | X20: 4.291407448 | Y20: -0.7 | Z20: 0 | BC20: 198.2525768 | BD20: 306.4410604 | BF20: 0 | BG20: 1 | BI20: =ABS(SUM($C20:$I20*$C$39:$I$39)/SUM(IF($C20:$I20>0,$C20:$I20*$C$39:$I$39))) -> 0.9118052221 | BJ20: =VLOOKUP($W20,$B$3:$I$29,COLUMN()-(COLUMN($BI$2)-1),FALSE)*C$39/SUM($C$39:$I$39)*VLOOKUP($W20,$B$3:$BI$29,(COLUMN($BI$2)-1),FALSE) -> 0.4895672527 | BK20: =VLOOKUP($W20,$B$3:$I$29,COLUMN()-(COLUMN($BI$2)-1),FALSE)*D$39/SUM($C$39:$I$39)*VLOOKUP($W20,$B$3:$BI$29,(COLUMN($BI$2)-1),FALSE) -> 0.654706 | BL20: =VLOOKUP($W20,$B$3:$I$29,COLUMN()-(COLUMN($BI$2)-1),FALSE)*E$39/SUM($C$39:$I$39)*VLOOKUP($W20,$B$3:$BI$29,(COLUMN($BI$2)-1),FALSE) -> 0.7605229592 | BM20: =VLOOKUP($W20,$B$3:$I$29,COLUMN()-(COLUMN($BI$2)-1),FALSE)*F$39/SUM($C$39:$I$39)*VLOOKUP($W20,$B$3:$BI$29,(COLUMN($BI$2)-1),FALSE) -> 0.4281736441 | BN20: =VLOOKUP($W20,$B$3:$I$29,COLUMN()-(COLUMN($BI$2)-1),FALSE)*G$39/SUM($C$39:$I$39)*VLOOKUP($W20,$B$3:$BI$29,(COLUMN($BI$2)-1),FALSE) -> 0.3759255583 | BO20: =VLOOKUP($W20,$B$3:$I$29,COLUMN()-(COLUMN($BI$2)-1),FALSE)*H$39/SUM($C$39:$I$39)*VLOOKUP($W20,$B$3:$BI$29,(COLUMN($BI$2)-1),FALSE) -> 0.8207535072 | BP20: =VLOOKUP($W20,$B$3:$I$29,COLUMN()-(COLUMN($BI$2)-1),FALSE)*I$39/SUM($C$39:$I$39)*VLOOKUP($W20,$B$3:$BI$29,(COLUMN($BI$2)-1),FALSE) -> 0.7617585264
A21: 19 | B21: Poland | C21: ='Aid 2013'!Q23 -> 1.467167602 | D21: ='Trade 2013'!F23 -> 5.988193216 | E21: ='Finance 2013'!D22 -> 6.046875 | F21: ='Migration 2013'!E21 -> 1.158328985 | G21: ='Environment 2013'!K23 -> 7.571558159 | H21: ='Security 2013'!J24 -> 4.471873223 | I21: ='Technology 2013'!D23 -> 2.525862433 | J21: 4.175694088 | K21: 19 | L21: =ROUND(J21,1)-ROUND(VLOOKUP($B21,INDIRECT("'CDI "&Year-1&"'!Score_table"),9,FALSE),1) -> -0.1 | M21: =SUM(IF(ROUND(J21,1)<ROUND($J$3:$J$29,1),1))+1 -> 19 | N21: =VLOOKUP($B21,INDIRECT("'CDI "&Year-1&"'!Score_table"),12,FALSE) -> 21 | O21: Poland | P21: =(SUM(IF($J21<$J$3:$J$31*(1-BF$3:BF$31),1))+1)*(1-BF21) -> 0 | Q21: =(SUM(IF($J21<$J$3:$J$31*(1-BG$3:BG$31),1))+1)*(1-BG21) -> 0 | R21: =(SUM(IF(ROUND($J21,1)<ROUND($J$3:$J$31,1)*(1-BF$3:BF$31),1))+1)*(1-BF21) -> 0 | S21: =(SUM(IF(ROUND($J21,1)<ROUND($J$3:$J$31,1)*(1-BG$3:BG$31),1))+1)*(1-BG21) -> 0 | T21: Poland | U21: 19 | V21: 19 | W21: Poland | X21: 4.175694088 | Y21: -0.1 | Z21: 2 | BC21: 261.9501445 | BD21: 814.3800893 | BF21: 1 | BG21: 1 | BI21: =ABS(SUM($C21:$I21*$C$39:$I$39)/SUM(IF($C21:$I21>0,$C21:$I21*$C$39:$I$39))) -> 1 | BJ21: =VLOOKUP($W21,$B$3:$I$29,COLUMN()-(COLUMN($BI$2)-1),FALSE)*C$39/SUM($C$39:$I$39)*VLOOKUP($W21,$B$3:$BI$29,(COLUMN($BI$2)-1),FALSE) -> 0.2095953717 | BK21: =VLOOKUP($W21,$B$3:$I$29,COLUMN()-(COLUMN($BI$2)-1),FALSE)*D$39/SUM($C$39:$I$39)*VLOOKUP($W21,$B$3:$BI$29,(COLUMN($BI$2)-1),FALSE) -> 0.8554561737 | BL21: =VLOOKUP($W21,$B$3:$I$29,COLUMN()-(COLUMN($BI$2)-1),FALSE)*E$39/SUM($C$39:$I$39)*VLOOKUP($W21,$B$3:$BI$29,(COLUMN($BI$2)-1),FALSE) -> 0.8638392857 | BM21: =VLOOKUP($W21,$B$3:$I$29,COLUMN()-(COLUMN($BI$2)-1),FALSE)*F$39/SUM($C$39:$I$39)*VLOOKUP($W21,$B$3:$BI$29,(COLUMN($BI$2)-1),FALSE) -> 0.1654755692 | BN21: =VLOOKUP($W21,$B$3:$I$29,COLUMN()-(COLUMN($BI$2)-1),FALSE)*G$39/SUM($C$39:$I$39)*VLOOKUP($W21,$B$3:$BI$29,(COLUMN($BI$2)-1),FALSE) -> 1.081651166 | BO21: =VLOOKUP($W21,$B$3:$I$29,COLUMN()-(COLUMN($BI$2)-1),FALSE)*H$39/SUM($C$39:$I$39)*VLOOKUP($W21,$B$3:$BI$29,(COLUMN($BI$2)-1),FALSE) -> 0.6388390319 | BP21: =VLOOKUP($W21,$B$3:$I$29,COLUMN()-(COLUMN($BI$2)-1),FALSE)*I$39/SUM($C$39:$I$39)*VLOOKUP($W21,$B$3:$BI$29,(COLUMN($BI$2)-1),FALSE) -> 0.3608374904
A22: 14 | B22: Portugal | C22: ='Aid 2013'!Q24 -> 1.781757708 | D22: ='Trade 2013'!F24 -> 5.610604742 | E22: ='Finance 2013'!D23 -> 5.544642857 | F22: ='Migration 2013'!E22 -> 1.013350759 | G22: ='Environment 2013'!K24 -> 7.698766773 | H22: ='Security 2013'!J25 -> 4.939643566 | I22: ='Technology 2013'!D24 -> 6.389914449 | J22: 4.711240122 | K22: 14 | L22: =ROUND(J22,1)-ROUND(VLOOKUP($B22,INDIRECT("'CDI "&Year-1&"'!Score_table"),9,FALSE),1) -> 0 | M22: =SUM(IF(ROUND(J22,1)<ROUND($J$3:$J$29,1),1))+1 -> 14 | N22: =VLOOKUP($B22,INDIRECT("'CDI "&Year-1&"'!Score_table"),12,FALSE) -> 18 | O22: Portugal | P22: =(SUM(IF($J22<$J$3:$J$31*(1-BF$3:BF$31),1))+1)*(1-BF22) -> 0 | Q22: =(SUM(IF($J22<$J$3:$J$31*(1-BG$3:BG$31),1))+1)*(1-BG22) -> 0 | R22: =(SUM(IF(ROUND($J22,1)<ROUND($J$3:$J$31,1)*(1-BF$3:BF$31),1))+1)*(1-BF22) -> 0 | S22: =(SUM(IF(ROUND($J22,1)<ROUND($J$3:$J$31,1)*(1-BG$3:BG$31),1))+1)*(1-BG22) -> 0 | T22: Portugal | U22: 20 | V22: 19 | W22: Greece | X22: 4.158442549 | Y22: -0.4 | Z22: 0 | BC22: 122.9524992 | BD22: 270.0177244 | BF22: 1 | BG22: 1 | BI22: =ABS(SUM($C22:$I22*$C$39:$I$39)/SUM(IF($C22:$I22>0,$C22:$I22*$C$39:$I$39))) -> 1 | BJ22: =VLOOKUP($W22,$B$3:$I$29,COLUMN()-(COLUMN($BI$2)-1),FALSE)*C$39/SUM($C$39:$I$39)*VLOOKUP($W22,$B$3:$BI$29,(COLUMN($BI$2)-1),FALSE) -> 0.4265483652 | BK22: =VLOOKUP($W22,$B$3:$I$29,COLUMN()-(COLUMN($BI$2)-1),FALSE)*D$39/SUM($C$39:$I$39)*VLOOKUP($W22,$B$3:$BI$29,(COLUMN($BI$2)-1),FALSE) -> 0.7639186891 | BL22: =VLOOKUP($W22,$B$3:$I$29,COLUMN()-(COLUMN($BI$2)-1),FALSE)*E$39/SUM($C$39:$I$39)*VLOOKUP($W22,$B$3:$BI$29,(COLUMN($BI$2)-1),FALSE) -> 0.6715561224 | BM22: =VLOOKUP($W22,$B$3:$I$29,COLUMN()-(COLUMN($BI$2)-1),FALSE)*F$39/SUM($C$39:$I$39)*VLOOKUP($W22,$B$3:$BI$29,(COLUMN($BI$2)-1),FALSE) -> 0.4371779595 | BN22: =VLOOKUP($W22,$B$3:$I$29,COLUMN()-(COLUMN($BI$2)-1),FALSE)*G$39/SUM($C$39:$I$39)*VLOOKUP($W22,$B$3:$BI$29,(COLUMN($BI$2)-1),FALSE) -> 0.8374882032 | BO22: =VLOOKUP($W22,$B$3:$I$29,COLUMN()-(COLUMN($BI$2)-1),FALSE)*H$39/SUM($C$39:$I$39)*VLOOKUP($W22,$B$3:$BI$29,(COLUMN($BI$2)-1),FALSE) -> 0.6298206676 | BP22: =VLOOKUP($W22,$B$3:$I$29,COLUMN()-(COLUMN($BI$2)-1),FALSE)*I$39/SUM($C$39:$I$39)*VLOOKUP($W22,$B$3:$BI$29,(COLUMN($BI$2)-1),FALSE) -> 0.3919325416
A23: 24 | B23: Slovakia | C23: ='Aid 2013'!Q25 -> 1.473339215 | D23: ='Trade 2013'!F25 -> 5.473971579 | E23: ='Finance 2013'!D24 -> 3.575892857 | F23: ='Migration 2013'!E23 -> 0.3213732545 | G23: ='Environment 2013'!K25 -> 8.56102682 | H23: ='Security 2013'!J26 -> 4.585553516 | I23: ='Technology 2013'!D25 -> 2.62890288 | J23: 3.802865732 | K23: 24 | L23: =ROUND(J23,1)-ROUND(VLOOKUP($B23,INDIRECT("'CDI "&Year-1&"'!Score_table"),9,FALSE),1) -> 0 | M23: =SUM(IF(ROUND(J23,1)<ROUND($J$3:$J$29,1),1))+1 -> 24 | N23: =VLOOKUP($B23,INDIRECT("'CDI "&Year-1&"'!Score_table"),12,FALSE) -> 24 | O23: Slovakia | P23: =(SUM(IF($J23<$J$3:$J$31*(1-BF$3:BF$31),1))+1)*(1-BF23) -> 0 | Q23: =(SUM(IF($J23<$J$3:$J$31*(1-BG$3:BG$31),1))+1)*(1-BG23) -> 0 | R23: =(SUM(IF(ROUND($J23,1)<ROUND($J$3:$J$31,1)*(1-BF$3:BF$31),1))+1)*(1-BF23) -> 0 | S23: =(SUM(IF(ROUND($J23,1)<ROUND($J$3:$J$31,1)*(1-BG$3:BG$31),1))+1)*(1-BG23) -> 0 | T23: Slovakia | U23: 21 | V23: 21 | W23: Hungary | X23: 4.126515783 | Y23: -0.1 | Z23: 1 | BC23: 47.294464 | BD23: 130.6783089 | BF23: 1 | BG23: 1 | BI23: =ABS(SUM($C23:$I23*$C$39:$I$39)/SUM(IF($C23:$I23>0,$C23:$I23*$C$39:$I$39))) -> 1 | BJ23: =VLOOKUP($W23,$B$3:$I$29,COLUMN()-(COLUMN($BI$2)-1),FALSE)*C$39/SUM($C$39:$I$39)*VLOOKUP($W23,$B$3:$BI$29,(COLUMN($BI$2)-1),FALSE) -> 0.2407428717 | BK23: =VLOOKUP($W23,$B$3:$I$29,COLUMN()-(COLUMN($BI$2)-1),FALSE)*D$39/SUM($C$39:$I$39)*VLOOKUP($W23,$B$3:$BI$29,(COLUMN($BI$2)-1),FALSE) -> 0.7765764807 | BL23: =VLOOKUP($W23,$B$3:$I$29,COLUMN()-(COLUMN($BI$2)-1),FALSE)*E$39/SUM($C$39:$I$39)*VLOOKUP($W23,$B$3:$BI$29,(COLUMN($BI$2)-1),FALSE) -> 0.6887755102 | BM23: =VLOOKUP($W23,$B$3:$I$29,COLUMN()-(COLUMN($BI$2)-1),FALSE)*F$39/SUM($C$39:$I$39)*VLOOKUP($W23,$B$3:$BI$29,(COLUMN($BI$2)-1),FALSE) -> 0.1476085046 | BN23: =VLOOKUP($W23,$B$3:$I$29,COLUMN()-(COLUMN($BI$2)-1),FALSE)*G$39/SUM($C$39:$I$39)*VLOOKUP($W23,$B$3:$BI$29,(COLUMN($BI$2)-1),FALSE) -> 1.149245979 | BO23: =VLOOKUP($W23,$B$3:$I$29,COLUMN()-(COLUMN($BI$2)-1),FALSE)*H$39/SUM($C$39:$I$39)*VLOOKUP($W23,$B$3:$BI$29,(COLUMN($BI$2)-1),FALSE) -> 0.6655535364 | BP23: =VLOOKUP($W23,$B$3:$I$29,COLUMN()-(COLUMN($BI$2)-1),FALSE)*I$39/SUM($C$39:$I$39)*VLOOKUP($W23,$B$3:$BI$29,(COLUMN($BI$2)-1),FALSE) -> 0.4580129001
A24: 27 | B24: South Korea | C24: ='Aid 2013'!Q26 -> 0.8572165915 | D24: ='Trade 2013'!F26 -> -2.194798088 | E24: ='Finance 2013'!D25 -> 4.881696429 | F24: ='Migration 2013'!E24 -> 1.188389401 | G24: ='Environment 2013'!K26 -> 4.326747841 | H24: ='Security 2013'!J27 -> 1.41366684 | I24: ='Technology 2013'!D26 -> 6.823314632 | J24: 2.470890521 | K24: 27 | L24: =ROUND(J24,1)-ROUND(VLOOKUP($B24,INDIRECT("'CDI "&Year-1&"'!Score_table"),9,FALSE),1) -> -0.6 | M24: =SUM(IF(ROUND(J24,1)<ROUND($J$3:$J$29,1),1))+1 -> 27 | N24: =VLOOKUP($B24,INDIRECT("'CDI "&Year-1&"'!Score_table"),12,FALSE) -> 27 | O24: South Korea | P24: =(SUM(IF($J24<$J$3:$J$31*(1-BF$3:BF$31),1))+1)*(1-BF24) -> 9 | Q24: =(SUM(IF($J24<$J$3:$J$31*(1-BG$3:BG$31),1))+1)*(1-BG24) -> 7 | R24: =(SUM(IF(ROUND($J24,1)<ROUND($J$3:$J$31,1)*(1-BF$3:BF$31),1))+1)*(1-BF24) -> 9 | S24: =(SUM(IF(ROUND($J24,1)<ROUND($J$3:$J$31,1)*(1-BG$3:BG$31),1))+1)*(1-BG24) -> 7 | T24: South Korea | U24: 22 | V24: 22 | W24: Switzerland | X24: 3.933082259 | Y24: -0.3 | Z24: 0 | BC24: 830.5234412 | BD24: 1506.004304 | BF24: 0 | BG24: 0 | BI24: =ABS(SUM($C24:$I24*$C$39:$I$39)/SUM(IF($C24:$I24>0,$C24:$I24*$C$39:$I$39))) -> 0.8873944634 | BJ24: =VLOOKUP($W24,$B$3:$I$29,COLUMN()-(COLUMN($BI$2)-1),FALSE)*C$39/SUM($C$39:$I$39)*VLOOKUP($W24,$B$3:$BI$29,(COLUMN($BI$2)-1),FALSE) -> 1.042783961 | BK24: =VLOOKUP($W24,$B$3:$I$29,COLUMN()-(COLUMN($BI$2)-1),FALSE)*D$39/SUM($C$39:$I$39)*VLOOKUP($W24,$B$3:$BI$29,(COLUMN($BI$2)-1),FALSE) -> -0.1222889299 | BL24: =VLOOKUP($W24,$B$3:$I$29,COLUMN()-(COLUMN($BI$2)-1),FALSE)*E$39/SUM($C$39:$I$39)*VLOOKUP($W24,$B$3:$BI$29,(COLUMN($BI$2)-1),FALSE) -> 0.4365645574 | BM24: =VLOOKUP($W24,$B$3:$I$29,COLUMN()-(COLUMN($BI$2)-1),FALSE)*F$39/SUM($C$39:$I$39)*VLOOKUP($W24,$B$3:$BI$29,(COLUMN($BI$2)-1),FALSE) -> 0.3907938486 | BN24: =VLOOKUP($W24,$B$3:$I$29,COLUMN()-(COLUMN($BI$2)-1),FALSE)*G$39/SUM($C$39:$I$39)*VLOOKUP($W24,$B$3:$BI$29,(COLUMN($BI$2)-1),FALSE) -> 0.8486623974 | BO24: =VLOOKUP($W24,$B$3:$I$29,COLUMN()-(COLUMN($BI$2)-1),FALSE)*H$39/SUM($C$39:$I$39)*VLOOKUP($W24,$B$3:$BI$29,(COLUMN($BI$2)-1),FALSE) -> 0.5382605079 | BP24: =VLOOKUP($W24,$B$3:$I$29,COLUMN()-(COLUMN($BI$2)-1),FALSE)*I$39/SUM($C$39:$I$39)*VLOOKUP($W24,$B$3:$BI$29,(COLUMN($BI$2)-1),FALSE) -> 0.6760169867
A25: 9 | B25: Spain | C25: ='Aid 2013'!Q27 -> 6.059648398 | D25: ='Trade 2013'!F27 -> 5.800246763 | E25: ='Finance 2013'!D26 -> 6.087053571 | F25: ='Migration 2013'!E25 -> 1.932815341 | G25: ='Environment 2013'!K27 -> 6.696816347 | H25: ='Security 2013'!J28 -> 4.604409811 | I25: ='Technology 2013'!D27 -> 5.43140354 | J25: 5.230341967 | K25: 9 | L25: =ROUND(J25,1)-ROUND(VLOOKUP($B25,INDIRECT("'CDI "&Year-1&"'!Score_table"),9,FALSE),1) -> -0.9 | M25: =SUM(IF(ROUND(J25,1)<ROUND($J$3:$J$29,1),1))+1 -> 9 | N25: =VLOOKUP($B25,INDIRECT("'CDI "&Year-1&"'!Score_table"),12,FALSE) -> 3 | O25: Spain | P25: =(SUM(IF($J25<$J$3:$J$31*(1-BF$3:BF$31),1))+1)*(1-BF25) -> 0 | Q25: =(SUM(IF($J25<$J$3:$J$31*(1-BG$3:BG$31),1))+1)*(1-BG25) -> 0 | R25: =(SUM(IF(ROUND($J25,1)<ROUND($J$3:$J$31,1)*(1-BF$3:BF$31),1))+1)*(1-BF25) -> 0 | S25: =(SUM(IF(ROUND($J25,1)<ROUND($J$3:$J$31,1)*(1-BG$3:BG$31),1))+1)*(1-BG25) -> 0 | T25: Spain | U25: 23 | V25: 22 | W25: Australia | X25: 3.923888724 | Y25: -0.9 | Z25: -5 | BC25: 717.1940024 | BD25: 1499.110965 | BF25: 1 | BG25: 1 | BI25: =ABS(SUM($C25:$I25*$C$39:$I$39)/SUM(IF($C25:$I25>0,$C25:$I25*$C$39:$I$39))) -> 1 | BJ25: =VLOOKUP($W25,$B$3:$I$29,COLUMN()-(COLUMN($BI$2)-1),FALSE)*C$39/SUM($C$39:$I$39)*VLOOKUP($W25,$B$3:$BI$29,(COLUMN($BI$2)-1),FALSE) -> 0.3950620043 | BK25: =VLOOKUP($W25,$B$3:$I$29,COLUMN()-(COLUMN($BI$2)-1),FALSE)*D$39/SUM($C$39:$I$39)*VLOOKUP($W25,$B$3:$BI$29,(COLUMN($BI$2)-1),FALSE) -> 0.9855042754 | BL25: =VLOOKUP($W25,$B$3:$I$29,COLUMN()-(COLUMN($BI$2)-1),FALSE)*E$39/SUM($C$39:$I$39)*VLOOKUP($W25,$B$3:$BI$29,(COLUMN($BI$2)-1),FALSE) -> 0.8207908163 | BM25: =VLOOKUP($W25,$B$3:$I$29,COLUMN()-(COLUMN($BI$2)-1),FALSE)*F$39/SUM($C$39:$I$39)*VLOOKUP($W25,$B$3:$BI$29,(COLUMN($BI$2)-1),FALSE) -> 0.2539441683 | BN25: =VLOOKUP($W25,$B$3:$I$29,COLUMN()-(COLUMN($BI$2)-1),FALSE)*G$39/SUM($C$39:$I$39)*VLOOKUP($W25,$B$3:$BI$29,(COLUMN($BI$2)-1),FALSE) -> 0.5458137935 | BO25: =VLOOKUP($W25,$B$3:$I$29,COLUMN()-(COLUMN($BI$2)-1),FALSE)*H$39/SUM($C$39:$I$39)*VLOOKUP($W25,$B$3:$BI$29,(COLUMN($BI$2)-1),FALSE) -> 0.2564719177 | BP25: =VLOOKUP($W25,$B$3:$I$29,COLUMN()-(COLUMN($BI$2)-1),FALSE)*I$39/SUM($C$39:$I$39)*VLOOKUP($W25,$B$3:$BI$29,(COLUMN($BI$2)-1),FALSE) -> 0.6663017485
A26: 1 | B26: Sweden | C26: ='Aid 2013'!Q28 -> 16.5081934 | D26: ='Trade 2013'!F28 -> 6.462735973 | E26: ='Finance 2013'!D27 -> 6.167410714 | F26: ='Migration 2013'!E26 -> 5.450173438 | G26: ='Environment 2013'!K28 -> 7.801888682 | H26: ='Security 2013'!J29 -> 5.767540205 | I26: ='Technology 2013'!D28 -> 4.511946827 | J26: 7.524269891 | K26: 1 | L26: =ROUND(J26,1)-ROUND(VLOOKUP($B26,INDIRECT("'CDI "&Year-1&"'!Score_table"),9,FALSE),1) -> -0.4 | M26: =SUM(IF(ROUND(J26,1)<ROUND($J$3:$J$29,1),1))+1 -> 1 | N26: =VLOOKUP($B26,INDIRECT("'CDI "&Year-1&"'!Score_table"),12,FALSE) -> 1 | O26: Sweden | P26: =(SUM(IF($J26<$J$3:$J$31*(1-BF$3:BF$31),1))+1)*(1-BF26) -> 0 | Q26: =(SUM(IF($J26<$J$3:$J$31*(1-BG$3:BG$31),1))+1)*(1-BG26) -> 0 | R26: =(SUM(IF(ROUND($J26,1)<ROUND($J$3:$J$31,1)*(1-BF$3:BF$31),1))+1)*(1-BF26) -> 0 | S26: =(SUM(IF(ROUND($J26,1)<ROUND($J$3:$J$31,1)*(1-BG$3:BG$31),1))+1)*(1-BG26) -> 0 | T26: Sweden | U26: 24 | V26: 24 | W26: Slovakia | X26: 3.802865732 | Y26: 0 | Z26: 0 | BC26: 316.7986319 | BD26: 390.4066355 | BF26: 1 | BG26: 1 | BI26: =ABS(SUM($C26:$I26*$C$39:$I$39)/SUM(IF($C26:$I26>0,$C26:$I26*$C$39:$I$39))) -> 1 | BJ26: =VLOOKUP($W26,$B$3:$I$29,COLUMN()-(COLUMN($BI$2)-1),FALSE)*C$39/SUM($C$39:$I$39)*VLOOKUP($W26,$B$3:$BI$29,(COLUMN($BI$2)-1),FALSE) -> 0.2104770308 | BK26: =VLOOKUP($W26,$B$3:$I$29,COLUMN()-(COLUMN($BI$2)-1),FALSE)*D$39/SUM($C$39:$I$39)*VLOOKUP($W26,$B$3:$BI$29,(COLUMN($BI$2)-1),FALSE) -> 0.7819959399 | BL26: =VLOOKUP($W26,$B$3:$I$29,COLUMN()-(COLUMN($BI$2)-1),FALSE)*E$39/SUM($C$39:$I$39)*VLOOKUP($W26,$B$3:$BI$29,(COLUMN($BI$2)-1),FALSE) -> 0.5108418367 | BM26: =VLOOKUP($W26,$B$3:$I$29,COLUMN()-(COLUMN($BI$2)-1),FALSE)*F$39/SUM($C$39:$I$39)*VLOOKUP($W26,$B$3:$BI$29,(COLUMN($BI$2)-1),FALSE) -> 0.04591046493 | BN26: =VLOOKUP($W26,$B$3:$I$29,COLUMN()-(COLUMN($BI$2)-1),FALSE)*G$39/SUM($C$39:$I$39)*VLOOKUP($W26,$B$3:$BI$29,(COLUMN($BI$2)-1),FALSE) -> 1.223003831 | BO26: =VLOOKUP($W26,$B$3:$I$29,COLUMN()-(COLUMN($BI$2)-1),FALSE)*H$39/SUM($C$39:$I$39)*VLOOKUP($W26,$B$3:$BI$29,(COLUMN($BI$2)-1),FALSE) -> 0.6550790738 | BP26: =VLOOKUP($W26,$B$3:$I$29,COLUMN()-(COLUMN($BI$2)-1),FALSE)*I$39/SUM($C$39:$I$39)*VLOOKUP($W26,$B$3:$BI$29,(COLUMN($BI$2)-1),FALSE) -> 0.3755575542
A27: 22 | B27: Switzerland | C27: ='Aid 2013'!Q29 -> 7.533729384 | D27: ='Trade 2013'!F29 -> -0.8834924 | E27: ='Finance 2013'!D28 -> 3.154017857 | F27: ='Migration 2013'!E27 -> 2.823341373 | G27: ='Environment 2013'!K29 -> 6.131272708 | H27: ='Security 2013'!J30 -> 3.888733579 | I27: ='Technology 2013'!D29 -> 4.883973313 | J27: 3.933082259 | K27: 22 | L27: =ROUND(J27,1)-ROUND(VLOOKUP($B27,INDIRECT("'CDI "&Year-1&"'!Score_table"),9,FALSE),1) -> -0.3 | M27: =SUM(IF(ROUND(J27,1)<ROUND($J$3:$J$29,1),1))+1 -> 22 | N27: =VLOOKUP($B27,INDIRECT("'CDI "&Year-1&"'!Score_table"),12,FALSE) -> 22 | O27: Switzerland | P27: =(SUM(IF($J27<$J$3:$J$31*(1-BF$3:BF$31),1))+1)*(1-BF27) -> 6 | Q27: =(SUM(IF($J27<$J$3:$J$31*(1-BG$3:BG$31),1))+1)*(1-BG27) -> 0 | R27: =(SUM(IF(ROUND($J27,1)<ROUND($J$3:$J$31,1)*(1-BF$3:BF$31),1))+1)*(1-BF27) -> 6 | S27: =(SUM(IF(ROUND($J27,1)<ROUND($J$3:$J$31,1)*(1-BG$3:BG$31),1))+1)*(1-BG27) -> 0 | T27: Switzerland | U27: 25 | V27: 25 | W27: Czech Republic | X27: 3.544178439 | Y27: 0 | Z27: 0 | BC27: 300.9384284 | BD27: 388.6400799 | BF27: 0 | BG27: 1 | BI27: =ABS(SUM($C27:$I27*$C$39:$I$39)/SUM(IF($C27:$I27>0,$C27:$I27*$C$39:$I$39))) -> 0.9689076094 | BJ27: =VLOOKUP($W27,$B$3:$I$29,COLUMN()-(COLUMN($BI$2)-1),FALSE)*C$39/SUM($C$39:$I$39)*VLOOKUP($W27,$B$3:$BI$29,(COLUMN($BI$2)-1),FALSE) -> 0.2841842905 | BK27: =VLOOKUP($W27,$B$3:$I$29,COLUMN()-(COLUMN($BI$2)-1),FALSE)*D$39/SUM($C$39:$I$39)*VLOOKUP($W27,$B$3:$BI$29,(COLUMN($BI$2)-1),FALSE) -> 0.7579543749 | BL27: =VLOOKUP($W27,$B$3:$I$29,COLUMN()-(COLUMN($BI$2)-1),FALSE)*E$39/SUM($C$39:$I$39)*VLOOKUP($W27,$B$3:$BI$29,(COLUMN($BI$2)-1),FALSE) -> 0.6312255213 | BM27: =VLOOKUP($W27,$B$3:$I$29,COLUMN()-(COLUMN($BI$2)-1),FALSE)*F$39/SUM($C$39:$I$39)*VLOOKUP($W27,$B$3:$BI$29,(COLUMN($BI$2)-1),FALSE) -> 0.06551855442 | BN27: =VLOOKUP($W27,$B$3:$I$29,COLUMN()-(COLUMN($BI$2)-1),FALSE)*G$39/SUM($C$39:$I$39)*VLOOKUP($W27,$B$3:$BI$29,(COLUMN($BI$2)-1),FALSE) -> 1.04777772 | BO27: =VLOOKUP($W27,$B$3:$I$29,COLUMN()-(COLUMN($BI$2)-1),FALSE)*H$39/SUM($C$39:$I$39)*VLOOKUP($W27,$B$3:$BI$29,(COLUMN($BI$2)-1),FALSE) -> -0.07959396072 | BP27: =VLOOKUP($W27,$B$3:$I$29,COLUMN()-(COLUMN($BI$2)-1),FALSE)*I$39/SUM($C$39:$I$39)*VLOOKUP($W27,$B$3:$BI$29,(COLUMN($BI$2)-1),FALSE) -> 0.7575179775
A28: 8 | B28: United Kingdom | C28: ='Aid 2013'!Q30 -> 7.445616754 | D28: ='Trade 2013'!F30 -> 6.00269008 | E28: ='Finance 2013'!D29 -> 5.90625 | F28: ='Migration 2013'!E28 -> 1.777037576 | G28: ='Environment 2013'!K30 -> 7.335187574 | H28: ='Security 2013'!J31 -> 4.274710133 | I28: ='Technology 2013'!D30 -> 4.192416951 | J28: 5.276272724 | K28: 8 | L28: =ROUND(J28,1)-ROUND(VLOOKUP($B28,INDIRECT("'CDI "&Year-1&"'!Score_table"),9,FALSE),1) -> -0.4 | M28: =SUM(IF(ROUND(J28,1)<ROUND($J$3:$J$29,1),1))+1 -> 8 | N28: =VLOOKUP($B28,INDIRECT("'CDI "&Year-1&"'!Score_table"),12,FALSE) -> 8 | O28: United Kingdom | P28: =(SUM(IF($J28<$J$3:$J$31*(1-BF$3:BF$31),1))+1)*(1-BF28) -> 0 | Q28: =(SUM(IF($J28<$J$3:$J$31*(1-BG$3:BG$31),1))+1)*(1-BG28) -> 0 | R28: =(SUM(IF(ROUND($J28,1)<ROUND($J$3:$J$31,1)*(1-BF$3:BF$31),1))+1)*(1-BF28) -> 0 | S28: =(SUM(IF(ROUND($J28,1)<ROUND($J$3:$J$31,1)*(1-BG$3:BG$31),1))+1)*(1-BG28) -> 0 | T28: United Kingdom | U28: 26 | V28: 26 | W28: Japan | X28: 3.018990532 | Y28: -0.5 | Z28: -1 | BC28: 1756.002124 | BD28: 2223.368045 | BF28: 1 | BG28: 1 | BI28: =ABS(SUM($C28:$I28*$C$39:$I$39)/SUM(IF($C28:$I28>0,$C28:$I28*$C$39:$I$39))) -> 1 | BJ28: =VLOOKUP($W28,$B$3:$I$29,COLUMN()-(COLUMN($BI$2)-1),FALSE)*C$39/SUM($C$39:$I$39)*VLOOKUP($W28,$B$3:$BI$29,(COLUMN($BI$2)-1),FALSE) -> 0.05111449725 | BK28: =VLOOKUP($W28,$B$3:$I$29,COLUMN()-(COLUMN($BI$2)-1),FALSE)*D$39/SUM($C$39:$I$39)*VLOOKUP($W28,$B$3:$BI$29,(COLUMN($BI$2)-1),FALSE) -> 0.2460599807 | BL28: =VLOOKUP($W28,$B$3:$I$29,COLUMN()-(COLUMN($BI$2)-1),FALSE)*E$39/SUM($C$39:$I$39)*VLOOKUP($W28,$B$3:$BI$29,(COLUMN($BI$2)-1),FALSE) -> 0.5567602041 | BM28: =VLOOKUP($W28,$B$3:$I$29,COLUMN()-(COLUMN($BI$2)-1),FALSE)*F$39/SUM($C$39:$I$39)*VLOOKUP($W28,$B$3:$BI$29,(COLUMN($BI$2)-1),FALSE) -> 0.13938713 | BN28: =VLOOKUP($W28,$B$3:$I$29,COLUMN()-(COLUMN($BI$2)-1),FALSE)*G$39/SUM($C$39:$I$39)*VLOOKUP($W28,$B$3:$BI$29,(COLUMN($BI$2)-1),FALSE) -> 0.5448255586 | BO28: =VLOOKUP($W28,$B$3:$I$29,COLUMN()-(COLUMN($BI$2)-1),FALSE)*H$39/SUM($C$39:$I$39)*VLOOKUP($W28,$B$3:$BI$29,(COLUMN($BI$2)-1),FALSE) -> 0.5886308192 | BP28: =VLOOKUP($W28,$B$3:$I$29,COLUMN()-(COLUMN($BI$2)-1),FALSE)*I$39/SUM($C$39:$I$39)*VLOOKUP($W28,$B$3:$BI$29,(COLUMN($BI$2)-1),FALSE) -> 0.8922123424
A29: 16 | B29: United States | C29: ='Aid 2013'!Q31 -> 6.894790853 | D29: ='Trade 2013'!F31 -> 6.652041564 | E29: ='Finance 2013'!D30 -> 5.142857143 | F29: ='Migration 2013'!E29 -> 1.23355227 | G29: ='Environment 2013'!K31 -> 4.313976022 | H29: ='Security 2013'!J32 -> 1.506148899 | I29: ='Technology 2013'!D31 -> 4.677484865 | J29: 4.345835945 | K29: 16 | L29: =ROUND(J29,1)-ROUND(VLOOKUP($B29,INDIRECT("'CDI "&Year-1&"'!Score_table"),9,FALSE),1) -> -0.3 | M29: =SUM(IF(ROUND(J29,1)<ROUND($J$3:$J$29,1),1))+1 -> 16 | N29: =VLOOKUP($B29,INDIRECT("'CDI "&Year-1&"'!Score_table"),12,FALSE) -> 19 | O29: United States | P29: =(SUM(IF($J29<$J$3:$J$31*(1-BF$3:BF$31),1))+1)*(1-BF29) -> 3 | Q29: =(SUM(IF($J29<$J$3:$J$31*(1-BG$3:BG$31),1))+1)*(1-BG29) -> 2 | R29: =(SUM(IF(ROUND($J29,1)<ROUND($J$3:$J$31,1)*(1-BF$3:BF$31),1))+1)*(1-BF29) -> 3 | S29: =(SUM(IF(ROUND($J29,1)<ROUND($J$3:$J$31,1)*(1-BG$3:BG$31),1))+1)*(1-BG29) -> 2 | T29: United States | U29: 27 | V29: 27 | W29: South Korea | X29: 2.470890521 | Y29: -0.6 | Z29: 0 | BC29: 11744.21897 | BD29: 15093.99986 | BF29: 0 | BG29: 0 | BI29: =ABS(SUM($C29:$I29*$C$39:$I$39)/SUM(IF($C29:$I29>0,$C29:$I29*$C$39:$I$39))) -> 1 | BJ29: =VLOOKUP($W29,$B$3:$I$29,COLUMN()-(COLUMN($BI$2)-1),FALSE)*C$39/SUM($C$39:$I$39)*VLOOKUP($W29,$B$3:$BI$29,(COLUMN($BI$2)-1),FALSE) -> 0.1086698939 | BK29: =VLOOKUP($W29,$B$3:$I$29,COLUMN()-(COLUMN($BI$2)-1),FALSE)*D$39/SUM($C$39:$I$39)*VLOOKUP($W29,$B$3:$BI$29,(COLUMN($BI$2)-1),FALSE) -> -0.2782359531 | BL29: =VLOOKUP($W29,$B$3:$I$29,COLUMN()-(COLUMN($BI$2)-1),FALSE)*E$39/SUM($C$39:$I$39)*VLOOKUP($W29,$B$3:$BI$29,(COLUMN($BI$2)-1),FALSE) -> 0.6188557689 | BM29: =VLOOKUP($W29,$B$3:$I$29,COLUMN()-(COLUMN($BI$2)-1),FALSE)*F$39/SUM($C$39:$I$39)*VLOOKUP($W29,$B$3:$BI$29,(COLUMN($BI$2)-1),FALSE) -> 0.1506528821 | BN29: =VLOOKUP($W29,$B$3:$I$29,COLUMN()-(COLUMN($BI$2)-1),FALSE)*G$39/SUM($C$39:$I$39)*VLOOKUP($W29,$B$3:$BI$29,(COLUMN($BI$2)-1),FALSE) -> 0.5485045827 | BO29: =VLOOKUP($W29,$B$3:$I$29,COLUMN()-(COLUMN($BI$2)-1),FALSE)*H$39/SUM($C$39:$I$39)*VLOOKUP($W29,$B$3:$BI$29,(COLUMN($BI$2)-1),FALSE) -> 0.1792114467 | BP29: =VLOOKUP($W29,$B$3:$I$29,COLUMN()-(COLUMN($BI$2)-1),FALSE)*I$39/SUM($C$39:$I$39)*VLOOKUP($W29,$B$3:$BI$29,(COLUMN($BI$2)-1),FALSE) -> 0.8649959466
B30: EU | C30: ='Aid 2013'!Q32 -> 6.714681375 | D30: ='Trade 2013'!F32 -> 5.776172487 | E30: ='Finance 2013'!D31 -> 5.352141553 | F30: ='Migration 2013'!E30 -> 2.316049926 | G30: ='Environment 2013'!K32 -> 7.058537187 | H30: ='Security 2013'!J33 -> 4.542588378 | I30: ='Technology 2013'!D32 -> 4.849378817 | J30: 5.229935675 | P30: =(SUM(IF($J30<$J$3:$J$31*(1-BF$3:BF$31),1))+1)*(1-BF30) -> 1 | R30: =(SUM(IF(ROUND($J30,1)<ROUND($J$3:$J$31,1)*(1-BF$3:BF$31),1))+1)*(1-BF30) -> 1 | T30: EU | BG30: 1
B31: Europe | C31: ='Aid 2013'!Q33 -> 6.857827801 | D31: ='Trade 2013'!F33 -> 5.392554518 | E31: ='Finance 2013'!D32 -> 5.297348331 | F31: ='Migration 2013'!E31 -> 2.343067155 | G31: ='Environment 2013'!K33 -> 6.988566456 | H31: ='Security 2013'!J34 -> 4.493680981 | I31: ='Technology 2013'!D33 -> 4.864284669 | J31: 5.176761416 | P31: =(SUM(IF($J31<$J$3:$J$31*(1-BF$3:BF$31),1))+1)*(1-BF31) -> 0 | Q31: =(SUM(IF($J31<$J$3:$J$31*(1-BG$3:BG$31),1))+1)*(1-BG31) -> 1 | R31: =(SUM(IF(ROUND($J31,1)<ROUND($J$3:$J$31,1)*(1-BF$3:BF$31),1))+1)*(1-BF31) -> 0 | S31: =(SUM(IF(ROUND($J31,1)<ROUND($J$3:$J$31,1)*(1-BG$3:BG$31),1))+1)*(1-BG31) -> 1 | T31: Europe | BF31: 1
R32: =(SUM(IF($J24<$J$3:$J$31*(1-BF$3:BF$31),1))+1)*(1-BF24) -> 9
B33: Average | C33: =AVERAGE(C3:C29) -> 5.614168554 | D33: 4.858145112 | E33: 5.072916667 | F33: 2.04528508 | G33: 6.297230661 | H33: 4.783458517 | I33: 4.844705423 | J33: 4.787987145 | U33: 1
B34: Standard dev. | C34: =STDEVP(C3:C29) -> 3.97624583 | D34: 2.702957909 | E34: 0.8857254864 | F34: 1.083557469 | G34: 1.594250474 | H34: 2.577414774 | I34: 1.190721647 | J34: 1.098363907 | U34: 2
U35: 3
B36: Lowest | C36: =MIN(C3:C29) -> 0.3578014807 | D36: -3.457901179 | E36: 3.154017857 | F36: 0.3213732545 | G36: 2.631478908 | H36: -0.569957641 | I36: 2.525862433 | J36: 2.470890521 | U36: 4
B37: Highest | C37: =MAX(C3:C29) -> 16.5081934 | D37: 8.031734055 | E37: 6.328125 | F37: 5.450173438 | G37: 8.56102682 | H37: 10.48870414 | I37: 6.823314632 | J37: 7.524269891 | U37: 5
U38: 6
B39: Weight | C39: 1 | D39: 1 | E39: 1 | F39: 1 | G39: 1 | H39: 1 | I39: 1 | U39: 7
U40: 8
U41: 9
U44: 1
U45: 2
U46: 3
U47: 4
U48: 5
U49: 6
U50: 7
A73: =INT(RIGHT(CELL("filename",A1),4)) -> 2013

Sheet CDI 2012
A1: ="Commitment to Development Index "&Region_name&IF(Region_name="",""," ")&Year&IF(Publication_year>Year," ("&Publication_year&" methodology)","") -> Commitment to Development Index Middle East & North Africa 2012 (2013 methodology) | V1: Standings | Y1: One-year change, latest methodology | AB1: Standings/EU as one | AM1: Standings/Europe as one | BF1: EU countries | BG1: Europe countries
A2: Rank | B2: Country | C2: Aid | D2: Trade | E2: Finance | F2: Migration | G2: Environment | H2: Security | I2: Technology | J2: Overall (Average) | K2: True rank | L2: =Year-1&"-"&Year-2000&" score change" -> 2011-12 score change | M2: Rank | N2: =Year-1&" rank ("&Year&" method)" -> 2011 rank (2012 method) | P2: True rank/EU | Q2: True rank/Europe | R2: Rank/EU | S2: Rank/Europe | W2: Country | X2: Score | Y2: Score | Z2: Rank | AC2: Country | AD2: Aid | AE2: Trade | AF2: Finance | AG2: Migration | AH2: Environment | AI2: Security | AJ2: Technology | AK2: Overall (Average) | AN2: Country | AO2: Aid | AP2: Trade | AQ2: Finance | AR2: Migration | AS2: Environment | AT2: Security | AU2: Technology | AV2: Overall (Average) | BC2: PPP GDP | BD2: Exchange-rate GDP | BI2: Graphing scale factor to deal with negative scores, alpha by country
A3: =M3 -> 17 | B3: Australia | C3: ='Aid 2012'!Q5 -> 2.732685014 | D3: ='Trade 2012'!F5 -> 7.026357425 | E3: ='Finance 2012'!D4 -> 5.745535714 | F3: ='Migration 2012'!E3 -> 7.139511231 | G3: ='Environment 2012'!K5 -> 3.865168673 | H3: ='Security 2012'!J6 -> 1.642471978 | I3: ='Technology 2012'!D5 -> 5.156659131 | J3: =SUMPRODUCT(C3:I3,$C$39:$I$39)/SUM($C$39:$I$39) -> 4.758341309 | K3: =COUNTIF($J$3:$J$29,">"&J3)+1 -> 17 | L3: =ROUND(J3,1)-ROUND(VLOOKUP($B3,INDIRECT("'CDI "&Year-1&"'!Score_table"),9,FALSE),1) -> 0.8 | M3: =SUM(IF(ROUND(J3,1)<ROUND($J$3:$J$29,1),1))+1 -> 17 | N3: =VLOOKUP($B3,INDIRECT("'CDI "&Year-1&"'!Score_table"),12,FALSE) -> 19 | O3: =B3 -> Australia | P3: =(SUM(IF($J3<$J$3:$J$31*(1-BF$3:BF$31),1))+1)*(1-BF3) -> 5 | Q3: =(SUM(IF($J3<$J$3:$J$31*(1-BG$3:BG$31),1))+1)*(1-BG3) -> 4 | R3: =(SUM(IF(ROUND($J3,1)<ROUND($J$3:$J$31,1)*(1-BF$3:BF$31),1))+1)*(1-BF3) -> 5 | S3: =(SUM(IF(ROUND($J3,1)<ROUND($J$3:$J$31,1)*(1-BG$3:BG$31),1))+1)*(1-BG3) -> 4 | T3: =B3 -> Australia | U3: =ROW(U3)-ROW($U$2) -> 1 | V3: =VLOOKUP(U3,$K$3:$O$29,3,FALSE) -> 1 | W3: =VLOOKUP(U3,$K$3:$O$29,5,FALSE) -> Sweden | X3: =VLOOKUP(W3,$B$3:$O$29,9,FALSE) -> 7.942427248 | Y3: =IF(ISNA(VLOOKUP(W3,$B$3:$O$29,11,FALSE)),"",VLOOKUP(W3,$B$3:$O$29,11,FALSE)) -> 0 | Z3: =IF(ISNA(VLOOKUP(U3,$K$3:$O$29,4,FALSE)),"",VLOOKUP(U3,$K$3:$O$29,4,FALSE)-V3) -> 0 | AB3: =VLOOKUP(U33,$P$3:$U$31,3,FALSE) -> 1 | AC3: =VLOOKUP(U33,$P$3:$U$31,5,FALSE) -> Norway | AD3: =VLOOKUP($AC3,$B$3:$O$31,2,FALSE) -> 8.852296988 | AE3: =VLOOKUP($AC3,$B$3:$O$31,3,FALSE) -> -3.377285726 | AF3: =VLOOKUP($AC3,$B$3:$O$31,4,FALSE) -> 5.866071429 | AG3: =VLOOKUP($AC3,$B$3:$O$31,5,FALSE) -> 9.817918066 | AH3: =VLOOKUP($AC3,$B$3:$O$31,6,FALSE) -> 2.614697316 | AI3: =VLOOKUP($AC3,$B$3:$O$31,7,FALSE) -> 10.93412749 | AJ3: =VLOOKUP($AC3,$B$3:$O$31,8,FALSE) -> 5.712251948 | AK3: =VLOOKUP($AC3,$B$3:$O$31,9,FALSE) -> 5.774296788 | AM3: =VLOOKUP(U44,$Q$3:$V$31,3,FALSE) -> 1 | AN3: =VLOOKUP(U44,$Q$3:$V$31,4,FALSE) -> Europe | AO3: =VLOOKUP($AN3,$B$3:$O$31,2,FALSE) -> 6.007016632 | AP3: =VLOOKUP($AN3,$B$3:$O$31,3,FALSE) -> 5.587085455 | AQ3: =VLOOKUP($AN3,$B$3:$O$31,4,FALSE) -> 5.297285423 | AR3: =VLOOKUP($AN3,$B$3:$O$31,5,FALSE) -> 5.10484602 | AS3: =VLOOKUP($AN3,$B$3:$O$31,6,FALSE) -> 6.823946759 | AT3: =VLOOKUP($AN3,$B$3:$O$31,7,FALSE) -> 4.825833911 | AU3: =VLOOKUP($AN3,$B$3:$O$31,8,FALSE) -> 4.981959307 | AV3: =VLOOKUP(AN3,$B$3:$O$31,9,FALSE) -> 5.51828193 | BC3: 563.0494638 | BD3: 839.5120312 | BF3: 0 | BG3: 0 | BI3: =ABS(SUM($C3:$I3*$C$39:$I$39)/SUM(IF($C3:$I3>0,$C3:$I3*$C$39:$I$39))) -> 1 | BJ3: =VLOOKUP($W3,$B$3:$I$29,COLUMN()-(COLUMN($BI$2)-1),FALSE)*C$39/SUM($C$39:$I$39)*VLOOKUP($W3,$B$3:$BI$29,(COLUMN($BI$2)-1),FALSE) -> 2.166628142 | BK3: =VLOOKUP($W3,$B$3:$I$29,COLUMN()-(COLUMN($BI$2)-1),FALSE)*D$39/SUM($C$39:$I$39)*VLOOKUP($W3,$B$3:$BI$29,(COLUMN($BI$2)-1),FALSE) -> 0.9529418283 | BL3: =VLOOKUP($W3,$B$3:$I$29,COLUMN()-(COLUMN($BI$2)-1),FALSE)*E$39/SUM($C$39:$I$39)*VLOOKUP($W3,$B$3:$BI$29,(COLUMN($BI$2)-1),FALSE) -> 0.8810586735 | BM3: =VLOOKUP($W3,$B$3:$I$29,COLUMN()-(COLUMN($BI$2)-1),FALSE)*F$39/SUM($C$39:$I$39)*VLOOKUP($W3,$B$3:$BI$29,(COLUMN($BI$2)-1),FALSE) -> 1.339445567 | BN3: =VLOOKUP($W3,$B$3:$I$29,COLUMN()-(COLUMN($BI$2)-1),FALSE)*G$39/SUM($C$39:$I$39)*VLOOKUP($W3,$B$3:$BI$29,(COLUMN($BI$2)-1),FALSE) -> 1.050302715 | BO3: =VLOOKUP($W3,$B$3:$I$29,COLUMN()-(COLUMN($BI$2)-1),FALSE)*H$39/SUM($C$39:$I$39)*VLOOKUP($W3,$B$3:$BI$29,(COLUMN($BI$2)-1),FALSE) -> 0.8756871834 | BP3: =VLOOKUP($W3,$B$3:$I$29,COLUMN()-(COLUMN($BI$2)-1),FALSE)*I$39/SUM($C$39:$I$39)*VLOOKUP($W3,$B$3:$BI$29,(COLUMN($BI$2)-1),FALSE) -> 0.6763631392
A4: 8 | B4: Austria | C4: ='Aid 2012'!Q6 -> 4.872084182 | D4: ='Trade 2012'!F6 -> 6.132572854 | E4: ='Finance 2012'!D5 -> 3.9375 | F4: ='Migration 2012'!E4 -> 6.454273349 | G4: ='Environment 2012'!K6 -> 6.191511065 | H4: ='Security 2012'!J7 -> 6.953689561 | I4: ='Technology 2012'!D6 -> 5.703352793 | J4: 5.749283401 | K4: 8 | L4: =ROUND(J4,1)-ROUND(VLOOKUP($B4,INDIRECT("'CDI "&Year-1&"'!Score_table"),9,FALSE),1) -> 0.3 | M4: =SUM(IF(ROUND(J4,1)<ROUND($J$3:$J$29,1),1))+1 -> 8 | N4: =VLOOKUP($B4,INDIRECT("'CDI "&Year-1&"'!Score_table"),12,FALSE) -> 6 | O4: Austria | P4: =(SUM(IF($J4<$J$3:$J$31*(1-BF$3:BF$31),1))+1)*(1-BF4) -> 0 | Q4: =(SUM(IF($J4<$J$3:$J$31*(1-BG$3:BG$31),1))+1)*(1-BG4) -> 0 | R4: =(SUM(IF(ROUND($J4,1)<ROUND($J$3:$J$31,1)*(1-BF$3:BF$31),1))+1)*(1-BF4) -> 0 | S4: =(SUM(IF(ROUND($J4,1)<ROUND($J$3:$J$31,1)*(1-BG$3:BG$31),1))+1)*(1-BG4) -> 0 | T4: Austria | U4: 2 | V4: 2 | W4: Denmark | X4: 7.000954881 | Y4: 0.9 | Z4: 0 | AB4: 2 | AC4: EU | AD4: 5.932140568 | AE4: 5.966595972 | AF4: 5.354164159 | AG4: 5.027711456 | AH4: 6.89630193 | AI4: 4.899050165 | AJ4: 4.978443595 | AK4: 5.579201121 | AM4: 2 | AN4: New Zealand | AO4: 1.185394835 | AP4: 8.024125252 | AQ4: 4.037946429 | AR4: 7.43698186 | AS4: 6.044415141 | AT4: 5.31028815 | AU4: 4.707315468 | AV4: 5.249495305 | BC4: 223.9541412 | BD4: 335.8194074 | BF4: 1 | BG4: 1 | BI4: =ABS(SUM($C4:$I4*$C$39:$I$39)/SUM(IF($C4:$I4>0,$C4:$I4*$C$39:$I$39))) -> 1 | BJ4: =VLOOKUP($W4,$B$3:$I$29,COLUMN()-(COLUMN($BI$2)-1),FALSE)*C$39/SUM($C$39:$I$39)*VLOOKUP($W4,$B$3:$BI$29,(COLUMN($BI$2)-1),FALSE) -> 1.465344772 | BK4: =VLOOKUP($W4,$B$3:$I$29,COLUMN()-(COLUMN($BI$2)-1),FALSE)*D$39/SUM($C$39:$I$39)*VLOOKUP($W4,$B$3:$BI$29,(COLUMN($BI$2)-1),FALSE) -> 0.8353186044 | BL4: =VLOOKUP($W4,$B$3:$I$29,COLUMN()-(COLUMN($BI$2)-1),FALSE)*E$39/SUM($C$39:$I$39)*VLOOKUP($W4,$B$3:$BI$29,(COLUMN($BI$2)-1),FALSE) -> 0.8351403061 | BM4: =VLOOKUP($W4,$B$3:$I$29,COLUMN()-(COLUMN($BI$2)-1),FALSE)*F$39/SUM($C$39:$I$39)*VLOOKUP($W4,$B$3:$BI$29,(COLUMN($BI$2)-1),FALSE) -> 0.6788512904 | BN4: =VLOOKUP($W4,$B$3:$I$29,COLUMN()-(COLUMN($BI$2)-1),FALSE)*G$39/SUM($C$39:$I$39)*VLOOKUP($W4,$B$3:$BI$29,(COLUMN($BI$2)-1),FALSE) -> 0.9469901627 | BO4: =VLOOKUP($W4,$B$3:$I$29,COLUMN()-(COLUMN($BI$2)-1),FALSE)*H$39/SUM($C$39:$I$39)*VLOOKUP($W4,$B$3:$BI$29,(COLUMN($BI$2)-1),FALSE) -> 1.308289887 | BP4: =VLOOKUP($W4,$B$3:$I$29,COLUMN()-(COLUMN($BI$2)-1),FALSE)*I$39/SUM($C$39:$I$39)*VLOOKUP($W4,$B$3:$BI$29,(COLUMN($BI$2)-1),FALSE) -> 0.9310198591
A5: 8 | B5: Belgium | C5: ='Aid 2012'!Q7 -> 7.811686364 | D5: ='Trade 2012'!F7 -> 5.732904304 | E5: ='Finance 2012'!D6 -> 5.504464286 | F5: ='Migration 2012'!E5 -> 6.359709301 | G5: ='Environment 2012'!K7 -> 7.08229816 | H5: ='Security 2012'!J8 -> 2.741651449 | I5: ='Technology 2012'!D7 -> 4.562660613 | J5: 5.685053497 | K5: 10 | L5: =ROUND(J5,1)-ROUND(VLOOKUP($B5,INDIRECT("'CDI "&Year-1&"'!Score_table"),9,FALSE),1) -> 0.4 | M5: =SUM(IF(ROUND(J5,1)<ROUND($J$3:$J$29,1),1))+1 -> 8 | N5: =VLOOKUP($B5,INDIRECT("'CDI "&Year-1&"'!Score_table"),12,FALSE) -> 8 | O5: Belgium | P5: =(SUM(IF($J5<$J$3:$J$31*(1-BF$3:BF$31),1))+1)*(1-BF5) -> 0 | Q5: =(SUM(IF($J5<$J$3:$J$31*(1-BG$3:BG$31),1))+1)*(1-BG5) -> 0 | R5: =(SUM(IF(ROUND($J5,1)<ROUND($J$3:$J$31,1)*(1-BF$3:BF$31),1))+1)*(1-BF5) -> 0 | S5: =(SUM(IF(ROUND($J5,1)<ROUND($J$3:$J$31,1)*(1-BG$3:BG$31),1))+1)*(1-BG5) -> 0 | T5: Belgium | U5: 3 | V5: 3 | W5: France | X5: 6.104548326 | Y5: 0.7 | Z5: 3 | AB5: 3 | AC5: New Zealand | AD5: 1.185394835 | AE5: 8.024125252 | AF5: 4.037946429 | AG5: 7.43698186 | AH5: 6.044415141 | AI5: 5.31028815 | AJ5: 4.707315468 | AK5: 5.249495305 | AM5: 3 | AN5: Canada | AO5: 3.096896413 | AP5: 4.441065049 | AQ5: 5.042410714 | AR5: 8.664483637 | AS5: 2.474296074 | AT5: 5.866502074 | AU5: 5.552828628 | AV5: 5.019783227 | BC5: 267.1431025 | BD5: 410.592084 | BF5: 1 | BG5: 1 | BI5: =ABS(SUM($C5:$I5*$C$39:$I$39)/SUM(IF($C5:$I5>0,$C5:$I5*$C$39:$I$39))) -> 1 | BJ5: =VLOOKUP($W5,$B$3:$I$29,COLUMN()-(COLUMN($BI$2)-1),FALSE)*C$39/SUM($C$39:$I$39)*VLOOKUP($W5,$B$3:$BI$29,(COLUMN($BI$2)-1),FALSE) -> 0.9356617763 | BK5: =VLOOKUP($W5,$B$3:$I$29,COLUMN()-(COLUMN($BI$2)-1),FALSE)*D$39/SUM($C$39:$I$39)*VLOOKUP($W5,$B$3:$BI$29,(COLUMN($BI$2)-1),FALSE) -> 0.8360106883 | BL5: =VLOOKUP($W5,$B$3:$I$29,COLUMN()-(COLUMN($BI$2)-1),FALSE)*E$39/SUM($C$39:$I$39)*VLOOKUP($W5,$B$3:$BI$29,(COLUMN($BI$2)-1),FALSE) -> 0.8035714286 | BM5: =VLOOKUP($W5,$B$3:$I$29,COLUMN()-(COLUMN($BI$2)-1),FALSE)*F$39/SUM($C$39:$I$39)*VLOOKUP($W5,$B$3:$BI$29,(COLUMN($BI$2)-1),FALSE) -> 0.5963949361 | BN5: =VLOOKUP($W5,$B$3:$I$29,COLUMN()-(COLUMN($BI$2)-1),FALSE)*G$39/SUM($C$39:$I$39)*VLOOKUP($W5,$B$3:$BI$29,(COLUMN($BI$2)-1),FALSE) -> 0.9915374581 | BO5: =VLOOKUP($W5,$B$3:$I$29,COLUMN()-(COLUMN($BI$2)-1),FALSE)*H$39/SUM($C$39:$I$39)*VLOOKUP($W5,$B$3:$BI$29,(COLUMN($BI$2)-1),FALSE) -> 0.9987868484 | BP5: =VLOOKUP($W5,$B$3:$I$29,COLUMN()-(COLUMN($BI$2)-1),FALSE)*I$39/SUM($C$39:$I$39)*VLOOKUP($W5,$B$3:$BI$29,(COLUMN($BI$2)-1),FALSE) -> 0.9425851898
A6: 16 | B6: Canada | C6: ='Aid 2012'!Q8 -> 3.096896413 | D6: ='Trade 2012'!F8 -> 4.441065049 | E6: ='Finance 2012'!D7 -> 5.042410714 | F6: ='Migration 2012'!E6 -> 8.664483637 | G6: ='Environment 2012'!K8 -> 2.474296074 | H6: ='Security 2012'!J9 -> 5.866502074 | I6: ='Technology 2012'!D8 -> 5.552828628 | J6: 5.019783227 | K6: 16 | L6: =ROUND(J6,1)-ROUND(VLOOKUP($B6,INDIRECT("'CDI "&Year-1&"'!Score_table"),9,FALSE),1) -> 0.8 | M6: =SUM(IF(ROUND(J6,1)<ROUND($J$3:$J$29,1),1))+1 -> 16 | N6: =VLOOKUP($B6,INDIRECT("'CDI "&Year-1&"'!Score_table"),12,FALSE) -> 18 | O6: Canada | P6: =(SUM(IF($J6<$J$3:$J$31*(1-BF$3:BF$31),1))+1)*(1-BF6) -> 4 | Q6: =(SUM(IF($J6<$J$3:$J$31*(1-BG$3:BG$31),1))+1)*(1-BG6) -> 3 | R6: =(SUM(IF(ROUND($J6,1)<ROUND($J$3:$J$31,1)*(1-BF$3:BF$31),1))+1)*(1-BF6) -> 4 | S6: =(SUM(IF(ROUND($J6,1)<ROUND($J$3:$J$31,1)*(1-BG$3:BG$31),1))+1)*(1-BG6) -> 3 | T6: Canada | U6: 4 | V6: 3 | W6: Spain | X6: 6.068981384 | Y6: 0.4 | Z6: 2 | AB6: 4 | AC6: Canada | AD6: 3.096896413 | AE6: 4.441065049 | AF6: 5.042410714 | AG6: 8.664483637 | AH6: 2.474296074 | AI6: 5.866502074 | AJ6: 5.552828628 | AK6: 5.019783227 | AM6: 4 | AN6: Australia | AO6: 2.732685014 | AP6: 7.026357425 | AQ6: 5.745535714 | AR6: 7.139511231 | AS6: 3.865168673 | AT6: 1.642471978 | AU6: 5.156659131 | AV6: 4.758341309 | BC6: 872.7844618 | BD6: 1332.626063 | BF6: 0 | BG6: 0 | BI6: =ABS(SUM($C6:$I6*$C$39:$I$39)/SUM(IF($C6:$I6>0,$C6:$I6*$C$39:$I$39))) -> 1 | BJ6: =VLOOKUP($W6,$B$3:$I$29,COLUMN()-(COLUMN($BI$2)-1),FALSE)*C$39/SUM($C$39:$I$39)*VLOOKUP($W6,$B$3:$BI$29,(COLUMN($BI$2)-1),FALSE) -> 1.007869019 | BK6: =VLOOKUP($W6,$B$3:$I$29,COLUMN()-(COLUMN($BI$2)-1),FALSE)*D$39/SUM($C$39:$I$39)*VLOOKUP($W6,$B$3:$BI$29,(COLUMN($BI$2)-1),FALSE) -> 0.8599314268 | BL6: =VLOOKUP($W6,$B$3:$I$29,COLUMN()-(COLUMN($BI$2)-1),FALSE)*E$39/SUM($C$39:$I$39)*VLOOKUP($W6,$B$3:$BI$29,(COLUMN($BI$2)-1),FALSE) -> 0.8810586735 | BM6: =VLOOKUP($W6,$B$3:$I$29,COLUMN()-(COLUMN($BI$2)-1),FALSE)*F$39/SUM($C$39:$I$39)*VLOOKUP($W6,$B$3:$BI$29,(COLUMN($BI$2)-1),FALSE) -> 0.8954539689 | BN6: =VLOOKUP($W6,$B$3:$I$29,COLUMN()-(COLUMN($BI$2)-1),FALSE)*G$39/SUM($C$39:$I$39)*VLOOKUP($W6,$B$3:$BI$29,(COLUMN($BI$2)-1),FALSE) -> 0.9133967859 | BO6: =VLOOKUP($W6,$B$3:$I$29,COLUMN()-(COLUMN($BI$2)-1),FALSE)*H$39/SUM($C$39:$I$39)*VLOOKUP($W6,$B$3:$BI$29,(COLUMN($BI$2)-1),FALSE) -> 0.6653965222 | BP6: =VLOOKUP($W6,$B$3:$I$29,COLUMN()-(COLUMN($BI$2)-1),FALSE)*I$39/SUM($C$39:$I$39)*VLOOKUP($W6,$B$3:$BI$29,(COLUMN($BI$2)-1),FALSE) -> 0.8458749875
A7: 25 | B7: Czech Republic | C7: ='Aid 2012'!Q9 -> 1.655247729 | D7: ='Trade 2012'!F9 -> 5.650614642 | E7: ='Finance 2012'!D8 -> 4.439732143 | F7: ='Migration 2012'!E7 -> 1.629006984 | G7: ='Environment 2012'!K9 -> 7.347431682 | H7: ='Security 2012'!J10 -> -1.231187108 | I7: ='Technology 2012'!D9 -> 5.24746761 | J7: 3.534044812 | K7: 25 | L7: =ROUND(J7,1)-ROUND(VLOOKUP($B7,INDIRECT("'CDI "&Year-1&"'!Score_table"),9,FALSE),1) ->  | M7: =SUM(IF(ROUND(J7,1)<ROUND($J$3:$J$29,1),1))+1 -> 25 | N7: =VLOOKUP($B7,INDIRECT("'CDI "&Year-1&"'!Score_table"),12,FALSE) ->  | O7: Czech Republic | P7: =(SUM(IF($J7<$J$3:$J$31*(1-BF$3:BF$31),1))+1)*(1-BF7) -> 0 | Q7: =(SUM(IF($J7<$J$3:$J$31*(1-BG$3:BG$31),1))+1)*(1-BG7) -> 0 | R7: =(SUM(IF(ROUND($J7,1)<ROUND($J$3:$J$31,1)*(1-BF$3:BF$31),1))+1)*(1-BF7) -> 0 | S7: =(SUM(IF(ROUND($J7,1)<ROUND($J$3:$J$31,1)*(1-BG$3:BG$31),1))+1)*(1-BG7) -> 0 | T7: Czech Republic | U7: 5 | V7: 3 | W7: Finland | X7: 6.068980125 | Y7: 0 | Z7: -1 | AB7: 5 | AC7: Australia | AD7: 2.732685014 | AE7: 7.026357425 | AF7: 5.745535714 | AG7: 7.139511231 | AH7: 3.865168673 | AI7: 1.642471978 | AJ7: 5.156659131 | AK7: 4.758341309 | AM7: 5 | AN7: United States | AO7: 5.280327594 | AP7: 6.77870798 | AQ7: 5.142857143 | AR7: 3.664983378 | AS7: 4.181179316 | AT7: 1.992243093 | AU7: 4.944699211 | AV7: 4.569285388 | BC7: 82.08447898 | BD7: 265.6429015 | BF7: 1 | BG7: 1 | BI7: =ABS(SUM($C7:$I7*$C$39:$I$39)/SUM(IF($C7:$I7>0,$C7:$I7*$C$39:$I$39))) -> 0.9525910368 | BJ7: =VLOOKUP($W7,$B$3:$I$29,COLUMN()-(COLUMN($BI$2)-1),FALSE)*C$39/SUM($C$39:$I$39)*VLOOKUP($W7,$B$3:$BI$29,(COLUMN($BI$2)-1),FALSE) -> 0.8680598358 | BK7: =VLOOKUP($W7,$B$3:$I$29,COLUMN()-(COLUMN($BI$2)-1),FALSE)*D$39/SUM($C$39:$I$39)*VLOOKUP($W7,$B$3:$BI$29,(COLUMN($BI$2)-1),FALSE) -> 0.8938261391 | BL7: =VLOOKUP($W7,$B$3:$I$29,COLUMN()-(COLUMN($BI$2)-1),FALSE)*E$39/SUM($C$39:$I$39)*VLOOKUP($W7,$B$3:$BI$29,(COLUMN($BI$2)-1),FALSE) -> 0.8810586735 | BM7: =VLOOKUP($W7,$B$3:$I$29,COLUMN()-(COLUMN($BI$2)-1),FALSE)*F$39/SUM($C$39:$I$39)*VLOOKUP($W7,$B$3:$BI$29,(COLUMN($BI$2)-1),FALSE) -> 0.4545929147 | BN7: =VLOOKUP($W7,$B$3:$I$29,COLUMN()-(COLUMN($BI$2)-1),FALSE)*G$39/SUM($C$39:$I$39)*VLOOKUP($W7,$B$3:$BI$29,(COLUMN($BI$2)-1),FALSE) -> 1.102583449 | BO7: =VLOOKUP($W7,$B$3:$I$29,COLUMN()-(COLUMN($BI$2)-1),FALSE)*H$39/SUM($C$39:$I$39)*VLOOKUP($W7,$B$3:$BI$29,(COLUMN($BI$2)-1),FALSE) -> 1.023879512 | BP7: =VLOOKUP($W7,$B$3:$I$29,COLUMN()-(COLUMN($BI$2)-1),FALSE)*I$39/SUM($C$39:$I$39)*VLOOKUP($W7,$B$3:$BI$29,(COLUMN($BI$2)-1),FALSE) -> 0.8449796005
A8: 2 | B8: Denmark | C8: ='Aid 2012'!Q10 -> 10.2574134 | D8: ='Trade 2012'!F10 -> 5.847230231 | E8: ='Finance 2012'!D9 -> 5.845982143 | F8: ='Migration 2012'!E8 -> 4.751959033 | G8: ='Environment 2012'!K10 -> 6.628931139 | H8: ='Security 2012'!J11 -> 9.158029206 | I8: ='Technology 2012'!D10 -> 6.517139014 | J8: 7.000954881 | K8: 2 | L8: =ROUND(J8,1)-ROUND(VLOOKUP($B8,INDIRECT("'CDI "&Year-1&"'!Score_table"),9,FALSE),1) -> 0.9 | M8: =SUM(IF(ROUND(J8,1)<ROUND($J$3:$J$29,1),1))+1 -> 2 | N8: =VLOOKUP($B8,INDIRECT("'CDI "&Year-1&"'!Score_table"),12,FALSE) -> 2 | O8: Denmark | P8: =(SUM(IF($J8<$J$3:$J$31*(1-BF$3:BF$31),1))+1)*(1-BF8) -> 0 | Q8: =(SUM(IF($J8<$J$3:$J$31*(1-BG$3:BG$31),1))+1)*(1-BG8) -> 0 | R8: =(SUM(IF(ROUND($J8,1)<ROUND($J$3:$J$31,1)*(1-BF$3:BF$31),1))+1)*(1-BF8) -> 0 | S8: =(SUM(IF(ROUND($J8,1)<ROUND($J$3:$J$31,1)*(1-BG$3:BG$31),1))+1)*(1-BG8) -> 0 | T8: Denmark | U8: 6 | V8: 6 | W8: Ireland | X8: 5.803839267 | Y8: -0.1 | Z8: -2 | AB8: 6 | AC8: United States | AD8: 5.280327594 | AE8: 6.77870798 | AF8: 5.142857143 | AG8: 3.664983378 | AH8: 4.181179316 | AI8: 1.992243093 | AJ8: 4.944699211 | AK8: 4.569285388 | AM8: 6 | AN8: Japan | AO8: 1.723098327 | AP8: 1.679676642 | AQ8: 3.897321429 | AR8: 2.339021518 | AS8: 4.510227539 | AT8: 4.114817941 | AU8: 6.156596616 | AV8: 3.488680002 | BC8: 169.3625385 | BD8: 222.8930478 | BF8: 1 | BG8: 1 | BI8: =ABS(SUM($C8:$I8*$C$39:$I$39)/SUM(IF($C8:$I8>0,$C8:$I8*$C$39:$I$39))) -> 1 | BJ8: =VLOOKUP($W8,$B$3:$I$29,COLUMN()-(COLUMN($BI$2)-1),FALSE)*C$39/SUM($C$39:$I$39)*VLOOKUP($W8,$B$3:$BI$29,(COLUMN($BI$2)-1),FALSE) -> 1.254394438 | BK8: =VLOOKUP($W8,$B$3:$I$29,COLUMN()-(COLUMN($BI$2)-1),FALSE)*D$39/SUM($C$39:$I$39)*VLOOKUP($W8,$B$3:$BI$29,(COLUMN($BI$2)-1),FALSE) -> 0.8183613612 | BL8: =VLOOKUP($W8,$B$3:$I$29,COLUMN()-(COLUMN($BI$2)-1),FALSE)*E$39/SUM($C$39:$I$39)*VLOOKUP($W8,$B$3:$BI$29,(COLUMN($BI$2)-1),FALSE) -> 0.7146045918 | BM8: =VLOOKUP($W8,$B$3:$I$29,COLUMN()-(COLUMN($BI$2)-1),FALSE)*F$39/SUM($C$39:$I$39)*VLOOKUP($W8,$B$3:$BI$29,(COLUMN($BI$2)-1),FALSE) -> 0.2190445535 | BN8: =VLOOKUP($W8,$B$3:$I$29,COLUMN()-(COLUMN($BI$2)-1),FALSE)*G$39/SUM($C$39:$I$39)*VLOOKUP($W8,$B$3:$BI$29,(COLUMN($BI$2)-1),FALSE) -> 0.9232967737 | BO8: =VLOOKUP($W8,$B$3:$I$29,COLUMN()-(COLUMN($BI$2)-1),FALSE)*H$39/SUM($C$39:$I$39)*VLOOKUP($W8,$B$3:$BI$29,(COLUMN($BI$2)-1),FALSE) -> 1.320087504 | BP8: =VLOOKUP($W8,$B$3:$I$29,COLUMN()-(COLUMN($BI$2)-1),FALSE)*I$39/SUM($C$39:$I$39)*VLOOKUP($W8,$B$3:$BI$29,(COLUMN($BI$2)-1),FALSE) -> 0.5540500451
A9: 3 | B9: Finland | C9: ='Aid 2012'!Q11 -> 6.07641885 | D9: ='Trade 2012'!F11 -> 6.256782974 | E9: ='Finance 2012'!D10 -> 6.167410714 | F9: ='Migration 2012'!E9 -> 3.182150403 | G9: ='Environment 2012'!K11 -> 7.718084141 | H9: ='Security 2012'!J12 -> 7.167156586 | I9: ='Technology 2012'!D11 -> 5.914857204 | J9: 6.068980125 | K9: 5 | L9: =ROUND(J9,1)-ROUND(VLOOKUP($B9,INDIRECT("'CDI "&Year-1&"'!Score_table"),9,FALSE),1) -> 0 | M9: =SUM(IF(ROUND(J9,1)<ROUND($J$3:$J$29,1),1))+1 -> 3 | N9: =VLOOKUP($B9,INDIRECT("'CDI "&Year-1&"'!Score_table"),12,FALSE) -> 2 | O9: Finland | P9: =(SUM(IF($J9<$J$3:$J$31*(1-BF$3:BF$31),1))+1)*(1-BF9) -> 0 | Q9: =(SUM(IF($J9<$J$3:$J$31*(1-BG$3:BG$31),1))+1)*(1-BG9) -> 0 | R9: =(SUM(IF(ROUND($J9,1)<ROUND($J$3:$J$31,1)*(1-BF$3:BF$31),1))+1)*(1-BF9) -> 0 | S9: =(SUM(IF(ROUND($J9,1)<ROUND($J$3:$J$31,1)*(1-BG$3:BG$31),1))+1)*(1-BG9) -> 0 | T9: Finland | U9: 7 | V9: 6 | W9: Norway | X9: 5.774296788 | Y9: 0.9 | Z9: 6 | AB9: 7 | AC9: Switzerland | AD9: 6.016302953 | AE9: -0.5801066575 | AF9: 3.073660714 | AG9: 6.350007748 | AH9: 5.93058752 | AI9: 3.703195454 | AJ9: 4.643583513 | AK9: 4.162461606 | AM9: 7 | AN9: South Korea | AO9: 0.7405471966 | AP9: -2.22488093 | AQ9: 4.720982143 | AR9: 5.64590845 | AS9: 4.254082184 | AT9: 1.383665296 | AU9: 6.999522526 | AV9: 3.074260981 | BC9: 145.4219592 | BD9: 195.7363876 | BF9: 1 | BG9: 1 | BI9: =ABS(SUM($C9:$I9*$C$39:$I$39)/SUM(IF($C9:$I9>0,$C9:$I9*$C$39:$I$39))) -> 1 | BJ9: =VLOOKUP($W9,$B$3:$I$29,COLUMN()-(COLUMN($BI$2)-1),FALSE)*C$39/SUM($C$39:$I$39)*VLOOKUP($W9,$B$3:$BI$29,(COLUMN($BI$2)-1),FALSE) -> 1.16709743 | BK9: =VLOOKUP($W9,$B$3:$I$29,COLUMN()-(COLUMN($BI$2)-1),FALSE)*D$39/SUM($C$39:$I$39)*VLOOKUP($W9,$B$3:$BI$29,(COLUMN($BI$2)-1),FALSE) -> -0.4452653922 | BL9: =VLOOKUP($W9,$B$3:$I$29,COLUMN()-(COLUMN($BI$2)-1),FALSE)*E$39/SUM($C$39:$I$39)*VLOOKUP($W9,$B$3:$BI$29,(COLUMN($BI$2)-1),FALSE) -> 0.7733898779 | BM9: =VLOOKUP($W9,$B$3:$I$29,COLUMN()-(COLUMN($BI$2)-1),FALSE)*F$39/SUM($C$39:$I$39)*VLOOKUP($W9,$B$3:$BI$29,(COLUMN($BI$2)-1),FALSE) -> 1.294406068 | BN9: =VLOOKUP($W9,$B$3:$I$29,COLUMN()-(COLUMN($BI$2)-1),FALSE)*G$39/SUM($C$39:$I$39)*VLOOKUP($W9,$B$3:$BI$29,(COLUMN($BI$2)-1),FALSE) -> 0.3447248235 | BO9: =VLOOKUP($W9,$B$3:$I$29,COLUMN()-(COLUMN($BI$2)-1),FALSE)*H$39/SUM($C$39:$I$39)*VLOOKUP($W9,$B$3:$BI$29,(COLUMN($BI$2)-1),FALSE) -> 1.441568455 | BP9: =VLOOKUP($W9,$B$3:$I$29,COLUMN()-(COLUMN($BI$2)-1),FALSE)*I$39/SUM($C$39:$I$39)*VLOOKUP($W9,$B$3:$BI$29,(COLUMN($BI$2)-1),FALSE) -> 0.7531101335
A10: 3 | B10: France | C10: ='Aid 2012'!Q12 -> 6.549632434 | D10: ='Trade 2012'!F12 -> 5.852074818 | E10: ='Finance 2012'!D11 -> 5.625 | F10: ='Migration 2012'!E10 -> 4.174764553 | G10: ='Environment 2012'!K12 -> 6.940762207 | H10: ='Security 2012'!J13 -> 6.991507939 | I10: ='Technology 2012'!D12 -> 6.598096329 | J10: 6.104548326 | K10: 3 | L10: =ROUND(J10,1)-ROUND(VLOOKUP($B10,INDIRECT("'CDI "&Year-1&"'!Score_table"),9,FALSE),1) -> 0.7 | M10: =SUM(IF(ROUND(J10,1)<ROUND($J$3:$J$29,1),1))+1 -> 3 | N10: =VLOOKUP($B10,INDIRECT("'CDI "&Year-1&"'!Score_table"),12,FALSE) -> 6 | O10: France | P10: =(SUM(IF($J10<$J$3:$J$31*(1-BF$3:BF$31),1))+1)*(1-BF10) -> 0 | Q10: =(SUM(IF($J10<$J$3:$J$31*(1-BG$3:BG$31),1))+1)*(1-BG10) -> 0 | R10: =(SUM(IF(ROUND($J10,1)<ROUND($J$3:$J$31,1)*(1-BF$3:BF$31),1))+1)*(1-BF10) -> 0 | S10: =(SUM(IF(ROUND($J10,1)<ROUND($J$3:$J$31,1)*(1-BG$3:BG$31),1))+1)*(1-BG10) -> 0 | T10: France | U10: 8 | V10: 8 | W10: Austria | X10: 5.749283401 | Y10: 0.3 | Z10: -2 | AB10: 8 | AC10: Japan | AD10: 1.723098327 | AE10: 1.679676642 | AF10: 3.897321429 | AG10: 2.339021518 | AH10: 4.510227539 | AI10: 4.114817941 | AJ10: 6.156596616 | AK10: 3.488680002 | BC10: 1480.99983 | BD10: 2220.641223 | BF10: 1 | BG10: 1 | BI10: =ABS(SUM($C10:$I10*$C$39:$I$39)/SUM(IF($C10:$I10>0,$C10:$I10*$C$39:$I$39))) -> 1 | BJ10: =VLOOKUP($W10,$B$3:$I$29,COLUMN()-(COLUMN($BI$2)-1),FALSE)*C$39/SUM($C$39:$I$39)*VLOOKUP($W10,$B$3:$BI$29,(COLUMN($BI$2)-1),FALSE) -> 0.6960120261 | BK10: =VLOOKUP($W10,$B$3:$I$29,COLUMN()-(COLUMN($BI$2)-1),FALSE)*D$39/SUM($C$39:$I$39)*VLOOKUP($W10,$B$3:$BI$29,(COLUMN($BI$2)-1),FALSE) -> 0.8760818363 | BL10: =VLOOKUP($W10,$B$3:$I$29,COLUMN()-(COLUMN($BI$2)-1),FALSE)*E$39/SUM($C$39:$I$39)*VLOOKUP($W10,$B$3:$BI$29,(COLUMN($BI$2)-1),FALSE) -> 0.5625 | BM10: =VLOOKUP($W10,$B$3:$I$29,COLUMN()-(COLUMN($BI$2)-1),FALSE)*F$39/SUM($C$39:$I$39)*VLOOKUP($W10,$B$3:$BI$29,(COLUMN($BI$2)-1),FALSE) -> 0.9220390499 | BN10: =VLOOKUP($W10,$B$3:$I$29,COLUMN()-(COLUMN($BI$2)-1),FALSE)*G$39/SUM($C$39:$I$39)*VLOOKUP($W10,$B$3:$BI$29,(COLUMN($BI$2)-1),FALSE) -> 0.8845015807 | BO10: =VLOOKUP($W10,$B$3:$I$29,COLUMN()-(COLUMN($BI$2)-1),FALSE)*H$39/SUM($C$39:$I$39)*VLOOKUP($W10,$B$3:$BI$29,(COLUMN($BI$2)-1),FALSE) -> 0.993384223 | BP10: =VLOOKUP($W10,$B$3:$I$29,COLUMN()-(COLUMN($BI$2)-1),FALSE)*I$39/SUM($C$39:$I$39)*VLOOKUP($W10,$B$3:$BI$29,(COLUMN($BI$2)-1),FALSE) -> 0.8147646847
A11: 12 | B11: Germany | C11: ='Aid 2012'!Q13 -> 5.6407227 | D11: ='Trade 2012'!F13 -> 6.009117641 | E11: ='Finance 2012'!D12 -> 4.419642857 | F11: ='Migration 2012'!E11 -> 6.453081295 | G11: ='Environment 2012'!K13 -> 6.949059528 | H11: ='Security 2012'!J14 -> 3.601103012 | I11: ='Technology 2012'!D13 -> 4.976197166 | J11: 5.4355606 | K11: 12 | L11: =ROUND(J11,1)-ROUND(VLOOKUP($B11,INDIRECT("'CDI "&Year-1&"'!Score_table"),9,FALSE),1) -> 0.2 | M11: =SUM(IF(ROUND(J11,1)<ROUND($J$3:$J$29,1),1))+1 -> 12 | N11: =VLOOKUP($B11,INDIRECT("'CDI "&Year-1&"'!Score_table"),12,FALSE) -> 9 | O11: Germany | P11: =(SUM(IF($J11<$J$3:$J$31*(1-BF$3:BF$31),1))+1)*(1-BF11) -> 0 | Q11: =(SUM(IF($J11<$J$3:$J$31*(1-BG$3:BG$31),1))+1)*(1-BG11) -> 0 | R11: =(SUM(IF(ROUND($J11,1)<ROUND($J$3:$J$31,1)*(1-BF$3:BF$31),1))+1)*(1-BF11) -> 0 | S11: =(SUM(IF(ROUND($J11,1)<ROUND($J$3:$J$31,1)*(1-BG$3:BG$31),1))+1)*(1-BG11) -> 0 | T11: Germany | U11: 9 | V11: 8 | W11: United Kingdom | X11: 5.708292763 | Y11: 0.7 | Z11: 3 | AB11: 9 | AC11: South Korea | AD11: 0.7405471966 | AE11: -2.22488093 | AF11: 4.720982143 | AG11: 5.64590845 | AH11: 4.254082184 | AI11: 1.383665296 | AJ11: 6.999522526 | AK11: 3.074260981 | BC11: 2069.464089 | BD11: 3060.171538 | BF11: 1 | BG11: 1 | BI11: =ABS(SUM($C11:$I11*$C$39:$I$39)/SUM(IF($C11:$I11>0,$C11:$I11*$C$39:$I$39))) -> 1 | BJ11: =VLOOKUP($W11,$B$3:$I$29,COLUMN()-(COLUMN($BI$2)-1),FALSE)*C$39/SUM($C$39:$I$39)*VLOOKUP($W11,$B$3:$BI$29,(COLUMN($BI$2)-1),FALSE) -> 0.9439473542 | BK11: =VLOOKUP($W11,$B$3:$I$29,COLUMN()-(COLUMN($BI$2)-1),FALSE)*D$39/SUM($C$39:$I$39)*VLOOKUP($W11,$B$3:$BI$29,(COLUMN($BI$2)-1),FALSE) -> 0.8889152451 | BL11: =VLOOKUP($W11,$B$3:$I$29,COLUMN()-(COLUMN($BI$2)-1),FALSE)*E$39/SUM($C$39:$I$39)*VLOOKUP($W11,$B$3:$BI$29,(COLUMN($BI$2)-1),FALSE) -> 0.84375 | BM11: =VLOOKUP($W11,$B$3:$I$29,COLUMN()-(COLUMN($BI$2)-1),FALSE)*F$39/SUM($C$39:$I$39)*VLOOKUP($W11,$B$3:$BI$29,(COLUMN($BI$2)-1),FALSE) -> 0.8012525045 | BN11: =VLOOKUP($W11,$B$3:$I$29,COLUMN()-(COLUMN($BI$2)-1),FALSE)*G$39/SUM($C$39:$I$39)*VLOOKUP($W11,$B$3:$BI$29,(COLUMN($BI$2)-1),FALSE) -> 1.02580564 | BO11: =VLOOKUP($W11,$B$3:$I$29,COLUMN()-(COLUMN($BI$2)-1),FALSE)*H$39/SUM($C$39:$I$39)*VLOOKUP($W11,$B$3:$BI$29,(COLUMN($BI$2)-1),FALSE) -> 0.5851783326 | BP11: =VLOOKUP($W11,$B$3:$I$29,COLUMN()-(COLUMN($BI$2)-1),FALSE)*I$39/SUM($C$39:$I$39)*VLOOKUP($W11,$B$3:$BI$29,(COLUMN($BI$2)-1),FALSE) -> 0.619443686
A12: 19 | B12: Greece | C12: ='Aid 2012'!Q14 -> 3.562000964 | D12: ='Trade 2012'!F14 -> 5.458562238 | E12: ='Finance 2012'!D13 -> 4.700892857 | F12: ='Migration 2012'!E12 -> 5.417677734 | G12: ='Environment 2012'!K14 -> 5.622775702 | H12: ='Security 2012'!J15 -> 4.419667104 | I12: ='Technology 2012'!D14 -> 2.836582066 | J12: 4.574022666 | K12: 19 | L12: =ROUND(J12,1)-ROUND(VLOOKUP($B12,INDIRECT("'CDI "&Year-1&"'!Score_table"),9,FALSE),1) -> 0.2 | M12: =SUM(IF(ROUND(J12,1)<ROUND($J$3:$J$29,1),1))+1 -> 19 | N12: =VLOOKUP($B12,INDIRECT("'CDI "&Year-1&"'!Score_table"),12,FALSE) -> 16 | O12: Greece | P12: =(SUM(IF($J12<$J$3:$J$31*(1-BF$3:BF$31),1))+1)*(1-BF12) -> 0 | Q12: =(SUM(IF($J12<$J$3:$J$31*(1-BG$3:BG$31),1))+1)*(1-BG12) -> 0 | R12: =(SUM(IF(ROUND($J12,1)<ROUND($J$3:$J$31,1)*(1-BF$3:BF$31),1))+1)*(1-BF12) -> 0 | S12: =(SUM(IF(ROUND($J12,1)<ROUND($J$3:$J$31,1)*(1-BG$3:BG$31),1))+1)*(1-BG12) -> 0 | T12: Greece | U12: 10 | V12: 8 | W12: Belgium | X12: 5.685053497 | Y12: 0.4 | Z12: 0 | BC12: 153.6472842 | BD12: 321.6295199 | BF12: 1 | BG12: 1 | BI12: =ABS(SUM($C12:$I12*$C$39:$I$39)/SUM(IF($C12:$I12>0,$C12:$I12*$C$39:$I$39))) -> 1 | BJ12: =VLOOKUP($W12,$B$3:$I$29,COLUMN()-(COLUMN($BI$2)-1),FALSE)*C$39/SUM($C$39:$I$39)*VLOOKUP($W12,$B$3:$BI$29,(COLUMN($BI$2)-1),FALSE) -> 1.115955195 | BK12: =VLOOKUP($W12,$B$3:$I$29,COLUMN()-(COLUMN($BI$2)-1),FALSE)*D$39/SUM($C$39:$I$39)*VLOOKUP($W12,$B$3:$BI$29,(COLUMN($BI$2)-1),FALSE) -> 0.8189863291 | BL12: =VLOOKUP($W12,$B$3:$I$29,COLUMN()-(COLUMN($BI$2)-1),FALSE)*E$39/SUM($C$39:$I$39)*VLOOKUP($W12,$B$3:$BI$29,(COLUMN($BI$2)-1),FALSE) -> 0.7863520408 | BM12: =VLOOKUP($W12,$B$3:$I$29,COLUMN()-(COLUMN($BI$2)-1),FALSE)*F$39/SUM($C$39:$I$39)*VLOOKUP($W12,$B$3:$BI$29,(COLUMN($BI$2)-1),FALSE) -> 0.9085299002 | BN12: =VLOOKUP($W12,$B$3:$I$29,COLUMN()-(COLUMN($BI$2)-1),FALSE)*G$39/SUM($C$39:$I$39)*VLOOKUP($W12,$B$3:$BI$29,(COLUMN($BI$2)-1),FALSE) -> 1.01175688 | BO12: =VLOOKUP($W12,$B$3:$I$29,COLUMN()-(COLUMN($BI$2)-1),FALSE)*H$39/SUM($C$39:$I$39)*VLOOKUP($W12,$B$3:$BI$29,(COLUMN($BI$2)-1),FALSE) -> 0.3916644927 | BP12: =VLOOKUP($W12,$B$3:$I$29,COLUMN()-(COLUMN($BI$2)-1),FALSE)*I$39/SUM($C$39:$I$39)*VLOOKUP($W12,$B$3:$BI$29,(COLUMN($BI$2)-1),FALSE) -> 0.651808659
A13: 22 | B13: Hungary | C13: ='Aid 2012'!Q15 -> 1.369205413 | D13: ='Trade 2012'!F15 -> 5.546166518 | E13: ='Finance 2012'!D14 -> 4.741071429 | F13: ='Migration 2012'!E13 -> 1.72294 | G13: ='Environment 2012'!K15 -> 7.871915229 | H13: ='Security 2012'!J16 -> 4.501888946 | I13: ='Technology 2012'!D15 -> 3.396955022 | J13: 4.164306079 | K13: 22 | L13: =ROUND(J13,1)-ROUND(VLOOKUP($B13,INDIRECT("'CDI "&Year-1&"'!Score_table"),9,FALSE),1) ->  | M13: =SUM(IF(ROUND(J13,1)<ROUND($J$3:$J$29,1),1))+1 -> 22 | N13: =VLOOKUP($B13,INDIRECT("'CDI "&Year-1&"'!Score_table"),12,FALSE) ->  | O13: Hungary | P13: =(SUM(IF($J13<$J$3:$J$31*(1-BF$3:BF$31),1))+1)*(1-BF13) -> 0 | Q13: =(SUM(IF($J13<$J$3:$J$31*(1-BG$3:BG$31),1))+1)*(1-BG13) -> 0 | R13: =(SUM(IF(ROUND($J13,1)<ROUND($J$3:$J$31,1)*(1-BF$3:BF$31),1))+1)*(1-BF13) -> 0 | S13: =(SUM(IF(ROUND($J13,1)<ROUND($J$3:$J$31,1)*(1-BG$3:BG$31),1))+1)*(1-BG13) -> 0 | T13: Hungary | U13: 11 | V13: 11 | W13: Italy | X13: 5.48044521 | Y13: 0.6 | Z13: 1 | BC13: 56.34003763 | BD13: 205.5565312 | BF13: 1 | BG13: 1 | BI13: =ABS(SUM($C13:$I13*$C$39:$I$39)/SUM(IF($C13:$I13>0,$C13:$I13*$C$39:$I$39))) -> 1 | BJ13: =VLOOKUP($W13,$B$3:$I$29,COLUMN()-(COLUMN($BI$2)-1),FALSE)*C$39/SUM($C$39:$I$39)*VLOOKUP($W13,$B$3:$BI$29,(COLUMN($BI$2)-1),FALSE) -> 0.4796258986 | BK13: =VLOOKUP($W13,$B$3:$I$29,COLUMN()-(COLUMN($BI$2)-1),FALSE)*D$39/SUM($C$39:$I$39)*VLOOKUP($W13,$B$3:$BI$29,(COLUMN($BI$2)-1),FALSE) -> 0.8093302979 | BL13: =VLOOKUP($W13,$B$3:$I$29,COLUMN()-(COLUMN($BI$2)-1),FALSE)*E$39/SUM($C$39:$I$39)*VLOOKUP($W13,$B$3:$BI$29,(COLUMN($BI$2)-1),FALSE) -> 0.7863520408 | BM13: =VLOOKUP($W13,$B$3:$I$29,COLUMN()-(COLUMN($BI$2)-1),FALSE)*F$39/SUM($C$39:$I$39)*VLOOKUP($W13,$B$3:$BI$29,(COLUMN($BI$2)-1),FALSE) -> 0.7699494852 | BN13: =VLOOKUP($W13,$B$3:$I$29,COLUMN()-(COLUMN($BI$2)-1),FALSE)*G$39/SUM($C$39:$I$39)*VLOOKUP($W13,$B$3:$BI$29,(COLUMN($BI$2)-1),FALSE) -> 0.9535250335 | BO13: =VLOOKUP($W13,$B$3:$I$29,COLUMN()-(COLUMN($BI$2)-1),FALSE)*H$39/SUM($C$39:$I$39)*VLOOKUP($W13,$B$3:$BI$29,(COLUMN($BI$2)-1),FALSE) -> 1.084663929 | BP13: =VLOOKUP($W13,$B$3:$I$29,COLUMN()-(COLUMN($BI$2)-1),FALSE)*I$39/SUM($C$39:$I$39)*VLOOKUP($W13,$B$3:$BI$29,(COLUMN($BI$2)-1),FALSE) -> 0.5969985244
A14: 6 | B14: Ireland | C14: ='Aid 2012'!Q16 -> 8.780761065 | D14: ='Trade 2012'!F16 -> 5.728529528 | E14: ='Finance 2012'!D15 -> 5.002232143 | F14: ='Migration 2012'!E14 -> 1.533311874 | G14: ='Environment 2012'!K16 -> 6.463077416 | H14: ='Security 2012'!J17 -> 9.240612526 | I14: ='Technology 2012'!D16 -> 3.878350316 | J14: 5.803839267 | K14: 6 | L14: =ROUND(J14,1)-ROUND(VLOOKUP($B14,INDIRECT("'CDI "&Year-1&"'!Score_table"),9,FALSE),1) -> -0.1 | M14: =SUM(IF(ROUND(J14,1)<ROUND($J$3:$J$29,1),1))+1 -> 6 | N14: =VLOOKUP($B14,INDIRECT("'CDI "&Year-1&"'!Score_table"),12,FALSE) -> 4 | O14: Ireland | P14: =(SUM(IF($J14<$J$3:$J$31*(1-BF$3:BF$31),1))+1)*(1-BF14) -> 0 | Q14: =(SUM(IF($J14<$J$3:$J$31*(1-BG$3:BG$31),1))+1)*(1-BG14) -> 0 | R14: =(SUM(IF(ROUND($J14,1)<ROUND($J$3:$J$31,1)*(1-BF$3:BF$31),1))+1)*(1-BF14) -> 0 | S14: =(SUM(IF(ROUND($J14,1)<ROUND($J$3:$J$31,1)*(1-BG$3:BG$31),1))+1)*(1-BG14) -> 0 | T14: Ireland | U14: 12 | V14: 12 | W14: Germany | X14: 5.4355606 | Y14: 0.2 | Z14: -3 | BC14: 123.4880348 | BD14: 181.1682263 | BF14: 1 | BG14: 1 | BI14: =ABS(SUM($C14:$I14*$C$39:$I$39)/SUM(IF($C14:$I14>0,$C14:$I14*$C$39:$I$39))) -> 1 | BJ14: =VLOOKUP($W14,$B$3:$I$29,COLUMN()-(COLUMN($BI$2)-1),FALSE)*C$39/SUM($C$39:$I$39)*VLOOKUP($W14,$B$3:$BI$29,(COLUMN($BI$2)-1),FALSE) -> 0.8058175285 | BK14: =VLOOKUP($W14,$B$3:$I$29,COLUMN()-(COLUMN($BI$2)-1),FALSE)*D$39/SUM($C$39:$I$39)*VLOOKUP($W14,$B$3:$BI$29,(COLUMN($BI$2)-1),FALSE) -> 0.8584453773 | BL14: =VLOOKUP($W14,$B$3:$I$29,COLUMN()-(COLUMN($BI$2)-1),FALSE)*E$39/SUM($C$39:$I$39)*VLOOKUP($W14,$B$3:$BI$29,(COLUMN($BI$2)-1),FALSE) -> 0.631377551 | BM14: =VLOOKUP($W14,$B$3:$I$29,COLUMN()-(COLUMN($BI$2)-1),FALSE)*F$39/SUM($C$39:$I$39)*VLOOKUP($W14,$B$3:$BI$29,(COLUMN($BI$2)-1),FALSE) -> 0.9218687564 | BN14: =VLOOKUP($W14,$B$3:$I$29,COLUMN()-(COLUMN($BI$2)-1),FALSE)*G$39/SUM($C$39:$I$39)*VLOOKUP($W14,$B$3:$BI$29,(COLUMN($BI$2)-1),FALSE) -> 0.9927227897 | BO14: =VLOOKUP($W14,$B$3:$I$29,COLUMN()-(COLUMN($BI$2)-1),FALSE)*H$39/SUM($C$39:$I$39)*VLOOKUP($W14,$B$3:$BI$29,(COLUMN($BI$2)-1),FALSE) -> 0.5144432874 | BP14: =VLOOKUP($W14,$B$3:$I$29,COLUMN()-(COLUMN($BI$2)-1),FALSE)*I$39/SUM($C$39:$I$39)*VLOOKUP($W14,$B$3:$BI$29,(COLUMN($BI$2)-1),FALSE) -> 0.7108853095
A15: 11 | B15: Italy | C15: ='Aid 2012'!Q17 -> 3.35738129 | D15: ='Trade 2012'!F17 -> 5.665312085 | E15: ='Finance 2012'!D16 -> 5.504464286 | F15: ='Migration 2012'!E15 -> 5.389646396 | G15: ='Environment 2012'!K17 -> 6.674675234 | H15: ='Security 2012'!J18 -> 7.592647506 | I15: ='Technology 2012'!D17 -> 4.178989671 | J15: 5.48044521 | K15: 11 | L15: =ROUND(J15,1)-ROUND(VLOOKUP($B15,INDIRECT("'CDI "&Year-1&"'!Score_table"),9,FALSE),1) -> 0.6 | M15: =SUM(IF(ROUND(J15,1)<ROUND($J$3:$J$29,1),1))+1 -> 11 | N15: =VLOOKUP($B15,INDIRECT("'CDI "&Year-1&"'!Score_table"),12,FALSE) -> 12 | O15: Italy | P15: =(SUM(IF($J15<$J$3:$J$31*(1-BF$3:BF$31),1))+1)*(1-BF15) -> 0 | Q15: =(SUM(IF($J15<$J$3:$J$31*(1-BG$3:BG$31),1))+1)*(1-BG15) -> 0 | R15: =(SUM(IF(ROUND($J15,1)<ROUND($J$3:$J$31,1)*(1-BF$3:BF$31),1))+1)*(1-BF15) -> 0 | S15: =(SUM(IF(ROUND($J15,1)<ROUND($J$3:$J$31,1)*(1-BG$3:BG$31),1))+1)*(1-BG15) -> 0 | T15: Italy | U15: 13 | V15: 12 | W15: Luxembourg | X15: 5.364948996 | BC15: 1145.74413 | BD15: 1930.091692 | BF15: 1 | BG15: 1 | BI15: =ABS(SUM($C15:$I15*$C$39:$I$39)/SUM(IF($C15:$I15>0,$C15:$I15*$C$39:$I$39))) -> 1 | BJ15: =VLOOKUP($W15,$B$3:$I$29,COLUMN()-(COLUMN($BI$2)-1),FALSE)*C$39/SUM($C$39:$I$39)*VLOOKUP($W15,$B$3:$BI$29,(COLUMN($BI$2)-1),FALSE) -> 1.212293299 | BK15: =VLOOKUP($W15,$B$3:$I$29,COLUMN()-(COLUMN($BI$2)-1),FALSE)*D$39/SUM($C$39:$I$39)*VLOOKUP($W15,$B$3:$BI$29,(COLUMN($BI$2)-1),FALSE) -> 0.8274732308 | BL15: =VLOOKUP($W15,$B$3:$I$29,COLUMN()-(COLUMN($BI$2)-1),FALSE)*E$39/SUM($C$39:$I$39)*VLOOKUP($W15,$B$3:$BI$29,(COLUMN($BI$2)-1),FALSE) -> 0.5108418367 | BM15: =VLOOKUP($W15,$B$3:$I$29,COLUMN()-(COLUMN($BI$2)-1),FALSE)*F$39/SUM($C$39:$I$39)*VLOOKUP($W15,$B$3:$BI$29,(COLUMN($BI$2)-1),FALSE) -> 0.8449161743 | BN15: =VLOOKUP($W15,$B$3:$I$29,COLUMN()-(COLUMN($BI$2)-1),FALSE)*G$39/SUM($C$39:$I$39)*VLOOKUP($W15,$B$3:$BI$29,(COLUMN($BI$2)-1),FALSE) -> 0.7787270937 | BO15: =VLOOKUP($W15,$B$3:$I$29,COLUMN()-(COLUMN($BI$2)-1),FALSE)*H$39/SUM($C$39:$I$39)*VLOOKUP($W15,$B$3:$BI$29,(COLUMN($BI$2)-1),FALSE) -> 0.5850625875 | BP15: =VLOOKUP($W15,$B$3:$I$29,COLUMN()-(COLUMN($BI$2)-1),FALSE)*I$39/SUM($C$39:$I$39)*VLOOKUP($W15,$B$3:$BI$29,(COLUMN($BI$2)-1),FALSE) -> 0.605634774
A16: 25 | B16: Japan | C16: ='Aid 2012'!Q18 -> 1.723098327 | D16: ='Trade 2012'!F18 -> 1.679676642 | E16: ='Finance 2012'!D17 -> 3.897321429 | F16: ='Migration 2012'!E16 -> 2.339021518 | G16: ='Environment 2012'!K18 -> 4.510227539 | H16: ='Security 2012'!J19 -> 4.114817941 | I16: ='Technology 2012'!D18 -> 6.156596616 | J16: 3.488680002 | K16: 26 | L16: =ROUND(J16,1)-ROUND(VLOOKUP($B16,INDIRECT("'CDI "&Year-1&"'!Score_table"),9,FALSE),1) -> 0.4 | M16: =SUM(IF(ROUND(J16,1)<ROUND($J$3:$J$29,1),1))+1 -> 25 | N16: =VLOOKUP($B16,INDIRECT("'CDI "&Year-1&"'!Score_table"),12,FALSE) -> 21 | O16: Japan | P16: =(SUM(IF($J16<$J$3:$J$31*(1-BF$3:BF$31),1))+1)*(1-BF16) -> 8 | Q16: =(SUM(IF($J16<$J$3:$J$31*(1-BG$3:BG$31),1))+1)*(1-BG16) -> 6 | R16: =(SUM(IF(ROUND($J16,1)<ROUND($J$3:$J$31,1)*(1-BF$3:BF$31),1))+1)*(1-BF16) -> 8 | S16: =(SUM(IF(ROUND($J16,1)<ROUND($J$3:$J$31,1)*(1-BG$3:BG$31),1))+1)*(1-BG16) -> 6 | T16: Japan | U16: 14 | V16: 14 | W16: New Zealand | X16: 5.249495305 | Y16: 0.8 | Z16: 2 | BC16: 5094.42261 | BD16: 4326.436635 | BF16: 0 | BG16: 0 | BI16: =ABS(SUM($C16:$I16*$C$39:$I$39)/SUM(IF($C16:$I16>0,$C16:$I16*$C$39:$I$39))) -> 1 | BJ16: =VLOOKUP($W16,$B$3:$I$29,COLUMN()-(COLUMN($BI$2)-1),FALSE)*C$39/SUM($C$39:$I$39)*VLOOKUP($W16,$B$3:$BI$29,(COLUMN($BI$2)-1),FALSE) -> 0.1693421193 | BK16: =VLOOKUP($W16,$B$3:$I$29,COLUMN()-(COLUMN($BI$2)-1),FALSE)*D$39/SUM($C$39:$I$39)*VLOOKUP($W16,$B$3:$BI$29,(COLUMN($BI$2)-1),FALSE) -> 1.146303607 | BL16: =VLOOKUP($W16,$B$3:$I$29,COLUMN()-(COLUMN($BI$2)-1),FALSE)*E$39/SUM($C$39:$I$39)*VLOOKUP($W16,$B$3:$BI$29,(COLUMN($BI$2)-1),FALSE) -> 0.5768494898 | BM16: =VLOOKUP($W16,$B$3:$I$29,COLUMN()-(COLUMN($BI$2)-1),FALSE)*F$39/SUM($C$39:$I$39)*VLOOKUP($W16,$B$3:$BI$29,(COLUMN($BI$2)-1),FALSE) -> 1.06242598 | BN16: =VLOOKUP($W16,$B$3:$I$29,COLUMN()-(COLUMN($BI$2)-1),FALSE)*G$39/SUM($C$39:$I$39)*VLOOKUP($W16,$B$3:$BI$29,(COLUMN($BI$2)-1),FALSE) -> 0.8634878772 | BO16: =VLOOKUP($W16,$B$3:$I$29,COLUMN()-(COLUMN($BI$2)-1),FALSE)*H$39/SUM($C$39:$I$39)*VLOOKUP($W16,$B$3:$BI$29,(COLUMN($BI$2)-1),FALSE) -> 0.7586125928 | BP16: =VLOOKUP($W16,$B$3:$I$29,COLUMN()-(COLUMN($BI$2)-1),FALSE)*I$39/SUM($C$39:$I$39)*VLOOKUP($W16,$B$3:$BI$29,(COLUMN($BI$2)-1),FALSE) -> 0.6724736383
A17: 12 | B17: Luxembourg | C17: ='Aid 2012'!Q19 -> 8.486053093 | D17: ='Trade 2012'!F19 -> 5.792312615 | E17: ='Finance 2012'!D18 -> 3.575892857 | F17: ='Migration 2012'!E17 -> 5.91441322 | G17: ='Environment 2012'!K19 -> 5.451089656 | H17: ='Security 2012'!J20 -> 4.095438113 | I17: ='Technology 2012'!D19 -> 4.239443418 | J17: 5.364948996 | K17: 13 | L17: =ROUND(J17,1)-ROUND(VLOOKUP($B17,INDIRECT("'CDI "&Year-1&"'!Score_table"),9,FALSE),1) ->  | M17: =SUM(IF(ROUND(J17,1)<ROUND($J$3:$J$29,1),1))+1 -> 12 | N17: =VLOOKUP($B17,INDIRECT("'CDI "&Year-1&"'!Score_table"),12,FALSE) ->  | O17: Luxembourg | P17: =(SUM(IF($J17<$J$3:$J$31*(1-BF$3:BF$31),1))+1)*(1-BF17) -> 0 | Q17: =(SUM(IF($J17<$J$3:$J$31*(1-BG$3:BG$31),1))+1)*(1-BG17) -> 0 | R17: =(SUM(IF(ROUND($J17,1)<ROUND($J$3:$J$31,1)*(1-BF$3:BF$31),1))+1)*(1-BF17) -> 0 | S17: =(SUM(IF(ROUND($J17,1)<ROUND($J$3:$J$31,1)*(1-BG$3:BG$31),1))+1)*(1-BG17) -> 0 | T17: Luxembourg | U17: 15 | V17: 15 | W17: Netherlands | X17: 5.102066928 | Y17: 0.6 | Z17: -1 | BC17: 26.51690394 | BD17: 43.68680141 | BF17: 1 | BG17: 1 | BI17: =ABS(SUM($C17:$I17*$C$39:$I$39)/SUM(IF($C17:$I17>0,$C17:$I17*$C$39:$I$39))) -> 1 | BJ17: =VLOOKUP($W17,$B$3:$I$29,COLUMN()-(COLUMN($BI$2)-1),FALSE)*C$39/SUM($C$39:$I$39)*VLOOKUP($W17,$B$3:$BI$29,(COLUMN($BI$2)-1),FALSE) -> 0.9575750716 | BK17: =VLOOKUP($W17,$B$3:$I$29,COLUMN()-(COLUMN($BI$2)-1),FALSE)*D$39/SUM($C$39:$I$39)*VLOOKUP($W17,$B$3:$BI$29,(COLUMN($BI$2)-1),FALSE) -> 0.9700678635 | BL17: =VLOOKUP($W17,$B$3:$I$29,COLUMN()-(COLUMN($BI$2)-1),FALSE)*E$39/SUM($C$39:$I$39)*VLOOKUP($W17,$B$3:$BI$29,(COLUMN($BI$2)-1),FALSE) -> 0.7490433673 | BM17: =VLOOKUP($W17,$B$3:$I$29,COLUMN()-(COLUMN($BI$2)-1),FALSE)*F$39/SUM($C$39:$I$39)*VLOOKUP($W17,$B$3:$BI$29,(COLUMN($BI$2)-1),FALSE) -> 0.5950517598 | BN17: =VLOOKUP($W17,$B$3:$I$29,COLUMN()-(COLUMN($BI$2)-1),FALSE)*G$39/SUM($C$39:$I$39)*VLOOKUP($W17,$B$3:$BI$29,(COLUMN($BI$2)-1),FALSE) -> 0.9654637532 | BO17: =VLOOKUP($W17,$B$3:$I$29,COLUMN()-(COLUMN($BI$2)-1),FALSE)*H$39/SUM($C$39:$I$39)*VLOOKUP($W17,$B$3:$BI$29,(COLUMN($BI$2)-1),FALSE) -> 0.08071474788 | BP17: =VLOOKUP($W17,$B$3:$I$29,COLUMN()-(COLUMN($BI$2)-1),FALSE)*I$39/SUM($C$39:$I$39)*VLOOKUP($W17,$B$3:$BI$29,(COLUMN($BI$2)-1),FALSE) -> 0.7841503645
A18: 15 | B18: Netherlands | C18: ='Aid 2012'!Q20 -> 6.703025501 | D18: ='Trade 2012'!F20 -> 6.790475045 | E18: ='Finance 2012'!D19 -> 5.243303571 | F18: ='Migration 2012'!E18 -> 4.165362319 | G18: ='Environment 2012'!K20 -> 6.758246272 | H18: ='Security 2012'!J21 -> 0.5650032352 | I18: ='Technology 2012'!D20 -> 5.489052552 | J18: 5.102066928 | K18: 15 | L18: =ROUND(J18,1)-ROUND(VLOOKUP($B18,INDIRECT("'CDI "&Year-1&"'!Score_table"),9,FALSE),1) -> 0.6 | M18: =SUM(IF(ROUND(J18,1)<ROUND($J$3:$J$29,1),1))+1 -> 15 | N18: =VLOOKUP($B18,INDIRECT("'CDI "&Year-1&"'!Score_table"),12,FALSE) -> 14 | O18: Netherlands | P18: =(SUM(IF($J18<$J$3:$J$31*(1-BF$3:BF$31),1))+1)*(1-BF18) -> 0 | Q18: =(SUM(IF($J18<$J$3:$J$31*(1-BG$3:BG$31),1))+1)*(1-BG18) -> 0 | R18: =(SUM(IF(ROUND($J18,1)<ROUND($J$3:$J$31,1)*(1-BF$3:BF$31),1))+1)*(1-BF18) -> 0 | S18: =(SUM(IF(ROUND($J18,1)<ROUND($J$3:$J$31,1)*(1-BG$3:BG$31),1))+1)*(1-BG18) -> 0 | T18: Netherlands | U18: 16 | V18: 16 | W18: Canada | X18: 5.019783227 | Y18: 0.8 | Z18: 2 | BC18: 441.1854356 | BD18: 700.9549681 | BF18: 1 | BG18: 1 | BI18: =ABS(SUM($C18:$I18*$C$39:$I$39)/SUM(IF($C18:$I18>0,$C18:$I18*$C$39:$I$39))) -> 1 | BJ18: =VLOOKUP($W18,$B$3:$I$29,COLUMN()-(COLUMN($BI$2)-1),FALSE)*C$39/SUM($C$39:$I$39)*VLOOKUP($W18,$B$3:$BI$29,(COLUMN($BI$2)-1),FALSE) -> 0.4424137733 | BK18: =VLOOKUP($W18,$B$3:$I$29,COLUMN()-(COLUMN($BI$2)-1),FALSE)*D$39/SUM($C$39:$I$39)*VLOOKUP($W18,$B$3:$BI$29,(COLUMN($BI$2)-1),FALSE) -> 0.6344378641 | BL18: =VLOOKUP($W18,$B$3:$I$29,COLUMN()-(COLUMN($BI$2)-1),FALSE)*E$39/SUM($C$39:$I$39)*VLOOKUP($W18,$B$3:$BI$29,(COLUMN($BI$2)-1),FALSE) -> 0.7203443878 | BM18: =VLOOKUP($W18,$B$3:$I$29,COLUMN()-(COLUMN($BI$2)-1),FALSE)*F$39/SUM($C$39:$I$39)*VLOOKUP($W18,$B$3:$BI$29,(COLUMN($BI$2)-1),FALSE) -> 1.237783377 | BN18: =VLOOKUP($W18,$B$3:$I$29,COLUMN()-(COLUMN($BI$2)-1),FALSE)*G$39/SUM($C$39:$I$39)*VLOOKUP($W18,$B$3:$BI$29,(COLUMN($BI$2)-1),FALSE) -> 0.3534708677 | BO18: =VLOOKUP($W18,$B$3:$I$29,COLUMN()-(COLUMN($BI$2)-1),FALSE)*H$39/SUM($C$39:$I$39)*VLOOKUP($W18,$B$3:$BI$29,(COLUMN($BI$2)-1),FALSE) -> 0.8380717249 | BP18: =VLOOKUP($W18,$B$3:$I$29,COLUMN()-(COLUMN($BI$2)-1),FALSE)*I$39/SUM($C$39:$I$39)*VLOOKUP($W18,$B$3:$BI$29,(COLUMN($BI$2)-1),FALSE) -> 0.7932612326
A19: 14 | B19: New Zealand | C19: ='Aid 2012'!Q21 -> 1.185394835 | D19: ='Trade 2012'!F21 -> 8.024125252 | E19: ='Finance 2012'!D20 -> 4.037946429 | F19: ='Migration 2012'!E19 -> 7.43698186 | G19: ='Environment 2012'!K21 -> 6.044415141 | H19: ='Security 2012'!J22 -> 5.31028815 | I19: ='Technology 2012'!D21 -> 4.707315468 | J19: 5.249495305 | K19: 14 | L19: =ROUND(J19,1)-ROUND(VLOOKUP($B19,INDIRECT("'CDI "&Year-1&"'!Score_table"),9,FALSE),1) -> 0.8 | M19: =SUM(IF(ROUND(J19,1)<ROUND($J$3:$J$29,1),1))+1 -> 14 | N19: =VLOOKUP($B19,INDIRECT("'CDI "&Year-1&"'!Score_table"),12,FALSE) -> 16 | O19: New Zealand | P19: =(SUM(IF($J19<$J$3:$J$31*(1-BF$3:BF$31),1))+1)*(1-BF19) -> 3 | Q19: =(SUM(IF($J19<$J$3:$J$31*(1-BG$3:BG$31),1))+1)*(1-BG19) -> 2 | R19: =(SUM(IF(ROUND($J19,1)<ROUND($J$3:$J$31,1)*(1-BF$3:BF$31),1))+1)*(1-BF19) -> 3 | S19: =(SUM(IF(ROUND($J19,1)<ROUND($J$3:$J$31,1)*(1-BG$3:BG$31),1))+1)*(1-BG19) -> 2 | T19: New Zealand | U19: 17 | V19: 17 | W19: Australia | X19: 4.758341309 | Y19: 0.8 | Z19: 2 | BC19: 64.99141222 | BD19: 130.7503002 | BF19: 0 | BG19: 0 | BI19: =ABS(SUM($C19:$I19*$C$39:$I$39)/SUM(IF($C19:$I19>0,$C19:$I19*$C$39:$I$39))) -> 1 | BJ19: =VLOOKUP($W19,$B$3:$I$29,COLUMN()-(COLUMN($BI$2)-1),FALSE)*C$39/SUM($C$39:$I$39)*VLOOKUP($W19,$B$3:$BI$29,(COLUMN($BI$2)-1),FALSE) -> 0.3903835734 | BK19: =VLOOKUP($W19,$B$3:$I$29,COLUMN()-(COLUMN($BI$2)-1),FALSE)*D$39/SUM($C$39:$I$39)*VLOOKUP($W19,$B$3:$BI$29,(COLUMN($BI$2)-1),FALSE) -> 1.003765346 | BL19: =VLOOKUP($W19,$B$3:$I$29,COLUMN()-(COLUMN($BI$2)-1),FALSE)*E$39/SUM($C$39:$I$39)*VLOOKUP($W19,$B$3:$BI$29,(COLUMN($BI$2)-1),FALSE) -> 0.8207908163 | BM19: =VLOOKUP($W19,$B$3:$I$29,COLUMN()-(COLUMN($BI$2)-1),FALSE)*F$39/SUM($C$39:$I$39)*VLOOKUP($W19,$B$3:$BI$29,(COLUMN($BI$2)-1),FALSE) -> 1.019930176 | BN19: =VLOOKUP($W19,$B$3:$I$29,COLUMN()-(COLUMN($BI$2)-1),FALSE)*G$39/SUM($C$39:$I$39)*VLOOKUP($W19,$B$3:$BI$29,(COLUMN($BI$2)-1),FALSE) -> 0.5521669533 | BO19: =VLOOKUP($W19,$B$3:$I$29,COLUMN()-(COLUMN($BI$2)-1),FALSE)*H$39/SUM($C$39:$I$39)*VLOOKUP($W19,$B$3:$BI$29,(COLUMN($BI$2)-1),FALSE) -> 0.2346388539 | BP19: =VLOOKUP($W19,$B$3:$I$29,COLUMN()-(COLUMN($BI$2)-1),FALSE)*I$39/SUM($C$39:$I$39)*VLOOKUP($W19,$B$3:$BI$29,(COLUMN($BI$2)-1),FALSE) -> 0.7366655902
A20: 6 | B20: Norway | C20: ='Aid 2012'!Q22 -> 8.852296988 | D20: ='Trade 2012'!F22 -> -3.377285726 | E20: ='Finance 2012'!D21 -> 5.866071429 | F20: ='Migration 2012'!E20 -> 9.817918066 | G20: ='Environment 2012'!K22 -> 2.614697316 | H20: ='Security 2012'!J23 -> 10.93412749 | I20: ='Technology 2012'!D22 -> 5.712251948 | J20: 5.774296788 | K20: 7 | L20: =ROUND(J20,1)-ROUND(VLOOKUP($B20,INDIRECT("'CDI "&Year-1&"'!Score_table"),9,FALSE),1) -> 0.9 | M20: =SUM(IF(ROUND(J20,1)<ROUND($J$3:$J$29,1),1))+1 -> 6 | N20: =VLOOKUP($B20,INDIRECT("'CDI "&Year-1&"'!Score_table"),12,FALSE) -> 12 | O20: Norway | P20: =(SUM(IF($J20<$J$3:$J$31*(1-BF$3:BF$31),1))+1)*(1-BF20) -> 1 | Q20: =(SUM(IF($J20<$J$3:$J$31*(1-BG$3:BG$31),1))+1)*(1-BG20) -> 0 | R20: =(SUM(IF(ROUND($J20,1)<ROUND($J$3:$J$31,1)*(1-BF$3:BF$31),1))+1)*(1-BF20) -> 1 | S20: =(SUM(IF(ROUND($J20,1)<ROUND($J$3:$J$31,1)*(1-BG$3:BG$31),1))+1)*(1-BG20) -> 0 | T20: Norway | U20: 18 | V20: 18 | W20: Portugal | X20: 4.727594692 | Y20: -0.5 | Z20: -9 | BC20: 195.4248294 | BD20: 279.9414477 | BF20: 0 | BG20: 1 | BI20: =ABS(SUM($C20:$I20*$C$39:$I$39)/SUM(IF($C20:$I20>0,$C20:$I20*$C$39:$I$39))) -> 0.9228883778 | BJ20: =VLOOKUP($W20,$B$3:$I$29,COLUMN()-(COLUMN($BI$2)-1),FALSE)*C$39/SUM($C$39:$I$39)*VLOOKUP($W20,$B$3:$BI$29,(COLUMN($BI$2)-1),FALSE) -> 0.007041431478 | BK20: =VLOOKUP($W20,$B$3:$I$29,COLUMN()-(COLUMN($BI$2)-1),FALSE)*D$39/SUM($C$39:$I$39)*VLOOKUP($W20,$B$3:$BI$29,(COLUMN($BI$2)-1),FALSE) -> 0.8398359189 | BL20: =VLOOKUP($W20,$B$3:$I$29,COLUMN()-(COLUMN($BI$2)-1),FALSE)*E$39/SUM($C$39:$I$39)*VLOOKUP($W20,$B$3:$BI$29,(COLUMN($BI$2)-1),FALSE) -> 0.7461734694 | BM20: =VLOOKUP($W20,$B$3:$I$29,COLUMN()-(COLUMN($BI$2)-1),FALSE)*F$39/SUM($C$39:$I$39)*VLOOKUP($W20,$B$3:$BI$29,(COLUMN($BI$2)-1),FALSE) -> 0.319918366 | BN20: =VLOOKUP($W20,$B$3:$I$29,COLUMN()-(COLUMN($BI$2)-1),FALSE)*G$39/SUM($C$39:$I$39)*VLOOKUP($W20,$B$3:$BI$29,(COLUMN($BI$2)-1),FALSE) -> 1.065596779 | BO20: =VLOOKUP($W20,$B$3:$I$29,COLUMN()-(COLUMN($BI$2)-1),FALSE)*H$39/SUM($C$39:$I$39)*VLOOKUP($W20,$B$3:$BI$29,(COLUMN($BI$2)-1),FALSE) -> 0.6965579528 | BP20: =VLOOKUP($W20,$B$3:$I$29,COLUMN()-(COLUMN($BI$2)-1),FALSE)*I$39/SUM($C$39:$I$39)*VLOOKUP($W20,$B$3:$BI$29,(COLUMN($BI$2)-1),FALSE) -> 1.052470774
A21: 21 | B21: Poland | C21: ='Aid 2012'!Q23 -> 1.372416061 | D21: ='Trade 2012'!F23 -> 6.179018913 | E21: ='Finance 2012'!D22 -> 5.725446429 | F21: ='Migration 2012'!E21 -> 1.834156407 | G21: ='Environment 2012'!K23 -> 7.525454217 | H21: ='Security 2012'!J24 -> 4.612679422 | I21: ='Technology 2012'!D23 -> 2.64472417 | J21: 4.270556517 | K21: 21 | L21: =ROUND(J21,1)-ROUND(VLOOKUP($B21,INDIRECT("'CDI "&Year-1&"'!Score_table"),9,FALSE),1) ->  | M21: =SUM(IF(ROUND(J21,1)<ROUND($J$3:$J$29,1),1))+1 -> 21 | N21: =VLOOKUP($B21,INDIRECT("'CDI "&Year-1&"'!Score_table"),12,FALSE) ->  | O21: Poland | P21: =(SUM(IF($J21<$J$3:$J$31*(1-BF$3:BF$31),1))+1)*(1-BF21) -> 0 | Q21: =(SUM(IF($J21<$J$3:$J$31*(1-BG$3:BG$31),1))+1)*(1-BG21) -> 0 | R21: =(SUM(IF(ROUND($J21,1)<ROUND($J$3:$J$31,1)*(1-BF$3:BF$31),1))+1)*(1-BF21) -> 0 | S21: =(SUM(IF(ROUND($J21,1)<ROUND($J$3:$J$31,1)*(1-BG$3:BG$31),1))+1)*(1-BG21) -> 0 | T21: Poland | U21: 19 | V21: 19 | W21: Greece | X21: 4.574022666 | Y21: 0.2 | Z21: -3 | BC21: 251.0308311 | BD21: 760.2035753 | BF21: 1 | BG21: 1 | BI21: =ABS(SUM($C21:$I21*$C$39:$I$39)/SUM(IF($C21:$I21>0,$C21:$I21*$C$39:$I$39))) -> 1 | BJ21: =VLOOKUP($W21,$B$3:$I$29,COLUMN()-(COLUMN($BI$2)-1),FALSE)*C$39/SUM($C$39:$I$39)*VLOOKUP($W21,$B$3:$BI$29,(COLUMN($BI$2)-1),FALSE) -> 0.5088572806 | BK21: =VLOOKUP($W21,$B$3:$I$29,COLUMN()-(COLUMN($BI$2)-1),FALSE)*D$39/SUM($C$39:$I$39)*VLOOKUP($W21,$B$3:$BI$29,(COLUMN($BI$2)-1),FALSE) -> 0.7797946054 | BL21: =VLOOKUP($W21,$B$3:$I$29,COLUMN()-(COLUMN($BI$2)-1),FALSE)*E$39/SUM($C$39:$I$39)*VLOOKUP($W21,$B$3:$BI$29,(COLUMN($BI$2)-1),FALSE) -> 0.6715561224 | BM21: =VLOOKUP($W21,$B$3:$I$29,COLUMN()-(COLUMN($BI$2)-1),FALSE)*F$39/SUM($C$39:$I$39)*VLOOKUP($W21,$B$3:$BI$29,(COLUMN($BI$2)-1),FALSE) -> 0.773953962 | BN21: =VLOOKUP($W21,$B$3:$I$29,COLUMN()-(COLUMN($BI$2)-1),FALSE)*G$39/SUM($C$39:$I$39)*VLOOKUP($W21,$B$3:$BI$29,(COLUMN($BI$2)-1),FALSE) -> 0.8032536717 | BO21: =VLOOKUP($W21,$B$3:$I$29,COLUMN()-(COLUMN($BI$2)-1),FALSE)*H$39/SUM($C$39:$I$39)*VLOOKUP($W21,$B$3:$BI$29,(COLUMN($BI$2)-1),FALSE) -> 0.6313810148 | BP21: =VLOOKUP($W21,$B$3:$I$29,COLUMN()-(COLUMN($BI$2)-1),FALSE)*I$39/SUM($C$39:$I$39)*VLOOKUP($W21,$B$3:$BI$29,(COLUMN($BI$2)-1),FALSE) -> 0.4052260094
A22: 18 | B22: Portugal | C22: ='Aid 2012'!Q24 -> 0.04929002035 | D22: ='Trade 2012'!F24 -> 5.878851432 | E22: ='Finance 2012'!D23 -> 5.223214286 | F22: ='Migration 2012'!E22 -> 2.239428562 | G22: ='Environment 2012'!K24 -> 7.459177456 | H22: ='Security 2012'!J25 -> 4.87590567 | I22: ='Technology 2012'!D24 -> 7.36729542 | J22: 4.727594692 | K22: 18 | L22: =ROUND(J22,1)-ROUND(VLOOKUP($B22,INDIRECT("'CDI "&Year-1&"'!Score_table"),9,FALSE),1) -> -0.5 | M22: =SUM(IF(ROUND(J22,1)<ROUND($J$3:$J$29,1),1))+1 -> 18 | N22: =VLOOKUP($B22,INDIRECT("'CDI "&Year-1&"'!Score_table"),12,FALSE) -> 9 | O22: Portugal | P22: =(SUM(IF($J22<$J$3:$J$31*(1-BF$3:BF$31),1))+1)*(1-BF22) -> 0 | Q22: =(SUM(IF($J22<$J$3:$J$31*(1-BG$3:BG$31),1))+1)*(1-BG22) -> 0 | R22: =(SUM(IF(ROUND($J22,1)<ROUND($J$3:$J$31,1)*(1-BF$3:BF$31),1))+1)*(1-BF22) -> 0 | S22: =(SUM(IF(ROUND($J22,1)<ROUND($J$3:$J$31,1)*(1-BG$3:BG$31),1))+1)*(1-BG22) -> 0 | T22: Portugal | U22: 20 | V22: 19 | W22: United States | X22: 4.569285388 | Y22: 0.1 | Z22: -5 | BC22: 124.9639055 | BD22: 270.6597151 | BF22: 1 | BG22: 1 | BI22: =ABS(SUM($C22:$I22*$C$39:$I$39)/SUM(IF($C22:$I22>0,$C22:$I22*$C$39:$I$39))) -> 1 | BJ22: =VLOOKUP($W22,$B$3:$I$29,COLUMN()-(COLUMN($BI$2)-1),FALSE)*C$39/SUM($C$39:$I$39)*VLOOKUP($W22,$B$3:$BI$29,(COLUMN($BI$2)-1),FALSE) -> 0.7543325134 | BK22: =VLOOKUP($W22,$B$3:$I$29,COLUMN()-(COLUMN($BI$2)-1),FALSE)*D$39/SUM($C$39:$I$39)*VLOOKUP($W22,$B$3:$BI$29,(COLUMN($BI$2)-1),FALSE) -> 0.9683868542 | BL22: =VLOOKUP($W22,$B$3:$I$29,COLUMN()-(COLUMN($BI$2)-1),FALSE)*E$39/SUM($C$39:$I$39)*VLOOKUP($W22,$B$3:$BI$29,(COLUMN($BI$2)-1),FALSE) -> 0.7346938776 | BM22: =VLOOKUP($W22,$B$3:$I$29,COLUMN()-(COLUMN($BI$2)-1),FALSE)*F$39/SUM($C$39:$I$39)*VLOOKUP($W22,$B$3:$BI$29,(COLUMN($BI$2)-1),FALSE) -> 0.5235690541 | BN22: =VLOOKUP($W22,$B$3:$I$29,COLUMN()-(COLUMN($BI$2)-1),FALSE)*G$39/SUM($C$39:$I$39)*VLOOKUP($W22,$B$3:$BI$29,(COLUMN($BI$2)-1),FALSE) -> 0.5973113309 | BO22: =VLOOKUP($W22,$B$3:$I$29,COLUMN()-(COLUMN($BI$2)-1),FALSE)*H$39/SUM($C$39:$I$39)*VLOOKUP($W22,$B$3:$BI$29,(COLUMN($BI$2)-1),FALSE) -> 0.2846061561 | BP22: =VLOOKUP($W22,$B$3:$I$29,COLUMN()-(COLUMN($BI$2)-1),FALSE)*I$39/SUM($C$39:$I$39)*VLOOKUP($W22,$B$3:$BI$29,(COLUMN($BI$2)-1),FALSE) -> 0.7063856016
A23: 24 | B23: Slovakia | C23: ='Aid 2012'!Q25 -> 0 | D23: ='Trade 2012'!F25 -> 5.799295625 | E23: ='Finance 2012'!D24 -> 3.575892857 | F23: ='Migration 2012'!E23 -> 1.4662384 | G23: ='Environment 2012'!K25 -> 8.350448209 | H23: ='Security 2012'!J26 -> 4.885864689 | I23: ='Technology 2012'!D25 -> 2.583606908 | J23: 3.808763813 | K23: 24 | L23: =ROUND(J23,1)-ROUND(VLOOKUP($B23,INDIRECT("'CDI "&Year-1&"'!Score_table"),9,FALSE),1) ->  | M23: =SUM(IF(ROUND(J23,1)<ROUND($J$3:$J$29,1),1))+1 -> 24 | N23: =VLOOKUP($B23,INDIRECT("'CDI "&Year-1&"'!Score_table"),12,FALSE) ->  | O23: Slovakia | P23: =(SUM(IF($J23<$J$3:$J$31*(1-BF$3:BF$31),1))+1)*(1-BF23) -> 0 | Q23: =(SUM(IF($J23<$J$3:$J$31*(1-BG$3:BG$31),1))+1)*(1-BG23) -> 0 | R23: =(SUM(IF(ROUND($J23,1)<ROUND($J$3:$J$31,1)*(1-BF$3:BF$31),1))+1)*(1-BF23) -> 0 | S23: =(SUM(IF(ROUND($J23,1)<ROUND($J$3:$J$31,1)*(1-BG$3:BG$31),1))+1)*(1-BG23) -> 0 | T23: Slovakia | U23: 21 | V23: 21 | W23: Poland | X23: 4.270556517 | BC23: 45.76180634 | BD23: 126.3209431 | BF23: 1 | BG23: 1 | BI23: =ABS(SUM($C23:$I23*$C$39:$I$39)/SUM(IF($C23:$I23>0,$C23:$I23*$C$39:$I$39))) -> 1 | BJ23: =VLOOKUP($W23,$B$3:$I$29,COLUMN()-(COLUMN($BI$2)-1),FALSE)*C$39/SUM($C$39:$I$39)*VLOOKUP($W23,$B$3:$BI$29,(COLUMN($BI$2)-1),FALSE) -> 0.1960594372 | BK23: =VLOOKUP($W23,$B$3:$I$29,COLUMN()-(COLUMN($BI$2)-1),FALSE)*D$39/SUM($C$39:$I$39)*VLOOKUP($W23,$B$3:$BI$29,(COLUMN($BI$2)-1),FALSE) -> 0.8827169876 | BL23: =VLOOKUP($W23,$B$3:$I$29,COLUMN()-(COLUMN($BI$2)-1),FALSE)*E$39/SUM($C$39:$I$39)*VLOOKUP($W23,$B$3:$BI$29,(COLUMN($BI$2)-1),FALSE) -> 0.8179209184 | BM23: =VLOOKUP($W23,$B$3:$I$29,COLUMN()-(COLUMN($BI$2)-1),FALSE)*F$39/SUM($C$39:$I$39)*VLOOKUP($W23,$B$3:$BI$29,(COLUMN($BI$2)-1),FALSE) -> 0.2620223438 | BN23: =VLOOKUP($W23,$B$3:$I$29,COLUMN()-(COLUMN($BI$2)-1),FALSE)*G$39/SUM($C$39:$I$39)*VLOOKUP($W23,$B$3:$BI$29,(COLUMN($BI$2)-1),FALSE) -> 1.075064888 | BO23: =VLOOKUP($W23,$B$3:$I$29,COLUMN()-(COLUMN($BI$2)-1),FALSE)*H$39/SUM($C$39:$I$39)*VLOOKUP($W23,$B$3:$BI$29,(COLUMN($BI$2)-1),FALSE) -> 0.6589542031 | BP23: =VLOOKUP($W23,$B$3:$I$29,COLUMN()-(COLUMN($BI$2)-1),FALSE)*I$39/SUM($C$39:$I$39)*VLOOKUP($W23,$B$3:$BI$29,(COLUMN($BI$2)-1),FALSE) -> 0.3778177386
A24: 27 | B24: South Korea | C24: ='Aid 2012'!Q26 -> 0.7405471966 | D24: ='Trade 2012'!F26 -> -2.22488093 | E24: ='Finance 2012'!D25 -> 4.720982143 | F24: ='Migration 2012'!E24 -> 5.64590845 | G24: ='Environment 2012'!K26 -> 4.254082184 | H24: ='Security 2012'!J27 -> 1.383665296 | I24: ='Technology 2012'!D26 -> 6.999522526 | J24: 3.074260981 | K24: 27 | L24: =ROUND(J24,1)-ROUND(VLOOKUP($B24,INDIRECT("'CDI "&Year-1&"'!Score_table"),9,FALSE),1) -> 0.8 | M24: =SUM(IF(ROUND(J24,1)<ROUND($J$3:$J$29,1),1))+1 -> 27 | N24: =VLOOKUP($B24,INDIRECT("'CDI "&Year-1&"'!Score_table"),12,FALSE) -> 22 | O24: South Korea | P24: =(SUM(IF($J24<$J$3:$J$31*(1-BF$3:BF$31),1))+1)*(1-BF24) -> 9 | Q24: =(SUM(IF($J24<$J$3:$J$31*(1-BG$3:BG$31),1))+1)*(1-BG24) -> 7 | R24: =(SUM(IF(ROUND($J24,1)<ROUND($J$3:$J$31,1)*(1-BF$3:BF$31),1))+1)*(1-BF24) -> 9 | S24: =(SUM(IF(ROUND($J24,1)<ROUND($J$3:$J$31,1)*(1-BG$3:BG$31),1))+1)*(1-BG24) -> 7 | T24: South Korea | U24: 22 | V24: 22 | W24: Hungary | X24: 4.164306079 | BC24: 801.3999636 | BD24: 1422.886699 | BF24: 0 | BG24: 0 | BI24: =ABS(SUM($C24:$I24*$C$39:$I$39)/SUM(IF($C24:$I24>0,$C24:$I24*$C$39:$I$39))) -> 0.9062999238 | BJ24: =VLOOKUP($W24,$B$3:$I$29,COLUMN()-(COLUMN($BI$2)-1),FALSE)*C$39/SUM($C$39:$I$39)*VLOOKUP($W24,$B$3:$BI$29,(COLUMN($BI$2)-1),FALSE) -> 0.1956007733 | BK24: =VLOOKUP($W24,$B$3:$I$29,COLUMN()-(COLUMN($BI$2)-1),FALSE)*D$39/SUM($C$39:$I$39)*VLOOKUP($W24,$B$3:$BI$29,(COLUMN($BI$2)-1),FALSE) -> 0.7923095026 | BL24: =VLOOKUP($W24,$B$3:$I$29,COLUMN()-(COLUMN($BI$2)-1),FALSE)*E$39/SUM($C$39:$I$39)*VLOOKUP($W24,$B$3:$BI$29,(COLUMN($BI$2)-1),FALSE) -> 0.6772959184 | BM24: =VLOOKUP($W24,$B$3:$I$29,COLUMN()-(COLUMN($BI$2)-1),FALSE)*F$39/SUM($C$39:$I$39)*VLOOKUP($W24,$B$3:$BI$29,(COLUMN($BI$2)-1),FALSE) -> 0.2461342857 | BN24: =VLOOKUP($W24,$B$3:$I$29,COLUMN()-(COLUMN($BI$2)-1),FALSE)*G$39/SUM($C$39:$I$39)*VLOOKUP($W24,$B$3:$BI$29,(COLUMN($BI$2)-1),FALSE) -> 1.124559318 | BO24: =VLOOKUP($W24,$B$3:$I$29,COLUMN()-(COLUMN($BI$2)-1),FALSE)*H$39/SUM($C$39:$I$39)*VLOOKUP($W24,$B$3:$BI$29,(COLUMN($BI$2)-1),FALSE) -> 0.6431269923 | BP24: =VLOOKUP($W24,$B$3:$I$29,COLUMN()-(COLUMN($BI$2)-1),FALSE)*I$39/SUM($C$39:$I$39)*VLOOKUP($W24,$B$3:$BI$29,(COLUMN($BI$2)-1),FALSE) -> 0.4852792889
A25: 3 | B25: Spain | C25: ='Aid 2012'!Q27 -> 7.055083134 | D25: ='Trade 2012'!F27 -> 6.019519988 | E25: ='Finance 2012'!D26 -> 6.167410714 | F25: ='Migration 2012'!E25 -> 6.268177782 | G25: ='Environment 2012'!K27 -> 6.393777501 | H25: ='Security 2012'!J28 -> 4.657775655 | I25: ='Technology 2012'!D27 -> 5.921124913 | J25: 6.068981384 | K25: 4 | L25: =ROUND(J25,1)-ROUND(VLOOKUP($B25,INDIRECT("'CDI "&Year-1&"'!Score_table"),9,FALSE),1) -> 0.4 | M25: =SUM(IF(ROUND(J25,1)<ROUND($J$3:$J$29,1),1))+1 -> 3 | N25: =VLOOKUP($B25,INDIRECT("'CDI "&Year-1&"'!Score_table"),12,FALSE) -> 5 | O25: Spain | P25: =(SUM(IF($J25<$J$3:$J$31*(1-BF$3:BF$31),1))+1)*(1-BF25) -> 0 | Q25: =(SUM(IF($J25<$J$3:$J$31*(1-BG$3:BG$31),1))+1)*(1-BG25) -> 0 | R25: =(SUM(IF(ROUND($J25,1)<ROUND($J$3:$J$31,1)*(1-BF$3:BF$31),1))+1)*(1-BF25) -> 0 | S25: =(SUM(IF(ROUND($J25,1)<ROUND($J$3:$J$31,1)*(1-BG$3:BG$31),1))+1)*(1-BG25) -> 0 | T25: Spain | U25: 23 | V25: 22 | W25: Switzerland | X25: 4.162461606 | Y25: 0.4 | Z25: -2 | BC25: 712.152318 | BD25: 1469.898424 | BF25: 1 | BG25: 1 | BI25: =ABS(SUM($C25:$I25*$C$39:$I$39)/SUM(IF($C25:$I25>0,$C25:$I25*$C$39:$I$39))) -> 1 | BJ25: =VLOOKUP($W25,$B$3:$I$29,COLUMN()-(COLUMN($BI$2)-1),FALSE)*C$39/SUM($C$39:$I$39)*VLOOKUP($W25,$B$3:$BI$29,(COLUMN($BI$2)-1),FALSE) -> 0.8426942593 | BK25: =VLOOKUP($W25,$B$3:$I$29,COLUMN()-(COLUMN($BI$2)-1),FALSE)*D$39/SUM($C$39:$I$39)*VLOOKUP($W25,$B$3:$BI$29,(COLUMN($BI$2)-1),FALSE) -> -0.08125464324 | BL25: =VLOOKUP($W25,$B$3:$I$29,COLUMN()-(COLUMN($BI$2)-1),FALSE)*E$39/SUM($C$39:$I$39)*VLOOKUP($W25,$B$3:$BI$29,(COLUMN($BI$2)-1),FALSE) -> 0.4305229074 | BM25: =VLOOKUP($W25,$B$3:$I$29,COLUMN()-(COLUMN($BI$2)-1),FALSE)*F$39/SUM($C$39:$I$39)*VLOOKUP($W25,$B$3:$BI$29,(COLUMN($BI$2)-1),FALSE) -> 0.8894357744 | BN25: =VLOOKUP($W25,$B$3:$I$29,COLUMN()-(COLUMN($BI$2)-1),FALSE)*G$39/SUM($C$39:$I$39)*VLOOKUP($W25,$B$3:$BI$29,(COLUMN($BI$2)-1),FALSE) -> 0.8306882311 | BO25: =VLOOKUP($W25,$B$3:$I$29,COLUMN()-(COLUMN($BI$2)-1),FALSE)*H$39/SUM($C$39:$I$39)*VLOOKUP($W25,$B$3:$BI$29,(COLUMN($BI$2)-1),FALSE) -> 0.5187008657 | BP25: =VLOOKUP($W25,$B$3:$I$29,COLUMN()-(COLUMN($BI$2)-1),FALSE)*I$39/SUM($C$39:$I$39)*VLOOKUP($W25,$B$3:$BI$29,(COLUMN($BI$2)-1),FALSE) -> 0.6504195683
A26: 1 | B26: Sweden | C26: ='Aid 2012'!Q28 -> 15.166397 | D26: ='Trade 2012'!F28 -> 6.670592798 | E26: ='Finance 2012'!D27 -> 6.167410714 | F26: ='Migration 2012'!E26 -> 9.376118967 | G26: ='Environment 2012'!K28 -> 7.352119004 | H26: ='Security 2012'!J29 -> 6.129810284 | I26: ='Technology 2012'!D28 -> 4.734541974 | J26: 7.942427248 | K26: 1 | L26: =ROUND(J26,1)-ROUND(VLOOKUP($B26,INDIRECT("'CDI "&Year-1&"'!Score_table"),9,FALSE),1) -> 0 | M26: =SUM(IF(ROUND(J26,1)<ROUND($J$3:$J$29,1),1))+1 -> 1 | N26: =VLOOKUP($B26,INDIRECT("'CDI "&Year-1&"'!Score_table"),12,FALSE) -> 1 | O26: Sweden | P26: =(SUM(IF($J26<$J$3:$J$31*(1-BF$3:BF$31),1))+1)*(1-BF26) -> 0 | Q26: =(SUM(IF($J26<$J$3:$J$31*(1-BG$3:BG$31),1))+1)*(1-BG26) -> 0 | R26: =(SUM(IF(ROUND($J26,1)<ROUND($J$3:$J$31,1)*(1-BF$3:BF$31),1))+1)*(1-BF26) -> 0 | S26: =(SUM(IF(ROUND($J26,1)<ROUND($J$3:$J$31,1)*(1-BG$3:BG$31),1))+1)*(1-BG26) -> 0 | T26: Sweden | U26: 24 | V26: 24 | W26: Slovakia | X26: 3.808763813 | BC26: 304.8587264 | BD26: 368.9829171 | BF26: 1 | BG26: 1 | BI26: =ABS(SUM($C26:$I26*$C$39:$I$39)/SUM(IF($C26:$I26>0,$C26:$I26*$C$39:$I$39))) -> 1 | BJ26: =VLOOKUP($W26,$B$3:$I$29,COLUMN()-(COLUMN($BI$2)-1),FALSE)*C$39/SUM($C$39:$I$39)*VLOOKUP($W26,$B$3:$BI$29,(COLUMN($BI$2)-1),FALSE) -> 0 | BK26: =VLOOKUP($W26,$B$3:$I$29,COLUMN()-(COLUMN($BI$2)-1),FALSE)*D$39/SUM($C$39:$I$39)*VLOOKUP($W26,$B$3:$BI$29,(COLUMN($BI$2)-1),FALSE) -> 0.8284708036 | BL26: =VLOOKUP($W26,$B$3:$I$29,COLUMN()-(COLUMN($BI$2)-1),FALSE)*E$39/SUM($C$39:$I$39)*VLOOKUP($W26,$B$3:$BI$29,(COLUMN($BI$2)-1),FALSE) -> 0.5108418367 | BM26: =VLOOKUP($W26,$B$3:$I$29,COLUMN()-(COLUMN($BI$2)-1),FALSE)*F$39/SUM($C$39:$I$39)*VLOOKUP($W26,$B$3:$BI$29,(COLUMN($BI$2)-1),FALSE) -> 0.2094626285 | BN26: =VLOOKUP($W26,$B$3:$I$29,COLUMN()-(COLUMN($BI$2)-1),FALSE)*G$39/SUM($C$39:$I$39)*VLOOKUP($W26,$B$3:$BI$29,(COLUMN($BI$2)-1),FALSE) -> 1.192921173 | BO26: =VLOOKUP($W26,$B$3:$I$29,COLUMN()-(COLUMN($BI$2)-1),FALSE)*H$39/SUM($C$39:$I$39)*VLOOKUP($W26,$B$3:$BI$29,(COLUMN($BI$2)-1),FALSE) -> 0.6979806699 | BP26: =VLOOKUP($W26,$B$3:$I$29,COLUMN()-(COLUMN($BI$2)-1),FALSE)*I$39/SUM($C$39:$I$39)*VLOOKUP($W26,$B$3:$BI$29,(COLUMN($BI$2)-1),FALSE) -> 0.3690867012
A27: 22 | B27: Switzerland | C27: ='Aid 2012'!Q29 -> 6.016302953 | D27: ='Trade 2012'!F29 -> -0.5801066575 | E27: ='Finance 2012'!D28 -> 3.073660714 | F27: ='Migration 2012'!E27 -> 6.350007748 | G27: ='Environment 2012'!K29 -> 5.93058752 | H27: ='Security 2012'!J30 -> 3.703195454 | I27: ='Technology 2012'!D29 -> 4.643583513 | J27: 4.162461606 | K27: 23 | L27: =ROUND(J27,1)-ROUND(VLOOKUP($B27,INDIRECT("'CDI "&Year-1&"'!Score_table"),9,FALSE),1) -> 0.4 | M27: =SUM(IF(ROUND(J27,1)<ROUND($J$3:$J$29,1),1))+1 -> 22 | N27: =VLOOKUP($B27,INDIRECT("'CDI "&Year-1&"'!Score_table"),12,FALSE) -> 20 | O27: Switzerland | P27: =(SUM(IF($J27<$J$3:$J$31*(1-BF$3:BF$31),1))+1)*(1-BF27) -> 7 | Q27: =(SUM(IF($J27<$J$3:$J$31*(1-BG$3:BG$31),1))+1)*(1-BG27) -> 0 | R27: =(SUM(IF(ROUND($J27,1)<ROUND($J$3:$J$31,1)*(1-BF$3:BF$31),1))+1)*(1-BF27) -> 7 | S27: =(SUM(IF(ROUND($J27,1)<ROUND($J$3:$J$31,1)*(1-BG$3:BG$31),1))+1)*(1-BG27) -> 0 | T27: Switzerland | U27: 25 | V27: 25 | W27: Czech Republic | X27: 3.534044812 | BC27: 294.7486843 | BD27: 363.1861596 | BF27: 0 | BG27: 1 | BI27: =ABS(SUM($C27:$I27*$C$39:$I$39)/SUM(IF($C27:$I27>0,$C27:$I27*$C$39:$I$39))) -> 0.9804791849 | BJ27: =VLOOKUP($W27,$B$3:$I$29,COLUMN()-(COLUMN($BI$2)-1),FALSE)*C$39/SUM($C$39:$I$39)*VLOOKUP($W27,$B$3:$BI$29,(COLUMN($BI$2)-1),FALSE) -> 0.22525345 | BK27: =VLOOKUP($W27,$B$3:$I$29,COLUMN()-(COLUMN($BI$2)-1),FALSE)*D$39/SUM($C$39:$I$39)*VLOOKUP($W27,$B$3:$BI$29,(COLUMN($BI$2)-1),FALSE) -> 0.7689606943 | BL27: =VLOOKUP($W27,$B$3:$I$29,COLUMN()-(COLUMN($BI$2)-1),FALSE)*E$39/SUM($C$39:$I$39)*VLOOKUP($W27,$B$3:$BI$29,(COLUMN($BI$2)-1),FALSE) -> 0.604178435 | BM27: =VLOOKUP($W27,$B$3:$I$29,COLUMN()-(COLUMN($BI$2)-1),FALSE)*F$39/SUM($C$39:$I$39)*VLOOKUP($W27,$B$3:$BI$29,(COLUMN($BI$2)-1),FALSE) -> 0.2216824931 | BN27: =VLOOKUP($W27,$B$3:$I$29,COLUMN()-(COLUMN($BI$2)-1),FALSE)*G$39/SUM($C$39:$I$39)*VLOOKUP($W27,$B$3:$BI$29,(COLUMN($BI$2)-1),FALSE) -> 0.9998710805 | BO27: =VLOOKUP($W27,$B$3:$I$29,COLUMN()-(COLUMN($BI$2)-1),FALSE)*H$39/SUM($C$39:$I$39)*VLOOKUP($W27,$B$3:$BI$29,(COLUMN($BI$2)-1),FALSE) -> -0.1675454006 | BP27: =VLOOKUP($W27,$B$3:$I$29,COLUMN()-(COLUMN($BI$2)-1),FALSE)*I$39/SUM($C$39:$I$39)*VLOOKUP($W27,$B$3:$BI$29,(COLUMN($BI$2)-1),FALSE) -> 0.7140986586
A28: 8 | B28: United Kingdom | C28: ='Aid 2012'!Q30 -> 6.60763148 | D28: ='Trade 2012'!F30 -> 6.222406716 | E28: ='Finance 2012'!D29 -> 5.90625 | F28: ='Migration 2012'!E28 -> 5.608767531 | G28: ='Environment 2012'!K30 -> 7.180639482 | H28: ='Security 2012'!J31 -> 4.096248328 | I28: ='Technology 2012'!D30 -> 4.336105802 | J28: 5.708292763 | K28: 9 | L28: =ROUND(J28,1)-ROUND(VLOOKUP($B28,INDIRECT("'CDI "&Year-1&"'!Score_table"),9,FALSE),1) -> 0.7 | M28: =SUM(IF(ROUND(J28,1)<ROUND($J$3:$J$29,1),1))+1 -> 8 | N28: =VLOOKUP($B28,INDIRECT("'CDI "&Year-1&"'!Score_table"),12,FALSE) -> 11 | O28: United Kingdom | P28: =(SUM(IF($J28<$J$3:$J$31*(1-BF$3:BF$31),1))+1)*(1-BF28) -> 0 | Q28: =(SUM(IF($J28<$J$3:$J$31*(1-BG$3:BG$31),1))+1)*(1-BG28) -> 0 | R28: =(SUM(IF(ROUND($J28,1)<ROUND($J$3:$J$31,1)*(1-BF$3:BF$31),1))+1)*(1-BF28) -> 0 | S28: =(SUM(IF(ROUND($J28,1)<ROUND($J$3:$J$31,1)*(1-BG$3:BG$31),1))+1)*(1-BG28) -> 0 | T28: United Kingdom | U28: 26 | V28: 25 | W28: Japan | X28: 3.488680002 | Y28: 0.4 | Z28: -4 | BC28: 1744.580116 | BD28: 2221.931758 | BF28: 1 | BG28: 1 | BI28: =ABS(SUM($C28:$I28*$C$39:$I$39)/SUM(IF($C28:$I28>0,$C28:$I28*$C$39:$I$39))) -> 1 | BJ28: =VLOOKUP($W28,$B$3:$I$29,COLUMN()-(COLUMN($BI$2)-1),FALSE)*C$39/SUM($C$39:$I$39)*VLOOKUP($W28,$B$3:$BI$29,(COLUMN($BI$2)-1),FALSE) -> 0.2461569038 | BK28: =VLOOKUP($W28,$B$3:$I$29,COLUMN()-(COLUMN($BI$2)-1),FALSE)*D$39/SUM($C$39:$I$39)*VLOOKUP($W28,$B$3:$BI$29,(COLUMN($BI$2)-1),FALSE) -> 0.2399538061 | BL28: =VLOOKUP($W28,$B$3:$I$29,COLUMN()-(COLUMN($BI$2)-1),FALSE)*E$39/SUM($C$39:$I$39)*VLOOKUP($W28,$B$3:$BI$29,(COLUMN($BI$2)-1),FALSE) -> 0.5567602041 | BM28: =VLOOKUP($W28,$B$3:$I$29,COLUMN()-(COLUMN($BI$2)-1),FALSE)*F$39/SUM($C$39:$I$39)*VLOOKUP($W28,$B$3:$BI$29,(COLUMN($BI$2)-1),FALSE) -> 0.3341459312 | BN28: =VLOOKUP($W28,$B$3:$I$29,COLUMN()-(COLUMN($BI$2)-1),FALSE)*G$39/SUM($C$39:$I$39)*VLOOKUP($W28,$B$3:$BI$29,(COLUMN($BI$2)-1),FALSE) -> 0.6443182198 | BO28: =VLOOKUP($W28,$B$3:$I$29,COLUMN()-(COLUMN($BI$2)-1),FALSE)*H$39/SUM($C$39:$I$39)*VLOOKUP($W28,$B$3:$BI$29,(COLUMN($BI$2)-1),FALSE) -> 0.5878311345 | BP28: =VLOOKUP($W28,$B$3:$I$29,COLUMN()-(COLUMN($BI$2)-1),FALSE)*I$39/SUM($C$39:$I$39)*VLOOKUP($W28,$B$3:$BI$29,(COLUMN($BI$2)-1),FALSE) -> 0.8795138022
A29: 19 | B29: United States | C29: ='Aid 2012'!Q31 -> 5.280327594 | D29: ='Trade 2012'!F31 -> 6.77870798 | E29: ='Finance 2012'!D30 -> 5.142857143 | F29: ='Migration 2012'!E29 -> 3.664983378 | G29: ='Environment 2012'!K31 -> 4.181179316 | H29: ='Security 2012'!J32 -> 1.992243093 | I29: ='Technology 2012'!D31 -> 4.944699211 | J29: 4.569285388 | K29: 20 | L29: =ROUND(J29,1)-ROUND(VLOOKUP($B29,INDIRECT("'CDI "&Year-1&"'!Score_table"),9,FALSE),1) -> 0.1 | M29: =SUM(IF(ROUND(J29,1)<ROUND($J$3:$J$29,1),1))+1 -> 19 | N29: =VLOOKUP($B29,INDIRECT("'CDI "&Year-1&"'!Score_table"),12,FALSE) -> 14 | O29: United States | P29: =(SUM(IF($J29<$J$3:$J$31*(1-BF$3:BF$31),1))+1)*(1-BF29) -> 6 | Q29: =(SUM(IF($J29<$J$3:$J$31*(1-BG$3:BG$31),1))+1)*(1-BG29) -> 5 | R29: =(SUM(IF(ROUND($J29,1)<ROUND($J$3:$J$31,1)*(1-BF$3:BF$31),1))+1)*(1-BF29) -> 6 | S29: =(SUM(IF(ROUND($J29,1)<ROUND($J$3:$J$31,1)*(1-BG$3:BG$31),1))+1)*(1-BG29) -> 5 | T29: United States | U29: 27 | V29: 27 | W29: South Korea | X29: 3.074260981 | Y29: 0.8 | Z29: -5 | BC29: 11547.90457 | BD29: 14447.09977 | BF29: 0 | BG29: 0 | BI29: =ABS(SUM($C29:$I29*$C$39:$I$39)/SUM(IF($C29:$I29>0,$C29:$I29*$C$39:$I$39))) -> 1 | BJ29: =VLOOKUP($W29,$B$3:$I$29,COLUMN()-(COLUMN($BI$2)-1),FALSE)*C$39/SUM($C$39:$I$39)*VLOOKUP($W29,$B$3:$BI$29,(COLUMN($BI$2)-1),FALSE) -> 0.09587969541 | BK29: =VLOOKUP($W29,$B$3:$I$29,COLUMN()-(COLUMN($BI$2)-1),FALSE)*D$39/SUM($C$39:$I$39)*VLOOKUP($W29,$B$3:$BI$29,(COLUMN($BI$2)-1),FALSE) -> -0.2880584882 | BL29: =VLOOKUP($W29,$B$3:$I$29,COLUMN()-(COLUMN($BI$2)-1),FALSE)*E$39/SUM($C$39:$I$39)*VLOOKUP($W29,$B$3:$BI$29,(COLUMN($BI$2)-1),FALSE) -> 0.6112322509 | BM29: =VLOOKUP($W29,$B$3:$I$29,COLUMN()-(COLUMN($BI$2)-1),FALSE)*F$39/SUM($C$39:$I$39)*VLOOKUP($W29,$B$3:$BI$29,(COLUMN($BI$2)-1),FALSE) -> 0.7309837712 | BN29: =VLOOKUP($W29,$B$3:$I$29,COLUMN()-(COLUMN($BI$2)-1),FALSE)*G$39/SUM($C$39:$I$39)*VLOOKUP($W29,$B$3:$BI$29,(COLUMN($BI$2)-1),FALSE) -> 0.5507820513 | BO29: =VLOOKUP($W29,$B$3:$I$29,COLUMN()-(COLUMN($BI$2)-1),FALSE)*H$39/SUM($C$39:$I$39)*VLOOKUP($W29,$B$3:$BI$29,(COLUMN($BI$2)-1),FALSE) -> 0.1791451075 | BP29: =VLOOKUP($W29,$B$3:$I$29,COLUMN()-(COLUMN($BI$2)-1),FALSE)*I$39/SUM($C$39:$I$39)*VLOOKUP($W29,$B$3:$BI$29,(COLUMN($BI$2)-1),FALSE) -> 0.9062381045
B30: EU | C30: ='Aid 2012'!Q32 -> 5.932140568 | D30: ='Trade 2012'!F32 -> 5.966595972 | E30: ='Finance 2012'!D31 -> 5.354164159 | F30: ='Migration 2012'!E30 -> 5.027711456 | G30: ='Environment 2012'!K32 -> 6.89630193 | H30: ='Security 2012'!J33 -> 4.899050165 | I30: ='Technology 2012'!D32 -> 4.978443595 | J30: 5.579201121 | P30: =(SUM(IF($J30<$J$3:$J$31*(1-BF$3:BF$31),1))+1)*(1-BF30) -> 2 | R30: =(SUM(IF(ROUND($J30,1)<ROUND($J$3:$J$31,1)*(1-BF$3:BF$31),1))+1)*(1-BF30) -> 2 | T30: EU | BG30: 1
B31: Europe | C31: ='Aid 2012'!Q33 -> 6.007016632 | D31: ='Trade 2012'!F33 -> 5.587085455 | E31: ='Finance 2012'!D32 -> 5.297285423 | F31: ='Migration 2012'!E31 -> 5.10484602 | G31: ='Environment 2012'!K33 -> 6.823946759 | H31: ='Security 2012'!J34 -> 4.825833911 | I31: ='Technology 2012'!D33 -> 4.981959307 | J31: 5.51828193 | P31: =(SUM(IF($J31<$J$3:$J$31*(1-BF$3:BF$31),1))+1)*(1-BF31) -> 0 | Q31: =(SUM(IF($J31<$J$3:$J$31*(1-BG$3:BG$31),1))+1)*(1-BG31) -> 1 | R31: =(SUM(IF(ROUND($J31,1)<ROUND($J$3:$J$31,1)*(1-BF$3:BF$31),1))+1)*(1-BF31) -> 0 | S31: =(SUM(IF(ROUND($J31,1)<ROUND($J$3:$J$31,1)*(1-BG$3:BG$31),1))+1)*(1-BG31) -> 1 | T31: Europe | BC31: =BC19*1.01347 -> 65.86684655 | BD31: =BD19*1.01347 -> 132.5115067 | BF31: 1
R32: =(SUM(IF($J24<$J$3:$J$31*(1-BF$3:BF$31),1))+1)*(1-BF24) -> 9
B33: Average | C33: =AVERAGE(C3:C29) -> 5 | D33: 5 | E33: 5 | F33: 5 | G33: 6.14207878 | H33: 4.814918652 | I33: 5 | J33: 5.136713919 | U33: 1
B34: Standard dev. | C34: =STDEVP(C3:C29) -> 3.543354574 | D34: 2.728409518 | E34: 0.8694590411 | F34: 2.400787013 | G34: 1.529861563 | H34: 2.686165361 | I34: 1.234974234 | J34: 1.072545305 | U34: 2
U35: 3
B36: Lowest | C36: =MIN(C3:C29) -> 0 | D36: -3.377285726 | E36: 3.073660714 | F36: 1.4662384 | G36: 2.474296074 | H36: -1.231187108 | I36: 2.583606908 | J36: 3.074260981 | U36: 4
B37: Highest | C37: =MAX(C3:C29) -> 15.166397 | D37: 8.024125252 | E37: 6.167410714 | F37: 9.817918066 | G37: 8.350448209 | H37: 10.93412749 | I37: 7.36729542 | J37: 7.942427248 | U37: 5
U38: 6
B39: Weight | C39: 1 | D39: 1 | E39: 1 | F39: 1 | G39: 1 | H39: 1 | I39: 1 | U39: 7
U40: 8
U41: 9
U44: 1
U45: 2
U46: 3
U47: 4
U48: 5
U49: 6
U50: 7
A73: =INT(RIGHT(CELL("filename",A1),4)) -> 2012

Sheet CDI 2011
A1: ="Commitment to Development Index "&Region_name&IF(Region_name="",""," ")&Year&IF(Publication_year>Year," ("&Publication_year&" methodology)","") -> Commitment to Development Index Middle East & North Africa 2011 (2013 methodology) | V1: Standings | Y1: One-year change, latest methodology | AB1: Standings/EU as one | AM1: Standings/Europe as one | BF1: EU countries | BG1: Europe countries
A2: Rank | B2: Country | C2: Aid | D2: Trade | E2: Finance | F2: Migration | G2: Environment | H2: Security | I2: Technology | J2: Overall (Average) | K2: True rank | L2: =Year-1&"-"&Year-2000&" score change" -> 2010-11 score change | M2: Rank | N2: =Year-1&" rank ("&Year&" method)" -> 2010 rank (2011 method) | P2: True rank/EU | Q2: True rank/Europe | R2: Rank/EU | S2: Rank/Europe | W2: Country | X2: Score | Y2: Score | Z2: Rank | AC2: Country | AD2: Aid | AE2: Trade | AF2: Finance | AG2: Migration | AH2: Environment | AI2: Security | AJ2: Technology | AK2: Overall (Average) | AN2: Country | AO2: Aid | AP2: Trade | AQ2: Finance | AR2: Migration | AS2: Environment | AT2: Security | AU2: Technology | AV2: Overall (Average) | BC2: PPP GDP | BD2: Exchange-rate GDP | BI2: Graphing scale factor to deal with negative scores, alpha by country
A3: =M3 -> 19 | B3: Australia | C3: ='Aid 2011'!Q5 -> 2.84478905 | D3: ='Trade 2011'!F5 -> 6.930819346 | E3: ='Finance 2011'!D4 -> 5.745535714 | F3: ='Migration 2011'!E3 -> 1.84147585 | G3: ='Environment 2011'!K5 -> 3.878110665 | H3: ='Security 2011'!J6 -> 1.649946136 | I3: ='Technology 2011'!D5 -> 5.145552131 | J3: =SUMPRODUCT(C3:I3,$C$34:$I$34)/SUM($C$34:$I$34) -> 4.005175556 | K3: =COUNTIF($J$3:$J$24,">"&J3)+1 -> 19 | L3: =ROUND(J3,1)-ROUND(VLOOKUP($B3,INDIRECT("'CDI "&Year-1&"'!Score_table"),9,FALSE),1) -> -0.5 | M3: =SUM(IF(ROUND(J3,1)<ROUND($J$3:$J$24,1),1))+1 -> 19 | N3: =VLOOKUP($B3,INDIRECT("'CDI "&Year-1&"'!Score_table"),12,FALSE) -> 15 | O3: =B3 -> Australia | P3: =(SUM(IF($J3<$J$3:$J$26*(1-BF$3:BF$26),1))+1)*(1-BF3) -> 6 | Q3: =(SUM(IF($J3<$J$3:$J$26*(1-BG$3:BG$26),1))+1)*(1-BG3) -> 5 | R3: =(SUM(IF(ROUND($J3,1)<ROUND($J$3:$J$26,1)*(1-BF$3:BF$26),1))+1)*(1-BF3) -> 6 | S3: =(SUM(IF(ROUND($J3,1)<ROUND($J$3:$J$26,1)*(1-BG$3:BG$26),1))+1)*(1-BG3) -> 5 | T3: =B3 -> Australia | U3: =ROW(U3)-ROW($U$2) -> 1 | V3: =VLOOKUP(U3,$K$3:$O$24,3,FALSE) -> 1 | W3: =VLOOKUP(U3,$K$3:$O$24,5,FALSE) -> Sweden | X3: =VLOOKUP(W3,$B$3:$O$24,9,FALSE) -> 7.854598356 | Y3: =IF(ISNA(VLOOKUP(W3,$B$3:$O$24,11,FALSE)),"",VLOOKUP(W3,$B$3:$O$24,11,FALSE)) -> 0.8 | Z3: =IF(ISNA(VLOOKUP(U3,$K$3:$O$24,4,FALSE)),"",VLOOKUP(U3,$K$3:$O$24,4,FALSE)-V3) -> 0 | AB3: =VLOOKUP(U28,$P$3:$U$26,3,FALSE) -> 1 | AC3: =VLOOKUP(U28,$P$3:$U$26,5,FALSE) -> EU | AD3: =VLOOKUP($AC3,$B$3:$O$26,2,FALSE) -> 7.341598872 | AE3: =VLOOKUP($AC3,$B$3:$O$26,3,FALSE) -> 6.10572707 | AF3: =VLOOKUP($AC3,$B$3:$O$26,4,FALSE) -> 4.964814393 | AG3: =VLOOKUP($AC3,$B$3:$O$26,5,FALSE) -> 2.636907522 | AH3: =VLOOKUP($AC3,$B$3:$O$26,6,FALSE) -> 6.750065789 | AI3: =VLOOKUP($AC3,$B$3:$O$26,7,FALSE) -> 3.981398096 | AJ3: =VLOOKUP($AC3,$B$3:$O$26,8,FALSE) -> 4.69034333 | AK3: =VLOOKUP($AC3,$B$3:$O$26,9,FALSE) -> 5.210122153 | AM3: =VLOOKUP(U39,$Q$3:$V$26,3,FALSE) -> 1 | AN3: =VLOOKUP(U39,$Q$3:$V$26,4,FALSE) -> Europe | AO3: =VLOOKUP($AN3,$B$3:$O$26,2,FALSE) -> 7.400974335 | AP3: =VLOOKUP($AN3,$B$3:$O$26,3,FALSE) -> 5.820471437 | AQ3: =VLOOKUP($AN3,$B$3:$O$26,4,FALSE) -> 4.927435721 | AR3: =VLOOKUP($AN3,$B$3:$O$26,5,FALSE) -> 2.660098986 | AS3: =VLOOKUP($AN3,$B$3:$O$26,6,FALSE) -> 6.681683449 | AT3: =VLOOKUP($AN3,$B$3:$O$26,7,FALSE) -> 4.006177106 | AU3: =VLOOKUP($AN3,$B$3:$O$26,8,FALSE) -> 4.70879496 | AV3: =VLOOKUP(AN3,$B$3:$O$26,9,FALSE) -> 5.172233713 | BC3: 563.0494638 | BD3: 850.9216522 | BF3: 0 | BG3: 0 | BI3: =ABS(SUM($C3:$I3*$C$34:$I$34)/SUM(IF($C3:$I3>0,$C3:$I3*$C$34:$I$34))) -> 1 | BJ3: =VLOOKUP($W3,$B$3:$I$24,COLUMN()-(COLUMN($BI$2)-1),FALSE)*C$34/SUM($C$34:$I$34)*VLOOKUP($W3,$B$3:$BI$29,(COLUMN($BI$2)-1),FALSE) -> 2.769979726 | BK3: =VLOOKUP($W3,$B$3:$I$24,COLUMN()-(COLUMN($BI$2)-1),FALSE)*D$34/SUM($C$34:$I$34)*VLOOKUP($W3,$B$3:$BI$29,(COLUMN($BI$2)-1),FALSE) -> 0.963998029 | BL3: =VLOOKUP($W3,$B$3:$I$24,COLUMN()-(COLUMN($BI$2)-1),FALSE)*E$34/SUM($C$34:$I$34)*VLOOKUP($W3,$B$3:$BI$29,(COLUMN($BI$2)-1),FALSE) -> 0.8580994898 | BM3: =VLOOKUP($W3,$B$3:$I$24,COLUMN()-(COLUMN($BI$2)-1),FALSE)*F$34/SUM($C$34:$I$34)*VLOOKUP($W3,$B$3:$BI$29,(COLUMN($BI$2)-1),FALSE) -> 0.8770147788 | BN3: =VLOOKUP($W3,$B$3:$I$24,COLUMN()-(COLUMN($BI$2)-1),FALSE)*G$34/SUM($C$34:$I$34)*VLOOKUP($W3,$B$3:$BI$29,(COLUMN($BI$2)-1),FALSE) -> 1.074236905 | BO3: =VLOOKUP($W3,$B$3:$I$24,COLUMN()-(COLUMN($BI$2)-1),FALSE)*H$34/SUM($C$34:$I$34)*VLOOKUP($W3,$B$3:$BI$29,(COLUMN($BI$2)-1),FALSE) -> 0.620349685 | BP3: =VLOOKUP($W3,$B$3:$I$24,COLUMN()-(COLUMN($BI$2)-1),FALSE)*I$34/SUM($C$34:$I$34)*VLOOKUP($W3,$B$3:$BI$29,(COLUMN($BI$2)-1),FALSE) -> 0.6909197425
A4: 6 | B4: Austria | C4: ='Aid 2011'!Q6 -> 6.420310911 | D4: ='Trade 2011'!F6 -> 6.254573967 | E4: ='Finance 2011'!D5 -> 3.696428571 | F4: ='Migration 2011'!E4 -> 3.240027878 | G4: ='Environment 2011'!K6 -> 5.794629145 | H4: ='Security 2011'!J7 -> 7.048116114 | I4: ='Technology 2011'!D6 -> 5.372955791 | J4: 5.403863197 | K4: 6 | L4: =ROUND(J4,1)-ROUND(VLOOKUP($B4,INDIRECT("'CDI "&Year-1&"'!Score_table"),9,FALSE),1) -> 0.4 | M4: =SUM(IF(ROUND(J4,1)<ROUND($J$3:$J$24,1),1))+1 -> 6 | N4: =VLOOKUP($B4,INDIRECT("'CDI "&Year-1&"'!Score_table"),12,FALSE) -> 11 | O4: Austria | P4: =(SUM(IF($J4<$J$3:$J$26*(1-BF$3:BF$26),1))+1)*(1-BF4) -> 0 | Q4: =(SUM(IF($J4<$J$3:$J$26*(1-BG$3:BG$26),1))+1)*(1-BG4) -> 0 | R4: =(SUM(IF(ROUND($J4,1)<ROUND($J$3:$J$26,1)*(1-BF$3:BF$26),1))+1)*(1-BF4) -> 0 | S4: =(SUM(IF(ROUND($J4,1)<ROUND($J$3:$J$26,1)*(1-BG$3:BG$26),1))+1)*(1-BG4) -> 0 | T4: Austria | U4: 2 | V4: 2 | W4: Finland | X4: 6.134424943 | Y4: 0.3 | Z4: 0 | AB4: 2 | AC4: Norway | AD4: 10.36156365 | AE4: -3.417309267 | AF4: 5.866071429 | AG4: 4.153315357 | AH4: 2.859353719 | AI4: 8.516411954 | AJ4: 5.791368716 | AK4: 4.875825079 | AM4: 2 | AN4: United States | AO4: 8.696614909 | AP4: 6.790454583 | AQ4: 5.142857143 | AR4: 1.267629905 | AS4: 4.305400203 | AT4: -0.001261756295 | AU4: 5.512730131 | AV4: 4.530632159 | BC4: 223.9541412 | BD4: 335.6518973 | BF4: 1 | BG4: 1 | BI4: =ABS(SUM($C4:$I4*$C$34:$I$34)/SUM(IF($C4:$I4>0,$C4:$I4*$C$34:$I$34))) -> 1 | BJ4: =VLOOKUP($W4,$B$3:$I$24,COLUMN()-(COLUMN($BI$2)-1),FALSE)*C$34/SUM($C$34:$I$34)*VLOOKUP($W4,$B$3:$BI$29,(COLUMN($BI$2)-1),FALSE) -> 0.9709723881 | BK4: =VLOOKUP($W4,$B$3:$I$24,COLUMN()-(COLUMN($BI$2)-1),FALSE)*D$34/SUM($C$34:$I$34)*VLOOKUP($W4,$B$3:$BI$29,(COLUMN($BI$2)-1),FALSE) -> 0.9026412517 | BL4: =VLOOKUP($W4,$B$3:$I$24,COLUMN()-(COLUMN($BI$2)-1),FALSE)*E$34/SUM($C$34:$I$34)*VLOOKUP($W4,$B$3:$BI$29,(COLUMN($BI$2)-1),FALSE) -> 0.8810586735 | BM4: =VLOOKUP($W4,$B$3:$I$24,COLUMN()-(COLUMN($BI$2)-1),FALSE)*F$34/SUM($C$34:$I$34)*VLOOKUP($W4,$B$3:$BI$29,(COLUMN($BI$2)-1),FALSE) -> 0.303921436 | BN4: =VLOOKUP($W4,$B$3:$I$24,COLUMN()-(COLUMN($BI$2)-1),FALSE)*G$34/SUM($C$34:$I$34)*VLOOKUP($W4,$B$3:$BI$29,(COLUMN($BI$2)-1),FALSE) -> 1.172209991 | BO4: =VLOOKUP($W4,$B$3:$I$24,COLUMN()-(COLUMN($BI$2)-1),FALSE)*H$34/SUM($C$34:$I$34)*VLOOKUP($W4,$B$3:$BI$29,(COLUMN($BI$2)-1),FALSE) -> 1.068238873 | BP4: =VLOOKUP($W4,$B$3:$I$24,COLUMN()-(COLUMN($BI$2)-1),FALSE)*I$34/SUM($C$34:$I$34)*VLOOKUP($W4,$B$3:$BI$29,(COLUMN($BI$2)-1),FALSE) -> 0.8353823295
A5: 8 | B5: Belgium | C5: ='Aid 2011'!Q7 -> 9.377146257 | D5: ='Trade 2011'!F7 -> 5.66940096 | E5: ='Finance 2011'!D6 -> 5.504464286 | F5: ='Migration 2011'!E5 -> 2.736420556 | G5: ='Environment 2011'!K7 -> 7.093573586 | H5: ='Security 2011'!J8 -> 2.270778741 | I5: ='Technology 2011'!D7 -> 4.578673455 | J5: 5.318636834 | K5: 8 | L5: =ROUND(J5,1)-ROUND(VLOOKUP($B5,INDIRECT("'CDI "&Year-1&"'!Score_table"),9,FALSE),1) -> 0 | M5: =SUM(IF(ROUND(J5,1)<ROUND($J$3:$J$24,1),1))+1 -> 8 | N5: =VLOOKUP($B5,INDIRECT("'CDI "&Year-1&"'!Score_table"),12,FALSE) -> 7 | O5: Belgium | P5: =(SUM(IF($J5<$J$3:$J$26*(1-BF$3:BF$26),1))+1)*(1-BF5) -> 0 | Q5: =(SUM(IF($J5<$J$3:$J$26*(1-BG$3:BG$26),1))+1)*(1-BG5) -> 0 | R5: =(SUM(IF(ROUND($J5,1)<ROUND($J$3:$J$26,1)*(1-BF$3:BF$26),1))+1)*(1-BF5) -> 0 | S5: =(SUM(IF(ROUND($J5,1)<ROUND($J$3:$J$26,1)*(1-BG$3:BG$26),1))+1)*(1-BG5) -> 0 | T5: Belgium | U5: 3 | V5: 2 | W5: Denmark | X5: 6.106972077 | Y5: 0.3 | Z5: 0 | AB5: 3 | AC5: United States | AD5: 8.696614909 | AE5: 6.790454583 | AF5: 5.142857143 | AG5: 1.267629905 | AH5: 4.305400203 | AI5: -0.001261756295 | AJ5: 5.512730131 | AK5: 4.530632159 | AM5: 3 | AN5: New Zealand | AO5: 1.165554733 | AP5: 8.030127893 | AQ5: 4.037946429 | AR5: 1.317685832 | AS5: 5.888637214 | AT5: 5.348251353 | AU5: 4.700031186 | AV5: 4.355462091 | BC5: 266.9089423 | BD5: 410.0280484 | BF5: 1 | BG5: 1 | BI5: =ABS(SUM($C5:$I5*$C$34:$I$34)/SUM(IF($C5:$I5>0,$C5:$I5*$C$34:$I$34))) -> 1 | BJ5: =VLOOKUP($W5,$B$3:$I$24,COLUMN()-(COLUMN($BI$2)-1),FALSE)*C$34/SUM($C$34:$I$34)*VLOOKUP($W5,$B$3:$BI$29,(COLUMN($BI$2)-1),FALSE) -> 1.605593838 | BK5: =VLOOKUP($W5,$B$3:$I$24,COLUMN()-(COLUMN($BI$2)-1),FALSE)*D$34/SUM($C$34:$I$34)*VLOOKUP($W5,$B$3:$BI$29,(COLUMN($BI$2)-1),FALSE) -> 0.8329559234 | BL5: =VLOOKUP($W5,$B$3:$I$24,COLUMN()-(COLUMN($BI$2)-1),FALSE)*E$34/SUM($C$34:$I$34)*VLOOKUP($W5,$B$3:$BI$29,(COLUMN($BI$2)-1),FALSE) -> 0.8294005102 | BM5: =VLOOKUP($W5,$B$3:$I$24,COLUMN()-(COLUMN($BI$2)-1),FALSE)*F$34/SUM($C$34:$I$34)*VLOOKUP($W5,$B$3:$BI$29,(COLUMN($BI$2)-1),FALSE) -> 0.3071835517 | BN5: =VLOOKUP($W5,$B$3:$I$24,COLUMN()-(COLUMN($BI$2)-1),FALSE)*G$34/SUM($C$34:$I$34)*VLOOKUP($W5,$B$3:$BI$29,(COLUMN($BI$2)-1),FALSE) -> 0.9417236266 | BO5: =VLOOKUP($W5,$B$3:$I$24,COLUMN()-(COLUMN($BI$2)-1),FALSE)*H$34/SUM($C$34:$I$34)*VLOOKUP($W5,$B$3:$BI$29,(COLUMN($BI$2)-1),FALSE) -> 0.7029318028 | BP5: =VLOOKUP($W5,$B$3:$I$24,COLUMN()-(COLUMN($BI$2)-1),FALSE)*I$34/SUM($C$34:$I$34)*VLOOKUP($W5,$B$3:$BI$29,(COLUMN($BI$2)-1),FALSE) -> 0.8871828249
A6: 18 | B6: Canada | C6: ='Aid 2011'!Q8 -> 3.21303064 | D6: ='Trade 2011'!F8 -> 4.377526608 | E6: ='Finance 2011'!D7 -> 5.042410714 | F6: ='Migration 2011'!E6 -> 3.533598125 | G6: ='Environment 2011'!K8 -> 3.647604281 | H6: ='Security 2011'!J9 -> 4.368625428 | I6: ='Technology 2011'!D8 -> 5.535556311 | J6: 4.245478872 | K6: 18 | L6: =ROUND(J6,1)-ROUND(VLOOKUP($B6,INDIRECT("'CDI "&Year-1&"'!Score_table"),9,FALSE),1) -> -0.3 | M6: =SUM(IF(ROUND(J6,1)<ROUND($J$3:$J$24,1),1))+1 -> 18 | N6: =VLOOKUP($B6,INDIRECT("'CDI "&Year-1&"'!Score_table"),12,FALSE) -> 15 | O6: Canada | P6: =(SUM(IF($J6<$J$3:$J$26*(1-BF$3:BF$26),1))+1)*(1-BF6) -> 5 | Q6: =(SUM(IF($J6<$J$3:$J$26*(1-BG$3:BG$26),1))+1)*(1-BG6) -> 4 | R6: =(SUM(IF(ROUND($J6,1)<ROUND($J$3:$J$26,1)*(1-BF$3:BF$26),1))+1)*(1-BF6) -> 5 | S6: =(SUM(IF(ROUND($J6,1)<ROUND($J$3:$J$26,1)*(1-BG$3:BG$26),1))+1)*(1-BG6) -> 4 | T6: Canada | U6: 4 | V6: 4 | W6: Ireland | X6: 5.857684478 | Y6: 0.1 | Z6: -2 | AB6: 4 | AC6: New Zealand | AD6: 1.165554733 | AE6: 8.030127893 | AF6: 4.037946429 | AG6: 1.317685832 | AH6: 5.888637214 | AI6: 5.348251353 | AJ6: 4.700031186 | AK6: 4.355462091 | AM6: 4 | AN6: Canada | AO6: 3.21303064 | AP6: 4.377526608 | AQ6: 5.042410714 | AR6: 3.533598125 | AS6: 3.647604281 | AT6: 4.368625428 | AU6: 5.535556311 | AV6: 4.245478872 | BC6: 872.7844618 | BD6: 1332.626063 | BF6: 0 | BG6: 0 | BI6: =ABS(SUM($C6:$I6*$C$34:$I$34)/SUM(IF($C6:$I6>0,$C6:$I6*$C$34:$I$34))) -> 1 | BJ6: =VLOOKUP($W6,$B$3:$I$24,COLUMN()-(COLUMN($BI$2)-1),FALSE)*C$34/SUM($C$34:$I$34)*VLOOKUP($W6,$B$3:$BI$29,(COLUMN($BI$2)-1),FALSE) -> 1.206280226 | BK6: =VLOOKUP($W6,$B$3:$I$24,COLUMN()-(COLUMN($BI$2)-1),FALSE)*D$34/SUM($C$34:$I$34)*VLOOKUP($W6,$B$3:$BI$29,(COLUMN($BI$2)-1),FALSE) -> 0.8145282164 | BL6: =VLOOKUP($W6,$B$3:$I$24,COLUMN()-(COLUMN($BI$2)-1),FALSE)*E$34/SUM($C$34:$I$34)*VLOOKUP($W6,$B$3:$BI$29,(COLUMN($BI$2)-1),FALSE) -> 0.7146045918 | BM6: =VLOOKUP($W6,$B$3:$I$24,COLUMN()-(COLUMN($BI$2)-1),FALSE)*F$34/SUM($C$34:$I$34)*VLOOKUP($W6,$B$3:$BI$29,(COLUMN($BI$2)-1),FALSE) -> 0.2298430964 | BN6: =VLOOKUP($W6,$B$3:$I$24,COLUMN()-(COLUMN($BI$2)-1),FALSE)*G$34/SUM($C$34:$I$34)*VLOOKUP($W6,$B$3:$BI$29,(COLUMN($BI$2)-1),FALSE) -> 0.9746253181 | BO6: =VLOOKUP($W6,$B$3:$I$24,COLUMN()-(COLUMN($BI$2)-1),FALSE)*H$34/SUM($C$34:$I$34)*VLOOKUP($W6,$B$3:$BI$29,(COLUMN($BI$2)-1),FALSE) -> 1.339547024 | BP6: =VLOOKUP($W6,$B$3:$I$24,COLUMN()-(COLUMN($BI$2)-1),FALSE)*I$34/SUM($C$34:$I$34)*VLOOKUP($W6,$B$3:$BI$29,(COLUMN($BI$2)-1),FALSE) -> 0.5782560049
A7: 2 | B7: Denmark | C7: ='Aid 2011'!Q9 -> 11.23915687 | D7: ='Trade 2011'!F9 -> 5.830691463 | E7: ='Finance 2011'!D8 -> 5.805803571 | F7: ='Migration 2011'!E7 -> 2.150284862 | G7: ='Environment 2011'!K9 -> 6.592065386 | H7: ='Security 2011'!J10 -> 4.920522619 | I7: ='Technology 2011'!D9 -> 6.210279774 | J7: 6.106972077 | K7: 3 | L7: =ROUND(J7,1)-ROUND(VLOOKUP($B7,INDIRECT("'CDI "&Year-1&"'!Score_table"),9,FALSE),1) -> 0.3 | M7: =SUM(IF(ROUND(J7,1)<ROUND($J$3:$J$24,1),1))+1 -> 2 | N7: =VLOOKUP($B7,INDIRECT("'CDI "&Year-1&"'!Score_table"),12,FALSE) -> 2 | O7: Denmark | P7: =(SUM(IF($J7<$J$3:$J$26*(1-BF$3:BF$26),1))+1)*(1-BF7) -> 0 | Q7: =(SUM(IF($J7<$J$3:$J$26*(1-BG$3:BG$26),1))+1)*(1-BG7) -> 0 | R7: =(SUM(IF(ROUND($J7,1)<ROUND($J$3:$J$26,1)*(1-BF$3:BF$26),1))+1)*(1-BF7) -> 0 | S7: =(SUM(IF(ROUND($J7,1)<ROUND($J$3:$J$26,1)*(1-BG$3:BG$26),1))+1)*(1-BG7) -> 0 | T7: Denmark | U7: 5 | V7: 5 | W7: Spain | X7: 5.682297464 | Y7: 0 | Z7: 1 | AB7: 5 | AC7: Canada | AD7: 3.21303064 | AE7: 4.377526608 | AF7: 5.042410714 | AG7: 3.533598125 | AH7: 3.647604281 | AI7: 4.368625428 | AJ7: 5.535556311 | AK7: 4.245478872 | AM7: 5 | AN7: Australia | AO7: 2.84478905 | AP7: 6.930819346 | AQ7: 5.745535714 | AR7: 1.84147585 | AS7: 3.878110665 | AT7: 1.649946136 | AU7: 5.145552131 | AV7: 4.005175556 | BC7: 77.65141094 | BD7: 257.9283313 | BF7: 1 | BG7: 1 | BI7: =ABS(SUM($C7:$I7*$C$34:$I$34)/SUM(IF($C7:$I7>0,$C7:$I7*$C$34:$I$34))) -> 1 | BJ7: =VLOOKUP($W7,$B$3:$I$24,COLUMN()-(COLUMN($BI$2)-1),FALSE)*C$34/SUM($C$34:$I$34)*VLOOKUP($W7,$B$3:$BI$29,(COLUMN($BI$2)-1),FALSE) -> 1.282535914 | BK7: =VLOOKUP($W7,$B$3:$I$24,COLUMN()-(COLUMN($BI$2)-1),FALSE)*D$34/SUM($C$34:$I$34)*VLOOKUP($W7,$B$3:$BI$29,(COLUMN($BI$2)-1),FALSE) -> 0.864712704 | BL7: =VLOOKUP($W7,$B$3:$I$24,COLUMN()-(COLUMN($BI$2)-1),FALSE)*E$34/SUM($C$34:$I$34)*VLOOKUP($W7,$B$3:$BI$29,(COLUMN($BI$2)-1),FALSE) -> 0.8580994898 | BM7: =VLOOKUP($W7,$B$3:$I$24,COLUMN()-(COLUMN($BI$2)-1),FALSE)*F$34/SUM($C$34:$I$34)*VLOOKUP($W7,$B$3:$BI$29,(COLUMN($BI$2)-1),FALSE) -> 0.3396486251 | BN7: =VLOOKUP($W7,$B$3:$I$24,COLUMN()-(COLUMN($BI$2)-1),FALSE)*G$34/SUM($C$34:$I$34)*VLOOKUP($W7,$B$3:$BI$29,(COLUMN($BI$2)-1),FALSE) -> 0.9160713199 | BO7: =VLOOKUP($W7,$B$3:$I$24,COLUMN()-(COLUMN($BI$2)-1),FALSE)*H$34/SUM($C$34:$I$34)*VLOOKUP($W7,$B$3:$BI$29,(COLUMN($BI$2)-1),FALSE) -> 0.5850059306 | BP7: =VLOOKUP($W7,$B$3:$I$24,COLUMN()-(COLUMN($BI$2)-1),FALSE)*I$34/SUM($C$34:$I$34)*VLOOKUP($W7,$B$3:$BI$29,(COLUMN($BI$2)-1),FALSE) -> 0.8362234815
A8: 2 | B8: Finland | C8: ='Aid 2011'!Q10 -> 6.796806717 | D8: ='Trade 2011'!F10 -> 6.318488762 | E8: ='Finance 2011'!D9 -> 6.167410714 | F8: ='Migration 2011'!E8 -> 2.127450052 | G8: ='Environment 2011'!K10 -> 8.20546994 | H8: ='Security 2011'!J11 -> 7.477672113 | I8: ='Technology 2011'!D10 -> 5.847676306 | J8: 6.134424943 | K8: 2 | L8: =ROUND(J8,1)-ROUND(VLOOKUP($B8,INDIRECT("'CDI "&Year-1&"'!Score_table"),9,FALSE),1) -> 0.3 | M8: =SUM(IF(ROUND(J8,1)<ROUND($J$3:$J$24,1),1))+1 -> 2 | N8: =VLOOKUP($B8,INDIRECT("'CDI "&Year-1&"'!Score_table"),12,FALSE) -> 2 | O8: Finland | P8: =(SUM(IF($J8<$J$3:$J$26*(1-BF$3:BF$26),1))+1)*(1-BF8) -> 0 | Q8: =(SUM(IF($J8<$J$3:$J$26*(1-BG$3:BG$26),1))+1)*(1-BG8) -> 0 | R8: =(SUM(IF(ROUND($J8,1)<ROUND($J$3:$J$26,1)*(1-BF$3:BF$26),1))+1)*(1-BF8) -> 0 | S8: =(SUM(IF(ROUND($J8,1)<ROUND($J$3:$J$26,1)*(1-BG$3:BG$26),1))+1)*(1-BG8) -> 0 | T8: Finland | U8: 6 | V8: 6 | W8: Austria | X8: 5.403863197 | Y8: 0.4 | Z8: 5 | AB8: 6 | AC8: Australia | AD8: 2.84478905 | AE8: 6.930819346 | AF8: 5.745535714 | AG8: 1.84147585 | AH8: 3.878110665 | AI8: 1.649946136 | AJ8: 5.145552131 | AK8: 4.005175556 | AM8: 6 | AN8: Japan | AO8: 0.08476946814 | AP8: 1.678264543 | AQ8: 3.857142857 | AR8: 0.9768560383 | AS8: 4.884135216 | AT8: 4.129787821 | AU8: 6.166040051 | AV8: 3.110999428 | BC8: 169.3625385 | BD8: 222.7818824 | BF8: 1 | BG8: 1 | BI8: =ABS(SUM($C8:$I8*$C$34:$I$34)/SUM(IF($C8:$I8>0,$C8:$I8*$C$34:$I$34))) -> 1 | BJ8: =VLOOKUP($W8,$B$3:$I$24,COLUMN()-(COLUMN($BI$2)-1),FALSE)*C$34/SUM($C$34:$I$34)*VLOOKUP($W8,$B$3:$BI$29,(COLUMN($BI$2)-1),FALSE) -> 0.917187273 | BK8: =VLOOKUP($W8,$B$3:$I$24,COLUMN()-(COLUMN($BI$2)-1),FALSE)*D$34/SUM($C$34:$I$34)*VLOOKUP($W8,$B$3:$BI$29,(COLUMN($BI$2)-1),FALSE) -> 0.8935105667 | BL8: =VLOOKUP($W8,$B$3:$I$24,COLUMN()-(COLUMN($BI$2)-1),FALSE)*E$34/SUM($C$34:$I$34)*VLOOKUP($W8,$B$3:$BI$29,(COLUMN($BI$2)-1),FALSE) -> 0.5280612245 | BM8: =VLOOKUP($W8,$B$3:$I$24,COLUMN()-(COLUMN($BI$2)-1),FALSE)*F$34/SUM($C$34:$I$34)*VLOOKUP($W8,$B$3:$BI$29,(COLUMN($BI$2)-1),FALSE) -> 0.4628611254 | BN8: =VLOOKUP($W8,$B$3:$I$24,COLUMN()-(COLUMN($BI$2)-1),FALSE)*G$34/SUM($C$34:$I$34)*VLOOKUP($W8,$B$3:$BI$29,(COLUMN($BI$2)-1),FALSE) -> 0.8278041636 | BO8: =VLOOKUP($W8,$B$3:$I$24,COLUMN()-(COLUMN($BI$2)-1),FALSE)*H$34/SUM($C$34:$I$34)*VLOOKUP($W8,$B$3:$BI$29,(COLUMN($BI$2)-1),FALSE) -> 1.006873731 | BP8: =VLOOKUP($W8,$B$3:$I$24,COLUMN()-(COLUMN($BI$2)-1),FALSE)*I$34/SUM($C$34:$I$34)*VLOOKUP($W8,$B$3:$BI$29,(COLUMN($BI$2)-1),FALSE) -> 0.7675651131
A9: 6 | B9: France | C9: ='Aid 2011'!Q11 -> 7.600517726 | D9: ='Trade 2011'!F11 -> 5.829904791 | E9: ='Finance 2011'!D10 -> 5.464285714 | F9: ='Migration 2011'!E9 -> 2.749792174 | G9: ='Environment 2011'!K11 -> 6.932718032 | H9: ='Security 2011'!J12 -> 3.115827131 | I9: ='Technology 2011'!D11 -> 5.983497096 | J9: 5.382363238 | K9: 7 | L9: =ROUND(J9,1)-ROUND(VLOOKUP($B9,INDIRECT("'CDI "&Year-1&"'!Score_table"),9,FALSE),1) -> 0.1 | M9: =SUM(IF(ROUND(J9,1)<ROUND($J$3:$J$24,1),1))+1 -> 6 | N9: =VLOOKUP($B9,INDIRECT("'CDI "&Year-1&"'!Score_table"),12,FALSE) -> 7 | O9: France | P9: =(SUM(IF($J9<$J$3:$J$26*(1-BF$3:BF$26),1))+1)*(1-BF9) -> 0 | Q9: =(SUM(IF($J9<$J$3:$J$26*(1-BG$3:BG$26),1))+1)*(1-BG9) -> 0 | R9: =(SUM(IF(ROUND($J9,1)<ROUND($J$3:$J$26,1)*(1-BF$3:BF$26),1))+1)*(1-BF9) -> 0 | S9: =(SUM(IF(ROUND($J9,1)<ROUND($J$3:$J$26,1)*(1-BG$3:BG$26),1))+1)*(1-BG9) -> 0 | T9: France | U9: 7 | V9: 6 | W9: France | X9: 5.382363238 | Y9: 0.1 | Z9: 1 | AB9: 7 | AC9: Switzerland | AD9: 6.929752627 | AE9: -0.5201460793 | AF9: 3.154017857 | AG9: 2.502026538 | AH9: 5.842684703 | AI9: 3.722748889 | AJ9: 4.791545682 | AK9: 3.77466146 | AM9: 7 | AN9: South Korea | AO9: 0.9772185405 | AP9: -2.237156369 | AQ9: 4.600446429 | AR9: 1.17157818 | AS9: 3.779947559 | AT9: 1.35765862 | AU9: 6.688166125 | AV9: 2.333979869 | BC9: 145.4219592 | BD9: 195.6387553 | BF9: 1 | BG9: 1 | BI9: =ABS(SUM($C9:$I9*$C$34:$I$34)/SUM(IF($C9:$I9>0,$C9:$I9*$C$34:$I$34))) -> 1 | BJ9: =VLOOKUP($W9,$B$3:$I$24,COLUMN()-(COLUMN($BI$2)-1),FALSE)*C$34/SUM($C$34:$I$34)*VLOOKUP($W9,$B$3:$BI$29,(COLUMN($BI$2)-1),FALSE) -> 1.085788247 | BK9: =VLOOKUP($W9,$B$3:$I$24,COLUMN()-(COLUMN($BI$2)-1),FALSE)*D$34/SUM($C$34:$I$34)*VLOOKUP($W9,$B$3:$BI$29,(COLUMN($BI$2)-1),FALSE) -> 0.8328435416 | BL9: =VLOOKUP($W9,$B$3:$I$24,COLUMN()-(COLUMN($BI$2)-1),FALSE)*E$34/SUM($C$34:$I$34)*VLOOKUP($W9,$B$3:$BI$29,(COLUMN($BI$2)-1),FALSE) -> 0.7806122449 | BM9: =VLOOKUP($W9,$B$3:$I$24,COLUMN()-(COLUMN($BI$2)-1),FALSE)*F$34/SUM($C$34:$I$34)*VLOOKUP($W9,$B$3:$BI$29,(COLUMN($BI$2)-1),FALSE) -> 0.3928274534 | BN9: =VLOOKUP($W9,$B$3:$I$24,COLUMN()-(COLUMN($BI$2)-1),FALSE)*G$34/SUM($C$34:$I$34)*VLOOKUP($W9,$B$3:$BI$29,(COLUMN($BI$2)-1),FALSE) -> 0.9903882903 | BO9: =VLOOKUP($W9,$B$3:$I$24,COLUMN()-(COLUMN($BI$2)-1),FALSE)*H$34/SUM($C$34:$I$34)*VLOOKUP($W9,$B$3:$BI$29,(COLUMN($BI$2)-1),FALSE) -> 0.4451181616 | BP9: =VLOOKUP($W9,$B$3:$I$24,COLUMN()-(COLUMN($BI$2)-1),FALSE)*I$34/SUM($C$34:$I$34)*VLOOKUP($W9,$B$3:$BI$29,(COLUMN($BI$2)-1),FALSE) -> 0.8547852994
A10: 9 | B10: Germany | C10: ='Aid 2011'!Q12 -> 7.072250807 | D10: ='Trade 2011'!F12 -> 6.054903169 | E10: ='Finance 2011'!D11 -> 4.339285714 | F10: ='Migration 2011'!E10 -> 3.33034475 | G10: ='Environment 2011'!K12 -> 6.829263519 | H10: ='Security 2011'!J13 -> 3.742139015 | I10: ='Technology 2011'!D12 -> 4.699402357 | J10: 5.152512762 | K10: 10 | L10: =ROUND(J10,1)-ROUND(VLOOKUP($B10,INDIRECT("'CDI "&Year-1&"'!Score_table"),9,FALSE),1) -> 0.2 | M10: =SUM(IF(ROUND(J10,1)<ROUND($J$3:$J$24,1),1))+1 -> 9 | N10: =VLOOKUP($B10,INDIRECT("'CDI "&Year-1&"'!Score_table"),12,FALSE) -> 11 | O10: Germany | P10: =(SUM(IF($J10<$J$3:$J$26*(1-BF$3:BF$26),1))+1)*(1-BF10) -> 0 | Q10: =(SUM(IF($J10<$J$3:$J$26*(1-BG$3:BG$26),1))+1)*(1-BG10) -> 0 | R10: =(SUM(IF(ROUND($J10,1)<ROUND($J$3:$J$26,1)*(1-BF$3:BF$26),1))+1)*(1-BF10) -> 0 | S10: =(SUM(IF(ROUND($J10,1)<ROUND($J$3:$J$26,1)*(1-BG$3:BG$26),1))+1)*(1-BG10) -> 0 | T10: Germany | U10: 8 | V10: 8 | W10: Belgium | X10: 5.318636834 | Y10: 0 | Z10: -1 | AB10: 8 | AC10: Japan | AD10: 0.08476946814 | AE10: 1.678264543 | AF10: 3.857142857 | AG10: 0.9768560383 | AH10: 4.884135216 | AI10: 4.129787821 | AJ10: 6.166040051 | AK10: 3.110999428 | BC10: 1484.698026 | BD10: 2214.42474 | BF10: 1 | BG10: 1 | BI10: =ABS(SUM($C10:$I10*$C$34:$I$34)/SUM(IF($C10:$I10>0,$C10:$I10*$C$34:$I$34))) -> 1 | BJ10: =VLOOKUP($W10,$B$3:$I$24,COLUMN()-(COLUMN($BI$2)-1),FALSE)*C$34/SUM($C$34:$I$34)*VLOOKUP($W10,$B$3:$BI$29,(COLUMN($BI$2)-1),FALSE) -> 1.339592322 | BK10: =VLOOKUP($W10,$B$3:$I$24,COLUMN()-(COLUMN($BI$2)-1),FALSE)*D$34/SUM($C$34:$I$34)*VLOOKUP($W10,$B$3:$BI$29,(COLUMN($BI$2)-1),FALSE) -> 0.8099144229 | BL10: =VLOOKUP($W10,$B$3:$I$24,COLUMN()-(COLUMN($BI$2)-1),FALSE)*E$34/SUM($C$34:$I$34)*VLOOKUP($W10,$B$3:$BI$29,(COLUMN($BI$2)-1),FALSE) -> 0.7863520408 | BM10: =VLOOKUP($W10,$B$3:$I$24,COLUMN()-(COLUMN($BI$2)-1),FALSE)*F$34/SUM($C$34:$I$34)*VLOOKUP($W10,$B$3:$BI$29,(COLUMN($BI$2)-1),FALSE) -> 0.3909172223 | BN10: =VLOOKUP($W10,$B$3:$I$24,COLUMN()-(COLUMN($BI$2)-1),FALSE)*G$34/SUM($C$34:$I$34)*VLOOKUP($W10,$B$3:$BI$29,(COLUMN($BI$2)-1),FALSE) -> 1.013367655 | BO10: =VLOOKUP($W10,$B$3:$I$24,COLUMN()-(COLUMN($BI$2)-1),FALSE)*H$34/SUM($C$34:$I$34)*VLOOKUP($W10,$B$3:$BI$29,(COLUMN($BI$2)-1),FALSE) -> 0.324396963 | BP10: =VLOOKUP($W10,$B$3:$I$24,COLUMN()-(COLUMN($BI$2)-1),FALSE)*I$34/SUM($C$34:$I$34)*VLOOKUP($W10,$B$3:$BI$29,(COLUMN($BI$2)-1),FALSE) -> 0.6540962078
A11: 16 | B11: Greece | C11: ='Aid 2011'!Q13 -> 4.594332967 | D11: ='Trade 2011'!F13 -> 5.588857754 | E11: ='Finance 2011'!D12 -> 4.620535714 | F11: ='Migration 2011'!E11 -> 3.353901069 | G11: ='Environment 2011'!K13 -> 5.919095743 | H11: ='Security 2011'!J14 -> 4.189847803 | I11: ='Technology 2011'!D13 -> 2.709877265 | J11: 4.425206902 | K11: 16 | L11: =ROUND(J11,1)-ROUND(VLOOKUP($B11,INDIRECT("'CDI "&Year-1&"'!Score_table"),9,FALSE),1) -> 0.1 | M11: =SUM(IF(ROUND(J11,1)<ROUND($J$3:$J$24,1),1))+1 -> 16 | N11: =VLOOKUP($B11,INDIRECT("'CDI "&Year-1&"'!Score_table"),12,FALSE) -> 18 | O11: Greece | P11: =(SUM(IF($J11<$J$3:$J$26*(1-BF$3:BF$26),1))+1)*(1-BF11) -> 0 | Q11: =(SUM(IF($J11<$J$3:$J$26*(1-BG$3:BG$26),1))+1)*(1-BG11) -> 0 | R11: =(SUM(IF(ROUND($J11,1)<ROUND($J$3:$J$26,1)*(1-BF$3:BF$26),1))+1)*(1-BF11) -> 0 | S11: =(SUM(IF(ROUND($J11,1)<ROUND($J$3:$J$26,1)*(1-BG$3:BG$26),1))+1)*(1-BG11) -> 0 | T11: Greece | U11: 9 | V11: 9 | W11: Portugal | X11: 5.186208476 | Y11: -0.6 | Z11: -7 | AB11: 9 | AC11: South Korea | AD11: 0.9772185405 | AE11: -2.237156369 | AF11: 4.600446429 | AG11: 1.17157818 | AH11: 3.779947559 | AI11: 1.35765862 | AJ11: 6.688166125 | AK11: 2.333979869 | BC11: 5010.032165 | BD11: 4299.287691 | BF11: 1 | BG11: 1 | BI11: =ABS(SUM($C11:$I11*$C$34:$I$34)/SUM(IF($C11:$I11>0,$C11:$I11*$C$34:$I$34))) -> 1 | BJ11: =VLOOKUP($W11,$B$3:$I$24,COLUMN()-(COLUMN($BI$2)-1),FALSE)*C$34/SUM($C$34:$I$34)*VLOOKUP($W11,$B$3:$BI$29,(COLUMN($BI$2)-1),FALSE) -> 0.7257934454 | BK11: =VLOOKUP($W11,$B$3:$I$24,COLUMN()-(COLUMN($BI$2)-1),FALSE)*D$34/SUM($C$34:$I$34)*VLOOKUP($W11,$B$3:$BI$29,(COLUMN($BI$2)-1),FALSE) -> 0.854650546 | BL11: =VLOOKUP($W11,$B$3:$I$24,COLUMN()-(COLUMN($BI$2)-1),FALSE)*E$34/SUM($C$34:$I$34)*VLOOKUP($W11,$B$3:$BI$29,(COLUMN($BI$2)-1),FALSE) -> 0.7461734694 | BM11: =VLOOKUP($W11,$B$3:$I$24,COLUMN()-(COLUMN($BI$2)-1),FALSE)*F$34/SUM($C$34:$I$34)*VLOOKUP($W11,$B$3:$BI$29,(COLUMN($BI$2)-1),FALSE) -> 0.1516311518 | BN11: =VLOOKUP($W11,$B$3:$I$24,COLUMN()-(COLUMN($BI$2)-1),FALSE)*G$34/SUM($C$34:$I$34)*VLOOKUP($W11,$B$3:$BI$29,(COLUMN($BI$2)-1),FALSE) -> 1.068895306 | BO11: =VLOOKUP($W11,$B$3:$I$24,COLUMN()-(COLUMN($BI$2)-1),FALSE)*H$34/SUM($C$34:$I$34)*VLOOKUP($W11,$B$3:$BI$29,(COLUMN($BI$2)-1),FALSE) -> 0.6685626771 | BP11: =VLOOKUP($W11,$B$3:$I$24,COLUMN()-(COLUMN($BI$2)-1),FALSE)*I$34/SUM($C$34:$I$34)*VLOOKUP($W11,$B$3:$BI$29,(COLUMN($BI$2)-1),FALSE) -> 0.97050188
A12: 4 | B12: Ireland | C12: ='Aid 2011'!Q14 -> 8.443961582 | D12: ='Trade 2011'!F14 -> 5.701697515 | E12: ='Finance 2011'!D13 -> 5.002232143 | F12: ='Migration 2011'!E12 -> 1.608901674 | G12: ='Environment 2011'!K14 -> 6.822377227 | H12: ='Security 2011'!J15 -> 9.376829168 | I12: ='Technology 2011'!D14 -> 4.047792035 | J12: 5.857684478 | K12: 4 | L12: =ROUND(J12,1)-ROUND(VLOOKUP($B12,INDIRECT("'CDI "&Year-1&"'!Score_table"),9,FALSE),1) -> 0.1 | M12: =SUM(IF(ROUND(J12,1)<ROUND($J$3:$J$24,1),1))+1 -> 4 | N12: =VLOOKUP($B12,INDIRECT("'CDI "&Year-1&"'!Score_table"),12,FALSE) -> 2 | O12: Ireland | P12: =(SUM(IF($J12<$J$3:$J$26*(1-BF$3:BF$26),1))+1)*(1-BF12) -> 0 | Q12: =(SUM(IF($J12<$J$3:$J$26*(1-BG$3:BG$26),1))+1)*(1-BG12) -> 0 | R12: =(SUM(IF(ROUND($J12,1)<ROUND($J$3:$J$26,1)*(1-BF$3:BF$26),1))+1)*(1-BF12) -> 0 | S12: =(SUM(IF(ROUND($J12,1)<ROUND($J$3:$J$26,1)*(1-BG$3:BG$26),1))+1)*(1-BG12) -> 0 | T12: Ireland | U12: 10 | V12: 9 | W12: Germany | X12: 5.152512762 | Y12: 0.2 | Z12: 2 | BC12: 26.51690394 | BD12: 43.66501069 | BF12: 1 | BG12: 1 | BI12: =ABS(SUM($C12:$I12*$C$34:$I$34)/SUM(IF($C12:$I12>0,$C12:$I12*$C$34:$I$34))) -> 1 | BJ12: =VLOOKUP($W12,$B$3:$I$24,COLUMN()-(COLUMN($BI$2)-1),FALSE)*C$34/SUM($C$34:$I$34)*VLOOKUP($W12,$B$3:$BI$29,(COLUMN($BI$2)-1),FALSE) -> 1.010321544 | BK12: =VLOOKUP($W12,$B$3:$I$24,COLUMN()-(COLUMN($BI$2)-1),FALSE)*D$34/SUM($C$34:$I$34)*VLOOKUP($W12,$B$3:$BI$29,(COLUMN($BI$2)-1),FALSE) -> 0.864986167 | BL12: =VLOOKUP($W12,$B$3:$I$24,COLUMN()-(COLUMN($BI$2)-1),FALSE)*E$34/SUM($C$34:$I$34)*VLOOKUP($W12,$B$3:$BI$29,(COLUMN($BI$2)-1),FALSE) -> 0.6198979592 | BM12: =VLOOKUP($W12,$B$3:$I$24,COLUMN()-(COLUMN($BI$2)-1),FALSE)*F$34/SUM($C$34:$I$34)*VLOOKUP($W12,$B$3:$BI$29,(COLUMN($BI$2)-1),FALSE) -> 0.4757635357 | BN12: =VLOOKUP($W12,$B$3:$I$24,COLUMN()-(COLUMN($BI$2)-1),FALSE)*G$34/SUM($C$34:$I$34)*VLOOKUP($W12,$B$3:$BI$29,(COLUMN($BI$2)-1),FALSE) -> 0.9756090742 | BO12: =VLOOKUP($W12,$B$3:$I$24,COLUMN()-(COLUMN($BI$2)-1),FALSE)*H$34/SUM($C$34:$I$34)*VLOOKUP($W12,$B$3:$BI$29,(COLUMN($BI$2)-1),FALSE) -> 0.5345912878 | BP12: =VLOOKUP($W12,$B$3:$I$24,COLUMN()-(COLUMN($BI$2)-1),FALSE)*I$34/SUM($C$34:$I$34)*VLOOKUP($W12,$B$3:$BI$29,(COLUMN($BI$2)-1),FALSE) -> 0.6713431938
A13: 12 | B13: Italy | C13: ='Aid 2011'!Q15 -> 4.107833868 | D13: ='Trade 2011'!F15 -> 5.729328622 | E13: ='Finance 2011'!D14 -> 5.504464286 | F13: ='Migration 2011'!E13 -> 2.030580867 | G13: ='Environment 2011'!K15 -> 6.594957788 | H13: ='Security 2011'!J16 -> 6.059067396 | I13: ='Technology 2011'!D15 -> 4.451112308 | J13: 4.925335019 | K13: 12 | L13: =ROUND(J13,1)-ROUND(VLOOKUP($B13,INDIRECT("'CDI "&Year-1&"'!Score_table"),9,FALSE),1) -> -0.1 | M13: =SUM(IF(ROUND(J13,1)<ROUND($J$3:$J$24,1),1))+1 -> 12 | N13: =VLOOKUP($B13,INDIRECT("'CDI "&Year-1&"'!Score_table"),12,FALSE) -> 11 | O13: Italy | P13: =(SUM(IF($J13<$J$3:$J$26*(1-BF$3:BF$26),1))+1)*(1-BF13) -> 0 | Q13: =(SUM(IF($J13<$J$3:$J$26*(1-BG$3:BG$26),1))+1)*(1-BG13) -> 0 | R13: =(SUM(IF(ROUND($J13,1)<ROUND($J$3:$J$26,1)*(1-BF$3:BF$26),1))+1)*(1-BF13) -> 0 | S13: =(SUM(IF(ROUND($J13,1)<ROUND($J$3:$J$26,1)*(1-BG$3:BG$26),1))+1)*(1-BG13) -> 0 | T13: Italy | U13: 11 | V13: 11 | W13: United Kingdom | X13: 5.009021058 | Y13: 0.2 | Z13: 3 | BC13: 441.1854356 | BD13: 700.605399 | BF13: 1 | BG13: 1 | BI13: =ABS(SUM($C13:$I13*$C$34:$I$34)/SUM(IF($C13:$I13>0,$C13:$I13*$C$34:$I$34))) -> 1 | BJ13: =VLOOKUP($W13,$B$3:$I$24,COLUMN()-(COLUMN($BI$2)-1),FALSE)*C$34/SUM($C$34:$I$34)*VLOOKUP($W13,$B$3:$BI$29,(COLUMN($BI$2)-1),FALSE) -> 0.9950534717 | BK13: =VLOOKUP($W13,$B$3:$I$24,COLUMN()-(COLUMN($BI$2)-1),FALSE)*D$34/SUM($C$34:$I$34)*VLOOKUP($W13,$B$3:$BI$29,(COLUMN($BI$2)-1),FALSE) -> 0.9007126641 | BL13: =VLOOKUP($W13,$B$3:$I$24,COLUMN()-(COLUMN($BI$2)-1),FALSE)*E$34/SUM($C$34:$I$34)*VLOOKUP($W13,$B$3:$BI$29,(COLUMN($BI$2)-1),FALSE) -> 0.8035714286 | BM13: =VLOOKUP($W13,$B$3:$I$24,COLUMN()-(COLUMN($BI$2)-1),FALSE)*F$34/SUM($C$34:$I$34)*VLOOKUP($W13,$B$3:$BI$29,(COLUMN($BI$2)-1),FALSE) -> 0.2981924391 | BN13: =VLOOKUP($W13,$B$3:$I$24,COLUMN()-(COLUMN($BI$2)-1),FALSE)*G$34/SUM($C$34:$I$34)*VLOOKUP($W13,$B$3:$BI$29,(COLUMN($BI$2)-1),FALSE) -> 1.042527952 | BO13: =VLOOKUP($W13,$B$3:$I$24,COLUMN()-(COLUMN($BI$2)-1),FALSE)*H$34/SUM($C$34:$I$34)*VLOOKUP($W13,$B$3:$BI$29,(COLUMN($BI$2)-1),FALSE) -> 0.3080539439 | BP13: =VLOOKUP($W13,$B$3:$I$24,COLUMN()-(COLUMN($BI$2)-1),FALSE)*I$34/SUM($C$34:$I$34)*VLOOKUP($W13,$B$3:$BI$29,(COLUMN($BI$2)-1),FALSE) -> 0.6609091586
A14: 21 | B14: Japan | C14: ='Aid 2011'!Q16 -> 0.08476946814 | D14: ='Trade 2011'!F16 -> 1.678264543 | E14: ='Finance 2011'!D15 -> 3.857142857 | F14: ='Migration 2011'!E14 -> 0.9768560383 | G14: ='Environment 2011'!K16 -> 4.884135216 | H14: ='Security 2011'!J17 -> 4.129787821 | I14: ='Technology 2011'!D16 -> 6.166040051 | J14: 3.110999428 | K14: 21 | L14: =ROUND(J14,1)-ROUND(VLOOKUP($B14,INDIRECT("'CDI "&Year-1&"'!Score_table"),9,FALSE),1) -> 0.2 | M14: =SUM(IF(ROUND(J14,1)<ROUND($J$3:$J$24,1),1))+1 -> 21 | N14: =VLOOKUP($B14,INDIRECT("'CDI "&Year-1&"'!Score_table"),12,FALSE) -> 21 | O14: Japan | P14: =(SUM(IF($J14<$J$3:$J$26*(1-BF$3:BF$26),1))+1)*(1-BF14) -> 8 | Q14: =(SUM(IF($J14<$J$3:$J$26*(1-BG$3:BG$26),1))+1)*(1-BG14) -> 6 | R14: =(SUM(IF(ROUND($J14,1)<ROUND($J$3:$J$26,1)*(1-BF$3:BF$26),1))+1)*(1-BF14) -> 8 | S14: =(SUM(IF(ROUND($J14,1)<ROUND($J$3:$J$26,1)*(1-BG$3:BG$26),1))+1)*(1-BG14) -> 6 | T14: Japan | U14: 12 | V14: 12 | W14: Italy | X14: 4.925335019 | Y14: -0.1 | Z14: -1 | BC14: 64.83834061 | BD14: 129.006764 | BF14: 0 | BG14: 0 | BI14: =ABS(SUM($C14:$I14*$C$34:$I$34)/SUM(IF($C14:$I14>0,$C14:$I14*$C$34:$I$34))) -> 1 | BJ14: =VLOOKUP($W14,$B$3:$I$24,COLUMN()-(COLUMN($BI$2)-1),FALSE)*C$34/SUM($C$34:$I$34)*VLOOKUP($W14,$B$3:$BI$29,(COLUMN($BI$2)-1),FALSE) -> 0.5868334098 | BK14: =VLOOKUP($W14,$B$3:$I$24,COLUMN()-(COLUMN($BI$2)-1),FALSE)*D$34/SUM($C$34:$I$34)*VLOOKUP($W14,$B$3:$BI$29,(COLUMN($BI$2)-1),FALSE) -> 0.8184755174 | BL14: =VLOOKUP($W14,$B$3:$I$24,COLUMN()-(COLUMN($BI$2)-1),FALSE)*E$34/SUM($C$34:$I$34)*VLOOKUP($W14,$B$3:$BI$29,(COLUMN($BI$2)-1),FALSE) -> 0.7863520408 | BM14: =VLOOKUP($W14,$B$3:$I$24,COLUMN()-(COLUMN($BI$2)-1),FALSE)*F$34/SUM($C$34:$I$34)*VLOOKUP($W14,$B$3:$BI$29,(COLUMN($BI$2)-1),FALSE) -> 0.290082981 | BN14: =VLOOKUP($W14,$B$3:$I$24,COLUMN()-(COLUMN($BI$2)-1),FALSE)*G$34/SUM($C$34:$I$34)*VLOOKUP($W14,$B$3:$BI$29,(COLUMN($BI$2)-1),FALSE) -> 0.9421368268 | BO14: =VLOOKUP($W14,$B$3:$I$24,COLUMN()-(COLUMN($BI$2)-1),FALSE)*H$34/SUM($C$34:$I$34)*VLOOKUP($W14,$B$3:$BI$29,(COLUMN($BI$2)-1),FALSE) -> 0.8655810565 | BP14: =VLOOKUP($W14,$B$3:$I$24,COLUMN()-(COLUMN($BI$2)-1),FALSE)*I$34/SUM($C$34:$I$34)*VLOOKUP($W14,$B$3:$BI$29,(COLUMN($BI$2)-1),FALSE) -> 0.6358731869
A15: 14 | B15: Netherlands | C15: ='Aid 2011'!Q17 -> 7.342629282 | D15: ='Trade 2011'!F17 -> 6.71371591 | E15: ='Finance 2011'!D16 -> 4.921875 | F15: ='Migration 2011'!E15 -> 2.106106215 | G15: ='Environment 2011'!K17 -> 6.837042255 | H15: ='Security 2011'!J18 -> -1.329710659 | I15: ='Technology 2011'!D17 -> 5.1223354 | J15: 4.530570486 | K15: 15 | L15: =ROUND(J15,1)-ROUND(VLOOKUP($B15,INDIRECT("'CDI "&Year-1&"'!Score_table"),9,FALSE),1) -> -0.6 | M15: =SUM(IF(ROUND(J15,1)<ROUND($J$3:$J$24,1),1))+1 -> 14 | N15: =VLOOKUP($B15,INDIRECT("'CDI "&Year-1&"'!Score_table"),12,FALSE) -> 9 | O15: Netherlands | P15: =(SUM(IF($J15<$J$3:$J$26*(1-BF$3:BF$26),1))+1)*(1-BF15) -> 0 | Q15: =(SUM(IF($J15<$J$3:$J$26*(1-BG$3:BG$26),1))+1)*(1-BG15) -> 0 | R15: =(SUM(IF(ROUND($J15,1)<ROUND($J$3:$J$26,1)*(1-BF$3:BF$26),1))+1)*(1-BF15) -> 0 | S15: =(SUM(IF(ROUND($J15,1)<ROUND($J$3:$J$26,1)*(1-BG$3:BG$26),1))+1)*(1-BG15) -> 0 | T15: Netherlands | U15: 13 | V15: 12 | W15: Norway | X15: 4.875825079 | Y15: -0.2 | Z15: -3 | BC15: 195.4248294 | BD15: 279.8018232 | BF15: 1 | BG15: 1 | BI15: =ABS(SUM($C15:$I15*$C$34:$I$34)/SUM(IF($C15:$I15>0,$C15:$I15*$C$34:$I$34))) -> 0.9597590313 | BJ15: =VLOOKUP($W15,$B$3:$I$24,COLUMN()-(COLUMN($BI$2)-1),FALSE)*C$34/SUM($C$34:$I$34)*VLOOKUP($W15,$B$3:$BI$29,(COLUMN($BI$2)-1),FALSE) -> 1.345505959 | BK15: =VLOOKUP($W15,$B$3:$I$24,COLUMN()-(COLUMN($BI$2)-1),FALSE)*D$34/SUM($C$34:$I$34)*VLOOKUP($W15,$B$3:$BI$29,(COLUMN($BI$2)-1),FALSE) -> -0.4437563808 | BL15: =VLOOKUP($W15,$B$3:$I$24,COLUMN()-(COLUMN($BI$2)-1),FALSE)*E$34/SUM($C$34:$I$34)*VLOOKUP($W15,$B$3:$BI$29,(COLUMN($BI$2)-1),FALSE) -> 0.7617415995 | BM15: =VLOOKUP($W15,$B$3:$I$24,COLUMN()-(COLUMN($BI$2)-1),FALSE)*F$34/SUM($C$34:$I$34)*VLOOKUP($W15,$B$3:$BI$29,(COLUMN($BI$2)-1),FALSE) -> 0.5393308147 | BN15: =VLOOKUP($W15,$B$3:$I$24,COLUMN()-(COLUMN($BI$2)-1),FALSE)*G$34/SUM($C$34:$I$34)*VLOOKUP($W15,$B$3:$BI$29,(COLUMN($BI$2)-1),FALSE) -> 0.3713027879 | BO15: =VLOOKUP($W15,$B$3:$I$24,COLUMN()-(COLUMN($BI$2)-1),FALSE)*H$34/SUM($C$34:$I$34)*VLOOKUP($W15,$B$3:$BI$29,(COLUMN($BI$2)-1),FALSE) -> 1.105902876 | BP15: =VLOOKUP($W15,$B$3:$I$24,COLUMN()-(COLUMN($BI$2)-1),FALSE)*I$34/SUM($C$34:$I$34)*VLOOKUP($W15,$B$3:$BI$29,(COLUMN($BI$2)-1),FALSE) -> 0.7520410419
A16: 16 | B16: New Zealand | C16: ='Aid 2011'!Q18 -> 1.165554733 | D16: ='Trade 2011'!F18 -> 8.030127893 | E16: ='Finance 2011'!D17 -> 4.037946429 | F16: ='Migration 2011'!E16 -> 1.317685832 | G16: ='Environment 2011'!K18 -> 5.888637214 | H16: ='Security 2011'!J19 -> 5.348251353 | I16: ='Technology 2011'!D18 -> 4.700031186 | J16: 4.355462091 | K16: 17 | L16: =ROUND(J16,1)-ROUND(VLOOKUP($B16,INDIRECT("'CDI "&Year-1&"'!Score_table"),9,FALSE),1) -> 0 | M16: =SUM(IF(ROUND(J16,1)<ROUND($J$3:$J$24,1),1))+1 -> 16 | N16: =VLOOKUP($B16,INDIRECT("'CDI "&Year-1&"'!Score_table"),12,FALSE) -> 17 | O16: New Zealand | P16: =(SUM(IF($J16<$J$3:$J$26*(1-BF$3:BF$26),1))+1)*(1-BF16) -> 4 | Q16: =(SUM(IF($J16<$J$3:$J$26*(1-BG$3:BG$26),1))+1)*(1-BG16) -> 3 | R16: =(SUM(IF(ROUND($J16,1)<ROUND($J$3:$J$26,1)*(1-BF$3:BF$26),1))+1)*(1-BF16) -> 4 | S16: =(SUM(IF(ROUND($J16,1)<ROUND($J$3:$J$26,1)*(1-BG$3:BG$26),1))+1)*(1-BG16) -> 3 | T16: New Zealand | U16: 14 | V16: 14 | W16: United States | X16: 4.530632159 | Y16: 0.4 | Z16: 5 | BC16: 251.0882406 | BD16: 759.27185 | BF16: 0 | BG16: 0 | BI16: =ABS(SUM($C16:$I16*$C$34:$I$34)/SUM(IF($C16:$I16>0,$C16:$I16*$C$34:$I$34))) -> 1 | BJ16: =VLOOKUP($W16,$B$3:$I$24,COLUMN()-(COLUMN($BI$2)-1),FALSE)*C$34/SUM($C$34:$I$34)*VLOOKUP($W16,$B$3:$BI$29,(COLUMN($BI$2)-1),FALSE) -> 1.242324133 | BK16: =VLOOKUP($W16,$B$3:$I$24,COLUMN()-(COLUMN($BI$2)-1),FALSE)*D$34/SUM($C$34:$I$34)*VLOOKUP($W16,$B$3:$BI$29,(COLUMN($BI$2)-1),FALSE) -> 0.970026348 | BL16: =VLOOKUP($W16,$B$3:$I$24,COLUMN()-(COLUMN($BI$2)-1),FALSE)*E$34/SUM($C$34:$I$34)*VLOOKUP($W16,$B$3:$BI$29,(COLUMN($BI$2)-1),FALSE) -> 0.734664649 | BM16: =VLOOKUP($W16,$B$3:$I$24,COLUMN()-(COLUMN($BI$2)-1),FALSE)*F$34/SUM($C$34:$I$34)*VLOOKUP($W16,$B$3:$BI$29,(COLUMN($BI$2)-1),FALSE) -> 0.181082782 | BN16: =VLOOKUP($W16,$B$3:$I$24,COLUMN()-(COLUMN($BI$2)-1),FALSE)*G$34/SUM($C$34:$I$34)*VLOOKUP($W16,$B$3:$BI$29,(COLUMN($BI$2)-1),FALSE) -> 0.6150327028 | BO16: =VLOOKUP($W16,$B$3:$I$24,COLUMN()-(COLUMN($BI$2)-1),FALSE)*H$34/SUM($C$34:$I$34)*VLOOKUP($W16,$B$3:$BI$29,(COLUMN($BI$2)-1),FALSE) -> -0.0001802437283 | BP16: =VLOOKUP($W16,$B$3:$I$24,COLUMN()-(COLUMN($BI$2)-1),FALSE)*I$34/SUM($C$34:$I$34)*VLOOKUP($W16,$B$3:$BI$29,(COLUMN($BI$2)-1),FALSE) -> 0.7875015451
A17: 12 | B17: Norway | C17: ='Aid 2011'!Q19 -> 10.36156365 | D17: ='Trade 2011'!F19 -> -3.417309267 | E17: ='Finance 2011'!D18 -> 5.866071429 | F17: ='Migration 2011'!E17 -> 4.153315357 | G17: ='Environment 2011'!K19 -> 2.859353719 | H17: ='Security 2011'!J20 -> 8.516411954 | I17: ='Technology 2011'!D19 -> 5.791368716 | J17: 4.875825079 | K17: 13 | L17: =ROUND(J17,1)-ROUND(VLOOKUP($B17,INDIRECT("'CDI "&Year-1&"'!Score_table"),9,FALSE),1) -> -0.2 | M17: =SUM(IF(ROUND(J17,1)<ROUND($J$3:$J$24,1),1))+1 -> 12 | N17: =VLOOKUP($B17,INDIRECT("'CDI "&Year-1&"'!Score_table"),12,FALSE) -> 9 | O17: Norway | P17: =(SUM(IF($J17<$J$3:$J$26*(1-BF$3:BF$26),1))+1)*(1-BF17) -> 2 | Q17: =(SUM(IF($J17<$J$3:$J$26*(1-BG$3:BG$26),1))+1)*(1-BG17) -> 0 | R17: =(SUM(IF(ROUND($J17,1)<ROUND($J$3:$J$26,1)*(1-BF$3:BF$26),1))+1)*(1-BF17) -> 2 | S17: =(SUM(IF(ROUND($J17,1)<ROUND($J$3:$J$26,1)*(1-BG$3:BG$26),1))+1)*(1-BG17) -> 0 | T17: Norway | U17: 15 | V17: 14 | W17: Netherlands | X17: 4.530570486 | Y17: -0.6 | Z17: -5 | BC17: 124.9415496 | BD17: 270.3705539 | BF17: 0 | BG17: 1 | BI17: =ABS(SUM($C17:$I17*$C$34:$I$34)/SUM(IF($C17:$I17>0,$C17:$I17*$C$34:$I$34))) -> 0.9089884535 | BJ17: =VLOOKUP($W17,$B$3:$I$24,COLUMN()-(COLUMN($BI$2)-1),FALSE)*C$34/SUM($C$34:$I$34)*VLOOKUP($W17,$B$3:$BI$29,(COLUMN($BI$2)-1),FALSE) -> 1.006736395 | BK17: =VLOOKUP($W17,$B$3:$I$24,COLUMN()-(COLUMN($BI$2)-1),FALSE)*D$34/SUM($C$34:$I$34)*VLOOKUP($W17,$B$3:$BI$29,(COLUMN($BI$2)-1),FALSE) -> 0.9205070684 | BL17: =VLOOKUP($W17,$B$3:$I$24,COLUMN()-(COLUMN($BI$2)-1),FALSE)*E$34/SUM($C$34:$I$34)*VLOOKUP($W17,$B$3:$BI$29,(COLUMN($BI$2)-1),FALSE) -> 0.6748305689 | BM17: =VLOOKUP($W17,$B$3:$I$24,COLUMN()-(COLUMN($BI$2)-1),FALSE)*F$34/SUM($C$34:$I$34)*VLOOKUP($W17,$B$3:$BI$29,(COLUMN($BI$2)-1),FALSE) -> 0.288764923 | BN17: =VLOOKUP($W17,$B$3:$I$24,COLUMN()-(COLUMN($BI$2)-1),FALSE)*G$34/SUM($C$34:$I$34)*VLOOKUP($W17,$B$3:$BI$29,(COLUMN($BI$2)-1),FALSE) -> 0.9374161502 | BO17: =VLOOKUP($W17,$B$3:$I$24,COLUMN()-(COLUMN($BI$2)-1),FALSE)*H$34/SUM($C$34:$I$34)*VLOOKUP($W17,$B$3:$BI$29,(COLUMN($BI$2)-1),FALSE) -> -0.1823145449 | BP17: =VLOOKUP($W17,$B$3:$I$24,COLUMN()-(COLUMN($BI$2)-1),FALSE)*I$34/SUM($C$34:$I$34)*VLOOKUP($W17,$B$3:$BI$29,(COLUMN($BI$2)-1),FALSE) -> 0.7023153802
A18: 9 | B18: Portugal | C18: ='Aid 2011'!Q20 -> 5.080554118 | D18: ='Trade 2011'!F20 -> 5.982553822 | E18: ='Finance 2011'!D19 -> 5.223214286 | F18: ='Migration 2011'!E18 -> 1.061418063 | G18: ='Environment 2011'!K20 -> 7.482267142 | H18: ='Security 2011'!J21 -> 4.679938739 | I18: ='Technology 2011'!D20 -> 6.79351316 | J18: 5.186208476 | K18: 9 | L18: =ROUND(J18,1)-ROUND(VLOOKUP($B18,INDIRECT("'CDI "&Year-1&"'!Score_table"),9,FALSE),1) -> -0.6 | M18: =SUM(IF(ROUND(J18,1)<ROUND($J$3:$J$24,1),1))+1 -> 9 | N18: =VLOOKUP($B18,INDIRECT("'CDI "&Year-1&"'!Score_table"),12,FALSE) -> 2 | O18: Portugal | P18: =(SUM(IF($J18<$J$3:$J$26*(1-BF$3:BF$26),1))+1)*(1-BF18) -> 0 | Q18: =(SUM(IF($J18<$J$3:$J$26*(1-BG$3:BG$26),1))+1)*(1-BG18) -> 0 | R18: =(SUM(IF(ROUND($J18,1)<ROUND($J$3:$J$26,1)*(1-BF$3:BF$26),1))+1)*(1-BF18) -> 0 | S18: =(SUM(IF(ROUND($J18,1)<ROUND($J$3:$J$26,1)*(1-BG$3:BG$26),1))+1)*(1-BG18) -> 0 | T18: Portugal | U18: 16 | V18: 16 | W18: Greece | X18: 4.425206902 | Y18: 0.1 | Z18: 2 | BC18: 45.85920922 | BD18: 126.5343857 | BF18: 1 | BG18: 1 | BI18: =ABS(SUM($C18:$I18*$C$34:$I$34)/SUM(IF($C18:$I18>0,$C18:$I18*$C$34:$I$34))) -> 1 | BJ18: =VLOOKUP($W18,$B$3:$I$24,COLUMN()-(COLUMN($BI$2)-1),FALSE)*C$34/SUM($C$34:$I$34)*VLOOKUP($W18,$B$3:$BI$29,(COLUMN($BI$2)-1),FALSE) -> 0.656333281 | BK18: =VLOOKUP($W18,$B$3:$I$24,COLUMN()-(COLUMN($BI$2)-1),FALSE)*D$34/SUM($C$34:$I$34)*VLOOKUP($W18,$B$3:$BI$29,(COLUMN($BI$2)-1),FALSE) -> 0.7984082505 | BL18: =VLOOKUP($W18,$B$3:$I$24,COLUMN()-(COLUMN($BI$2)-1),FALSE)*E$34/SUM($C$34:$I$34)*VLOOKUP($W18,$B$3:$BI$29,(COLUMN($BI$2)-1),FALSE) -> 0.6600765306 | BM18: =VLOOKUP($W18,$B$3:$I$24,COLUMN()-(COLUMN($BI$2)-1),FALSE)*F$34/SUM($C$34:$I$34)*VLOOKUP($W18,$B$3:$BI$29,(COLUMN($BI$2)-1),FALSE) -> 0.4791287242 | BN18: =VLOOKUP($W18,$B$3:$I$24,COLUMN()-(COLUMN($BI$2)-1),FALSE)*G$34/SUM($C$34:$I$34)*VLOOKUP($W18,$B$3:$BI$29,(COLUMN($BI$2)-1),FALSE) -> 0.8455851061 | BO18: =VLOOKUP($W18,$B$3:$I$24,COLUMN()-(COLUMN($BI$2)-1),FALSE)*H$34/SUM($C$34:$I$34)*VLOOKUP($W18,$B$3:$BI$29,(COLUMN($BI$2)-1),FALSE) -> 0.5985496861 | BP18: =VLOOKUP($W18,$B$3:$I$24,COLUMN()-(COLUMN($BI$2)-1),FALSE)*I$34/SUM($C$34:$I$34)*VLOOKUP($W18,$B$3:$BI$29,(COLUMN($BI$2)-1),FALSE) -> 0.3871253236
A19: 22 | B19: South Korea | C19: ='Aid 2011'!Q21 -> 0.9772185405 | D19: ='Trade 2011'!F21 -> -2.237156369 | E19: ='Finance 2011'!D20 -> 4.600446429 | F19: ='Migration 2011'!E19 -> 1.17157818 | G19: ='Environment 2011'!K21 -> 3.779947559 | H19: ='Security 2011'!J22 -> 1.35765862 | I19: ='Technology 2011'!D21 -> 6.688166125 | J19: 2.333979869 | K19: 22 | L19: =ROUND(J19,1)-ROUND(VLOOKUP($B19,INDIRECT("'CDI "&Year-1&"'!Score_table"),9,FALSE),1) -> 0.1 | M19: =SUM(IF(ROUND(J19,1)<ROUND($J$3:$J$24,1),1))+1 -> 22 | N19: =VLOOKUP($B19,INDIRECT("'CDI "&Year-1&"'!Score_table"),12,FALSE) -> 22 | O19: South Korea | P19: =(SUM(IF($J19<$J$3:$J$26*(1-BF$3:BF$26),1))+1)*(1-BF19) -> 9 | Q19: =(SUM(IF($J19<$J$3:$J$26*(1-BG$3:BG$26),1))+1)*(1-BG19) -> 7 | R19: =(SUM(IF(ROUND($J19,1)<ROUND($J$3:$J$26,1)*(1-BF$3:BF$26),1))+1)*(1-BF19) -> 9 | S19: =(SUM(IF(ROUND($J19,1)<ROUND($J$3:$J$26,1)*(1-BG$3:BG$26),1))+1)*(1-BG19) -> 7 | T19: South Korea | U19: 17 | V19: 16 | W19: New Zealand | X19: 4.355462091 | Y19: 0 | Z19: 1 | BC19: 800.2058977 | BD19: 1422.314832 | BF19: 0 | BG19: 0 | BI19: =ABS(SUM($C19:$I19*$C$34:$I$34)/SUM(IF($C19:$I19>0,$C19:$I19*$C$34:$I$34))) -> 0.8795609955 | BJ19: =VLOOKUP($W19,$B$3:$I$24,COLUMN()-(COLUMN($BI$2)-1),FALSE)*C$34/SUM($C$34:$I$34)*VLOOKUP($W19,$B$3:$BI$29,(COLUMN($BI$2)-1),FALSE) -> 0.166507819 | BK19: =VLOOKUP($W19,$B$3:$I$24,COLUMN()-(COLUMN($BI$2)-1),FALSE)*D$34/SUM($C$34:$I$34)*VLOOKUP($W19,$B$3:$BI$29,(COLUMN($BI$2)-1),FALSE) -> 1.147161128 | BL19: =VLOOKUP($W19,$B$3:$I$24,COLUMN()-(COLUMN($BI$2)-1),FALSE)*E$34/SUM($C$34:$I$34)*VLOOKUP($W19,$B$3:$BI$29,(COLUMN($BI$2)-1),FALSE) -> 0.5768494898 | BM19: =VLOOKUP($W19,$B$3:$I$24,COLUMN()-(COLUMN($BI$2)-1),FALSE)*F$34/SUM($C$34:$I$34)*VLOOKUP($W19,$B$3:$BI$29,(COLUMN($BI$2)-1),FALSE) -> 0.1882408331 | BN19: =VLOOKUP($W19,$B$3:$I$24,COLUMN()-(COLUMN($BI$2)-1),FALSE)*G$34/SUM($C$34:$I$34)*VLOOKUP($W19,$B$3:$BI$29,(COLUMN($BI$2)-1),FALSE) -> 0.8412338877 | BO19: =VLOOKUP($W19,$B$3:$I$24,COLUMN()-(COLUMN($BI$2)-1),FALSE)*H$34/SUM($C$34:$I$34)*VLOOKUP($W19,$B$3:$BI$29,(COLUMN($BI$2)-1),FALSE) -> 0.7640359076 | BP19: =VLOOKUP($W19,$B$3:$I$24,COLUMN()-(COLUMN($BI$2)-1),FALSE)*I$34/SUM($C$34:$I$34)*VLOOKUP($W19,$B$3:$BI$29,(COLUMN($BI$2)-1),FALSE) -> 0.6714330266
A20: 5 | B20: Spain | C20: ='Aid 2011'!Q22 -> 8.977751395 | D20: ='Trade 2011'!F22 -> 6.052988928 | E20: ='Finance 2011'!D21 -> 6.006696429 | F20: ='Migration 2011'!E20 -> 2.377540376 | G20: ='Environment 2011'!K22 -> 6.412499239 | H20: ='Security 2011'!J23 -> 4.095041514 | I20: ='Technology 2011'!D22 -> 5.85356437 | J20: 5.682297464 | K20: 5 | L20: =ROUND(J20,1)-ROUND(VLOOKUP($B20,INDIRECT("'CDI "&Year-1&"'!Score_table"),9,FALSE),1) -> 0 | M20: =SUM(IF(ROUND(J20,1)<ROUND($J$3:$J$24,1),1))+1 -> 5 | N20: =VLOOKUP($B20,INDIRECT("'CDI "&Year-1&"'!Score_table"),12,FALSE) -> 6 | O20: Spain | P20: =(SUM(IF($J20<$J$3:$J$26*(1-BF$3:BF$26),1))+1)*(1-BF20) -> 0 | Q20: =(SUM(IF($J20<$J$3:$J$26*(1-BG$3:BG$26),1))+1)*(1-BG20) -> 0 | R20: =(SUM(IF(ROUND($J20,1)<ROUND($J$3:$J$26,1)*(1-BF$3:BF$26),1))+1)*(1-BF20) -> 0 | S20: =(SUM(IF(ROUND($J20,1)<ROUND($J$3:$J$26,1)*(1-BG$3:BG$26),1))+1)*(1-BG20) -> 0 | T20: Spain | U20: 18 | V20: 18 | W20: Canada | X20: 4.245478872 | Y20: -0.3 | Z20: -3 | BC20: 712.3387023 | BD20: 1484.884804 | BF20: 1 | BG20: 1 | BI20: =ABS(SUM($C20:$I20*$C$34:$I$34)/SUM(IF($C20:$I20>0,$C20:$I20*$C$34:$I$34))) -> 1 | BJ20: =VLOOKUP($W20,$B$3:$I$24,COLUMN()-(COLUMN($BI$2)-1),FALSE)*C$34/SUM($C$34:$I$34)*VLOOKUP($W20,$B$3:$BI$29,(COLUMN($BI$2)-1),FALSE) -> 0.4590043772 | BK20: =VLOOKUP($W20,$B$3:$I$24,COLUMN()-(COLUMN($BI$2)-1),FALSE)*D$34/SUM($C$34:$I$34)*VLOOKUP($W20,$B$3:$BI$29,(COLUMN($BI$2)-1),FALSE) -> 0.6253609441 | BL20: =VLOOKUP($W20,$B$3:$I$24,COLUMN()-(COLUMN($BI$2)-1),FALSE)*E$34/SUM($C$34:$I$34)*VLOOKUP($W20,$B$3:$BI$29,(COLUMN($BI$2)-1),FALSE) -> 0.7203443878 | BM20: =VLOOKUP($W20,$B$3:$I$24,COLUMN()-(COLUMN($BI$2)-1),FALSE)*F$34/SUM($C$34:$I$34)*VLOOKUP($W20,$B$3:$BI$29,(COLUMN($BI$2)-1),FALSE) -> 0.5047997322 | BN20: =VLOOKUP($W20,$B$3:$I$24,COLUMN()-(COLUMN($BI$2)-1),FALSE)*G$34/SUM($C$34:$I$34)*VLOOKUP($W20,$B$3:$BI$29,(COLUMN($BI$2)-1),FALSE) -> 0.5210863258 | BO20: =VLOOKUP($W20,$B$3:$I$24,COLUMN()-(COLUMN($BI$2)-1),FALSE)*H$34/SUM($C$34:$I$34)*VLOOKUP($W20,$B$3:$BI$29,(COLUMN($BI$2)-1),FALSE) -> 0.6240893468 | BP20: =VLOOKUP($W20,$B$3:$I$24,COLUMN()-(COLUMN($BI$2)-1),FALSE)*I$34/SUM($C$34:$I$34)*VLOOKUP($W20,$B$3:$BI$29,(COLUMN($BI$2)-1),FALSE) -> 0.7907937587
A21: 1 | B21: Sweden | C21: ='Aid 2011'!Q23 -> 19.38985808 | D21: ='Trade 2011'!F23 -> 6.747986203 | E21: ='Finance 2011'!D22 -> 6.006696429 | F21: ='Migration 2011'!E21 -> 6.139103452 | G21: ='Environment 2011'!K23 -> 7.519658336 | H21: ='Security 2011'!J24 -> 4.342447795 | I21: ='Technology 2011'!D23 -> 4.836438197 | J21: 7.854598356 | K21: 1 | L21: =ROUND(J21,1)-ROUND(VLOOKUP($B21,INDIRECT("'CDI "&Year-1&"'!Score_table"),9,FALSE),1) -> 0.8 | M21: =SUM(IF(ROUND(J21,1)<ROUND($J$3:$J$24,1),1))+1 -> 1 | N21: =VLOOKUP($B21,INDIRECT("'CDI "&Year-1&"'!Score_table"),12,FALSE) -> 1 | O21: Sweden | P21: =(SUM(IF($J21<$J$3:$J$26*(1-BF$3:BF$26),1))+1)*(1-BF21) -> 0 | Q21: =(SUM(IF($J21<$J$3:$J$26*(1-BG$3:BG$26),1))+1)*(1-BG21) -> 0 | R21: =(SUM(IF(ROUND($J21,1)<ROUND($J$3:$J$26,1)*(1-BF$3:BF$26),1))+1)*(1-BF21) -> 0 | S21: =(SUM(IF(ROUND($J21,1)<ROUND($J$3:$J$26,1)*(1-BG$3:BG$26),1))+1)*(1-BG21) -> 0 | T21: Sweden | U21: 19 | V21: 19 | W21: Australia | X21: 4.005175556 | Y21: -0.5 | Z21: -4 | BC21: 302.8389069 | BD21: 365.9686871 | BF21: 1 | BG21: 1 | BI21: =ABS(SUM($C21:$I21*$C$34:$I$34)/SUM(IF($C21:$I21>0,$C21:$I21*$C$34:$I$34))) -> 1 | BJ21: =VLOOKUP($W21,$B$3:$I$24,COLUMN()-(COLUMN($BI$2)-1),FALSE)*C$34/SUM($C$34:$I$34)*VLOOKUP($W21,$B$3:$BI$29,(COLUMN($BI$2)-1),FALSE) -> 0.4063984357 | BK21: =VLOOKUP($W21,$B$3:$I$24,COLUMN()-(COLUMN($BI$2)-1),FALSE)*D$34/SUM($C$34:$I$34)*VLOOKUP($W21,$B$3:$BI$29,(COLUMN($BI$2)-1),FALSE) -> 0.9901170494 | BL21: =VLOOKUP($W21,$B$3:$I$24,COLUMN()-(COLUMN($BI$2)-1),FALSE)*E$34/SUM($C$34:$I$34)*VLOOKUP($W21,$B$3:$BI$29,(COLUMN($BI$2)-1),FALSE) -> 0.8207908163 | BM21: =VLOOKUP($W21,$B$3:$I$24,COLUMN()-(COLUMN($BI$2)-1),FALSE)*F$34/SUM($C$34:$I$34)*VLOOKUP($W21,$B$3:$BI$29,(COLUMN($BI$2)-1),FALSE) -> 0.2630679785 | BN21: =VLOOKUP($W21,$B$3:$I$24,COLUMN()-(COLUMN($BI$2)-1),FALSE)*G$34/SUM($C$34:$I$34)*VLOOKUP($W21,$B$3:$BI$29,(COLUMN($BI$2)-1),FALSE) -> 0.5540158093 | BO21: =VLOOKUP($W21,$B$3:$I$24,COLUMN()-(COLUMN($BI$2)-1),FALSE)*H$34/SUM($C$34:$I$34)*VLOOKUP($W21,$B$3:$BI$29,(COLUMN($BI$2)-1),FALSE) -> 0.2357065909 | BP21: =VLOOKUP($W21,$B$3:$I$24,COLUMN()-(COLUMN($BI$2)-1),FALSE)*I$34/SUM($C$34:$I$34)*VLOOKUP($W21,$B$3:$BI$29,(COLUMN($BI$2)-1),FALSE) -> 0.7350788759
A22: 20 | B22: Switzerland | C22: ='Aid 2011'!Q24 -> 6.929752627 | D22: ='Trade 2011'!F24 -> -0.5201460793 | E22: ='Finance 2011'!D23 -> 3.154017857 | F22: ='Migration 2011'!E22 -> 2.502026538 | G22: ='Environment 2011'!K24 -> 5.842684703 | H22: ='Security 2011'!J25 -> 3.722748889 | I22: ='Technology 2011'!D24 -> 4.791545682 | J22: 3.77466146 | K22: 20 | L22: =ROUND(J22,1)-ROUND(VLOOKUP($B22,INDIRECT("'CDI "&Year-1&"'!Score_table"),9,FALSE),1) -> 0.4 | M22: =SUM(IF(ROUND(J22,1)<ROUND($J$3:$J$24,1),1))+1 -> 20 | N22: =VLOOKUP($B22,INDIRECT("'CDI "&Year-1&"'!Score_table"),12,FALSE) -> 20 | O22: Switzerland | P22: =(SUM(IF($J22<$J$3:$J$26*(1-BF$3:BF$26),1))+1)*(1-BF22) -> 7 | Q22: =(SUM(IF($J22<$J$3:$J$26*(1-BG$3:BG$26),1))+1)*(1-BG22) -> 0 | R22: =(SUM(IF(ROUND($J22,1)<ROUND($J$3:$J$26,1)*(1-BF$3:BF$26),1))+1)*(1-BF22) -> 7 | S22: =(SUM(IF(ROUND($J22,1)<ROUND($J$3:$J$26,1)*(1-BG$3:BG$26),1))+1)*(1-BG22) -> 0 | T22: Switzerland | U22: 20 | V22: 20 | W22: Switzerland | X22: 3.77466146 | Y22: 0.4 | Z22: 0 | BC22: 294.7486843 | BD22: 363.0050181 | BF22: 0 | BG22: 1 | BI22: =ABS(SUM($C22:$I22*$C$34:$I$34)/SUM(IF($C22:$I22>0,$C22:$I22*$C$34:$I$34))) -> 0.9806944142 | BJ22: =VLOOKUP($W22,$B$3:$I$24,COLUMN()-(COLUMN($BI$2)-1),FALSE)*C$34/SUM($C$34:$I$34)*VLOOKUP($W22,$B$3:$BI$29,(COLUMN($BI$2)-1),FALSE) -> 0.9708528133 | BK22: =VLOOKUP($W22,$B$3:$I$24,COLUMN()-(COLUMN($BI$2)-1),FALSE)*D$34/SUM($C$34:$I$34)*VLOOKUP($W22,$B$3:$BI$29,(COLUMN($BI$2)-1),FALSE) -> -0.07287205064 | BL22: =VLOOKUP($W22,$B$3:$I$24,COLUMN()-(COLUMN($BI$2)-1),FALSE)*E$34/SUM($C$34:$I$34)*VLOOKUP($W22,$B$3:$BI$29,(COLUMN($BI$2)-1),FALSE) -> 0.441875385 | BM22: =VLOOKUP($W22,$B$3:$I$24,COLUMN()-(COLUMN($BI$2)-1),FALSE)*F$34/SUM($C$34:$I$34)*VLOOKUP($W22,$B$3:$BI$29,(COLUMN($BI$2)-1),FALSE) -> 0.3505319214 | BN22: =VLOOKUP($W22,$B$3:$I$24,COLUMN()-(COLUMN($BI$2)-1),FALSE)*G$34/SUM($C$34:$I$34)*VLOOKUP($W22,$B$3:$BI$29,(COLUMN($BI$2)-1),FALSE) -> 0.8185554646 | BO22: =VLOOKUP($W22,$B$3:$I$24,COLUMN()-(COLUMN($BI$2)-1),FALSE)*H$34/SUM($C$34:$I$34)*VLOOKUP($W22,$B$3:$BI$29,(COLUMN($BI$2)-1),FALSE) -> 0.5215541487 | BP22: =VLOOKUP($W22,$B$3:$I$24,COLUMN()-(COLUMN($BI$2)-1),FALSE)*I$34/SUM($C$34:$I$34)*VLOOKUP($W22,$B$3:$BI$29,(COLUMN($BI$2)-1),FALSE) -> 0.6712917266
A23: 11 | B23: United Kingdom | C23: ='Aid 2011'!Q25 -> 6.965374302 | D23: ='Trade 2011'!F25 -> 6.304988648 | E23: ='Finance 2011'!D24 -> 5.625 | F23: ='Migration 2011'!E23 -> 2.087347073 | G23: ='Environment 2011'!K25 -> 7.297695667 | H23: ='Security 2011'!J26 -> 2.156377607 | I23: ='Technology 2011'!D25 -> 4.62636411 | J23: 5.009021058 | K23: 11 | L23: =ROUND(J23,1)-ROUND(VLOOKUP($B23,INDIRECT("'CDI "&Year-1&"'!Score_table"),9,FALSE),1) -> 0.2 | M23: =SUM(IF(ROUND(J23,1)<ROUND($J$3:$J$24,1),1))+1 -> 11 | N23: =VLOOKUP($B23,INDIRECT("'CDI "&Year-1&"'!Score_table"),12,FALSE) -> 14 | O23: United Kingdom | P23: =(SUM(IF($J23<$J$3:$J$26*(1-BF$3:BF$26),1))+1)*(1-BF23) -> 0 | Q23: =(SUM(IF($J23<$J$3:$J$26*(1-BG$3:BG$26),1))+1)*(1-BG23) -> 0 | R23: =(SUM(IF(ROUND($J23,1)<ROUND($J$3:$J$26,1)*(1-BF$3:BF$26),1))+1)*(1-BF23) -> 0 | S23: =(SUM(IF(ROUND($J23,1)<ROUND($J$3:$J$26,1)*(1-BG$3:BG$26),1))+1)*(1-BG23) -> 0 | T23: United Kingdom | U23: 21 | V23: 21 | W23: Japan | X23: 3.110999428 | Y23: 0.2 | Z23: 0 | BC23: 1744.580116 | BD23: 2220.823675 | BF23: 1 | BG23: 1 | BI23: =ABS(SUM($C23:$I23*$C$34:$I$34)/SUM(IF($C23:$I23>0,$C23:$I23*$C$34:$I$34))) -> 1 | BJ23: =VLOOKUP($W23,$B$3:$I$24,COLUMN()-(COLUMN($BI$2)-1),FALSE)*C$34/SUM($C$34:$I$34)*VLOOKUP($W23,$B$3:$BI$29,(COLUMN($BI$2)-1),FALSE) -> 0.01210992402 | BK23: =VLOOKUP($W23,$B$3:$I$24,COLUMN()-(COLUMN($BI$2)-1),FALSE)*D$34/SUM($C$34:$I$34)*VLOOKUP($W23,$B$3:$BI$29,(COLUMN($BI$2)-1),FALSE) -> 0.2397520775 | BL23: =VLOOKUP($W23,$B$3:$I$24,COLUMN()-(COLUMN($BI$2)-1),FALSE)*E$34/SUM($C$34:$I$34)*VLOOKUP($W23,$B$3:$BI$29,(COLUMN($BI$2)-1),FALSE) -> 0.5510204082 | BM23: =VLOOKUP($W23,$B$3:$I$24,COLUMN()-(COLUMN($BI$2)-1),FALSE)*F$34/SUM($C$34:$I$34)*VLOOKUP($W23,$B$3:$BI$29,(COLUMN($BI$2)-1),FALSE) -> 0.1395508626 | BN23: =VLOOKUP($W23,$B$3:$I$24,COLUMN()-(COLUMN($BI$2)-1),FALSE)*G$34/SUM($C$34:$I$34)*VLOOKUP($W23,$B$3:$BI$29,(COLUMN($BI$2)-1),FALSE) -> 0.6977336023 | BO23: =VLOOKUP($W23,$B$3:$I$24,COLUMN()-(COLUMN($BI$2)-1),FALSE)*H$34/SUM($C$34:$I$34)*VLOOKUP($W23,$B$3:$BI$29,(COLUMN($BI$2)-1),FALSE) -> 0.5899696887 | BP23: =VLOOKUP($W23,$B$3:$I$24,COLUMN()-(COLUMN($BI$2)-1),FALSE)*I$34/SUM($C$34:$I$34)*VLOOKUP($W23,$B$3:$BI$29,(COLUMN($BI$2)-1),FALSE) -> 0.8808628644
A24: 14 | B24: United States | C24: ='Aid 2011'!Q26 -> 8.696614909 | D24: ='Trade 2011'!F26 -> 6.790454583 | E24: ='Finance 2011'!D25 -> 5.142857143 | F24: ='Migration 2011'!E24 -> 1.267629905 | G24: ='Environment 2011'!K26 -> 4.305400203 | H24: ='Security 2011'!J27 -> -0.001261756295 | I24: ='Technology 2011'!D26 -> 5.512730131 | J24: 4.530632159 | K24: 14 | L24: =ROUND(J24,1)-ROUND(VLOOKUP($B24,INDIRECT("'CDI "&Year-1&"'!Score_table"),9,FALSE),1) -> 0.4 | M24: =SUM(IF(ROUND(J24,1)<ROUND($J$3:$J$24,1),1))+1 -> 14 | N24: =VLOOKUP($B24,INDIRECT("'CDI "&Year-1&"'!Score_table"),12,FALSE) -> 19 | O24: United States | P24: =(SUM(IF($J24<$J$3:$J$26*(1-BF$3:BF$26),1))+1)*(1-BF24) -> 3 | Q24: =(SUM(IF($J24<$J$3:$J$26*(1-BG$3:BG$26),1))+1)*(1-BG24) -> 2 | R24: =(SUM(IF(ROUND($J24,1)<ROUND($J$3:$J$26,1)*(1-BF$3:BF$26),1))+1)*(1-BF24) -> 3 | S24: =(SUM(IF(ROUND($J24,1)<ROUND($J$3:$J$26,1)*(1-BG$3:BG$26),1))+1)*(1-BG24) -> 2 | T24: United States | U24: 22 | V24: 22 | W24: South Korea | X24: 2.333979869 | Y24: 0.1 | Z24: 0 | BC24: 11597.85873 | BD24: 14586.73654 | BF24: 0 | BG24: 0 | BI24: =ABS(SUM($C24:$I24*$C$34:$I$34)/SUM(IF($C24:$I24>0,$C24:$I24*$C$34:$I$34))) -> 0.9999602166 | BJ24: =VLOOKUP($W24,$B$3:$I$24,COLUMN()-(COLUMN($BI$2)-1),FALSE)*C$34/SUM($C$34:$I$34)*VLOOKUP($W24,$B$3:$BI$29,(COLUMN($BI$2)-1),FALSE) -> 0.1227890446 | BK24: =VLOOKUP($W24,$B$3:$I$24,COLUMN()-(COLUMN($BI$2)-1),FALSE)*D$34/SUM($C$34:$I$34)*VLOOKUP($W24,$B$3:$BI$29,(COLUMN($BI$2)-1),FALSE) -> -0.2811022119 | BL24: =VLOOKUP($W24,$B$3:$I$24,COLUMN()-(COLUMN($BI$2)-1),FALSE)*E$34/SUM($C$34:$I$34)*VLOOKUP($W24,$B$3:$BI$29,(COLUMN($BI$2)-1),FALSE) -> 0.5780533201 | BM24: =VLOOKUP($W24,$B$3:$I$24,COLUMN()-(COLUMN($BI$2)-1),FALSE)*F$34/SUM($C$34:$I$34)*VLOOKUP($W24,$B$3:$BI$29,(COLUMN($BI$2)-1),FALSE) -> 0.1472106386 | BN24: =VLOOKUP($W24,$B$3:$I$24,COLUMN()-(COLUMN($BI$2)-1),FALSE)*G$34/SUM($C$34:$I$34)*VLOOKUP($W24,$B$3:$BI$29,(COLUMN($BI$2)-1),FALSE) -> 0.4749563483 | BO24: =VLOOKUP($W24,$B$3:$I$24,COLUMN()-(COLUMN($BI$2)-1),FALSE)*H$34/SUM($C$34:$I$34)*VLOOKUP($W24,$B$3:$BI$29,(COLUMN($BI$2)-1),FALSE) -> 0.1705919382 | BP24: =VLOOKUP($W24,$B$3:$I$24,COLUMN()-(COLUMN($BI$2)-1),FALSE)*I$34/SUM($C$34:$I$34)*VLOOKUP($W24,$B$3:$BI$29,(COLUMN($BI$2)-1),FALSE) -> 0.8403785793
B25: EU | C25: ='Aid 2011'!Q27 -> 7.341598872 | D25: ='Trade 2011'!F27 -> 6.10572707 | E25: ='Finance 2011'!D26 -> 4.964814393 | F25: ='Migration 2011'!E25 -> 2.636907522 | G25: ='Environment 2011'!K27 -> 6.750065789 | H25: ='Security 2011'!J28 -> 3.981398096 | I25: ='Technology 2011'!D27 -> 4.69034333 | J25: 5.210122153 | P25: =(SUM(IF($J25<$J$3:$J$26*(1-BF$3:BF$26),1))+1)*(1-BF25) -> 1 | R25: =(SUM(IF(ROUND($J25,1)<ROUND($J$3:$J$26,1)*(1-BF$3:BF$26),1))+1)*(1-BF25) -> 1 | T25: EU | BG25: 1
B26: Europe | C26: ='Aid 2011'!Q28 -> 7.400974335 | D26: ='Trade 2011'!F28 -> 5.820471437 | E26: ='Finance 2011'!D27 -> 4.927435721 | F26: ='Migration 2011'!E26 -> 2.660098986 | G26: ='Environment 2011'!K28 -> 6.681683449 | H26: ='Security 2011'!J29 -> 4.006177106 | I26: ='Technology 2011'!D28 -> 4.70879496 | J26: 5.172233713 | P26: =(SUM(IF($J26<$J$3:$J$26*(1-BF$3:BF$26),1))+1)*(1-BF26) -> 0 | Q26: =(SUM(IF($J26<$J$3:$J$26*(1-BG$3:BG$26),1))+1)*(1-BG26) -> 1 | R26: =(SUM(IF(ROUND($J26,1)<ROUND($J$3:$J$26,1)*(1-BF$3:BF$26),1))+1)*(1-BF26) -> 0 | S26: =(SUM(IF(ROUND($J26,1)<ROUND($J$3:$J$26,1)*(1-BG$3:BG$26),1))+1)*(1-BG26) -> 1 | T26: Europe | BF26: 1
R27: =(SUM(IF($J19<$J$3:$J$26*(1-BF$3:BF$26),1))+1)*(1-BF19) -> 9
B28: Average | C28: =AVERAGE(C3:C24) -> 6.712808114 | D28: 4.836939172 | E28: 5.060673701 | F28: 2.448335677 | G28: 5.973599389 | H28: 4.147139252 | I28: 5.248385089 | J28: 4.918268628 | U28: 1
B29: Standard dev. | C29: =STDEVP(C3:C24) -> 4.067248676 | D29: 3.000333715 | E29: 0.8128527058 | F29: 1.171461143 | G29: 1.43139446 | H29: 2.541781616 | I29: 0.9125302352 | J29: 1.110445903 | U29: 2
U30: 3
B31: Lowest | C31: =MIN(C3:C24) -> 0.08476946814 | D31: -3.417309267 | E31: 3.154017857 | F31: 0.9768560383 | G31: 2.859353719 | H31: -1.329710659 | I31: 2.709877265 | J31: 2.333979869 | U31: 4
B32: Highest | C32: =MAX(C3:C24) -> 19.38985808 | D32: 8.030127893 | E32: 6.167410714 | F32: 6.139103452 | G32: 8.20546994 | H32: 9.376829168 | I32: 6.79351316 | J32: 7.854598356 | U32: 5
U33: 6
B34: Weight | C34: ='CDI 2012'!C39 -> 1 | D34: ='CDI 2012'!D39 -> 1 | E34: ='CDI 2012'!E39 -> 1 | F34: ='CDI 2012'!F39 -> 1 | G34: ='CDI 2012'!G39 -> 1 | H34: ='CDI 2012'!H39 -> 1 | I34: ='CDI 2012'!I39 -> 1 | U34: 7
U35: 8
U36: 9
U39: 1
U40: 2
U41: 3
U42: 4
U43: 5
U44: 6
U45: 7
A68: =INT(RIGHT(CELL("filename",A1),4)) -> 2011

Sheet CDI 2010
A1: ="Commitment to Development Index "&Region_name&IF(Region_name="",""," ")&Year&IF(Publication_year>Year," ("&Publication_year&" methodology)","") -> Commitment to Development Index Middle East & North Africa 2010 (2013 methodology) | V1: Standings | Y1: One-year change, latest methodology | AB1: Standings/EU as one | AM1: Standings/Europe as one | BF1: EU countries | BG1: Europe countries
A2: Rank | B2: Country | C2: Aid | D2: Trade | E2: Finance | F2: Migration | G2: Environment | H2: Security | I2: Technology | J2: Overall (Average) | K2: True rank | L2: =Year-1&"-"&Year-2000&" score change" -> 2009-10 score change | M2: Rank | N2: =Year-1&" rank ("&Year&" method)" -> 2009 rank (2010 method) | P2: True rank/EU | Q2: True rank/Europe | R2: Rank/EU | S2: Rank/Europe | W2: Country | X2: Score | Y2: Score | Z2: Rank | AC2: Country | AD2: Aid | AE2: Trade | AF2: Finance | AG2: Migration | AH2: Environment | AI2: Security | AJ2: Technology | AK2: Overall (Average) | AN2: Country | AO2: Aid | AP2: Trade | AQ2: Finance | AR2: Migration | AS2: Environment | AT2: Security | AU2: Technology | AV2: Overall (Average) | BC2: PPP GDP | BD2: Exchange-rate GDP | BI2: Graphing scale factor to deal with negative scores, alpha by country
A3: =M3 -> 15 | B3: Australia | C3: ='Aid 2010'!Q5 -> 6.699047872 | D3: ='Trade 2010'!F5 -> 6.834536966 | E3: ='Finance 2010'!D4 -> 5.584821429 | F3: ='Migration 2010'!E3 -> 1.662709186 | G3: ='Environment 2010'!K5 -> 3.909712446 | H3: ='Security 2010'!J6 -> 1.649767693 | I3: ='Technology 2010'!D5 -> 4.839209222 | J3: =SUMPRODUCT(C3:I3,$C$34:$I$34)/SUM($C$34:$I$34) -> 4.454257831 | K3: =COUNTIF($J$3:$J$24,">"&J3)+1 -> 16 | L3: =ROUND(J3,1)-ROUND(VLOOKUP($B3,INDIRECT("'CDI "&Year-1&"'!Score_table"),9,FALSE),1) -> 0.8 | M3: =SUM(IF(ROUND(J3,1)<ROUND($J$3:$J$24,1),1))+1 -> 15 | N3: =VLOOKUP($B3,INDIRECT("'CDI "&Year-1&"'!Score_table"),12,FALSE) -> 19 | O3: =B3 -> Australia | P3: =(SUM(IF($J3<$J$3:$J$26*(1-BF$3:BF$26),1))+1)*(1-BF3) -> 4 | Q3: =(SUM(IF($J3<$J$3:$J$26*(1-BG$3:BG$26),1))+1)*(1-BG3) -> 3 | R3: =(SUM(IF(ROUND($J3,1)<ROUND($J$3:$J$26,1)*(1-BF$3:BF$26),1))+1)*(1-BF3) -> 3 | S3: =(SUM(IF(ROUND($J3,1)<ROUND($J$3:$J$26,1)*(1-BG$3:BG$26),1))+1)*(1-BG3) -> 2 | T3: =B3 -> Australia | U3: =ROW(U3)-ROW($U$2) -> 1 | V3: =VLOOKUP(U3,$K$3:$O$24,3,FALSE) -> 1 | W3: =VLOOKUP(U3,$K$3:$O$24,5,FALSE) -> Sweden | X3: =VLOOKUP(W3,$B$3:$O$24,9,FALSE) -> 7.131183394 | Y3: =IF(ISNA(VLOOKUP(W3,$B$3:$O$24,11,FALSE)),"",VLOOKUP(W3,$B$3:$O$24,11,FALSE)) -> 0.1 | Z3: =IF(ISNA(VLOOKUP(U3,$K$3:$O$24,4,FALSE)),"",VLOOKUP(U3,$K$3:$O$24,4,FALSE)-V3) -> 0 | AB3: =VLOOKUP(U28,$P$3:$U$26,3,FALSE) -> 1 | AC3: =VLOOKUP(U28,$P$3:$U$26,5,FALSE) -> Norway | AD3: =VLOOKUP($AC3,$B$3:$O$26,2,FALSE) -> 12.19637763 | AE3: =VLOOKUP($AC3,$B$3:$O$26,3,FALSE) -> -3.462172793 | AF3: =VLOOKUP($AC3,$B$3:$O$26,4,FALSE) -> 5.625 | AG3: =VLOOKUP($AC3,$B$3:$O$26,5,FALSE) -> 3.62671906 | AH3: =VLOOKUP($AC3,$B$3:$O$26,6,FALSE) -> 4.153004866 | AI3: =VLOOKUP($AC3,$B$3:$O$26,7,FALSE) -> 8.891819565 | AJ3: =VLOOKUP($AC3,$B$3:$O$26,8,FALSE) -> 5.012176377 | AK3: =VLOOKUP($AC3,$B$3:$O$26,9,FALSE) -> 5.148989244 | AM3: =VLOOKUP(U39,$Q$3:$V$26,3,FALSE) -> 1 | AN3: =VLOOKUP(U39,$Q$3:$V$26,4,FALSE) -> Europe | AO3: =VLOOKUP($AN3,$B$3:$O$26,2,FALSE) -> 7.508161579 | AP3: =VLOOKUP($AN3,$B$3:$O$26,3,FALSE) -> 5.77165406 | AQ3: =VLOOKUP($AN3,$B$3:$O$26,4,FALSE) -> 4.864050163 | AR3: =VLOOKUP($AN3,$B$3:$O$26,5,FALSE) -> 2.628805878 | AS3: =VLOOKUP($AN3,$B$3:$O$26,6,FALSE) -> 6.037699049 | AT3: =VLOOKUP($AN3,$B$3:$O$26,7,FALSE) -> 4.193150093 | AU3: =VLOOKUP($AN3,$B$3:$O$26,8,FALSE) -> 4.40035317 | AV3: =VLOOKUP(AN3,$B$3:$O$26,9,FALSE) -> 5.057696285 | BC3: 563.0494638 | BD3: 850.9216522 | BF3: 0 | BG3: 0 | BI3: =ABS(SUM($C3:$I3*$C$34:$I$34)/SUM(IF($C3:$I3>0,$C3:$I3*$C$34:$I$34))) -> 1 | BJ3: =VLOOKUP($W3,$B$3:$I$24,COLUMN()-(COLUMN($BI$2)-1),FALSE)*C$34/SUM($C$34:$I$34)*VLOOKUP($W3,$B$3:$BI$29,(COLUMN($BI$2)-1),FALSE) -> 2.206181581 | BK3: =VLOOKUP($W3,$B$3:$I$24,COLUMN()-(COLUMN($BI$2)-1),FALSE)*D$34/SUM($C$34:$I$34)*VLOOKUP($W3,$B$3:$BI$29,(COLUMN($BI$2)-1),FALSE) -> 0.9515055766 | BL3: =VLOOKUP($W3,$B$3:$I$24,COLUMN()-(COLUMN($BI$2)-1),FALSE)*E$34/SUM($C$34:$I$34)*VLOOKUP($W3,$B$3:$BI$29,(COLUMN($BI$2)-1),FALSE) -> 0.846619898 | BM3: =VLOOKUP($W3,$B$3:$I$24,COLUMN()-(COLUMN($BI$2)-1),FALSE)*F$34/SUM($C$34:$I$34)*VLOOKUP($W3,$B$3:$BI$29,(COLUMN($BI$2)-1),FALSE) -> 0.8838348073 | BN3: =VLOOKUP($W3,$B$3:$I$24,COLUMN()-(COLUMN($BI$2)-1),FALSE)*G$34/SUM($C$34:$I$34)*VLOOKUP($W3,$B$3:$BI$29,(COLUMN($BI$2)-1),FALSE) -> 1.021141709 | BO3: =VLOOKUP($W3,$B$3:$I$24,COLUMN()-(COLUMN($BI$2)-1),FALSE)*H$34/SUM($C$34:$I$34)*VLOOKUP($W3,$B$3:$BI$29,(COLUMN($BI$2)-1),FALSE) -> 0.6226096963 | BP3: =VLOOKUP($W3,$B$3:$I$24,COLUMN()-(COLUMN($BI$2)-1),FALSE)*I$34/SUM($C$34:$I$34)*VLOOKUP($W3,$B$3:$BI$29,(COLUMN($BI$2)-1),FALSE) -> 0.5992901262
A4: 11 | B4: Austria | C4: ='Aid 2010'!Q6 -> 4.785733948 | D4: ='Trade 2010'!F6 -> 6.229557863 | E4: ='Finance 2010'!D5 -> 3.696428571 | F4: ='Migration 2010'!E4 -> 3.178144049 | G4: ='Environment 2010'!K6 -> 5.136611382 | H4: ='Security 2010'!J7 -> 7.244840648 | I4: ='Technology 2010'!D6 -> 4.855656032 | J4: 5.018138928 | K4: 11 | L4: =ROUND(J4,1)-ROUND(VLOOKUP($B4,INDIRECT("'CDI "&Year-1&"'!Score_table"),9,FALSE),1) -> -0.1 | M4: =SUM(IF(ROUND(J4,1)<ROUND($J$3:$J$24,1),1))+1 -> 11 | N4: =VLOOKUP($B4,INDIRECT("'CDI "&Year-1&"'!Score_table"),12,FALSE) -> 9 | O4: Austria | P4: =(SUM(IF($J4<$J$3:$J$26*(1-BF$3:BF$26),1))+1)*(1-BF4) -> 0 | Q4: =(SUM(IF($J4<$J$3:$J$26*(1-BG$3:BG$26),1))+1)*(1-BG4) -> 0 | R4: =(SUM(IF(ROUND($J4,1)<ROUND($J$3:$J$26,1)*(1-BF$3:BF$26),1))+1)*(1-BF4) -> 0 | S4: =(SUM(IF(ROUND($J4,1)<ROUND($J$3:$J$26,1)*(1-BG$3:BG$26),1))+1)*(1-BG4) -> 0 | T4: Austria | U4: 2 | V4: 2 | W4: Portugal | X4: 5.832314475 | Y4: 1.4 | Z4: 12 | AB4: 1 | AC4: EU | AD4: 7.394538264 | AE4: 6.056049542 | AF4: 4.906120356 | AG4: 2.613847225 | AH4: 6.077958233 | AI4: 4.143183987 | AJ4: 4.437351258 | AK4: 5.089864123 | AM4: 2 | AN4: Canada | AO4: 5.946175126 | AP4: 4.345059167 | AQ4: 4.881696429 | AR4: 3.297006894 | AS4: 3.361953658 | AT4: 4.400049192 | AU4: 5.513332637 | AV4: 4.535039015 | BC4: 223.9541412 | BD4: 335.6518973 | BF4: 1 | BG4: 1 | BI4: =ABS(SUM($C4:$I4*$C$34:$I$34)/SUM(IF($C4:$I4>0,$C4:$I4*$C$34:$I$34))) -> 1 | BJ4: =VLOOKUP($W4,$B$3:$I$24,COLUMN()-(COLUMN($BI$2)-1),FALSE)*C$34/SUM($C$34:$I$34)*VLOOKUP($W4,$B$3:$BI$29,(COLUMN($BI$2)-1),FALSE) -> 1.533477238 | BK4: =VLOOKUP($W4,$B$3:$I$24,COLUMN()-(COLUMN($BI$2)-1),FALSE)*D$34/SUM($C$34:$I$34)*VLOOKUP($W4,$B$3:$BI$29,(COLUMN($BI$2)-1),FALSE) -> 0.8352904789 | BL4: =VLOOKUP($W4,$B$3:$I$24,COLUMN()-(COLUMN($BI$2)-1),FALSE)*E$34/SUM($C$34:$I$34)*VLOOKUP($W4,$B$3:$BI$29,(COLUMN($BI$2)-1),FALSE) -> 0.7461734694 | BM4: =VLOOKUP($W4,$B$3:$I$24,COLUMN()-(COLUMN($BI$2)-1),FALSE)*F$34/SUM($C$34:$I$34)*VLOOKUP($W4,$B$3:$BI$29,(COLUMN($BI$2)-1),FALSE) -> 0.1550327515 | BN4: =VLOOKUP($W4,$B$3:$I$24,COLUMN()-(COLUMN($BI$2)-1),FALSE)*G$34/SUM($C$34:$I$34)*VLOOKUP($W4,$B$3:$BI$29,(COLUMN($BI$2)-1),FALSE) -> 0.9432485108 | BO4: =VLOOKUP($W4,$B$3:$I$24,COLUMN()-(COLUMN($BI$2)-1),FALSE)*H$34/SUM($C$34:$I$34)*VLOOKUP($W4,$B$3:$BI$29,(COLUMN($BI$2)-1),FALSE) -> 0.6502159701 | BP4: =VLOOKUP($W4,$B$3:$I$24,COLUMN()-(COLUMN($BI$2)-1),FALSE)*I$34/SUM($C$34:$I$34)*VLOOKUP($W4,$B$3:$BI$29,(COLUMN($BI$2)-1),FALSE) -> 0.9688760563
A5: 7 | B5: Belgium | C5: ='Aid 2010'!Q7 -> 10.1070427 | D5: ='Trade 2010'!F7 -> 5.599066757 | E5: ='Finance 2010'!D6 -> 5.464285714 | F5: ='Migration 2010'!E5 -> 2.438104577 | G5: ='Environment 2010'!K7 -> 6.587510428 | H5: ='Security 2010'!J8 -> 2.329147413 | I5: ='Technology 2010'!D7 -> 4.525537809 | J5: 5.292956486 | K5: 7 | L5: =ROUND(J5,1)-ROUND(VLOOKUP($B5,INDIRECT("'CDI "&Year-1&"'!Score_table"),9,FALSE),1) -> 0.1 | M5: =SUM(IF(ROUND(J5,1)<ROUND($J$3:$J$24,1),1))+1 -> 7 | N5: =VLOOKUP($B5,INDIRECT("'CDI "&Year-1&"'!Score_table"),12,FALSE) -> 8 | O5: Belgium | P5: =(SUM(IF($J5<$J$3:$J$26*(1-BF$3:BF$26),1))+1)*(1-BF5) -> 0 | Q5: =(SUM(IF($J5<$J$3:$J$26*(1-BG$3:BG$26),1))+1)*(1-BG5) -> 0 | R5: =(SUM(IF(ROUND($J5,1)<ROUND($J$3:$J$26,1)*(1-BF$3:BF$26),1))+1)*(1-BF5) -> 0 | S5: =(SUM(IF(ROUND($J5,1)<ROUND($J$3:$J$26,1)*(1-BG$3:BG$26),1))+1)*(1-BG5) -> 0 | T5: Belgium | U5: 3 | V5: 2 | W5: Finland | X5: 5.829630693 | Y5: 0 | Z5: 2 | AB5: 3 | AC5: Canada | AD5: 5.946175126 | AE5: 4.345059167 | AF5: 4.881696429 | AG5: 3.297006894 | AH5: 3.361953658 | AI5: 4.400049192 | AJ5: 5.513332637 | AK5: 4.535039015 | AM5: 2 | AN5: Australia | AO5: 6.699047872 | AP5: 6.834536966 | AQ5: 5.584821429 | AR5: 1.662709186 | AS5: 3.909712446 | AT5: 1.649767693 | AU5: 4.839209222 | AV5: 4.454257831 | BC5: 266.9089423 | BD5: 410.0280484 | BF5: 1 | BG5: 1 | BI5: =ABS(SUM($C5:$I5*$C$34:$I$34)/SUM(IF($C5:$I5>0,$C5:$I5*$C$34:$I$34))) -> 1 | BJ5: =VLOOKUP($W5,$B$3:$I$24,COLUMN()-(COLUMN($BI$2)-1),FALSE)*C$34/SUM($C$34:$I$34)*VLOOKUP($W5,$B$3:$BI$29,(COLUMN($BI$2)-1),FALSE) -> 0.9215892642 | BK5: =VLOOKUP($W5,$B$3:$I$24,COLUMN()-(COLUMN($BI$2)-1),FALSE)*D$34/SUM($C$34:$I$34)*VLOOKUP($W5,$B$3:$BI$29,(COLUMN($BI$2)-1),FALSE) -> 0.9000501495 | BL5: =VLOOKUP($W5,$B$3:$I$24,COLUMN()-(COLUMN($BI$2)-1),FALSE)*E$34/SUM($C$34:$I$34)*VLOOKUP($W5,$B$3:$BI$29,(COLUMN($BI$2)-1),FALSE) -> 0.8810586735 | BM5: =VLOOKUP($W5,$B$3:$I$24,COLUMN()-(COLUMN($BI$2)-1),FALSE)*F$34/SUM($C$34:$I$34)*VLOOKUP($W5,$B$3:$BI$29,(COLUMN($BI$2)-1),FALSE) -> 0.2489048906 | BN5: =VLOOKUP($W5,$B$3:$I$24,COLUMN()-(COLUMN($BI$2)-1),FALSE)*G$34/SUM($C$34:$I$34)*VLOOKUP($W5,$B$3:$BI$29,(COLUMN($BI$2)-1),FALSE) -> 1.04548986 | BO5: =VLOOKUP($W5,$B$3:$I$24,COLUMN()-(COLUMN($BI$2)-1),FALSE)*H$34/SUM($C$34:$I$34)*VLOOKUP($W5,$B$3:$BI$29,(COLUMN($BI$2)-1),FALSE) -> 1.111220826 | BP5: =VLOOKUP($W5,$B$3:$I$24,COLUMN()-(COLUMN($BI$2)-1),FALSE)*I$34/SUM($C$34:$I$34)*VLOOKUP($W5,$B$3:$BI$29,(COLUMN($BI$2)-1),FALSE) -> 0.7213170284
A6: 15 | B6: Canada | C6: ='Aid 2010'!Q8 -> 5.946175126 | D6: ='Trade 2010'!F8 -> 4.345059167 | E6: ='Finance 2010'!D7 -> 4.881696429 | F6: ='Migration 2010'!E6 -> 3.297006894 | G6: ='Environment 2010'!K8 -> 3.361953658 | H6: ='Security 2010'!J9 -> 4.400049192 | I6: ='Technology 2010'!D8 -> 5.513332637 | J6: 4.535039015 | K6: 15 | L6: =ROUND(J6,1)-ROUND(VLOOKUP($B6,INDIRECT("'CDI "&Year-1&"'!Score_table"),9,FALSE),1) -> 0.2 | M6: =SUM(IF(ROUND(J6,1)<ROUND($J$3:$J$24,1),1))+1 -> 15 | N6: =VLOOKUP($B6,INDIRECT("'CDI "&Year-1&"'!Score_table"),12,FALSE) -> 15 | O6: Canada | P6: =(SUM(IF($J6<$J$3:$J$26*(1-BF$3:BF$26),1))+1)*(1-BF6) -> 3 | Q6: =(SUM(IF($J6<$J$3:$J$26*(1-BG$3:BG$26),1))+1)*(1-BG6) -> 2 | R6: =(SUM(IF(ROUND($J6,1)<ROUND($J$3:$J$26,1)*(1-BF$3:BF$26),1))+1)*(1-BF6) -> 3 | S6: =(SUM(IF(ROUND($J6,1)<ROUND($J$3:$J$26,1)*(1-BG$3:BG$26),1))+1)*(1-BG6) -> 2 | T6: Canada | U6: 4 | V6: 2 | W6: Denmark | X6: 5.771125293 | Y6: -0.1 | Z6: 1 | AB6: 3 | AC6: Australia | AD6: 6.699047872 | AE6: 6.834536966 | AF6: 5.584821429 | AG6: 1.662709186 | AH6: 3.909712446 | AI6: 1.649767693 | AJ6: 4.839209222 | AK6: 4.454257831 | AM6: 4 | AN6: New Zealand | AO6: 1.753555739 | AP6: 8.014934186 | AQ6: 3.957589286 | AR6: 1.412254234 | AS6: 5.624789248 | AT6: 5.361491356 | AU6: 4.643985932 | AV6: 4.395514283 | BC6: 872.7844618 | BD6: 1332.626063 | BF6: 0 | BG6: 0 | BI6: =ABS(SUM($C6:$I6*$C$34:$I$34)/SUM(IF($C6:$I6>0,$C6:$I6*$C$34:$I$34))) -> 1 | BJ6: =VLOOKUP($W6,$B$3:$I$24,COLUMN()-(COLUMN($BI$2)-1),FALSE)*C$34/SUM($C$34:$I$34)*VLOOKUP($W6,$B$3:$BI$29,(COLUMN($BI$2)-1),FALSE) -> 1.608163382 | BK6: =VLOOKUP($W6,$B$3:$I$24,COLUMN()-(COLUMN($BI$2)-1),FALSE)*D$34/SUM($C$34:$I$34)*VLOOKUP($W6,$B$3:$BI$29,(COLUMN($BI$2)-1),FALSE) -> 0.8276053706 | BL6: =VLOOKUP($W6,$B$3:$I$24,COLUMN()-(COLUMN($BI$2)-1),FALSE)*E$34/SUM($C$34:$I$34)*VLOOKUP($W6,$B$3:$BI$29,(COLUMN($BI$2)-1),FALSE) -> 0.8294005102 | BM6: =VLOOKUP($W6,$B$3:$I$24,COLUMN()-(COLUMN($BI$2)-1),FALSE)*F$34/SUM($C$34:$I$34)*VLOOKUP($W6,$B$3:$BI$29,(COLUMN($BI$2)-1),FALSE) -> 0.3089000868 | BN6: =VLOOKUP($W6,$B$3:$I$24,COLUMN()-(COLUMN($BI$2)-1),FALSE)*G$34/SUM($C$34:$I$34)*VLOOKUP($W6,$B$3:$BI$29,(COLUMN($BI$2)-1),FALSE) -> 0.8564699469 | BO6: =VLOOKUP($W6,$B$3:$I$24,COLUMN()-(COLUMN($BI$2)-1),FALSE)*H$34/SUM($C$34:$I$34)*VLOOKUP($W6,$B$3:$BI$29,(COLUMN($BI$2)-1),FALSE) -> 0.5771472974 | BP6: =VLOOKUP($W6,$B$3:$I$24,COLUMN()-(COLUMN($BI$2)-1),FALSE)*I$34/SUM($C$34:$I$34)*VLOOKUP($W6,$B$3:$BI$29,(COLUMN($BI$2)-1),FALSE) -> 0.7634386992
A7: 2 | B7: Denmark | C7: ='Aid 2010'!Q9 -> 11.25714367 | D7: ='Trade 2010'!F9 -> 5.793237594 | E7: ='Finance 2010'!D8 -> 5.805803571 | F7: ='Migration 2010'!E7 -> 2.162300608 | G7: ='Environment 2010'!K9 -> 5.995289628 | H7: ='Security 2010'!J10 -> 4.040031082 | I7: ='Technology 2010'!D9 -> 5.344070895 | J7: 5.771125293 | K7: 4 | L7: =ROUND(J7,1)-ROUND(VLOOKUP($B7,INDIRECT("'CDI "&Year-1&"'!Score_table"),9,FALSE),1) -> -0.1 | M7: =SUM(IF(ROUND(J7,1)<ROUND($J$3:$J$24,1),1))+1 -> 2 | N7: =VLOOKUP($B7,INDIRECT("'CDI "&Year-1&"'!Score_table"),12,FALSE) -> 3 | O7: Denmark | P7: =(SUM(IF($J7<$J$3:$J$26*(1-BF$3:BF$26),1))+1)*(1-BF7) -> 0 | Q7: =(SUM(IF($J7<$J$3:$J$26*(1-BG$3:BG$26),1))+1)*(1-BG7) -> 0 | R7: =(SUM(IF(ROUND($J7,1)<ROUND($J$3:$J$26,1)*(1-BF$3:BF$26),1))+1)*(1-BF7) -> 0 | S7: =(SUM(IF(ROUND($J7,1)<ROUND($J$3:$J$26,1)*(1-BG$3:BG$26),1))+1)*(1-BG7) -> 0 | T7: Denmark | U7: 5 | V7: 2 | W7: Ireland | X7: 5.762257652 | Y7: -0.2 | Z7: 0 | AB7: 5 | AC7: New Zealand | AD7: 1.753555739 | AE7: 8.014934186 | AF7: 3.957589286 | AG7: 1.412254234 | AH7: 5.624789248 | AI7: 5.361491356 | AJ7: 4.643985932 | AK7: 4.395514283 | AM7: 5 | AN7: United States | AO7: 7.732060453 | AP7: 6.829364053 | AQ7: 4.660714286 | AR7: 1.209940688 | AS7: 3.806344314 | AT7: -0.133328202 | AU7: 4.802575804 | AV7: 4.129667342 | BC7: 77.65141094 | BD7: 257.9283313 | BF7: 1 | BG7: 1 | BI7: =ABS(SUM($C7:$I7*$C$34:$I$34)/SUM(IF($C7:$I7>0,$C7:$I7*$C$34:$I$34))) -> 1 | BJ7: =VLOOKUP($W7,$B$3:$I$24,COLUMN()-(COLUMN($BI$2)-1),FALSE)*C$34/SUM($C$34:$I$34)*VLOOKUP($W7,$B$3:$BI$29,(COLUMN($BI$2)-1),FALSE) -> 1.196120841 | BK7: =VLOOKUP($W7,$B$3:$I$24,COLUMN()-(COLUMN($BI$2)-1),FALSE)*D$34/SUM($C$34:$I$34)*VLOOKUP($W7,$B$3:$BI$29,(COLUMN($BI$2)-1),FALSE) -> 0.8167995378 | BL7: =VLOOKUP($W7,$B$3:$I$24,COLUMN()-(COLUMN($BI$2)-1),FALSE)*E$34/SUM($C$34:$I$34)*VLOOKUP($W7,$B$3:$BI$29,(COLUMN($BI$2)-1),FALSE) -> 0.7146045918 | BM7: =VLOOKUP($W7,$B$3:$I$24,COLUMN()-(COLUMN($BI$2)-1),FALSE)*F$34/SUM($C$34:$I$34)*VLOOKUP($W7,$B$3:$BI$29,(COLUMN($BI$2)-1),FALSE) -> 0.2691566409 | BN7: =VLOOKUP($W7,$B$3:$I$24,COLUMN()-(COLUMN($BI$2)-1),FALSE)*G$34/SUM($C$34:$I$34)*VLOOKUP($W7,$B$3:$BI$29,(COLUMN($BI$2)-1),FALSE) -> 0.8310996781 | BO7: =VLOOKUP($W7,$B$3:$I$24,COLUMN()-(COLUMN($BI$2)-1),FALSE)*H$34/SUM($C$34:$I$34)*VLOOKUP($W7,$B$3:$BI$29,(COLUMN($BI$2)-1),FALSE) -> 1.403486835 | BP7: =VLOOKUP($W7,$B$3:$I$24,COLUMN()-(COLUMN($BI$2)-1),FALSE)*I$34/SUM($C$34:$I$34)*VLOOKUP($W7,$B$3:$BI$29,(COLUMN($BI$2)-1),FALSE) -> 0.5309895277
A8: 2 | B8: Finland | C8: ='Aid 2010'!Q10 -> 6.45112485 | D8: ='Trade 2010'!F10 -> 6.300351047 | E8: ='Finance 2010'!D9 -> 6.167410714 | F8: ='Migration 2010'!E8 -> 1.742334234 | G8: ='Environment 2010'!K10 -> 7.318429022 | H8: ='Security 2010'!J11 -> 7.778545782 | I8: ='Technology 2010'!D10 -> 5.049219199 | J8: 5.829630693 | K8: 3 | L8: =ROUND(J8,1)-ROUND(VLOOKUP($B8,INDIRECT("'CDI "&Year-1&"'!Score_table"),9,FALSE),1) -> 0 | M8: =SUM(IF(ROUND(J8,1)<ROUND($J$3:$J$24,1),1))+1 -> 2 | N8: =VLOOKUP($B8,INDIRECT("'CDI "&Year-1&"'!Score_table"),12,FALSE) -> 4 | O8: Finland | P8: =(SUM(IF($J8<$J$3:$J$26*(1-BF$3:BF$26),1))+1)*(1-BF8) -> 0 | Q8: =(SUM(IF($J8<$J$3:$J$26*(1-BG$3:BG$26),1))+1)*(1-BG8) -> 0 | R8: =(SUM(IF(ROUND($J8,1)<ROUND($J$3:$J$26,1)*(1-BF$3:BF$26),1))+1)*(1-BF8) -> 0 | S8: =(SUM(IF(ROUND($J8,1)<ROUND($J$3:$J$26,1)*(1-BG$3:BG$26),1))+1)*(1-BG8) -> 0 | T8: Finland | U8: 6 | V8: 6 | W8: Spain | X8: 5.720540722 | Y8: 0 | Z8: -1 | AB8: 6 | AC8: United States | AD8: 7.732060453 | AE8: 6.829364053 | AF8: 4.660714286 | AG8: 1.209940688 | AH8: 3.806344314 | AI8: -0.133328202 | AJ8: 4.802575804 | AK8: 4.129667342 | AM8: 6 | AN8: Japan | AO8: 0.06186437775 | AP8: 1.677930376 | AQ8: 2.933035714 | AR8: 0.9900985148 | AS8: 4.409867971 | AT8: 4.131709612 | AU8: 5.928687348 | AV8: 2.876170559 | BC8: 169.3625385 | BD8: 222.7818824 | BF8: 1 | BG8: 1 | BI8: =ABS(SUM($C8:$I8*$C$34:$I$34)/SUM(IF($C8:$I8>0,$C8:$I8*$C$34:$I$34))) -> 1 | BJ8: =VLOOKUP($W8,$B$3:$I$24,COLUMN()-(COLUMN($BI$2)-1),FALSE)*C$34/SUM($C$34:$I$34)*VLOOKUP($W8,$B$3:$BI$29,(COLUMN($BI$2)-1),FALSE) -> 1.275149152 | BK8: =VLOOKUP($W8,$B$3:$I$24,COLUMN()-(COLUMN($BI$2)-1),FALSE)*D$34/SUM($C$34:$I$34)*VLOOKUP($W8,$B$3:$BI$29,(COLUMN($BI$2)-1),FALSE) -> 0.8563925651 | BL8: =VLOOKUP($W8,$B$3:$I$24,COLUMN()-(COLUMN($BI$2)-1),FALSE)*E$34/SUM($C$34:$I$34)*VLOOKUP($W8,$B$3:$BI$29,(COLUMN($BI$2)-1),FALSE) -> 0.8580994898 | BM8: =VLOOKUP($W8,$B$3:$I$24,COLUMN()-(COLUMN($BI$2)-1),FALSE)*F$34/SUM($C$34:$I$34)*VLOOKUP($W8,$B$3:$BI$29,(COLUMN($BI$2)-1),FALSE) -> 0.435295167 | BN8: =VLOOKUP($W8,$B$3:$I$24,COLUMN()-(COLUMN($BI$2)-1),FALSE)*G$34/SUM($C$34:$I$34)*VLOOKUP($W8,$B$3:$BI$29,(COLUMN($BI$2)-1),FALSE) -> 0.7881409243 | BO8: =VLOOKUP($W8,$B$3:$I$24,COLUMN()-(COLUMN($BI$2)-1),FALSE)*H$34/SUM($C$34:$I$34)*VLOOKUP($W8,$B$3:$BI$29,(COLUMN($BI$2)-1),FALSE) -> 0.6115980393 | BP8: =VLOOKUP($W8,$B$3:$I$24,COLUMN()-(COLUMN($BI$2)-1),FALSE)*I$34/SUM($C$34:$I$34)*VLOOKUP($W8,$B$3:$BI$29,(COLUMN($BI$2)-1),FALSE) -> 0.8958653844
A9: 7 | B9: France | C9: ='Aid 2010'!Q11 -> 7.089906327 | D9: ='Trade 2010'!F11 -> 5.829271544 | E9: ='Finance 2010'!D10 -> 5.383928571 | F9: ='Migration 2010'!E9 -> 2.641065755 | G9: ='Environment 2010'!K11 -> 6.710770405 | H9: ='Security 2010'!J12 -> 3.527593189 | I9: ='Technology 2010'!D11 -> 5.741759986 | J9: 5.274899397 | K9: 8 | L9: =ROUND(J9,1)-ROUND(VLOOKUP($B9,INDIRECT("'CDI "&Year-1&"'!Score_table"),9,FALSE),1) -> 0 | M9: =SUM(IF(ROUND(J9,1)<ROUND($J$3:$J$24,1),1))+1 -> 7 | N9: =VLOOKUP($B9,INDIRECT("'CDI "&Year-1&"'!Score_table"),12,FALSE) -> 7 | O9: France | P9: =(SUM(IF($J9<$J$3:$J$26*(1-BF$3:BF$26),1))+1)*(1-BF9) -> 0 | Q9: =(SUM(IF($J9<$J$3:$J$26*(1-BG$3:BG$26),1))+1)*(1-BG9) -> 0 | R9: =(SUM(IF(ROUND($J9,1)<ROUND($J$3:$J$26,1)*(1-BF$3:BF$26),1))+1)*(1-BF9) -> 0 | S9: =(SUM(IF(ROUND($J9,1)<ROUND($J$3:$J$26,1)*(1-BG$3:BG$26),1))+1)*(1-BG9) -> 0 | T9: France | U9: 7 | V9: 7 | W9: Belgium | X9: 5.292956486 | Y9: 0.1 | Z9: 1 | AB9: 7 | AC9: Switzerland | AD9: 7.011239325 | AE9: -0.4915236063 | AF9: 2.993303571 | AG9: 2.463508571 | AH9: 5.456587154 | AI9: 3.724635708 | AJ9: 2.697765934 | AK9: 3.407930951 | AM9: 7 | AN9: South Korea | AO9: 1.061870186 | AP9: -2.36808126 | AQ9: 4.238839286 | AR9: 1.159641765 | AS9: 3.573885704 | AT9: 1.323367142 | AU9: 6.458370037 | AV9: 2.206841837 | BC9: 145.4219592 | BD9: 195.6387553 | BF9: 1 | BG9: 1 | BI9: =ABS(SUM($C9:$I9*$C$34:$I$34)/SUM(IF($C9:$I9>0,$C9:$I9*$C$34:$I$34))) -> 1 | BJ9: =VLOOKUP($W9,$B$3:$I$24,COLUMN()-(COLUMN($BI$2)-1),FALSE)*C$34/SUM($C$34:$I$34)*VLOOKUP($W9,$B$3:$BI$29,(COLUMN($BI$2)-1),FALSE) -> 1.443863243 | BK9: =VLOOKUP($W9,$B$3:$I$24,COLUMN()-(COLUMN($BI$2)-1),FALSE)*D$34/SUM($C$34:$I$34)*VLOOKUP($W9,$B$3:$BI$29,(COLUMN($BI$2)-1),FALSE) -> 0.7998666796 | BL9: =VLOOKUP($W9,$B$3:$I$24,COLUMN()-(COLUMN($BI$2)-1),FALSE)*E$34/SUM($C$34:$I$34)*VLOOKUP($W9,$B$3:$BI$29,(COLUMN($BI$2)-1),FALSE) -> 0.7806122449 | BM9: =VLOOKUP($W9,$B$3:$I$24,COLUMN()-(COLUMN($BI$2)-1),FALSE)*F$34/SUM($C$34:$I$34)*VLOOKUP($W9,$B$3:$BI$29,(COLUMN($BI$2)-1),FALSE) -> 0.3483006539 | BN9: =VLOOKUP($W9,$B$3:$I$24,COLUMN()-(COLUMN($BI$2)-1),FALSE)*G$34/SUM($C$34:$I$34)*VLOOKUP($W9,$B$3:$BI$29,(COLUMN($BI$2)-1),FALSE) -> 0.9410729182 | BO9: =VLOOKUP($W9,$B$3:$I$24,COLUMN()-(COLUMN($BI$2)-1),FALSE)*H$34/SUM($C$34:$I$34)*VLOOKUP($W9,$B$3:$BI$29,(COLUMN($BI$2)-1),FALSE) -> 0.3327353447 | BP9: =VLOOKUP($W9,$B$3:$I$24,COLUMN()-(COLUMN($BI$2)-1),FALSE)*I$34/SUM($C$34:$I$34)*VLOOKUP($W9,$B$3:$BI$29,(COLUMN($BI$2)-1),FALSE) -> 0.6465054013
A10: 11 | B10: Germany | C10: ='Aid 2010'!Q12 -> 6.959269524 | D10: ='Trade 2010'!F12 -> 6.073445597 | E10: ='Finance 2010'!D11 -> 4.178571429 | F10: ='Migration 2010'!E10 -> 3.106693547 | G10: ='Environment 2010'!K12 -> 6.386843698 | H10: ='Security 2010'!J13 -> 3.964841343 | I10: ='Technology 2010'!D12 -> 4.195547772 | J10: 4.980744701 | K10: 13 | L10: =ROUND(J10,1)-ROUND(VLOOKUP($B10,INDIRECT("'CDI "&Year-1&"'!Score_table"),9,FALSE),1) -> 0 | M10: =SUM(IF(ROUND(J10,1)<ROUND($J$3:$J$24,1),1))+1 -> 11 | N10: =VLOOKUP($B10,INDIRECT("'CDI "&Year-1&"'!Score_table"),12,FALSE) -> 10 | O10: Germany | P10: =(SUM(IF($J10<$J$3:$J$26*(1-BF$3:BF$26),1))+1)*(1-BF10) -> 0 | Q10: =(SUM(IF($J10<$J$3:$J$26*(1-BG$3:BG$26),1))+1)*(1-BG10) -> 0 | R10: =(SUM(IF(ROUND($J10,1)<ROUND($J$3:$J$26,1)*(1-BF$3:BF$26),1))+1)*(1-BF10) -> 0 | S10: =(SUM(IF(ROUND($J10,1)<ROUND($J$3:$J$26,1)*(1-BG$3:BG$26),1))+1)*(1-BG10) -> 0 | T10: Germany | U10: 8 | V10: 7 | W10: France | X10: 5.274899397 | Y10: 0 | Z10: 0 | AB10: 8 | AC10: Japan | AD10: 0.06186437775 | AE10: 1.677930376 | AF10: 2.933035714 | AG10: 0.9900985148 | AH10: 4.409867971 | AI10: 4.131709612 | AJ10: 5.928687348 | AK10: 2.876170559 | BC10: 1484.698026 | BD10: 2214.42474 | BF10: 1 | BG10: 1 | BI10: =ABS(SUM($C10:$I10*$C$34:$I$34)/SUM(IF($C10:$I10>0,$C10:$I10*$C$34:$I$34))) -> 1 | BJ10: =VLOOKUP($W10,$B$3:$I$24,COLUMN()-(COLUMN($BI$2)-1),FALSE)*C$34/SUM($C$34:$I$34)*VLOOKUP($W10,$B$3:$BI$29,(COLUMN($BI$2)-1),FALSE) -> 1.012843761 | BK10: =VLOOKUP($W10,$B$3:$I$24,COLUMN()-(COLUMN($BI$2)-1),FALSE)*D$34/SUM($C$34:$I$34)*VLOOKUP($W10,$B$3:$BI$29,(COLUMN($BI$2)-1),FALSE) -> 0.8327530776 | BL10: =VLOOKUP($W10,$B$3:$I$24,COLUMN()-(COLUMN($BI$2)-1),FALSE)*E$34/SUM($C$34:$I$34)*VLOOKUP($W10,$B$3:$BI$29,(COLUMN($BI$2)-1),FALSE) -> 0.7691326531 | BM10: =VLOOKUP($W10,$B$3:$I$24,COLUMN()-(COLUMN($BI$2)-1),FALSE)*F$34/SUM($C$34:$I$34)*VLOOKUP($W10,$B$3:$BI$29,(COLUMN($BI$2)-1),FALSE) -> 0.3772951078 | BN10: =VLOOKUP($W10,$B$3:$I$24,COLUMN()-(COLUMN($BI$2)-1),FALSE)*G$34/SUM($C$34:$I$34)*VLOOKUP($W10,$B$3:$BI$29,(COLUMN($BI$2)-1),FALSE) -> 0.9586814864 | BO10: =VLOOKUP($W10,$B$3:$I$24,COLUMN()-(COLUMN($BI$2)-1),FALSE)*H$34/SUM($C$34:$I$34)*VLOOKUP($W10,$B$3:$BI$29,(COLUMN($BI$2)-1),FALSE) -> 0.5039418841 | BP10: =VLOOKUP($W10,$B$3:$I$24,COLUMN()-(COLUMN($BI$2)-1),FALSE)*I$34/SUM($C$34:$I$34)*VLOOKUP($W10,$B$3:$BI$29,(COLUMN($BI$2)-1),FALSE) -> 0.8202514265
A11: 18 | B11: Greece | C11: ='Aid 2010'!Q13 -> 4.263610738 | D11: ='Trade 2010'!F13 -> 5.530908567 | E11: ='Finance 2010'!D12 -> 4.620535714 | F11: ='Migration 2010'!E11 -> 3.163518118 | G11: ='Environment 2010'!K13 -> 5.306874782 | H11: ='Security 2010'!J14 -> 4.352161821 | I11: ='Technology 2010'!D13 -> 2.699967599 | J11: 4.276796763 | K11: 18 | L11: =ROUND(J11,1)-ROUND(VLOOKUP($B11,INDIRECT("'CDI "&Year-1&"'!Score_table"),9,FALSE),1) -> 0.1 | M11: =SUM(IF(ROUND(J11,1)<ROUND($J$3:$J$24,1),1))+1 -> 18 | N11: =VLOOKUP($B11,INDIRECT("'CDI "&Year-1&"'!Score_table"),12,FALSE) -> 16 | O11: Greece | P11: =(SUM(IF($J11<$J$3:$J$26*(1-BF$3:BF$26),1))+1)*(1-BF11) -> 0 | Q11: =(SUM(IF($J11<$J$3:$J$26*(1-BG$3:BG$26),1))+1)*(1-BG11) -> 0 | R11: =(SUM(IF(ROUND($J11,1)<ROUND($J$3:$J$26,1)*(1-BF$3:BF$26),1))+1)*(1-BF11) -> 0 | S11: =(SUM(IF(ROUND($J11,1)<ROUND($J$3:$J$26,1)*(1-BG$3:BG$26),1))+1)*(1-BG11) -> 0 | T11: Greece | U11: 9 | V11: 9 | W11: Norway | X11: 5.148989244 | Y11: -0.4 | Z11: -3 | AB11: 9 | AC11: South Korea | AD11: 1.061870186 | AE11: -2.36808126 | AF11: 4.238839286 | AG11: 1.159641765 | AH11: 3.573885704 | AI11: 1.323367142 | AJ11: 6.458370037 | AK11: 2.206841837 | BC11: 5010.032165 | BD11: 4299.287691 | BF11: 1 | BG11: 1 | BI11: =ABS(SUM($C11:$I11*$C$34:$I$34)/SUM(IF($C11:$I11>0,$C11:$I11*$C$34:$I$34))) -> 1 | BJ11: =VLOOKUP($W11,$B$3:$I$24,COLUMN()-(COLUMN($BI$2)-1),FALSE)*C$34/SUM($C$34:$I$34)*VLOOKUP($W11,$B$3:$BI$29,(COLUMN($BI$2)-1),FALSE) -> 1.589643393 | BK11: =VLOOKUP($W11,$B$3:$I$24,COLUMN()-(COLUMN($BI$2)-1),FALSE)*D$34/SUM($C$34:$I$34)*VLOOKUP($W11,$B$3:$BI$29,(COLUMN($BI$2)-1),FALSE) -> -0.4512503854 | BL11: =VLOOKUP($W11,$B$3:$I$24,COLUMN()-(COLUMN($BI$2)-1),FALSE)*E$34/SUM($C$34:$I$34)*VLOOKUP($W11,$B$3:$BI$29,(COLUMN($BI$2)-1),FALSE) -> 0.733147526 | BM11: =VLOOKUP($W11,$B$3:$I$24,COLUMN()-(COLUMN($BI$2)-1),FALSE)*F$34/SUM($C$34:$I$34)*VLOOKUP($W11,$B$3:$BI$29,(COLUMN($BI$2)-1),FALSE) -> 0.4726969079 | BN11: =VLOOKUP($W11,$B$3:$I$24,COLUMN()-(COLUMN($BI$2)-1),FALSE)*G$34/SUM($C$34:$I$34)*VLOOKUP($W11,$B$3:$BI$29,(COLUMN($BI$2)-1),FALSE) -> 0.5412915987 | BO11: =VLOOKUP($W11,$B$3:$I$24,COLUMN()-(COLUMN($BI$2)-1),FALSE)*H$34/SUM($C$34:$I$34)*VLOOKUP($W11,$B$3:$BI$29,(COLUMN($BI$2)-1),FALSE) -> 1.158936092 | BP11: =VLOOKUP($W11,$B$3:$I$24,COLUMN()-(COLUMN($BI$2)-1),FALSE)*I$34/SUM($C$34:$I$34)*VLOOKUP($W11,$B$3:$BI$29,(COLUMN($BI$2)-1),FALSE) -> 0.6532737263
A12: 2 | B12: Ireland | C12: ='Aid 2010'!Q14 -> 8.372845886 | D12: ='Trade 2010'!F14 -> 5.717596764 | E12: ='Finance 2010'!D13 -> 5.002232143 | F12: ='Migration 2010'!E12 -> 1.884096486 | G12: ='Environment 2010'!K14 -> 5.817697747 | H12: ='Security 2010'!J15 -> 9.824407842 | I12: ='Technology 2010'!D14 -> 3.716926694 | J12: 5.762257652 | K12: 5 | L12: =ROUND(J12,1)-ROUND(VLOOKUP($B12,INDIRECT("'CDI "&Year-1&"'!Score_table"),9,FALSE),1) -> -0.2 | M12: =SUM(IF(ROUND(J12,1)<ROUND($J$3:$J$24,1),1))+1 -> 2 | N12: =VLOOKUP($B12,INDIRECT("'CDI "&Year-1&"'!Score_table"),12,FALSE) -> 2 | O12: Ireland | P12: =(SUM(IF($J12<$J$3:$J$26*(1-BF$3:BF$26),1))+1)*(1-BF12) -> 0 | Q12: =(SUM(IF($J12<$J$3:$J$26*(1-BG$3:BG$26),1))+1)*(1-BG12) -> 0 | R12: =(SUM(IF(ROUND($J12,1)<ROUND($J$3:$J$26,1)*(1-BF$3:BF$26),1))+1)*(1-BF12) -> 0 | S12: =(SUM(IF(ROUND($J12,1)<ROUND($J$3:$J$26,1)*(1-BG$3:BG$26),1))+1)*(1-BG12) -> 0 | T12: Ireland | U12: 10 | V12: 9 | W12: Netherlands | X12: 5.117933955 | Y12: 0.1 | Z12: 1 | BC12: 26.51690394 | BD12: 43.66501069 | BF12: 1 | BG12: 1 | BI12: =ABS(SUM($C12:$I12*$C$34:$I$34)/SUM(IF($C12:$I12>0,$C12:$I12*$C$34:$I$34))) -> 1 | BJ12: =VLOOKUP($W12,$B$3:$I$24,COLUMN()-(COLUMN($BI$2)-1),FALSE)*C$34/SUM($C$34:$I$34)*VLOOKUP($W12,$B$3:$BI$29,(COLUMN($BI$2)-1),FALSE) -> 1.217302986 | BK12: =VLOOKUP($W12,$B$3:$I$24,COLUMN()-(COLUMN($BI$2)-1),FALSE)*D$34/SUM($C$34:$I$34)*VLOOKUP($W12,$B$3:$BI$29,(COLUMN($BI$2)-1),FALSE) -> 0.9586576634 | BL12: =VLOOKUP($W12,$B$3:$I$24,COLUMN()-(COLUMN($BI$2)-1),FALSE)*E$34/SUM($C$34:$I$34)*VLOOKUP($W12,$B$3:$BI$29,(COLUMN($BI$2)-1),FALSE) -> 0.703125 | BM12: =VLOOKUP($W12,$B$3:$I$24,COLUMN()-(COLUMN($BI$2)-1),FALSE)*F$34/SUM($C$34:$I$34)*VLOOKUP($W12,$B$3:$BI$29,(COLUMN($BI$2)-1),FALSE) -> 0.2810127044 | BN12: =VLOOKUP($W12,$B$3:$I$24,COLUMN()-(COLUMN($BI$2)-1),FALSE)*G$34/SUM($C$34:$I$34)*VLOOKUP($W12,$B$3:$BI$29,(COLUMN($BI$2)-1),FALSE) -> 0.9085438419 | BO12: =VLOOKUP($W12,$B$3:$I$24,COLUMN()-(COLUMN($BI$2)-1),FALSE)*H$34/SUM($C$34:$I$34)*VLOOKUP($W12,$B$3:$BI$29,(COLUMN($BI$2)-1),FALSE) -> 0.378904214 | BP12: =VLOOKUP($W12,$B$3:$I$24,COLUMN()-(COLUMN($BI$2)-1),FALSE)*I$34/SUM($C$34:$I$34)*VLOOKUP($W12,$B$3:$BI$29,(COLUMN($BI$2)-1),FALSE) -> 0.6703875456
A13: 11 | B13: Italy | C13: ='Aid 2010'!Q15 -> 4.924405346 | D13: ='Trade 2010'!F15 -> 5.662862028 | E13: ='Finance 2010'!D14 -> 5.34375 | F13: ='Migration 2010'!E13 -> 1.979983145 | G13: ='Environment 2010'!K15 -> 6.090557583 | H13: ='Security 2010'!J16 -> 6.908333474 | I13: ='Technology 2010'!D15 -> 4.184558936 | J13: 5.01349293 | K13: 12 | L13: =ROUND(J13,1)-ROUND(VLOOKUP($B13,INDIRECT("'CDI "&Year-1&"'!Score_table"),9,FALSE),1) -> 0.1 | M13: =SUM(IF(ROUND(J13,1)<ROUND($J$3:$J$24,1),1))+1 -> 11 | N13: =VLOOKUP($B13,INDIRECT("'CDI "&Year-1&"'!Score_table"),12,FALSE) -> 12 | O13: Italy | P13: =(SUM(IF($J13<$J$3:$J$26*(1-BF$3:BF$26),1))+1)*(1-BF13) -> 0 | Q13: =(SUM(IF($J13<$J$3:$J$26*(1-BG$3:BG$26),1))+1)*(1-BG13) -> 0 | R13: =(SUM(IF(ROUND($J13,1)<ROUND($J$3:$J$26,1)*(1-BF$3:BF$26),1))+1)*(1-BF13) -> 0 | S13: =(SUM(IF(ROUND($J13,1)<ROUND($J$3:$J$26,1)*(1-BG$3:BG$26),1))+1)*(1-BG13) -> 0 | T13: Italy | U13: 11 | V13: 11 | W13: Austria | X13: 5.018138928 | Y13: -0.1 | Z13: -2 | BC13: 441.1854356 | BD13: 700.605399 | BF13: 1 | BG13: 1 | BI13: =ABS(SUM($C13:$I13*$C$34:$I$34)/SUM(IF($C13:$I13>0,$C13:$I13*$C$34:$I$34))) -> 1 | BJ13: =VLOOKUP($W13,$B$3:$I$24,COLUMN()-(COLUMN($BI$2)-1),FALSE)*C$34/SUM($C$34:$I$34)*VLOOKUP($W13,$B$3:$BI$29,(COLUMN($BI$2)-1),FALSE) -> 0.6836762783 | BK13: =VLOOKUP($W13,$B$3:$I$24,COLUMN()-(COLUMN($BI$2)-1),FALSE)*D$34/SUM($C$34:$I$34)*VLOOKUP($W13,$B$3:$BI$29,(COLUMN($BI$2)-1),FALSE) -> 0.8899368376 | BL13: =VLOOKUP($W13,$B$3:$I$24,COLUMN()-(COLUMN($BI$2)-1),FALSE)*E$34/SUM($C$34:$I$34)*VLOOKUP($W13,$B$3:$BI$29,(COLUMN($BI$2)-1),FALSE) -> 0.5280612245 | BM13: =VLOOKUP($W13,$B$3:$I$24,COLUMN()-(COLUMN($BI$2)-1),FALSE)*F$34/SUM($C$34:$I$34)*VLOOKUP($W13,$B$3:$BI$29,(COLUMN($BI$2)-1),FALSE) -> 0.4540205784 | BN13: =VLOOKUP($W13,$B$3:$I$24,COLUMN()-(COLUMN($BI$2)-1),FALSE)*G$34/SUM($C$34:$I$34)*VLOOKUP($W13,$B$3:$BI$29,(COLUMN($BI$2)-1),FALSE) -> 0.733801626 | BO13: =VLOOKUP($W13,$B$3:$I$24,COLUMN()-(COLUMN($BI$2)-1),FALSE)*H$34/SUM($C$34:$I$34)*VLOOKUP($W13,$B$3:$BI$29,(COLUMN($BI$2)-1),FALSE) -> 1.034977235 | BP13: =VLOOKUP($W13,$B$3:$I$24,COLUMN()-(COLUMN($BI$2)-1),FALSE)*I$34/SUM($C$34:$I$34)*VLOOKUP($W13,$B$3:$BI$29,(COLUMN($BI$2)-1),FALSE) -> 0.6936651474
A14: 21 | B14: Japan | C14: ='Aid 2010'!Q16 -> 0.06186437775 | D14: ='Trade 2010'!F16 -> 1.677930376 | E14: ='Finance 2010'!D15 -> 2.933035714 | F14: ='Migration 2010'!E14 -> 0.9900985148 | G14: ='Environment 2010'!K16 -> 4.409867971 | H14: ='Security 2010'!J17 -> 4.131709612 | I14: ='Technology 2010'!D16 -> 5.928687348 | J14: 2.876170559 | K14: 21 | L14: =ROUND(J14,1)-ROUND(VLOOKUP($B14,INDIRECT("'CDI "&Year-1&"'!Score_table"),9,FALSE),1) -> 0.2 | M14: =SUM(IF(ROUND(J14,1)<ROUND($J$3:$J$24,1),1))+1 -> 21 | N14: =VLOOKUP($B14,INDIRECT("'CDI "&Year-1&"'!Score_table"),12,FALSE) -> 21 | O14: Japan | P14: =(SUM(IF($J14<$J$3:$J$26*(1-BF$3:BF$26),1))+1)*(1-BF14) -> 8 | Q14: =(SUM(IF($J14<$J$3:$J$26*(1-BG$3:BG$26),1))+1)*(1-BG14) -> 6 | R14: =(SUM(IF(ROUND($J14,1)<ROUND($J$3:$J$26,1)*(1-BF$3:BF$26),1))+1)*(1-BF14) -> 8 | S14: =(SUM(IF(ROUND($J14,1)<ROUND($J$3:$J$26,1)*(1-BG$3:BG$26),1))+1)*(1-BG14) -> 6 | T14: Japan | U14: 12 | V14: 11 | W14: Italy | X14: 5.01349293 | Y14: 0.1 | Z14: 1 | BC14: 64.83834061 | BD14: 129.006764 | BF14: 0 | BG14: 0 | BI14: =ABS(SUM($C14:$I14*$C$34:$I$34)/SUM(IF($C14:$I14>0,$C14:$I14*$C$34:$I$34))) -> 1 | BJ14: =VLOOKUP($W14,$B$3:$I$24,COLUMN()-(COLUMN($BI$2)-1),FALSE)*C$34/SUM($C$34:$I$34)*VLOOKUP($W14,$B$3:$BI$29,(COLUMN($BI$2)-1),FALSE) -> 0.703486478 | BK14: =VLOOKUP($W14,$B$3:$I$24,COLUMN()-(COLUMN($BI$2)-1),FALSE)*D$34/SUM($C$34:$I$34)*VLOOKUP($W14,$B$3:$BI$29,(COLUMN($BI$2)-1),FALSE) -> 0.8089802897 | BL14: =VLOOKUP($W14,$B$3:$I$24,COLUMN()-(COLUMN($BI$2)-1),FALSE)*E$34/SUM($C$34:$I$34)*VLOOKUP($W14,$B$3:$BI$29,(COLUMN($BI$2)-1),FALSE) -> 0.7633928571 | BM14: =VLOOKUP($W14,$B$3:$I$24,COLUMN()-(COLUMN($BI$2)-1),FALSE)*F$34/SUM($C$34:$I$34)*VLOOKUP($W14,$B$3:$BI$29,(COLUMN($BI$2)-1),FALSE) -> 0.2828547349 | BN14: =VLOOKUP($W14,$B$3:$I$24,COLUMN()-(COLUMN($BI$2)-1),FALSE)*G$34/SUM($C$34:$I$34)*VLOOKUP($W14,$B$3:$BI$29,(COLUMN($BI$2)-1),FALSE) -> 0.8700796548 | BO14: =VLOOKUP($W14,$B$3:$I$24,COLUMN()-(COLUMN($BI$2)-1),FALSE)*H$34/SUM($C$34:$I$34)*VLOOKUP($W14,$B$3:$BI$29,(COLUMN($BI$2)-1),FALSE) -> 0.986904782 | BP14: =VLOOKUP($W14,$B$3:$I$24,COLUMN()-(COLUMN($BI$2)-1),FALSE)*I$34/SUM($C$34:$I$34)*VLOOKUP($W14,$B$3:$BI$29,(COLUMN($BI$2)-1),FALSE) -> 0.5977941338
A15: 9 | B15: Netherlands | C15: ='Aid 2010'!Q17 -> 8.521120899 | D15: ='Trade 2010'!F17 -> 6.710603644 | E15: ='Finance 2010'!D16 -> 4.921875 | F15: ='Migration 2010'!E15 -> 1.96708893 | G15: ='Environment 2010'!K17 -> 6.359806893 | H15: ='Security 2010'!J18 -> 2.652329498 | I15: ='Technology 2010'!D17 -> 4.692712819 | J15: 5.117933955 | K15: 10 | L15: =ROUND(J15,1)-ROUND(VLOOKUP($B15,INDIRECT("'CDI "&Year-1&"'!Score_table"),9,FALSE),1) -> 0.1 | M15: =SUM(IF(ROUND(J15,1)<ROUND($J$3:$J$24,1),1))+1 -> 9 | N15: =VLOOKUP($B15,INDIRECT("'CDI "&Year-1&"'!Score_table"),12,FALSE) -> 10 | O15: Netherlands | P15: =(SUM(IF($J15<$J$3:$J$26*(1-BF$3:BF$26),1))+1)*(1-BF15) -> 0 | Q15: =(SUM(IF($J15<$J$3:$J$26*(1-BG$3:BG$26),1))+1)*(1-BG15) -> 0 | R15: =(SUM(IF(ROUND($J15,1)<ROUND($J$3:$J$26,1)*(1-BF$3:BF$26),1))+1)*(1-BF15) -> 0 | S15: =(SUM(IF(ROUND($J15,1)<ROUND($J$3:$J$26,1)*(1-BG$3:BG$26),1))+1)*(1-BG15) -> 0 | T15: Netherlands | U15: 13 | V15: 11 | W15: Germany | X15: 4.980744701 | Y15: 0 | Z15: -1 | BC15: 195.4248294 | BD15: 279.8018232 | BF15: 1 | BG15: 1 | BI15: =ABS(SUM($C15:$I15*$C$34:$I$34)/SUM(IF($C15:$I15>0,$C15:$I15*$C$34:$I$34))) -> 1 | BJ15: =VLOOKUP($W15,$B$3:$I$24,COLUMN()-(COLUMN($BI$2)-1),FALSE)*C$34/SUM($C$34:$I$34)*VLOOKUP($W15,$B$3:$BI$29,(COLUMN($BI$2)-1),FALSE) -> 0.9941813606 | BK15: =VLOOKUP($W15,$B$3:$I$24,COLUMN()-(COLUMN($BI$2)-1),FALSE)*D$34/SUM($C$34:$I$34)*VLOOKUP($W15,$B$3:$BI$29,(COLUMN($BI$2)-1),FALSE) -> 0.8676350852 | BL15: =VLOOKUP($W15,$B$3:$I$24,COLUMN()-(COLUMN($BI$2)-1),FALSE)*E$34/SUM($C$34:$I$34)*VLOOKUP($W15,$B$3:$BI$29,(COLUMN($BI$2)-1),FALSE) -> 0.5969387755 | BM15: =VLOOKUP($W15,$B$3:$I$24,COLUMN()-(COLUMN($BI$2)-1),FALSE)*F$34/SUM($C$34:$I$34)*VLOOKUP($W15,$B$3:$BI$29,(COLUMN($BI$2)-1),FALSE) -> 0.4438133638 | BN15: =VLOOKUP($W15,$B$3:$I$24,COLUMN()-(COLUMN($BI$2)-1),FALSE)*G$34/SUM($C$34:$I$34)*VLOOKUP($W15,$B$3:$BI$29,(COLUMN($BI$2)-1),FALSE) -> 0.9124062426 | BO15: =VLOOKUP($W15,$B$3:$I$24,COLUMN()-(COLUMN($BI$2)-1),FALSE)*H$34/SUM($C$34:$I$34)*VLOOKUP($W15,$B$3:$BI$29,(COLUMN($BI$2)-1),FALSE) -> 0.5664059061 | BP15: =VLOOKUP($W15,$B$3:$I$24,COLUMN()-(COLUMN($BI$2)-1),FALSE)*I$34/SUM($C$34:$I$34)*VLOOKUP($W15,$B$3:$BI$29,(COLUMN($BI$2)-1),FALSE) -> 0.5993639675
A16: 17 | B16: New Zealand | C16: ='Aid 2010'!Q18 -> 1.753555739 | D16: ='Trade 2010'!F18 -> 8.014934186 | E16: ='Finance 2010'!D17 -> 3.957589286 | F16: ='Migration 2010'!E16 -> 1.412254234 | G16: ='Environment 2010'!K18 -> 5.624789248 | H16: ='Security 2010'!J19 -> 5.361491356 | I16: ='Technology 2010'!D18 -> 4.643985932 | J16: 4.395514283 | K16: 17 | L16: =ROUND(J16,1)-ROUND(VLOOKUP($B16,INDIRECT("'CDI "&Year-1&"'!Score_table"),9,FALSE),1) -> 0.3 | M16: =SUM(IF(ROUND(J16,1)<ROUND($J$3:$J$24,1),1))+1 -> 17 | N16: =VLOOKUP($B16,INDIRECT("'CDI "&Year-1&"'!Score_table"),12,FALSE) -> 17 | O16: New Zealand | P16: =(SUM(IF($J16<$J$3:$J$26*(1-BF$3:BF$26),1))+1)*(1-BF16) -> 5 | Q16: =(SUM(IF($J16<$J$3:$J$26*(1-BG$3:BG$26),1))+1)*(1-BG16) -> 4 | R16: =(SUM(IF(ROUND($J16,1)<ROUND($J$3:$J$26,1)*(1-BF$3:BF$26),1))+1)*(1-BF16) -> 5 | S16: =(SUM(IF(ROUND($J16,1)<ROUND($J$3:$J$26,1)*(1-BG$3:BG$26),1))+1)*(1-BG16) -> 4 | T16: New Zealand | U16: 14 | V16: 14 | W16: United Kingdom | X16: 4.819335319 | Y16: 0.1 | Z16: -1 | BC16: 251.0882406 | BD16: 759.27185 | BF16: 0 | BG16: 0 | BI16: =ABS(SUM($C16:$I16*$C$34:$I$34)/SUM(IF($C16:$I16>0,$C16:$I16*$C$34:$I$34))) -> 1 | BJ16: =VLOOKUP($W16,$B$3:$I$24,COLUMN()-(COLUMN($BI$2)-1),FALSE)*C$34/SUM($C$34:$I$34)*VLOOKUP($W16,$B$3:$BI$29,(COLUMN($BI$2)-1),FALSE) -> 1.025486722 | BK16: =VLOOKUP($W16,$B$3:$I$24,COLUMN()-(COLUMN($BI$2)-1),FALSE)*D$34/SUM($C$34:$I$34)*VLOOKUP($W16,$B$3:$BI$29,(COLUMN($BI$2)-1),FALSE) -> 0.8927349833 | BL16: =VLOOKUP($W16,$B$3:$I$24,COLUMN()-(COLUMN($BI$2)-1),FALSE)*E$34/SUM($C$34:$I$34)*VLOOKUP($W16,$B$3:$BI$29,(COLUMN($BI$2)-1),FALSE) -> 0.7806122449 | BM16: =VLOOKUP($W16,$B$3:$I$24,COLUMN()-(COLUMN($BI$2)-1),FALSE)*F$34/SUM($C$34:$I$34)*VLOOKUP($W16,$B$3:$BI$29,(COLUMN($BI$2)-1),FALSE) -> 0.2855943069 | BN16: =VLOOKUP($W16,$B$3:$I$24,COLUMN()-(COLUMN($BI$2)-1),FALSE)*G$34/SUM($C$34:$I$34)*VLOOKUP($W16,$B$3:$BI$29,(COLUMN($BI$2)-1),FALSE) -> 0.9713952816 | BO16: =VLOOKUP($W16,$B$3:$I$24,COLUMN()-(COLUMN($BI$2)-1),FALSE)*H$34/SUM($C$34:$I$34)*VLOOKUP($W16,$B$3:$BI$29,(COLUMN($BI$2)-1),FALSE) -> 0.2487924293 | BP16: =VLOOKUP($W16,$B$3:$I$24,COLUMN()-(COLUMN($BI$2)-1),FALSE)*I$34/SUM($C$34:$I$34)*VLOOKUP($W16,$B$3:$BI$29,(COLUMN($BI$2)-1),FALSE) -> 0.6147193515
A17: 9 | B17: Norway | C17: ='Aid 2010'!Q19 -> 12.19637763 | D17: ='Trade 2010'!F19 -> -3.462172793 | E17: ='Finance 2010'!D18 -> 5.625 | F17: ='Migration 2010'!E17 -> 3.62671906 | G17: ='Environment 2010'!K19 -> 4.153004866 | H17: ='Security 2010'!J20 -> 8.891819565 | I17: ='Technology 2010'!D19 -> 5.012176377 | J17: 5.148989244 | K17: 9 | L17: =ROUND(J17,1)-ROUND(VLOOKUP($B17,INDIRECT("'CDI "&Year-1&"'!Score_table"),9,FALSE),1) -> -0.4 | M17: =SUM(IF(ROUND(J17,1)<ROUND($J$3:$J$24,1),1))+1 -> 9 | N17: =VLOOKUP($B17,INDIRECT("'CDI "&Year-1&"'!Score_table"),12,FALSE) -> 6 | O17: Norway | P17: =(SUM(IF($J17<$J$3:$J$26*(1-BF$3:BF$26),1))+1)*(1-BF17) -> 1 | Q17: =(SUM(IF($J17<$J$3:$J$26*(1-BG$3:BG$26),1))+1)*(1-BG17) -> 0 | R17: =(SUM(IF(ROUND($J17,1)<ROUND($J$3:$J$26,1)*(1-BF$3:BF$26),1))+1)*(1-BF17) -> 1 | S17: =(SUM(IF(ROUND($J17,1)<ROUND($J$3:$J$26,1)*(1-BG$3:BG$26),1))+1)*(1-BG17) -> 0 | T17: Norway | U17: 15 | V17: 15 | W17: Canada | X17: 4.535039015 | Y17: 0.2 | Z17: 0 | BC17: 124.9415496 | BD17: 270.3705539 | BF17: 0 | BG17: 1 | BI17: =ABS(SUM($C17:$I17*$C$34:$I$34)/SUM(IF($C17:$I17>0,$C17:$I17*$C$34:$I$34))) -> 0.9123613657 | BJ17: =VLOOKUP($W17,$B$3:$I$24,COLUMN()-(COLUMN($BI$2)-1),FALSE)*C$34/SUM($C$34:$I$34)*VLOOKUP($W17,$B$3:$BI$29,(COLUMN($BI$2)-1),FALSE) -> 0.8494535894 | BK17: =VLOOKUP($W17,$B$3:$I$24,COLUMN()-(COLUMN($BI$2)-1),FALSE)*D$34/SUM($C$34:$I$34)*VLOOKUP($W17,$B$3:$BI$29,(COLUMN($BI$2)-1),FALSE) -> 0.6207227381 | BL17: =VLOOKUP($W17,$B$3:$I$24,COLUMN()-(COLUMN($BI$2)-1),FALSE)*E$34/SUM($C$34:$I$34)*VLOOKUP($W17,$B$3:$BI$29,(COLUMN($BI$2)-1),FALSE) -> 0.6973852041 | BM17: =VLOOKUP($W17,$B$3:$I$24,COLUMN()-(COLUMN($BI$2)-1),FALSE)*F$34/SUM($C$34:$I$34)*VLOOKUP($W17,$B$3:$BI$29,(COLUMN($BI$2)-1),FALSE) -> 0.4710009848 | BN17: =VLOOKUP($W17,$B$3:$I$24,COLUMN()-(COLUMN($BI$2)-1),FALSE)*G$34/SUM($C$34:$I$34)*VLOOKUP($W17,$B$3:$BI$29,(COLUMN($BI$2)-1),FALSE) -> 0.480279094 | BO17: =VLOOKUP($W17,$B$3:$I$24,COLUMN()-(COLUMN($BI$2)-1),FALSE)*H$34/SUM($C$34:$I$34)*VLOOKUP($W17,$B$3:$BI$29,(COLUMN($BI$2)-1),FALSE) -> 0.628578456 | BP17: =VLOOKUP($W17,$B$3:$I$24,COLUMN()-(COLUMN($BI$2)-1),FALSE)*I$34/SUM($C$34:$I$34)*VLOOKUP($W17,$B$3:$BI$29,(COLUMN($BI$2)-1),FALSE) -> 0.7876189481
A18: 2 | B18: Portugal | C18: ='Aid 2010'!Q20 -> 10.73434066 | D18: ='Trade 2010'!F20 -> 5.847033352 | E18: ='Finance 2010'!D19 -> 5.223214286 | F18: ='Migration 2010'!E18 -> 1.08522926 | G18: ='Environment 2010'!K20 -> 6.602739576 | H18: ='Security 2010'!J21 -> 4.551511791 | I18: ='Technology 2010'!D20 -> 6.782132394 | J18: 5.832314475 | K18: 2 | L18: =ROUND(J18,1)-ROUND(VLOOKUP($B18,INDIRECT("'CDI "&Year-1&"'!Score_table"),9,FALSE),1) -> 1.4 | M18: =SUM(IF(ROUND(J18,1)<ROUND($J$3:$J$24,1),1))+1 -> 2 | N18: =VLOOKUP($B18,INDIRECT("'CDI "&Year-1&"'!Score_table"),12,FALSE) -> 14 | O18: Portugal | P18: =(SUM(IF($J18<$J$3:$J$26*(1-BF$3:BF$26),1))+1)*(1-BF18) -> 0 | Q18: =(SUM(IF($J18<$J$3:$J$26*(1-BG$3:BG$26),1))+1)*(1-BG18) -> 0 | R18: =(SUM(IF(ROUND($J18,1)<ROUND($J$3:$J$26,1)*(1-BF$3:BF$26),1))+1)*(1-BF18) -> 0 | S18: =(SUM(IF(ROUND($J18,1)<ROUND($J$3:$J$26,1)*(1-BG$3:BG$26),1))+1)*(1-BG18) -> 0 | T18: Portugal | U18: 16 | V18: 15 | W18: Australia | X18: 4.454257831 | Y18: 0.8 | Z18: 4 | BC18: 45.85920922 | BD18: 126.5343857 | BF18: 1 | BG18: 1 | BI18: =ABS(SUM($C18:$I18*$C$34:$I$34)/SUM(IF($C18:$I18>0,$C18:$I18*$C$34:$I$34))) -> 1 | BJ18: =VLOOKUP($W18,$B$3:$I$24,COLUMN()-(COLUMN($BI$2)-1),FALSE)*C$34/SUM($C$34:$I$34)*VLOOKUP($W18,$B$3:$BI$29,(COLUMN($BI$2)-1),FALSE) -> 0.9570068389 | BK18: =VLOOKUP($W18,$B$3:$I$24,COLUMN()-(COLUMN($BI$2)-1),FALSE)*D$34/SUM($C$34:$I$34)*VLOOKUP($W18,$B$3:$BI$29,(COLUMN($BI$2)-1),FALSE) -> 0.9763624237 | BL18: =VLOOKUP($W18,$B$3:$I$24,COLUMN()-(COLUMN($BI$2)-1),FALSE)*E$34/SUM($C$34:$I$34)*VLOOKUP($W18,$B$3:$BI$29,(COLUMN($BI$2)-1),FALSE) -> 0.7978316327 | BM18: =VLOOKUP($W18,$B$3:$I$24,COLUMN()-(COLUMN($BI$2)-1),FALSE)*F$34/SUM($C$34:$I$34)*VLOOKUP($W18,$B$3:$BI$29,(COLUMN($BI$2)-1),FALSE) -> 0.2375298838 | BN18: =VLOOKUP($W18,$B$3:$I$24,COLUMN()-(COLUMN($BI$2)-1),FALSE)*G$34/SUM($C$34:$I$34)*VLOOKUP($W18,$B$3:$BI$29,(COLUMN($BI$2)-1),FALSE) -> 0.5585303494 | BO18: =VLOOKUP($W18,$B$3:$I$24,COLUMN()-(COLUMN($BI$2)-1),FALSE)*H$34/SUM($C$34:$I$34)*VLOOKUP($W18,$B$3:$BI$29,(COLUMN($BI$2)-1),FALSE) -> 0.2356810991 | BP18: =VLOOKUP($W18,$B$3:$I$24,COLUMN()-(COLUMN($BI$2)-1),FALSE)*I$34/SUM($C$34:$I$34)*VLOOKUP($W18,$B$3:$BI$29,(COLUMN($BI$2)-1),FALSE) -> 0.6913156032
A19: 22 | B19: South Korea | C19: ='Aid 2010'!Q21 -> 1.061870186 | D19: ='Trade 2010'!F21 -> -2.36808126 | E19: ='Finance 2010'!D20 -> 4.238839286 | F19: ='Migration 2010'!E19 -> 1.159641765 | G19: ='Environment 2010'!K21 -> 3.573885704 | H19: ='Security 2010'!J22 -> 1.323367142 | I19: ='Technology 2010'!D21 -> 6.458370037 | J19: 2.206841837 | K19: 22 | L19: =ROUND(J19,1)-ROUND(VLOOKUP($B19,INDIRECT("'CDI "&Year-1&"'!Score_table"),9,FALSE),1) -> 0.1 | M19: =SUM(IF(ROUND(J19,1)<ROUND($J$3:$J$24,1),1))+1 -> 22 | N19: =VLOOKUP($B19,INDIRECT("'CDI "&Year-1&"'!Score_table"),12,FALSE) -> 22 | O19: South Korea | P19: =(SUM(IF($J19<$J$3:$J$26*(1-BF$3:BF$26),1))+1)*(1-BF19) -> 9 | Q19: =(SUM(IF($J19<$J$3:$J$26*(1-BG$3:BG$26),1))+1)*(1-BG19) -> 7 | R19: =(SUM(IF(ROUND($J19,1)<ROUND($J$3:$J$26,1)*(1-BF$3:BF$26),1))+1)*(1-BF19) -> 9 | S19: =(SUM(IF(ROUND($J19,1)<ROUND($J$3:$J$26,1)*(1-BG$3:BG$26),1))+1)*(1-BG19) -> 7 | T19: South Korea | U19: 17 | V19: 17 | W19: New Zealand | X19: 4.395514283 | Y19: 0.3 | Z19: 0 | BC19: 800.2058977 | BD19: 1422.314832 | BF19: 0 | BG19: 0 | BI19: =ABS(SUM($C19:$I19*$C$34:$I$34)/SUM(IF($C19:$I19>0,$C19:$I19*$C$34:$I$34))) -> 0.8670810115 | BJ19: =VLOOKUP($W19,$B$3:$I$24,COLUMN()-(COLUMN($BI$2)-1),FALSE)*C$34/SUM($C$34:$I$34)*VLOOKUP($W19,$B$3:$BI$29,(COLUMN($BI$2)-1),FALSE) -> 0.2505079628 | BK19: =VLOOKUP($W19,$B$3:$I$24,COLUMN()-(COLUMN($BI$2)-1),FALSE)*D$34/SUM($C$34:$I$34)*VLOOKUP($W19,$B$3:$BI$29,(COLUMN($BI$2)-1),FALSE) -> 1.144990598 | BL19: =VLOOKUP($W19,$B$3:$I$24,COLUMN()-(COLUMN($BI$2)-1),FALSE)*E$34/SUM($C$34:$I$34)*VLOOKUP($W19,$B$3:$BI$29,(COLUMN($BI$2)-1),FALSE) -> 0.565369898 | BM19: =VLOOKUP($W19,$B$3:$I$24,COLUMN()-(COLUMN($BI$2)-1),FALSE)*F$34/SUM($C$34:$I$34)*VLOOKUP($W19,$B$3:$BI$29,(COLUMN($BI$2)-1),FALSE) -> 0.2017506048 | BN19: =VLOOKUP($W19,$B$3:$I$24,COLUMN()-(COLUMN($BI$2)-1),FALSE)*G$34/SUM($C$34:$I$34)*VLOOKUP($W19,$B$3:$BI$29,(COLUMN($BI$2)-1),FALSE) -> 0.8035413211 | BO19: =VLOOKUP($W19,$B$3:$I$24,COLUMN()-(COLUMN($BI$2)-1),FALSE)*H$34/SUM($C$34:$I$34)*VLOOKUP($W19,$B$3:$BI$29,(COLUMN($BI$2)-1),FALSE) -> 0.7659273366 | BP19: =VLOOKUP($W19,$B$3:$I$24,COLUMN()-(COLUMN($BI$2)-1),FALSE)*I$34/SUM($C$34:$I$34)*VLOOKUP($W19,$B$3:$BI$29,(COLUMN($BI$2)-1),FALSE) -> 0.6634265617
A20: 6 | B20: Spain | C20: ='Aid 2010'!Q22 -> 8.926044062 | D20: ='Trade 2010'!F22 -> 5.994747956 | E20: ='Finance 2010'!D21 -> 6.006696429 | F20: ='Migration 2010'!E20 -> 3.047066169 | G20: ='Environment 2010'!K22 -> 5.51698647 | H20: ='Security 2010'!J23 -> 4.281186275 | I20: ='Technology 2010'!D22 -> 6.271057691 | J20: 5.720540722 | K20: 6 | L20: =ROUND(J20,1)-ROUND(VLOOKUP($B20,INDIRECT("'CDI "&Year-1&"'!Score_table"),9,FALSE),1) -> 0 | M20: =SUM(IF(ROUND(J20,1)<ROUND($J$3:$J$24,1),1))+1 -> 6 | N20: =VLOOKUP($B20,INDIRECT("'CDI "&Year-1&"'!Score_table"),12,FALSE) -> 5 | O20: Spain | P20: =(SUM(IF($J20<$J$3:$J$26*(1-BF$3:BF$26),1))+1)*(1-BF20) -> 0 | Q20: =(SUM(IF($J20<$J$3:$J$26*(1-BG$3:BG$26),1))+1)*(1-BG20) -> 0 | R20: =(SUM(IF(ROUND($J20,1)<ROUND($J$3:$J$26,1)*(1-BF$3:BF$26),1))+1)*(1-BF20) -> 0 | S20: =(SUM(IF(ROUND($J20,1)<ROUND($J$3:$J$26,1)*(1-BG$3:BG$26),1))+1)*(1-BG20) -> 0 | T20: Spain | U20: 18 | V20: 18 | W20: Greece | X20: 4.276796763 | Y20: 0.1 | Z20: -2 | BC20: 712.3387023 | BD20: 1484.884804 | BF20: 1 | BG20: 1 | BI20: =ABS(SUM($C20:$I20*$C$34:$I$34)/SUM(IF($C20:$I20>0,$C20:$I20*$C$34:$I$34))) -> 1 | BJ20: =VLOOKUP($W20,$B$3:$I$24,COLUMN()-(COLUMN($BI$2)-1),FALSE)*C$34/SUM($C$34:$I$34)*VLOOKUP($W20,$B$3:$BI$29,(COLUMN($BI$2)-1),FALSE) -> 0.6090872483 | BK20: =VLOOKUP($W20,$B$3:$I$24,COLUMN()-(COLUMN($BI$2)-1),FALSE)*D$34/SUM($C$34:$I$34)*VLOOKUP($W20,$B$3:$BI$29,(COLUMN($BI$2)-1),FALSE) -> 0.7901297953 | BL20: =VLOOKUP($W20,$B$3:$I$24,COLUMN()-(COLUMN($BI$2)-1),FALSE)*E$34/SUM($C$34:$I$34)*VLOOKUP($W20,$B$3:$BI$29,(COLUMN($BI$2)-1),FALSE) -> 0.6600765306 | BM20: =VLOOKUP($W20,$B$3:$I$24,COLUMN()-(COLUMN($BI$2)-1),FALSE)*F$34/SUM($C$34:$I$34)*VLOOKUP($W20,$B$3:$BI$29,(COLUMN($BI$2)-1),FALSE) -> 0.4519311598 | BN20: =VLOOKUP($W20,$B$3:$I$24,COLUMN()-(COLUMN($BI$2)-1),FALSE)*G$34/SUM($C$34:$I$34)*VLOOKUP($W20,$B$3:$BI$29,(COLUMN($BI$2)-1),FALSE) -> 0.7581249688 | BO20: =VLOOKUP($W20,$B$3:$I$24,COLUMN()-(COLUMN($BI$2)-1),FALSE)*H$34/SUM($C$34:$I$34)*VLOOKUP($W20,$B$3:$BI$29,(COLUMN($BI$2)-1),FALSE) -> 0.621737403 | BP20: =VLOOKUP($W20,$B$3:$I$24,COLUMN()-(COLUMN($BI$2)-1),FALSE)*I$34/SUM($C$34:$I$34)*VLOOKUP($W20,$B$3:$BI$29,(COLUMN($BI$2)-1),FALSE) -> 0.3857096569
A21: 1 | B21: Sweden | C21: ='Aid 2010'!Q23 -> 15.44327107 | D21: ='Trade 2010'!F23 -> 6.660539036 | E21: ='Finance 2010'!D22 -> 5.926339286 | F21: ='Migration 2010'!E21 -> 6.186843651 | G21: ='Environment 2010'!K23 -> 7.147991961 | H21: ='Security 2010'!J24 -> 4.358267874 | I21: ='Technology 2010'!D23 -> 4.195030884 | J21: 7.131183394 | K21: 1 | L21: =ROUND(J21,1)-ROUND(VLOOKUP($B21,INDIRECT("'CDI "&Year-1&"'!Score_table"),9,FALSE),1) -> 0.1 | M21: =SUM(IF(ROUND(J21,1)<ROUND($J$3:$J$24,1),1))+1 -> 1 | N21: =VLOOKUP($B21,INDIRECT("'CDI "&Year-1&"'!Score_table"),12,FALSE) -> 1 | O21: Sweden | P21: =(SUM(IF($J21<$J$3:$J$26*(1-BF$3:BF$26),1))+1)*(1-BF21) -> 0 | Q21: =(SUM(IF($J21<$J$3:$J$26*(1-BG$3:BG$26),1))+1)*(1-BG21) -> 0 | R21: =(SUM(IF(ROUND($J21,1)<ROUND($J$3:$J$26,1)*(1-BF$3:BF$26),1))+1)*(1-BF21) -> 0 | S21: =(SUM(IF(ROUND($J21,1)<ROUND($J$3:$J$26,1)*(1-BG$3:BG$26),1))+1)*(1-BG21) -> 0 | T21: Sweden | U21: 19 | V21: 19 | W21: United States | X21: 4.129667342 | Y21: 0 | Z21: -2 | BC21: 302.8389069 | BD21: 365.9686871 | BF21: 1 | BG21: 1 | BI21: =ABS(SUM($C21:$I21*$C$34:$I$34)/SUM(IF($C21:$I21>0,$C21:$I21*$C$34:$I$34))) -> 1 | BJ21: =VLOOKUP($W21,$B$3:$I$24,COLUMN()-(COLUMN($BI$2)-1),FALSE)*C$34/SUM($C$34:$I$34)*VLOOKUP($W21,$B$3:$BI$29,(COLUMN($BI$2)-1),FALSE) -> 1.099508901 | BK21: =VLOOKUP($W21,$B$3:$I$24,COLUMN()-(COLUMN($BI$2)-1),FALSE)*D$34/SUM($C$34:$I$34)*VLOOKUP($W21,$B$3:$BI$29,(COLUMN($BI$2)-1),FALSE) -> 0.9711443162 | BL21: =VLOOKUP($W21,$B$3:$I$24,COLUMN()-(COLUMN($BI$2)-1),FALSE)*E$34/SUM($C$34:$I$34)*VLOOKUP($W21,$B$3:$BI$29,(COLUMN($BI$2)-1),FALSE) -> 0.6627595415 | BM21: =VLOOKUP($W21,$B$3:$I$24,COLUMN()-(COLUMN($BI$2)-1),FALSE)*F$34/SUM($C$34:$I$34)*VLOOKUP($W21,$B$3:$BI$29,(COLUMN($BI$2)-1),FALSE) -> 0.1720551156 | BN21: =VLOOKUP($W21,$B$3:$I$24,COLUMN()-(COLUMN($BI$2)-1),FALSE)*G$34/SUM($C$34:$I$34)*VLOOKUP($W21,$B$3:$BI$29,(COLUMN($BI$2)-1),FALSE) -> 0.5412670371 | BO21: =VLOOKUP($W21,$B$3:$I$24,COLUMN()-(COLUMN($BI$2)-1),FALSE)*H$34/SUM($C$34:$I$34)*VLOOKUP($W21,$B$3:$BI$29,(COLUMN($BI$2)-1),FALSE) -> -0.01895944111 | BP21: =VLOOKUP($W21,$B$3:$I$24,COLUMN()-(COLUMN($BI$2)-1),FALSE)*I$34/SUM($C$34:$I$34)*VLOOKUP($W21,$B$3:$BI$29,(COLUMN($BI$2)-1),FALSE) -> 0.682932431
A22: 20 | B22: Switzerland | C22: ='Aid 2010'!Q24 -> 7.011239325 | D22: ='Trade 2010'!F24 -> -0.4915236063 | E22: ='Finance 2010'!D23 -> 2.993303571 | F22: ='Migration 2010'!E22 -> 2.463508571 | G22: ='Environment 2010'!K24 -> 5.456587154 | H22: ='Security 2010'!J25 -> 3.724635708 | I22: ='Technology 2010'!D24 -> 2.697765934 | J22: 3.407930951 | K22: 20 | L22: =ROUND(J22,1)-ROUND(VLOOKUP($B22,INDIRECT("'CDI "&Year-1&"'!Score_table"),9,FALSE),1) -> -0.1 | M22: =SUM(IF(ROUND(J22,1)<ROUND($J$3:$J$24,1),1))+1 -> 20 | N22: =VLOOKUP($B22,INDIRECT("'CDI "&Year-1&"'!Score_table"),12,FALSE) -> 20 | O22: Switzerland | P22: =(SUM(IF($J22<$J$3:$J$26*(1-BF$3:BF$26),1))+1)*(1-BF22) -> 7 | Q22: =(SUM(IF($J22<$J$3:$J$26*(1-BG$3:BG$26),1))+1)*(1-BG22) -> 0 | R22: =(SUM(IF(ROUND($J22,1)<ROUND($J$3:$J$26,1)*(1-BF$3:BF$26),1))+1)*(1-BF22) -> 7 | S22: =(SUM(IF(ROUND($J22,1)<ROUND($J$3:$J$26,1)*(1-BG$3:BG$26),1))+1)*(1-BG22) -> 0 | T22: Switzerland | U22: 20 | V22: 20 | W22: Switzerland | X22: 3.407930951 | Y22: -0.1 | Z22: 0 | BC22: 294.7486843 | BD22: 363.0050181 | BF22: 0 | BG22: 1 | BI22: =ABS(SUM($C22:$I22*$C$34:$I$34)/SUM(IF($C22:$I22>0,$C22:$I22*$C$34:$I$34))) -> 0.9798117717 | BJ22: =VLOOKUP($W22,$B$3:$I$24,COLUMN()-(COLUMN($BI$2)-1),FALSE)*C$34/SUM($C$34:$I$34)*VLOOKUP($W22,$B$3:$BI$29,(COLUMN($BI$2)-1),FALSE) -> 0.981384975 | BK22: =VLOOKUP($W22,$B$3:$I$24,COLUMN()-(COLUMN($BI$2)-1),FALSE)*D$34/SUM($C$34:$I$34)*VLOOKUP($W22,$B$3:$BI$29,(COLUMN($BI$2)-1),FALSE) -> -0.06880008793 | BL22: =VLOOKUP($W22,$B$3:$I$24,COLUMN()-(COLUMN($BI$2)-1),FALSE)*E$34/SUM($C$34:$I$34)*VLOOKUP($W22,$B$3:$BI$29,(COLUMN($BI$2)-1),FALSE) -> 0.4189820108 | BM22: =VLOOKUP($W22,$B$3:$I$24,COLUMN()-(COLUMN($BI$2)-1),FALSE)*F$34/SUM($C$34:$I$34)*VLOOKUP($W22,$B$3:$BI$29,(COLUMN($BI$2)-1),FALSE) -> 0.3448249568 | BN22: =VLOOKUP($W22,$B$3:$I$24,COLUMN()-(COLUMN($BI$2)-1),FALSE)*G$34/SUM($C$34:$I$34)*VLOOKUP($W22,$B$3:$BI$29,(COLUMN($BI$2)-1),FALSE) -> 0.7637754752 | BO22: =VLOOKUP($W22,$B$3:$I$24,COLUMN()-(COLUMN($BI$2)-1),FALSE)*H$34/SUM($C$34:$I$34)*VLOOKUP($W22,$B$3:$BI$29,(COLUMN($BI$2)-1),FALSE) -> 0.5213488446 | BP22: =VLOOKUP($W22,$B$3:$I$24,COLUMN()-(COLUMN($BI$2)-1),FALSE)*I$34/SUM($C$34:$I$34)*VLOOKUP($W22,$B$3:$BI$29,(COLUMN($BI$2)-1),FALSE) -> 0.3776146885
A23: 14 | B23: United Kingdom | C23: ='Aid 2010'!Q25 -> 7.178407052 | D23: ='Trade 2010'!F25 -> 6.249144883 | E23: ='Finance 2010'!D24 -> 5.464285714 | F23: ='Migration 2010'!E23 -> 1.999160149 | G23: ='Environment 2010'!K25 -> 6.799766971 | H23: ='Security 2010'!J26 -> 1.741547005 | I23: ='Technology 2010'!D25 -> 4.303035461 | J23: 4.819335319 | K23: 14 | L23: =ROUND(J23,1)-ROUND(VLOOKUP($B23,INDIRECT("'CDI "&Year-1&"'!Score_table"),9,FALSE),1) -> 0.1 | M23: =SUM(IF(ROUND(J23,1)<ROUND($J$3:$J$24,1),1))+1 -> 14 | N23: =VLOOKUP($B23,INDIRECT("'CDI "&Year-1&"'!Score_table"),12,FALSE) -> 13 | O23: United Kingdom | P23: =(SUM(IF($J23<$J$3:$J$26*(1-BF$3:BF$26),1))+1)*(1-BF23) -> 0 | Q23: =(SUM(IF($J23<$J$3:$J$26*(1-BG$3:BG$26),1))+1)*(1-BG23) -> 0 | R23: =(SUM(IF(ROUND($J23,1)<ROUND($J$3:$J$26,1)*(1-BF$3:BF$26),1))+1)*(1-BF23) -> 0 | S23: =(SUM(IF(ROUND($J23,1)<ROUND($J$3:$J$26,1)*(1-BG$3:BG$26),1))+1)*(1-BG23) -> 0 | T23: United Kingdom | U23: 21 | V23: 21 | W23: Japan | X23: 2.876170559 | Y23: 0.2 | Z23: 0 | BC23: 1744.580116 | BD23: 2220.823675 | BF23: 1 | BG23: 1 | BI23: =ABS(SUM($C23:$I23*$C$34:$I$34)/SUM(IF($C23:$I23>0,$C23:$I23*$C$34:$I$34))) -> 1 | BJ23: =VLOOKUP($W23,$B$3:$I$24,COLUMN()-(COLUMN($BI$2)-1),FALSE)*C$34/SUM($C$34:$I$34)*VLOOKUP($W23,$B$3:$BI$29,(COLUMN($BI$2)-1),FALSE) -> 0.00883776825 | BK23: =VLOOKUP($W23,$B$3:$I$24,COLUMN()-(COLUMN($BI$2)-1),FALSE)*D$34/SUM($C$34:$I$34)*VLOOKUP($W23,$B$3:$BI$29,(COLUMN($BI$2)-1),FALSE) -> 0.2397043394 | BL23: =VLOOKUP($W23,$B$3:$I$24,COLUMN()-(COLUMN($BI$2)-1),FALSE)*E$34/SUM($C$34:$I$34)*VLOOKUP($W23,$B$3:$BI$29,(COLUMN($BI$2)-1),FALSE) -> 0.419005102 | BM23: =VLOOKUP($W23,$B$3:$I$24,COLUMN()-(COLUMN($BI$2)-1),FALSE)*F$34/SUM($C$34:$I$34)*VLOOKUP($W23,$B$3:$BI$29,(COLUMN($BI$2)-1),FALSE) -> 0.141442645 | BN23: =VLOOKUP($W23,$B$3:$I$24,COLUMN()-(COLUMN($BI$2)-1),FALSE)*G$34/SUM($C$34:$I$34)*VLOOKUP($W23,$B$3:$BI$29,(COLUMN($BI$2)-1),FALSE) -> 0.6299811387 | BO23: =VLOOKUP($W23,$B$3:$I$24,COLUMN()-(COLUMN($BI$2)-1),FALSE)*H$34/SUM($C$34:$I$34)*VLOOKUP($W23,$B$3:$BI$29,(COLUMN($BI$2)-1),FALSE) -> 0.5902442303 | BP23: =VLOOKUP($W23,$B$3:$I$24,COLUMN()-(COLUMN($BI$2)-1),FALSE)*I$34/SUM($C$34:$I$34)*VLOOKUP($W23,$B$3:$BI$29,(COLUMN($BI$2)-1),FALSE) -> 0.8469553355
A24: 19 | B24: United States | C24: ='Aid 2010'!Q26 -> 7.732060453 | D24: ='Trade 2010'!F26 -> 6.829364053 | E24: ='Finance 2010'!D25 -> 4.660714286 | F24: ='Migration 2010'!E24 -> 1.209940688 | G24: ='Environment 2010'!K26 -> 3.806344314 | H24: ='Security 2010'!J27 -> -0.133328202 | I24: ='Technology 2010'!D26 -> 4.802575804 | J24: 4.129667342 | K24: 19 | L24: =ROUND(J24,1)-ROUND(VLOOKUP($B24,INDIRECT("'CDI "&Year-1&"'!Score_table"),9,FALSE),1) -> 0 | M24: =SUM(IF(ROUND(J24,1)<ROUND($J$3:$J$24,1),1))+1 -> 19 | N24: =VLOOKUP($B24,INDIRECT("'CDI "&Year-1&"'!Score_table"),12,FALSE) -> 17 | O24: United States | P24: =(SUM(IF($J24<$J$3:$J$26*(1-BF$3:BF$26),1))+1)*(1-BF24) -> 6 | Q24: =(SUM(IF($J24<$J$3:$J$26*(1-BG$3:BG$26),1))+1)*(1-BG24) -> 5 | R24: =(SUM(IF(ROUND($J24,1)<ROUND($J$3:$J$26,1)*(1-BF$3:BF$26),1))+1)*(1-BF24) -> 6 | S24: =(SUM(IF(ROUND($J24,1)<ROUND($J$3:$J$26,1)*(1-BG$3:BG$26),1))+1)*(1-BG24) -> 5 | T24: United States | U24: 22 | V24: 22 | W24: South Korea | X24: 2.206841837 | Y24: 0.1 | Z24: 0 | BC24: 11597.85873 | BD24: 14586.73654 | BF24: 0 | BG24: 0 | BI24: =ABS(SUM($C24:$I24*$C$34:$I$34)/SUM(IF($C24:$I24>0,$C24:$I24*$C$34:$I$34))) -> 0.9954089665 | BJ24: =VLOOKUP($W24,$B$3:$I$24,COLUMN()-(COLUMN($BI$2)-1),FALSE)*C$34/SUM($C$34:$I$34)*VLOOKUP($W24,$B$3:$BI$29,(COLUMN($BI$2)-1),FALSE) -> 0.1315324964 | BK24: =VLOOKUP($W24,$B$3:$I$24,COLUMN()-(COLUMN($BI$2)-1),FALSE)*D$34/SUM($C$34:$I$34)*VLOOKUP($W24,$B$3:$BI$29,(COLUMN($BI$2)-1),FALSE) -> -0.2933311849 | BL24: =VLOOKUP($W24,$B$3:$I$24,COLUMN()-(COLUMN($BI$2)-1),FALSE)*E$34/SUM($C$34:$I$34)*VLOOKUP($W24,$B$3:$BI$29,(COLUMN($BI$2)-1),FALSE) -> 0.5250595793 | BM24: =VLOOKUP($W24,$B$3:$I$24,COLUMN()-(COLUMN($BI$2)-1),FALSE)*F$34/SUM($C$34:$I$34)*VLOOKUP($W24,$B$3:$BI$29,(COLUMN($BI$2)-1),FALSE) -> 0.1436433364 | BN24: =VLOOKUP($W24,$B$3:$I$24,COLUMN()-(COLUMN($BI$2)-1),FALSE)*G$34/SUM($C$34:$I$34)*VLOOKUP($W24,$B$3:$BI$29,(COLUMN($BI$2)-1),FALSE) -> 0.442692633 | BO24: =VLOOKUP($W24,$B$3:$I$24,COLUMN()-(COLUMN($BI$2)-1),FALSE)*H$34/SUM($C$34:$I$34)*VLOOKUP($W24,$B$3:$BI$29,(COLUMN($BI$2)-1),FALSE) -> 0.1639237886 | BP24: =VLOOKUP($W24,$B$3:$I$24,COLUMN()-(COLUMN($BI$2)-1),FALSE)*I$34/SUM($C$34:$I$34)*VLOOKUP($W24,$B$3:$BI$29,(COLUMN($BI$2)-1),FALSE) -> 0.7999900034
B25: EU | C25: ='Aid 2010'!Q27 -> 7.394538264 | D25: ='Trade 2010'!F27 -> 6.056049542 | E25: ='Finance 2010'!D26 -> 4.906120356 | F25: ='Migration 2010'!E25 -> 2.613847225 | G25: ='Environment 2010'!K27 -> 6.077958233 | H25: ='Security 2010'!J28 -> 4.143183987 | I25: ='Technology 2010'!D27 -> 4.437351258 | J25: 5.089864123 | P25: =(SUM(IF($J25<$J$3:$J$26*(1-BF$3:BF$26),1))+1)*(1-BF25) -> 2 | R25: =(SUM(IF(ROUND($J25,1)<ROUND($J$3:$J$26,1)*(1-BF$3:BF$26),1))+1)*(1-BF25) -> 1 | T25: EU | BG25: 1
B26: Europe | C26: ='Aid 2010'!Q28 -> 7.508161579 | D26: ='Trade 2010'!F28 -> 5.77165406 | E26: ='Finance 2010'!D27 -> 4.864050163 | F26: ='Migration 2010'!E26 -> 2.628805878 | G26: ='Environment 2010'!K28 -> 6.037699049 | H26: ='Security 2010'!J29 -> 4.193150093 | I26: ='Technology 2010'!D28 -> 4.40035317 | J26: 5.057696285 | P26: =(SUM(IF($J26<$J$3:$J$26*(1-BF$3:BF$26),1))+1)*(1-BF26) -> 0 | Q26: =(SUM(IF($J26<$J$3:$J$26*(1-BG$3:BG$26),1))+1)*(1-BG26) -> 1 | R26: =(SUM(IF(ROUND($J26,1)<ROUND($J$3:$J$26,1)*(1-BF$3:BF$26),1))+1)*(1-BF26) -> 0 | S26: =(SUM(IF(ROUND($J26,1)<ROUND($J$3:$J$26,1)*(1-BG$3:BG$26),1))+1)*(1-BG26) -> 1 | T26: Europe | BF26: 1
R27: =(SUM(IF($J19<$J$3:$J$26*(1-BF$3:BF$26),1))+1)*(1-BF19) -> 9
B28: Average | C28: =AVERAGE(C3:C24) -> 7.158020793 | D28: 4.799018806 | E28: 4.912743506 | F28: 2.381977618 | G28: 5.548819178 | H28: 4.404738959 | I28: 4.838787157 | J28: 4.863443717 | U28: 1
B29: Standard dev. | C29: =STDEVP(C3:C24) -> 3.548850242 | D29: 3.004920944 | E29: 0.8998427793 | F29: 1.133834413 | G29: 1.179627897 | H29: 2.43052503 | I29: 1.030407491 | J29: 1.054117389 | U29: 2
U30: 3
B31: Lowest | C31: =MIN(C3:C24) -> 0.06186437775 | D31: -3.462172793 | E31: 2.933035714 | F31: 0.9900985148 | G31: 3.361953658 | H31: -0.133328202 | I31: 2.697765934 | J31: 2.206841837 | U31: 4
B32: Highest | C32: =MAX(C3:C24) -> 15.44327107 | D32: 8.014934186 | E32: 6.167410714 | F32: 6.186843651 | G32: 7.318429022 | H32: 9.824407842 | I32: 6.782132394 | J32: 7.131183394 | U32: 5
U33: 6
B34: Weight | C34: ='CDI 2012'!C39 -> 1 | D34: ='CDI 2012'!D39 -> 1 | E34: ='CDI 2012'!E39 -> 1 | F34: ='CDI 2012'!F39 -> 1 | G34: ='CDI 2012'!G39 -> 1 | H34: ='CDI 2012'!H39 -> 1 | I34: ='CDI 2012'!I39 -> 1 | U34: 7
U35: 8
U36: 9
U39: 1
U40: 2
U41: 3
U42: 4
U43: 5
U44: 6
U45: 7
A68: =INT(RIGHT(CELL("filename",A1),4)) -> 2010

Sheet CDI 2009
A1: ="Commitment to Development Index "&Region_name&IF(Region_name="",""," ")&Year&IF(Publication_year>Year," ("&Publication_year&" methodology)","") -> Commitment to Development Index Middle East & North Africa 2009 (2013 methodology) | V1: Standings | Y1: One-year change, latest methodology | AB1: Standings/EU as one | AM1: Standings/Europe as one | BF1: EU countries | BG1: Europe countries
A2: Rank | B2: Country | C2: Aid | D2: Trade | E2: Finance | F2: Migration | G2: Environment | H2: Security | I2: Technology | J2: Overall (Average) | K2: True rank | L2: =Year-1&"-"&Year-2000&" score change" -> 2008-9 score change | M2: Rank | N2: =Year-1&" rank ("&Year&" method)" -> 2008 rank (2009 method) | P2: True rank/EU | Q2: True rank/Europe | R2: Rank/EU | S2: Rank/Europe | W2: Country | X2: Score | Y2: Score | Z2: Rank | AC2: Country | AD2: Aid | AE2: Trade | AF2: Finance | AG2: Migration | AH2: Environment | AI2: Security | AJ2: Technology | AK2: Overall (Average) | AN2: Country | AO2: Aid | AP2: Trade | AQ2: Finance | AR2: Migration | AS2: Environment | AT2: Security | AU2: Technology | AV2: Overall (Average) | BC2: PPP GDP | BD2: Exchange-rate GDP | BI2: Graphing scale factor to deal with negative scores, alpha by country
A3: =M3 -> 19 | B3: Australia | C3: ='Aid 2009'!Q5 -> 2.24603799 | D3: ='Trade 2009'!F5 -> 6.86635282 | E3: ='Finance 2009'!D4 -> 5.584821429 | F3: ='Migration 2009'!E3 -> 1.652860748 | G3: ='Environment 2009'!K5 -> 3.297832489 | H3: ='Security 2009'!J6 -> 1.603872721 | I3: ='Technology 2009'!D5 -> 4.895176481 | J3: =SUMPRODUCT(C3:I3,$C$34:$I$34)/SUM($C$34:$I$34) -> 3.73527924 | K3: =COUNTIF($J$3:$J$24,">"&J3)+1 -> 19 | L3: =ROUND(J3,1)-ROUND(VLOOKUP($B3,INDIRECT("'CDI "&Year-1&"'!Score_table"),9,FALSE),1) -> -0.1 | M3: =SUM(IF(ROUND(J3,1)<ROUND($J$3:$J$24,1),1))+1 -> 19 | N3: =VLOOKUP($B3,INDIRECT("'CDI "&Year-1&"'!Score_table"),12,FALSE) -> 18 | O3: =B3 -> Australia | P3: =(SUM(IF($J3<$J$3:$J$26*(1-BF$3:BF$26),1))+1)*(1-BF3) -> 6 | Q3: =(SUM(IF($J3<$J$3:$J$26*(1-BG$3:BG$26),1))+1)*(1-BG3) -> 5 | R3: =(SUM(IF(ROUND($J3,1)<ROUND($J$3:$J$26,1)*(1-BF$3:BF$26),1))+1)*(1-BF3) -> 6 | S3: =(SUM(IF(ROUND($J3,1)<ROUND($J$3:$J$26,1)*(1-BG$3:BG$26),1))+1)*(1-BG3) -> 5 | T3: =B3 -> Australia | U3: =ROW(U3)-ROW($U$2) -> 1 | V3: =VLOOKUP(U3,$K$3:$O$24,3,FALSE) -> 1 | W3: =VLOOKUP(U3,$K$3:$O$24,5,FALSE) -> Sweden | X3: =VLOOKUP(W3,$B$3:$O$24,9,FALSE) -> 7.021929022 | Y3: =IF(ISNA(VLOOKUP(W3,$B$3:$O$24,11,FALSE)),"",VLOOKUP(W3,$B$3:$O$24,11,FALSE)) -> 0.5 | Z3: =IF(ISNA(VLOOKUP(U3,$K$3:$O$24,4,FALSE)),"",VLOOKUP(U3,$K$3:$O$24,4,FALSE)-V3) -> 0 | AB3: =VLOOKUP(U28,$P$3:$U$26,3,FALSE) -> 1 | AC3: =VLOOKUP(U28,$P$3:$U$26,5,FALSE) -> Norway | AD3: =VLOOKUP($AC3,$B$3:$O$26,2,FALSE) -> 14.14855295 | AE3: =VLOOKUP($AC3,$B$3:$O$26,3,FALSE) -> -3.41275187 | AF3: =VLOOKUP($AC3,$B$3:$O$26,4,FALSE) -> 5.625 | AG3: =VLOOKUP($AC3,$B$3:$O$26,5,FALSE) -> 2.962792006 | AH3: =VLOOKUP($AC3,$B$3:$O$26,6,FALSE) -> 4.165428094 | AI3: =VLOOKUP($AC3,$B$3:$O$26,7,FALSE) -> 9.937068064 | AJ3: =VLOOKUP($AC3,$B$3:$O$26,8,FALSE) -> 4.961698297 | AK3: =VLOOKUP($AC3,$B$3:$O$26,9,FALSE) -> 5.483969649 | AM3: =VLOOKUP(U39,$Q$3:$V$26,3,FALSE) -> 1 | AN3: =VLOOKUP(U39,$Q$3:$V$26,4,FALSE) -> Europe | AO3: =VLOOKUP($AN3,$B$3:$O$26,2,FALSE) -> 7.533600006 | AP3: =VLOOKUP($AN3,$B$3:$O$26,3,FALSE) -> 5.709114767 | AQ3: =VLOOKUP($AN3,$B$3:$O$26,4,FALSE) -> 4.913130521 | AR3: =VLOOKUP($AN3,$B$3:$O$26,5,FALSE) -> 2.521068315 | AS3: =VLOOKUP($AN3,$B$3:$O$26,6,FALSE) -> 6.058547362 | AT3: =VLOOKUP($AN3,$B$3:$O$26,7,FALSE) -> 4.169694544 | AU3: =VLOOKUP($AN3,$B$3:$O$26,8,FALSE) -> 4.363449325 | AV3: =VLOOKUP(AN3,$B$3:$O$26,9,FALSE) -> 5.03837212 | BC3: 563.0494638 | BD3: 850.9216522 | BF3: 0 | BG3: 0 | BI3: =ABS(SUM($C3:$I3*$C$34:$I$34)/SUM(IF($C3:$I3>0,$C3:$I3*$C$34:$I$34))) -> 1 | BJ3: =VLOOKUP($W3,$B$3:$I$24,COLUMN()-(COLUMN($BI$2)-1),FALSE)*C$34/SUM($C$34:$I$34)*VLOOKUP($W3,$B$3:$BI$29,(COLUMN($BI$2)-1),FALSE) -> 2.07312868 | BK3: =VLOOKUP($W3,$B$3:$I$24,COLUMN()-(COLUMN($BI$2)-1),FALSE)*D$34/SUM($C$34:$I$34)*VLOOKUP($W3,$B$3:$BI$29,(COLUMN($BI$2)-1),FALSE) -> 0.9431080368 | BL3: =VLOOKUP($W3,$B$3:$I$24,COLUMN()-(COLUMN($BI$2)-1),FALSE)*E$34/SUM($C$34:$I$34)*VLOOKUP($W3,$B$3:$BI$29,(COLUMN($BI$2)-1),FALSE) -> 0.846619898 | BM3: =VLOOKUP($W3,$B$3:$I$24,COLUMN()-(COLUMN($BI$2)-1),FALSE)*F$34/SUM($C$34:$I$34)*VLOOKUP($W3,$B$3:$BI$29,(COLUMN($BI$2)-1),FALSE) -> 0.9249183502 | BN3: =VLOOKUP($W3,$B$3:$I$24,COLUMN()-(COLUMN($BI$2)-1),FALSE)*G$34/SUM($C$34:$I$34)*VLOOKUP($W3,$B$3:$BI$29,(COLUMN($BI$2)-1),FALSE) -> 1.002179125 | BO3: =VLOOKUP($W3,$B$3:$I$24,COLUMN()-(COLUMN($BI$2)-1),FALSE)*H$34/SUM($C$34:$I$34)*VLOOKUP($W3,$B$3:$BI$29,(COLUMN($BI$2)-1),FALSE) -> 0.6273873155 | BP3: =VLOOKUP($W3,$B$3:$I$24,COLUMN()-(COLUMN($BI$2)-1),FALSE)*I$34/SUM($C$34:$I$34)*VLOOKUP($W3,$B$3:$BI$29,(COLUMN($BI$2)-1),FALSE) -> 0.6045876162
A4: 9 | B4: Austria | C4: ='Aid 2009'!Q6 -> 5.775088278 | D4: ='Trade 2009'!F6 -> 6.213998107 | E4: ='Finance 2009'!D5 -> 3.696428571 | F4: ='Migration 2009'!E4 -> 3.107839177 | G4: ='Environment 2009'!K6 -> 5.234907312 | H4: ='Security 2009'!J7 -> 6.558586289 | I4: ='Technology 2009'!D6 -> 4.893684898 | J4: 5.068647519 | K4: 9 | L4: =ROUND(J4,1)-ROUND(VLOOKUP($B4,INDIRECT("'CDI "&Year-1&"'!Score_table"),9,FALSE),1) -> -0.1 | M4: =SUM(IF(ROUND(J4,1)<ROUND($J$3:$J$24,1),1))+1 -> 9 | N4: =VLOOKUP($B4,INDIRECT("'CDI "&Year-1&"'!Score_table"),12,FALSE) -> 9 | O4: Austria | P4: =(SUM(IF($J4<$J$3:$J$26*(1-BF$3:BF$26),1))+1)*(1-BF4) -> 0 | Q4: =(SUM(IF($J4<$J$3:$J$26*(1-BG$3:BG$26),1))+1)*(1-BG4) -> 0 | R4: =(SUM(IF(ROUND($J4,1)<ROUND($J$3:$J$26,1)*(1-BF$3:BF$26),1))+1)*(1-BF4) -> 0 | S4: =(SUM(IF(ROUND($J4,1)<ROUND($J$3:$J$26,1)*(1-BG$3:BG$26),1))+1)*(1-BG4) -> 0 | T4: Austria | U4: 2 | V4: 2 | W4: Ireland | X4: 5.971826198 | Y4: -0.4 | Z4: 0 | AB4: 2 | AC4: EU | AD4: 7.403237564 | AE4: 5.992972891 | AF4: 4.957099763 | AG4: 2.518792782 | AH4: 6.102557102 | AI4: 4.073129808 | AJ4: 4.357539103 | AK4: 5.057904145 | AM4: 2 | AN4: Canada | AO4: 5.005746833 | AP4: 4.389471948 | AQ4: 4.881696429 | AR4: 3.126263013 | AS4: 2.998890645 | AT4: 4.450674971 | AU4: 5.440118928 | AV4: 4.327551824 | BC4: 223.9541412 | BD4: 335.6518973 | BF4: 1 | BG4: 1 | BI4: =ABS(SUM($C4:$I4*$C$34:$I$34)/SUM(IF($C4:$I4>0,$C4:$I4*$C$34:$I$34))) -> 1 | BJ4: =VLOOKUP($W4,$B$3:$I$24,COLUMN()-(COLUMN($BI$2)-1),FALSE)*C$34/SUM($C$34:$I$34)*VLOOKUP($W4,$B$3:$BI$29,(COLUMN($BI$2)-1),FALSE) -> 1.251681226 | BK4: =VLOOKUP($W4,$B$3:$I$24,COLUMN()-(COLUMN($BI$2)-1),FALSE)*D$34/SUM($C$34:$I$34)*VLOOKUP($W4,$B$3:$BI$29,(COLUMN($BI$2)-1),FALSE) -> 0.8190394475 | BL4: =VLOOKUP($W4,$B$3:$I$24,COLUMN()-(COLUMN($BI$2)-1),FALSE)*E$34/SUM($C$34:$I$34)*VLOOKUP($W4,$B$3:$BI$29,(COLUMN($BI$2)-1),FALSE) -> 0.7146045918 | BM4: =VLOOKUP($W4,$B$3:$I$24,COLUMN()-(COLUMN($BI$2)-1),FALSE)*F$34/SUM($C$34:$I$34)*VLOOKUP($W4,$B$3:$BI$29,(COLUMN($BI$2)-1),FALSE) -> 0.2521241301 | BN4: =VLOOKUP($W4,$B$3:$I$24,COLUMN()-(COLUMN($BI$2)-1),FALSE)*G$34/SUM($C$34:$I$34)*VLOOKUP($W4,$B$3:$BI$29,(COLUMN($BI$2)-1),FALSE) -> 0.9152277442 | BO4: =VLOOKUP($W4,$B$3:$I$24,COLUMN()-(COLUMN($BI$2)-1),FALSE)*H$34/SUM($C$34:$I$34)*VLOOKUP($W4,$B$3:$BI$29,(COLUMN($BI$2)-1),FALSE) -> 1.532723745 | BP4: =VLOOKUP($W4,$B$3:$I$24,COLUMN()-(COLUMN($BI$2)-1),FALSE)*I$34/SUM($C$34:$I$34)*VLOOKUP($W4,$B$3:$BI$29,(COLUMN($BI$2)-1),FALSE) -> 0.4864253127
A5: 8 | B5: Belgium | C5: ='Aid 2009'!Q7 -> 9.318611365 | D5: ='Trade 2009'!F7 -> 5.675490588 | E5: ='Finance 2009'!D6 -> 5.464285714 | F5: ='Migration 2009'!E5 -> 2.354950439 | G5: ='Environment 2009'!K7 -> 6.774637027 | H5: ='Security 2009'!J8 -> 2.39370029 | I5: ='Technology 2009'!D7 -> 4.427721233 | J5: 5.201342379 | K5: 8 | L5: =ROUND(J5,1)-ROUND(VLOOKUP($B5,INDIRECT("'CDI "&Year-1&"'!Score_table"),9,FALSE),1) -> -0.2 | M5: =SUM(IF(ROUND(J5,1)<ROUND($J$3:$J$24,1),1))+1 -> 8 | N5: =VLOOKUP($B5,INDIRECT("'CDI "&Year-1&"'!Score_table"),12,FALSE) -> 8 | O5: Belgium | P5: =(SUM(IF($J5<$J$3:$J$26*(1-BF$3:BF$26),1))+1)*(1-BF5) -> 0 | Q5: =(SUM(IF($J5<$J$3:$J$26*(1-BG$3:BG$26),1))+1)*(1-BG5) -> 0 | R5: =(SUM(IF(ROUND($J5,1)<ROUND($J$3:$J$26,1)*(1-BF$3:BF$26),1))+1)*(1-BF5) -> 0 | S5: =(SUM(IF(ROUND($J5,1)<ROUND($J$3:$J$26,1)*(1-BG$3:BG$26),1))+1)*(1-BG5) -> 0 | T5: Belgium | U5: 3 | V5: 3 | W5: Denmark | X5: 5.868859166 | Y5: 0 | Z5: 2 | AB5: 3 | AC5: Canada | AD5: 5.005746833 | AE5: 4.389471948 | AF5: 4.881696429 | AG5: 3.126263013 | AH5: 2.998890645 | AI5: 4.450674971 | AJ5: 5.440118928 | AK5: 4.327551824 | AM5: 3 | AN5: New Zealand | AO5: 0.3992189754 | AP5: 8.00221454 | AQ5: 3.957589286 | AR5: 1.408929252 | AS5: 5.32242832 | AT5: 5.034787903 | AU5: 4.406228534 | AV5: 4.07591383 | BC5: 266.9089423 | BD5: 410.0280484 | BF5: 1 | BG5: 1 | BI5: =ABS(SUM($C5:$I5*$C$34:$I$34)/SUM(IF($C5:$I5>0,$C5:$I5*$C$34:$I$34))) -> 1 | BJ5: =VLOOKUP($W5,$B$3:$I$24,COLUMN()-(COLUMN($BI$2)-1),FALSE)*C$34/SUM($C$34:$I$34)*VLOOKUP($W5,$B$3:$BI$29,(COLUMN($BI$2)-1),FALSE) -> 1.63902826 | BK5: =VLOOKUP($W5,$B$3:$I$24,COLUMN()-(COLUMN($BI$2)-1),FALSE)*D$34/SUM($C$34:$I$34)*VLOOKUP($W5,$B$3:$BI$29,(COLUMN($BI$2)-1),FALSE) -> 0.8341537166 | BL5: =VLOOKUP($W5,$B$3:$I$24,COLUMN()-(COLUMN($BI$2)-1),FALSE)*E$34/SUM($C$34:$I$34)*VLOOKUP($W5,$B$3:$BI$29,(COLUMN($BI$2)-1),FALSE) -> 0.8294005102 | BM5: =VLOOKUP($W5,$B$3:$I$24,COLUMN()-(COLUMN($BI$2)-1),FALSE)*F$34/SUM($C$34:$I$34)*VLOOKUP($W5,$B$3:$BI$29,(COLUMN($BI$2)-1),FALSE) -> 0.3068813294 | BN5: =VLOOKUP($W5,$B$3:$I$24,COLUMN()-(COLUMN($BI$2)-1),FALSE)*G$34/SUM($C$34:$I$34)*VLOOKUP($W5,$B$3:$BI$29,(COLUMN($BI$2)-1),FALSE) -> 0.9190135294 | BO5: =VLOOKUP($W5,$B$3:$I$24,COLUMN()-(COLUMN($BI$2)-1),FALSE)*H$34/SUM($C$34:$I$34)*VLOOKUP($W5,$B$3:$BI$29,(COLUMN($BI$2)-1),FALSE) -> 0.580208967 | BP5: =VLOOKUP($W5,$B$3:$I$24,COLUMN()-(COLUMN($BI$2)-1),FALSE)*I$34/SUM($C$34:$I$34)*VLOOKUP($W5,$B$3:$BI$29,(COLUMN($BI$2)-1),FALSE) -> 0.7601728537
A6: 15 | B6: Canada | C6: ='Aid 2009'!Q8 -> 5.005746833 | D6: ='Trade 2009'!F8 -> 4.389471948 | E6: ='Finance 2009'!D7 -> 4.881696429 | F6: ='Migration 2009'!E6 -> 3.126263013 | G6: ='Environment 2009'!K8 -> 2.998890645 | H6: ='Security 2009'!J9 -> 4.450674971 | I6: ='Technology 2009'!D8 -> 5.440118928 | J6: 4.327551824 | K6: 15 | L6: =ROUND(J6,1)-ROUND(VLOOKUP($B6,INDIRECT("'CDI "&Year-1&"'!Score_table"),9,FALSE),1) -> 0 | M6: =SUM(IF(ROUND(J6,1)<ROUND($J$3:$J$24,1),1))+1 -> 15 | N6: =VLOOKUP($B6,INDIRECT("'CDI "&Year-1&"'!Score_table"),12,FALSE) -> 17 | O6: Canada | P6: =(SUM(IF($J6<$J$3:$J$26*(1-BF$3:BF$26),1))+1)*(1-BF6) -> 3 | Q6: =(SUM(IF($J6<$J$3:$J$26*(1-BG$3:BG$26),1))+1)*(1-BG6) -> 2 | R6: =(SUM(IF(ROUND($J6,1)<ROUND($J$3:$J$26,1)*(1-BF$3:BF$26),1))+1)*(1-BF6) -> 3 | S6: =(SUM(IF(ROUND($J6,1)<ROUND($J$3:$J$26,1)*(1-BG$3:BG$26),1))+1)*(1-BG6) -> 2 | T6: Canada | U6: 4 | V6: 4 | W6: Finland | X6: 5.762510134 | Y6: -0.3 | Z6: -1 | AB6: 4 | AC6: New Zealand | AD6: 0.3992189754 | AE6: 8.00221454 | AF6: 3.957589286 | AG6: 1.408929252 | AH6: 5.32242832 | AI6: 5.034787903 | AJ6: 4.406228534 | AK6: 4.07591383 | AM6: 3 | AN6: United States | AO6: 8.12536847 | AP6: 6.810634114 | AQ6: 4.660714286 | AR6: 1.199302565 | AS6: 3.5742656 | AT6: -0.6164747889 | AU6: 4.771536467 | AV6: 4.07504953 | BC6: 872.7844618 | BD6: 1332.626063 | BF6: 0 | BG6: 0 | BI6: =ABS(SUM($C6:$I6*$C$34:$I$34)/SUM(IF($C6:$I6>0,$C6:$I6*$C$34:$I$34))) -> 1 | BJ6: =VLOOKUP($W6,$B$3:$I$24,COLUMN()-(COLUMN($BI$2)-1),FALSE)*C$34/SUM($C$34:$I$34)*VLOOKUP($W6,$B$3:$BI$29,(COLUMN($BI$2)-1),FALSE) -> 0.8797409735 | BK6: =VLOOKUP($W6,$B$3:$I$24,COLUMN()-(COLUMN($BI$2)-1),FALSE)*D$34/SUM($C$34:$I$34)*VLOOKUP($W6,$B$3:$BI$29,(COLUMN($BI$2)-1),FALSE) -> 0.8945658175 | BL6: =VLOOKUP($W6,$B$3:$I$24,COLUMN()-(COLUMN($BI$2)-1),FALSE)*E$34/SUM($C$34:$I$34)*VLOOKUP($W6,$B$3:$BI$29,(COLUMN($BI$2)-1),FALSE) -> 0.8695790816 | BM6: =VLOOKUP($W6,$B$3:$I$24,COLUMN()-(COLUMN($BI$2)-1),FALSE)*F$34/SUM($C$34:$I$34)*VLOOKUP($W6,$B$3:$BI$29,(COLUMN($BI$2)-1),FALSE) -> 0.2017963635 | BN6: =VLOOKUP($W6,$B$3:$I$24,COLUMN()-(COLUMN($BI$2)-1),FALSE)*G$34/SUM($C$34:$I$34)*VLOOKUP($W6,$B$3:$BI$29,(COLUMN($BI$2)-1),FALSE) -> 1.01939552 | BO6: =VLOOKUP($W6,$B$3:$I$24,COLUMN()-(COLUMN($BI$2)-1),FALSE)*H$34/SUM($C$34:$I$34)*VLOOKUP($W6,$B$3:$BI$29,(COLUMN($BI$2)-1),FALSE) -> 1.165366255 | BP6: =VLOOKUP($W6,$B$3:$I$24,COLUMN()-(COLUMN($BI$2)-1),FALSE)*I$34/SUM($C$34:$I$34)*VLOOKUP($W6,$B$3:$BI$29,(COLUMN($BI$2)-1),FALSE) -> 0.7320661227
A7: 3 | B7: Denmark | C7: ='Aid 2009'!Q9 -> 11.47319782 | D7: ='Trade 2009'!F9 -> 5.839076016 | E7: ='Finance 2009'!D8 -> 5.805803571 | F7: ='Migration 2009'!E7 -> 2.148169306 | G7: ='Environment 2009'!K9 -> 6.433094706 | H7: ='Security 2009'!J10 -> 4.061462769 | I7: ='Technology 2009'!D9 -> 5.321209976 | J7: 5.868859166 | K7: 3 | L7: =ROUND(J7,1)-ROUND(VLOOKUP($B7,INDIRECT("'CDI "&Year-1&"'!Score_table"),9,FALSE),1) -> 0 | M7: =SUM(IF(ROUND(J7,1)<ROUND($J$3:$J$24,1),1))+1 -> 3 | N7: =VLOOKUP($B7,INDIRECT("'CDI "&Year-1&"'!Score_table"),12,FALSE) -> 5 | O7: Denmark | P7: =(SUM(IF($J7<$J$3:$J$26*(1-BF$3:BF$26),1))+1)*(1-BF7) -> 0 | Q7: =(SUM(IF($J7<$J$3:$J$26*(1-BG$3:BG$26),1))+1)*(1-BG7) -> 0 | R7: =(SUM(IF(ROUND($J7,1)<ROUND($J$3:$J$26,1)*(1-BF$3:BF$26),1))+1)*(1-BF7) -> 0 | S7: =(SUM(IF(ROUND($J7,1)<ROUND($J$3:$J$26,1)*(1-BG$3:BG$26),1))+1)*(1-BG7) -> 0 | T7: Denmark | U7: 5 | V7: 5 | W7: Spain | X7: 5.668897094 | Y7: 0 | Z7: 1 | AB7: 4 | AC7: United States | AD7: 8.12536847 | AE7: 6.810634114 | AF7: 4.660714286 | AG7: 1.199302565 | AH7: 3.5742656 | AI7: -0.6164747889 | AJ7: 4.771536467 | AK7: 4.07504953 | AM7: 5 | AN7: Australia | AO7: 2.24603799 | AP7: 6.86635282 | AQ7: 5.584821429 | AR7: 1.652860748 | AS7: 3.297832489 | AT7: 1.603872721 | AU7: 4.895176481 | AV7: 3.73527924 | BC7: 77.65141094 | BD7: 257.9283313 | BF7: 1 | BG7: 1 | BI7: =ABS(SUM($C7:$I7*$C$34:$I$34)/SUM(IF($C7:$I7>0,$C7:$I7*$C$34:$I$34))) -> 1 | BJ7: =VLOOKUP($W7,$B$3:$I$24,COLUMN()-(COLUMN($BI$2)-1),FALSE)*C$34/SUM($C$34:$I$34)*VLOOKUP($W7,$B$3:$BI$29,(COLUMN($BI$2)-1),FALSE) -> 1.253638688 | BK7: =VLOOKUP($W7,$B$3:$I$24,COLUMN()-(COLUMN($BI$2)-1),FALSE)*D$34/SUM($C$34:$I$34)*VLOOKUP($W7,$B$3:$BI$29,(COLUMN($BI$2)-1),FALSE) -> 0.8551679987 | BL7: =VLOOKUP($W7,$B$3:$I$24,COLUMN()-(COLUMN($BI$2)-1),FALSE)*E$34/SUM($C$34:$I$34)*VLOOKUP($W7,$B$3:$BI$29,(COLUMN($BI$2)-1),FALSE) -> 0.8580994898 | BM7: =VLOOKUP($W7,$B$3:$I$24,COLUMN()-(COLUMN($BI$2)-1),FALSE)*F$34/SUM($C$34:$I$34)*VLOOKUP($W7,$B$3:$BI$29,(COLUMN($BI$2)-1),FALSE) -> 0.419409638 | BN7: =VLOOKUP($W7,$B$3:$I$24,COLUMN()-(COLUMN($BI$2)-1),FALSE)*G$34/SUM($C$34:$I$34)*VLOOKUP($W7,$B$3:$BI$29,(COLUMN($BI$2)-1),FALSE) -> 0.7516114573 | BO7: =VLOOKUP($W7,$B$3:$I$24,COLUMN()-(COLUMN($BI$2)-1),FALSE)*H$34/SUM($C$34:$I$34)*VLOOKUP($W7,$B$3:$BI$29,(COLUMN($BI$2)-1),FALSE) -> 0.5814011573 | BP7: =VLOOKUP($W7,$B$3:$I$24,COLUMN()-(COLUMN($BI$2)-1),FALSE)*I$34/SUM($C$34:$I$34)*VLOOKUP($W7,$B$3:$BI$29,(COLUMN($BI$2)-1),FALSE) -> 0.9495686653
A8: 4 | B8: Finland | C8: ='Aid 2009'!Q10 -> 6.158186815 | D8: ='Trade 2009'!F10 -> 6.261960722 | E8: ='Finance 2009'!D9 -> 6.087053571 | F8: ='Migration 2009'!E8 -> 1.412574545 | G8: ='Environment 2009'!K10 -> 7.135768639 | H8: ='Security 2009'!J11 -> 8.157563784 | I8: ='Technology 2009'!D10 -> 5.124462859 | J8: 5.762510134 | K8: 4 | L8: =ROUND(J8,1)-ROUND(VLOOKUP($B8,INDIRECT("'CDI "&Year-1&"'!Score_table"),9,FALSE),1) -> -0.3 | M8: =SUM(IF(ROUND(J8,1)<ROUND($J$3:$J$24,1),1))+1 -> 4 | N8: =VLOOKUP($B8,INDIRECT("'CDI "&Year-1&"'!Score_table"),12,FALSE) -> 3 | O8: Finland | P8: =(SUM(IF($J8<$J$3:$J$26*(1-BF$3:BF$26),1))+1)*(1-BF8) -> 0 | Q8: =(SUM(IF($J8<$J$3:$J$26*(1-BG$3:BG$26),1))+1)*(1-BG8) -> 0 | R8: =(SUM(IF(ROUND($J8,1)<ROUND($J$3:$J$26,1)*(1-BF$3:BF$26),1))+1)*(1-BF8) -> 0 | S8: =(SUM(IF(ROUND($J8,1)<ROUND($J$3:$J$26,1)*(1-BG$3:BG$26),1))+1)*(1-BG8) -> 0 | T8: Finland | U8: 6 | V8: 6 | W8: Norway | X8: 5.483969649 | Y8: -0.5 | Z8: -2 | AB8: 6 | AC8: Australia | AD8: 2.24603799 | AE8: 6.86635282 | AF8: 5.584821429 | AG8: 1.652860748 | AH8: 3.297832489 | AI8: 1.603872721 | AJ8: 4.895176481 | AK8: 3.73527924 | AM8: 6 | AN8: Japan | AO8: -0.5956015309 | AP8: 1.682716407 | AQ8: 2.892857143 | AR8: 1.000359303 | AS8: 3.95577121 | AT8: 3.880572713 | AU8: 5.811018551 | AV8: 2.661099114 | BC8: 169.3625385 | BD8: 222.7818824 | BF8: 1 | BG8: 1 | BI8: =ABS(SUM($C8:$I8*$C$34:$I$34)/SUM(IF($C8:$I8>0,$C8:$I8*$C$34:$I$34))) -> 1 | BJ8: =VLOOKUP($W8,$B$3:$I$24,COLUMN()-(COLUMN($BI$2)-1),FALSE)*C$34/SUM($C$34:$I$34)*VLOOKUP($W8,$B$3:$BI$29,(COLUMN($BI$2)-1),FALSE) -> 1.856201763 | BK8: =VLOOKUP($W8,$B$3:$I$24,COLUMN()-(COLUMN($BI$2)-1),FALSE)*D$34/SUM($C$34:$I$34)*VLOOKUP($W8,$B$3:$BI$29,(COLUMN($BI$2)-1),FALSE) -> -0.4477317264 | BL8: =VLOOKUP($W8,$B$3:$I$24,COLUMN()-(COLUMN($BI$2)-1),FALSE)*E$34/SUM($C$34:$I$34)*VLOOKUP($W8,$B$3:$BI$29,(COLUMN($BI$2)-1),FALSE) -> 0.7379648614 | BM8: =VLOOKUP($W8,$B$3:$I$24,COLUMN()-(COLUMN($BI$2)-1),FALSE)*F$34/SUM($C$34:$I$34)*VLOOKUP($W8,$B$3:$BI$29,(COLUMN($BI$2)-1),FALSE) -> 0.3886998031 | BN8: =VLOOKUP($W8,$B$3:$I$24,COLUMN()-(COLUMN($BI$2)-1),FALSE)*G$34/SUM($C$34:$I$34)*VLOOKUP($W8,$B$3:$BI$29,(COLUMN($BI$2)-1),FALSE) -> 0.5464781451 | BO8: =VLOOKUP($W8,$B$3:$I$24,COLUMN()-(COLUMN($BI$2)-1),FALSE)*H$34/SUM($C$34:$I$34)*VLOOKUP($W8,$B$3:$BI$29,(COLUMN($BI$2)-1),FALSE) -> 1.303681255 | BP8: =VLOOKUP($W8,$B$3:$I$24,COLUMN()-(COLUMN($BI$2)-1),FALSE)*I$34/SUM($C$34:$I$34)*VLOOKUP($W8,$B$3:$BI$29,(COLUMN($BI$2)-1),FALSE) -> 0.6509438215
A9: 7 | B9: France | C9: ='Aid 2009'!Q11 -> 7.890193463 | D9: ='Trade 2009'!F11 -> 5.648267069 | E9: ='Finance 2009'!D10 -> 5.383928571 | F9: ='Migration 2009'!E9 -> 2.665190206 | G9: ='Environment 2009'!K11 -> 6.724877526 | H9: ='Security 2009'!J12 -> 3.318569383 | I9: ='Technology 2009'!D11 -> 5.605847321 | J9: 5.319553363 | K9: 7 | L9: =ROUND(J9,1)-ROUND(VLOOKUP($B9,INDIRECT("'CDI "&Year-1&"'!Score_table"),9,FALSE),1) -> -0.3 | M9: =SUM(IF(ROUND(J9,1)<ROUND($J$3:$J$24,1),1))+1 -> 7 | N9: =VLOOKUP($B9,INDIRECT("'CDI "&Year-1&"'!Score_table"),12,FALSE) -> 7 | O9: France | P9: =(SUM(IF($J9<$J$3:$J$26*(1-BF$3:BF$26),1))+1)*(1-BF9) -> 0 | Q9: =(SUM(IF($J9<$J$3:$J$26*(1-BG$3:BG$26),1))+1)*(1-BG9) -> 0 | R9: =(SUM(IF(ROUND($J9,1)<ROUND($J$3:$J$26,1)*(1-BF$3:BF$26),1))+1)*(1-BF9) -> 0 | S9: =(SUM(IF(ROUND($J9,1)<ROUND($J$3:$J$26,1)*(1-BG$3:BG$26),1))+1)*(1-BG9) -> 0 | T9: France | U9: 7 | V9: 7 | W9: France | X9: 5.319553363 | Y9: -0.3 | Z9: 0 | AB9: 7 | AC9: Switzerland | AD9: 6.246244388 | AE9: -0.43151809 | AF9: 2.993303571 | AG9: 2.280640988 | AH9: 5.344337169 | AI9: 3.712155529 | AJ9: 4.287305505 | AK9: 3.490352723 | AM9: 7 | AN9: South Korea | AO9: 0.9176967598 | AP9: -2.402449126 | AQ9: 4.238839286 | AR9: 1.132648355 | AS9: 3.430570505 | AT9: 1.278205565 | AU9: 6.226994435 | AV9: 2.117500826 | BC9: 145.4219592 | BD9: 195.6387553 | BF9: 1 | BG9: 1 | BI9: =ABS(SUM($C9:$I9*$C$34:$I$34)/SUM(IF($C9:$I9>0,$C9:$I9*$C$34:$I$34))) -> 1 | BJ9: =VLOOKUP($W9,$B$3:$I$24,COLUMN()-(COLUMN($BI$2)-1),FALSE)*C$34/SUM($C$34:$I$34)*VLOOKUP($W9,$B$3:$BI$29,(COLUMN($BI$2)-1),FALSE) -> 1.127170495 | BK9: =VLOOKUP($W9,$B$3:$I$24,COLUMN()-(COLUMN($BI$2)-1),FALSE)*D$34/SUM($C$34:$I$34)*VLOOKUP($W9,$B$3:$BI$29,(COLUMN($BI$2)-1),FALSE) -> 0.8068952956 | BL9: =VLOOKUP($W9,$B$3:$I$24,COLUMN()-(COLUMN($BI$2)-1),FALSE)*E$34/SUM($C$34:$I$34)*VLOOKUP($W9,$B$3:$BI$29,(COLUMN($BI$2)-1),FALSE) -> 0.7691326531 | BM9: =VLOOKUP($W9,$B$3:$I$24,COLUMN()-(COLUMN($BI$2)-1),FALSE)*F$34/SUM($C$34:$I$34)*VLOOKUP($W9,$B$3:$BI$29,(COLUMN($BI$2)-1),FALSE) -> 0.380741458 | BN9: =VLOOKUP($W9,$B$3:$I$24,COLUMN()-(COLUMN($BI$2)-1),FALSE)*G$34/SUM($C$34:$I$34)*VLOOKUP($W9,$B$3:$BI$29,(COLUMN($BI$2)-1),FALSE) -> 0.9606967894 | BO9: =VLOOKUP($W9,$B$3:$I$24,COLUMN()-(COLUMN($BI$2)-1),FALSE)*H$34/SUM($C$34:$I$34)*VLOOKUP($W9,$B$3:$BI$29,(COLUMN($BI$2)-1),FALSE) -> 0.4740813405 | BP9: =VLOOKUP($W9,$B$3:$I$24,COLUMN()-(COLUMN($BI$2)-1),FALSE)*I$34/SUM($C$34:$I$34)*VLOOKUP($W9,$B$3:$BI$29,(COLUMN($BI$2)-1),FALSE) -> 0.8008353316
A10: 10 | B10: Germany | C10: ='Aid 2009'!Q12 -> 7.785337096 | D10: ='Trade 2009'!F12 -> 6.052628727 | E10: ='Finance 2009'!D11 -> 4.017857143 | F10: ='Migration 2009'!E10 -> 2.992837601 | G10: ='Environment 2009'!K12 -> 6.467626388 | H10: ='Security 2009'!J13 -> 3.869518924 | I10: ='Technology 2009'!D12 -> 4.041864867 | J10: 5.032524392 | K10: 10 | L10: =ROUND(J10,1)-ROUND(VLOOKUP($B10,INDIRECT("'CDI "&Year-1&"'!Score_table"),9,FALSE),1) -> -0.2 | M10: =SUM(IF(ROUND(J10,1)<ROUND($J$3:$J$24,1),1))+1 -> 10 | N10: =VLOOKUP($B10,INDIRECT("'CDI "&Year-1&"'!Score_table"),12,FALSE) -> 9 | O10: Germany | P10: =(SUM(IF($J10<$J$3:$J$26*(1-BF$3:BF$26),1))+1)*(1-BF10) -> 0 | Q10: =(SUM(IF($J10<$J$3:$J$26*(1-BG$3:BG$26),1))+1)*(1-BG10) -> 0 | R10: =(SUM(IF(ROUND($J10,1)<ROUND($J$3:$J$26,1)*(1-BF$3:BF$26),1))+1)*(1-BF10) -> 0 | S10: =(SUM(IF(ROUND($J10,1)<ROUND($J$3:$J$26,1)*(1-BG$3:BG$26),1))+1)*(1-BG10) -> 0 | T10: Germany | U10: 8 | V10: 8 | W10: Belgium | X10: 5.201342379 | Y10: -0.2 | Z10: 0 | AB10: 8 | AC10: Japan | AD10: -0.5956015309 | AE10: 1.682716407 | AF10: 2.892857143 | AG10: 1.000359303 | AH10: 3.95577121 | AI10: 3.880572713 | AJ10: 5.811018551 | AK10: 2.661099114 | BC10: 1484.698026 | BD10: 2214.42474 | BF10: 1 | BG10: 1 | BI10: =ABS(SUM($C10:$I10*$C$34:$I$34)/SUM(IF($C10:$I10>0,$C10:$I10*$C$34:$I$34))) -> 1 | BJ10: =VLOOKUP($W10,$B$3:$I$24,COLUMN()-(COLUMN($BI$2)-1),FALSE)*C$34/SUM($C$34:$I$34)*VLOOKUP($W10,$B$3:$BI$29,(COLUMN($BI$2)-1),FALSE) -> 1.331230195 | BK10: =VLOOKUP($W10,$B$3:$I$24,COLUMN()-(COLUMN($BI$2)-1),FALSE)*D$34/SUM($C$34:$I$34)*VLOOKUP($W10,$B$3:$BI$29,(COLUMN($BI$2)-1),FALSE) -> 0.8107843698 | BL10: =VLOOKUP($W10,$B$3:$I$24,COLUMN()-(COLUMN($BI$2)-1),FALSE)*E$34/SUM($C$34:$I$34)*VLOOKUP($W10,$B$3:$BI$29,(COLUMN($BI$2)-1),FALSE) -> 0.7806122449 | BM10: =VLOOKUP($W10,$B$3:$I$24,COLUMN()-(COLUMN($BI$2)-1),FALSE)*F$34/SUM($C$34:$I$34)*VLOOKUP($W10,$B$3:$BI$29,(COLUMN($BI$2)-1),FALSE) -> 0.3364214912 | BN10: =VLOOKUP($W10,$B$3:$I$24,COLUMN()-(COLUMN($BI$2)-1),FALSE)*G$34/SUM($C$34:$I$34)*VLOOKUP($W10,$B$3:$BI$29,(COLUMN($BI$2)-1),FALSE) -> 0.9678052895 | BO10: =VLOOKUP($W10,$B$3:$I$24,COLUMN()-(COLUMN($BI$2)-1),FALSE)*H$34/SUM($C$34:$I$34)*VLOOKUP($W10,$B$3:$BI$29,(COLUMN($BI$2)-1),FALSE) -> 0.3419571843 | BP10: =VLOOKUP($W10,$B$3:$I$24,COLUMN()-(COLUMN($BI$2)-1),FALSE)*I$34/SUM($C$34:$I$34)*VLOOKUP($W10,$B$3:$BI$29,(COLUMN($BI$2)-1),FALSE) -> 0.6325316047
A11: 16 | B11: Greece | C11: ='Aid 2009'!Q13 -> 3.972102882 | D11: ='Trade 2009'!F13 -> 5.533855392 | E11: ='Finance 2009'!D12 -> 4.78125 | F11: ='Migration 2009'!E11 -> 3.197195345 | G11: ='Environment 2009'!K13 -> 4.970015606 | H11: ='Security 2009'!J14 -> 4.328909907 | I11: ='Technology 2009'!D13 -> 2.818738789 | J11: 4.228866846 | K11: 16 | L11: =ROUND(J11,1)-ROUND(VLOOKUP($B11,INDIRECT("'CDI "&Year-1&"'!Score_table"),9,FALSE),1) -> -0.3 | M11: =SUM(IF(ROUND(J11,1)<ROUND($J$3:$J$24,1),1))+1 -> 16 | N11: =VLOOKUP($B11,INDIRECT("'CDI "&Year-1&"'!Score_table"),12,FALSE) -> 15 | O11: Greece | P11: =(SUM(IF($J11<$J$3:$J$26*(1-BF$3:BF$26),1))+1)*(1-BF11) -> 0 | Q11: =(SUM(IF($J11<$J$3:$J$26*(1-BG$3:BG$26),1))+1)*(1-BG11) -> 0 | R11: =(SUM(IF(ROUND($J11,1)<ROUND($J$3:$J$26,1)*(1-BF$3:BF$26),1))+1)*(1-BF11) -> 0 | S11: =(SUM(IF(ROUND($J11,1)<ROUND($J$3:$J$26,1)*(1-BG$3:BG$26),1))+1)*(1-BG11) -> 0 | T11: Greece | U11: 9 | V11: 9 | W11: Austria | X11: 5.068647519 | Y11: -0.1 | Z11: 0 | AB11: 9 | AC11: South Korea | AD11: 0.9176967598 | AE11: -2.402449126 | AF11: 4.238839286 | AG11: 1.132648355 | AH11: 3.430570505 | AI11: 1.278205565 | AJ11: 6.226994435 | AK11: 2.117500826 | BC11: 5010.032165 | BD11: 4299.287691 | BF11: 1 | BG11: 1 | BI11: =ABS(SUM($C11:$I11*$C$34:$I$34)/SUM(IF($C11:$I11>0,$C11:$I11*$C$34:$I$34))) -> 1 | BJ11: =VLOOKUP($W11,$B$3:$I$24,COLUMN()-(COLUMN($BI$2)-1),FALSE)*C$34/SUM($C$34:$I$34)*VLOOKUP($W11,$B$3:$BI$29,(COLUMN($BI$2)-1),FALSE) -> 0.8250126112 | BK11: =VLOOKUP($W11,$B$3:$I$24,COLUMN()-(COLUMN($BI$2)-1),FALSE)*D$34/SUM($C$34:$I$34)*VLOOKUP($W11,$B$3:$BI$29,(COLUMN($BI$2)-1),FALSE) -> 0.8877140152 | BL11: =VLOOKUP($W11,$B$3:$I$24,COLUMN()-(COLUMN($BI$2)-1),FALSE)*E$34/SUM($C$34:$I$34)*VLOOKUP($W11,$B$3:$BI$29,(COLUMN($BI$2)-1),FALSE) -> 0.5280612245 | BM11: =VLOOKUP($W11,$B$3:$I$24,COLUMN()-(COLUMN($BI$2)-1),FALSE)*F$34/SUM($C$34:$I$34)*VLOOKUP($W11,$B$3:$BI$29,(COLUMN($BI$2)-1),FALSE) -> 0.4439770253 | BN11: =VLOOKUP($W11,$B$3:$I$24,COLUMN()-(COLUMN($BI$2)-1),FALSE)*G$34/SUM($C$34:$I$34)*VLOOKUP($W11,$B$3:$BI$29,(COLUMN($BI$2)-1),FALSE) -> 0.7478439017 | BO11: =VLOOKUP($W11,$B$3:$I$24,COLUMN()-(COLUMN($BI$2)-1),FALSE)*H$34/SUM($C$34:$I$34)*VLOOKUP($W11,$B$3:$BI$29,(COLUMN($BI$2)-1),FALSE) -> 0.9369408984 | BP11: =VLOOKUP($W11,$B$3:$I$24,COLUMN()-(COLUMN($BI$2)-1),FALSE)*I$34/SUM($C$34:$I$34)*VLOOKUP($W11,$B$3:$BI$29,(COLUMN($BI$2)-1),FALSE) -> 0.6990978426
A12: 2 | B12: Ireland | C12: ='Aid 2009'!Q14 -> 8.761768585 | D12: ='Trade 2009'!F14 -> 5.733276132 | E12: ='Finance 2009'!D13 -> 5.002232143 | F12: ='Migration 2009'!E12 -> 1.764868911 | G12: ='Environment 2009'!K14 -> 6.406594209 | H12: ='Security 2009'!J15 -> 10.72906622 | I12: ='Technology 2009'!D14 -> 3.404977189 | J12: 5.971826198 | K12: 2 | L12: =ROUND(J12,1)-ROUND(VLOOKUP($B12,INDIRECT("'CDI "&Year-1&"'!Score_table"),9,FALSE),1) -> -0.4 | M12: =SUM(IF(ROUND(J12,1)<ROUND($J$3:$J$24,1),1))+1 -> 2 | N12: =VLOOKUP($B12,INDIRECT("'CDI "&Year-1&"'!Score_table"),12,FALSE) -> 2 | O12: Ireland | P12: =(SUM(IF($J12<$J$3:$J$26*(1-BF$3:BF$26),1))+1)*(1-BF12) -> 0 | Q12: =(SUM(IF($J12<$J$3:$J$26*(1-BG$3:BG$26),1))+1)*(1-BG12) -> 0 | R12: =(SUM(IF(ROUND($J12,1)<ROUND($J$3:$J$26,1)*(1-BF$3:BF$26),1))+1)*(1-BF12) -> 0 | S12: =(SUM(IF(ROUND($J12,1)<ROUND($J$3:$J$26,1)*(1-BG$3:BG$26),1))+1)*(1-BG12) -> 0 | T12: Ireland | U12: 10 | V12: 10 | W12: Germany | X12: 5.032524392 | Y12: -0.2 | Z12: -1 | BC12: 26.51690394 | BD12: 43.66501069 | BF12: 1 | BG12: 1 | BI12: =ABS(SUM($C12:$I12*$C$34:$I$34)/SUM(IF($C12:$I12>0,$C12:$I12*$C$34:$I$34))) -> 1 | BJ12: =VLOOKUP($W12,$B$3:$I$24,COLUMN()-(COLUMN($BI$2)-1),FALSE)*C$34/SUM($C$34:$I$34)*VLOOKUP($W12,$B$3:$BI$29,(COLUMN($BI$2)-1),FALSE) -> 1.112191014 | BK12: =VLOOKUP($W12,$B$3:$I$24,COLUMN()-(COLUMN($BI$2)-1),FALSE)*D$34/SUM($C$34:$I$34)*VLOOKUP($W12,$B$3:$BI$29,(COLUMN($BI$2)-1),FALSE) -> 0.8646612467 | BL12: =VLOOKUP($W12,$B$3:$I$24,COLUMN()-(COLUMN($BI$2)-1),FALSE)*E$34/SUM($C$34:$I$34)*VLOOKUP($W12,$B$3:$BI$29,(COLUMN($BI$2)-1),FALSE) -> 0.5739795918 | BM12: =VLOOKUP($W12,$B$3:$I$24,COLUMN()-(COLUMN($BI$2)-1),FALSE)*F$34/SUM($C$34:$I$34)*VLOOKUP($W12,$B$3:$BI$29,(COLUMN($BI$2)-1),FALSE) -> 0.4275482288 | BN12: =VLOOKUP($W12,$B$3:$I$24,COLUMN()-(COLUMN($BI$2)-1),FALSE)*G$34/SUM($C$34:$I$34)*VLOOKUP($W12,$B$3:$BI$29,(COLUMN($BI$2)-1),FALSE) -> 0.9239466269 | BO12: =VLOOKUP($W12,$B$3:$I$24,COLUMN()-(COLUMN($BI$2)-1),FALSE)*H$34/SUM($C$34:$I$34)*VLOOKUP($W12,$B$3:$BI$29,(COLUMN($BI$2)-1),FALSE) -> 0.5527884178 | BP12: =VLOOKUP($W12,$B$3:$I$24,COLUMN()-(COLUMN($BI$2)-1),FALSE)*I$34/SUM($C$34:$I$34)*VLOOKUP($W12,$B$3:$BI$29,(COLUMN($BI$2)-1),FALSE) -> 0.5774092667
A13: 12 | B13: Italy | C13: ='Aid 2009'!Q15 -> 4.709259544 | D13: ='Trade 2009'!F15 -> 5.621749244 | E13: ='Finance 2009'!D14 -> 5.34375 | F13: ='Migration 2009'!E13 -> 1.561388495 | G13: ='Environment 2009'!K15 -> 5.975632858 | H13: ='Security 2009'!J16 -> 7.098539029 | I13: ='Technology 2009'!D15 -> 3.643379914 | J13: 4.850528441 | K13: 12 | L13: =ROUND(J13,1)-ROUND(VLOOKUP($B13,INDIRECT("'CDI "&Year-1&"'!Score_table"),9,FALSE),1) -> 0 | M13: =SUM(IF(ROUND(J13,1)<ROUND($J$3:$J$24,1),1))+1 -> 12 | N13: =VLOOKUP($B13,INDIRECT("'CDI "&Year-1&"'!Score_table"),12,FALSE) -> 13 | O13: Italy | P13: =(SUM(IF($J13<$J$3:$J$26*(1-BF$3:BF$26),1))+1)*(1-BF13) -> 0 | Q13: =(SUM(IF($J13<$J$3:$J$26*(1-BG$3:BG$26),1))+1)*(1-BG13) -> 0 | R13: =(SUM(IF(ROUND($J13,1)<ROUND($J$3:$J$26,1)*(1-BF$3:BF$26),1))+1)*(1-BF13) -> 0 | S13: =(SUM(IF(ROUND($J13,1)<ROUND($J$3:$J$26,1)*(1-BG$3:BG$26),1))+1)*(1-BG13) -> 0 | T13: Italy | U13: 11 | V13: 10 | W13: Netherlands | X13: 5.006645735 | Y13: -0.2 | Z13: -1 | BC13: 441.1854356 | BD13: 700.605399 | BF13: 1 | BG13: 1 | BI13: =ABS(SUM($C13:$I13*$C$34:$I$34)/SUM(IF($C13:$I13>0,$C13:$I13*$C$34:$I$34))) -> 1 | BJ13: =VLOOKUP($W13,$B$3:$I$24,COLUMN()-(COLUMN($BI$2)-1),FALSE)*C$34/SUM($C$34:$I$34)*VLOOKUP($W13,$B$3:$BI$29,(COLUMN($BI$2)-1),FALSE) -> 1.078346266 | BK13: =VLOOKUP($W13,$B$3:$I$24,COLUMN()-(COLUMN($BI$2)-1),FALSE)*D$34/SUM($C$34:$I$34)*VLOOKUP($W13,$B$3:$BI$29,(COLUMN($BI$2)-1),FALSE) -> 0.9501136284 | BL13: =VLOOKUP($W13,$B$3:$I$24,COLUMN()-(COLUMN($BI$2)-1),FALSE)*E$34/SUM($C$34:$I$34)*VLOOKUP($W13,$B$3:$BI$29,(COLUMN($BI$2)-1),FALSE) -> 0.703125 | BM13: =VLOOKUP($W13,$B$3:$I$24,COLUMN()-(COLUMN($BI$2)-1),FALSE)*F$34/SUM($C$34:$I$34)*VLOOKUP($W13,$B$3:$BI$29,(COLUMN($BI$2)-1),FALSE) -> 0.2807614216 | BN13: =VLOOKUP($W13,$B$3:$I$24,COLUMN()-(COLUMN($BI$2)-1),FALSE)*G$34/SUM($C$34:$I$34)*VLOOKUP($W13,$B$3:$BI$29,(COLUMN($BI$2)-1),FALSE) -> 0.9449537743 | BO13: =VLOOKUP($W13,$B$3:$I$24,COLUMN()-(COLUMN($BI$2)-1),FALSE)*H$34/SUM($C$34:$I$34)*VLOOKUP($W13,$B$3:$BI$29,(COLUMN($BI$2)-1),FALSE) -> 0.360452993 | BP13: =VLOOKUP($W13,$B$3:$I$24,COLUMN()-(COLUMN($BI$2)-1),FALSE)*I$34/SUM($C$34:$I$34)*VLOOKUP($W13,$B$3:$BI$29,(COLUMN($BI$2)-1),FALSE) -> 0.6888926514
A14: 21 | B14: Japan | C14: ='Aid 2009'!Q16 -> -0.5956015309 | D14: ='Trade 2009'!F16 -> 1.682716407 | E14: ='Finance 2009'!D15 -> 2.892857143 | F14: ='Migration 2009'!E14 -> 1.000359303 | G14: ='Environment 2009'!K16 -> 3.95577121 | H14: ='Security 2009'!J17 -> 3.880572713 | I14: ='Technology 2009'!D16 -> 5.811018551 | J14: 2.661099114 | K14: 21 | L14: =ROUND(J14,1)-ROUND(VLOOKUP($B14,INDIRECT("'CDI "&Year-1&"'!Score_table"),9,FALSE),1) -> -0.4 | M14: =SUM(IF(ROUND(J14,1)<ROUND($J$3:$J$24,1),1))+1 -> 21 | N14: =VLOOKUP($B14,INDIRECT("'CDI "&Year-1&"'!Score_table"),12,FALSE) -> 21 | O14: Japan | P14: =(SUM(IF($J14<$J$3:$J$26*(1-BF$3:BF$26),1))+1)*(1-BF14) -> 8 | Q14: =(SUM(IF($J14<$J$3:$J$26*(1-BG$3:BG$26),1))+1)*(1-BG14) -> 6 | R14: =(SUM(IF(ROUND($J14,1)<ROUND($J$3:$J$26,1)*(1-BF$3:BF$26),1))+1)*(1-BF14) -> 8 | S14: =(SUM(IF(ROUND($J14,1)<ROUND($J$3:$J$26,1)*(1-BG$3:BG$26),1))+1)*(1-BG14) -> 6 | T14: Japan | U14: 12 | V14: 12 | W14: Italy | X14: 4.850528441 | Y14: 0 | Z14: 1 | BC14: 64.83834061 | BD14: 129.006764 | BF14: 0 | BG14: 0 | BI14: =ABS(SUM($C14:$I14*$C$34:$I$34)/SUM(IF($C14:$I14>0,$C14:$I14*$C$34:$I$34))) -> 0.9690166789 | BJ14: =VLOOKUP($W14,$B$3:$I$24,COLUMN()-(COLUMN($BI$2)-1),FALSE)*C$34/SUM($C$34:$I$34)*VLOOKUP($W14,$B$3:$BI$29,(COLUMN($BI$2)-1),FALSE) -> 0.6727513634 | BK14: =VLOOKUP($W14,$B$3:$I$24,COLUMN()-(COLUMN($BI$2)-1),FALSE)*D$34/SUM($C$34:$I$34)*VLOOKUP($W14,$B$3:$BI$29,(COLUMN($BI$2)-1),FALSE) -> 0.8031070348 | BL14: =VLOOKUP($W14,$B$3:$I$24,COLUMN()-(COLUMN($BI$2)-1),FALSE)*E$34/SUM($C$34:$I$34)*VLOOKUP($W14,$B$3:$BI$29,(COLUMN($BI$2)-1),FALSE) -> 0.7633928571 | BM14: =VLOOKUP($W14,$B$3:$I$24,COLUMN()-(COLUMN($BI$2)-1),FALSE)*F$34/SUM($C$34:$I$34)*VLOOKUP($W14,$B$3:$BI$29,(COLUMN($BI$2)-1),FALSE) -> 0.2230554992 | BN14: =VLOOKUP($W14,$B$3:$I$24,COLUMN()-(COLUMN($BI$2)-1),FALSE)*G$34/SUM($C$34:$I$34)*VLOOKUP($W14,$B$3:$BI$29,(COLUMN($BI$2)-1),FALSE) -> 0.8536618368 | BO14: =VLOOKUP($W14,$B$3:$I$24,COLUMN()-(COLUMN($BI$2)-1),FALSE)*H$34/SUM($C$34:$I$34)*VLOOKUP($W14,$B$3:$BI$29,(COLUMN($BI$2)-1),FALSE) -> 1.014077004 | BP14: =VLOOKUP($W14,$B$3:$I$24,COLUMN()-(COLUMN($BI$2)-1),FALSE)*I$34/SUM($C$34:$I$34)*VLOOKUP($W14,$B$3:$BI$29,(COLUMN($BI$2)-1),FALSE) -> 0.5204828449
A15: 10 | B15: Netherlands | C15: ='Aid 2009'!Q17 -> 7.548423864 | D15: ='Trade 2009'!F17 -> 6.650795399 | E15: ='Finance 2009'!D16 -> 4.921875 | F15: ='Migration 2009'!E15 -> 1.965329951 | G15: ='Environment 2009'!K17 -> 6.61467642 | H15: ='Security 2009'!J18 -> 2.523170951 | I15: ='Technology 2009'!D17 -> 4.82224856 | J15: 5.006645735 | K15: 11 | L15: =ROUND(J15,1)-ROUND(VLOOKUP($B15,INDIRECT("'CDI "&Year-1&"'!Score_table"),9,FALSE),1) -> -0.2 | M15: =SUM(IF(ROUND(J15,1)<ROUND($J$3:$J$24,1),1))+1 -> 10 | N15: =VLOOKUP($B15,INDIRECT("'CDI "&Year-1&"'!Score_table"),12,FALSE) -> 9 | O15: Netherlands | P15: =(SUM(IF($J15<$J$3:$J$26*(1-BF$3:BF$26),1))+1)*(1-BF15) -> 0 | Q15: =(SUM(IF($J15<$J$3:$J$26*(1-BG$3:BG$26),1))+1)*(1-BG15) -> 0 | R15: =(SUM(IF(ROUND($J15,1)<ROUND($J$3:$J$26,1)*(1-BF$3:BF$26),1))+1)*(1-BF15) -> 0 | S15: =(SUM(IF(ROUND($J15,1)<ROUND($J$3:$J$26,1)*(1-BG$3:BG$26),1))+1)*(1-BG15) -> 0 | T15: Netherlands | U15: 13 | V15: 13 | W15: United Kingdom | X15: 4.732963477 | Y15: -0.4 | Z15: -1 | BC15: 195.4248294 | BD15: 279.8018232 | BF15: 1 | BG15: 1 | BI15: =ABS(SUM($C15:$I15*$C$34:$I$34)/SUM(IF($C15:$I15>0,$C15:$I15*$C$34:$I$34))) -> 1 | BJ15: =VLOOKUP($W15,$B$3:$I$24,COLUMN()-(COLUMN($BI$2)-1),FALSE)*C$34/SUM($C$34:$I$34)*VLOOKUP($W15,$B$3:$BI$29,(COLUMN($BI$2)-1),FALSE) -> 0.9586027554 | BK15: =VLOOKUP($W15,$B$3:$I$24,COLUMN()-(COLUMN($BI$2)-1),FALSE)*D$34/SUM($C$34:$I$34)*VLOOKUP($W15,$B$3:$BI$29,(COLUMN($BI$2)-1),FALSE) -> 0.8673256032 | BL15: =VLOOKUP($W15,$B$3:$I$24,COLUMN()-(COLUMN($BI$2)-1),FALSE)*E$34/SUM($C$34:$I$34)*VLOOKUP($W15,$B$3:$BI$29,(COLUMN($BI$2)-1),FALSE) -> 0.7806122449 | BM15: =VLOOKUP($W15,$B$3:$I$24,COLUMN()-(COLUMN($BI$2)-1),FALSE)*F$34/SUM($C$34:$I$34)*VLOOKUP($W15,$B$3:$BI$29,(COLUMN($BI$2)-1),FALSE) -> 0.2909383656 | BN15: =VLOOKUP($W15,$B$3:$I$24,COLUMN()-(COLUMN($BI$2)-1),FALSE)*G$34/SUM($C$34:$I$34)*VLOOKUP($W15,$B$3:$BI$29,(COLUMN($BI$2)-1),FALSE) -> 0.9898757345 | BO15: =VLOOKUP($W15,$B$3:$I$24,COLUMN()-(COLUMN($BI$2)-1),FALSE)*H$34/SUM($C$34:$I$34)*VLOOKUP($W15,$B$3:$BI$29,(COLUMN($BI$2)-1),FALSE) -> 0.2495949261 | BP15: =VLOOKUP($W15,$B$3:$I$24,COLUMN()-(COLUMN($BI$2)-1),FALSE)*I$34/SUM($C$34:$I$34)*VLOOKUP($W15,$B$3:$BI$29,(COLUMN($BI$2)-1),FALSE) -> 0.5960138471
A16: 17 | B16: New Zealand | C16: ='Aid 2009'!Q18 -> 0.3992189754 | D16: ='Trade 2009'!F18 -> 8.00221454 | E16: ='Finance 2009'!D17 -> 3.957589286 | F16: ='Migration 2009'!E16 -> 1.408929252 | G16: ='Environment 2009'!K18 -> 5.32242832 | H16: ='Security 2009'!J19 -> 5.034787903 | I16: ='Technology 2009'!D18 -> 4.406228534 | J16: 4.07591383 | K16: 17 | L16: =ROUND(J16,1)-ROUND(VLOOKUP($B16,INDIRECT("'CDI "&Year-1&"'!Score_table"),9,FALSE),1) -> -0.3 | M16: =SUM(IF(ROUND(J16,1)<ROUND($J$3:$J$24,1),1))+1 -> 17 | N16: =VLOOKUP($B16,INDIRECT("'CDI "&Year-1&"'!Score_table"),12,FALSE) -> 16 | O16: New Zealand | P16: =(SUM(IF($J16<$J$3:$J$26*(1-BF$3:BF$26),1))+1)*(1-BF16) -> 4 | Q16: =(SUM(IF($J16<$J$3:$J$26*(1-BG$3:BG$26),1))+1)*(1-BG16) -> 3 | R16: =(SUM(IF(ROUND($J16,1)<ROUND($J$3:$J$26,1)*(1-BF$3:BF$26),1))+1)*(1-BF16) -> 4 | S16: =(SUM(IF(ROUND($J16,1)<ROUND($J$3:$J$26,1)*(1-BG$3:BG$26),1))+1)*(1-BG16) -> 3 | T16: New Zealand | U16: 14 | V16: 14 | W16: Portugal | X16: 4.439986635 | Y16: -0.2 | Z16: 0 | BC16: 251.0882406 | BD16: 759.27185 | BF16: 0 | BG16: 0 | BI16: =ABS(SUM($C16:$I16*$C$34:$I$34)/SUM(IF($C16:$I16>0,$C16:$I16*$C$34:$I$34))) -> 1 | BJ16: =VLOOKUP($W16,$B$3:$I$24,COLUMN()-(COLUMN($BI$2)-1),FALSE)*C$34/SUM($C$34:$I$34)*VLOOKUP($W16,$B$3:$BI$29,(COLUMN($BI$2)-1),FALSE) -> 0.5042574423 | BK16: =VLOOKUP($W16,$B$3:$I$24,COLUMN()-(COLUMN($BI$2)-1),FALSE)*D$34/SUM($C$34:$I$34)*VLOOKUP($W16,$B$3:$BI$29,(COLUMN($BI$2)-1),FALSE) -> 0.8297158251 | BL16: =VLOOKUP($W16,$B$3:$I$24,COLUMN()-(COLUMN($BI$2)-1),FALSE)*E$34/SUM($C$34:$I$34)*VLOOKUP($W16,$B$3:$BI$29,(COLUMN($BI$2)-1),FALSE) -> 0.7461734694 | BM16: =VLOOKUP($W16,$B$3:$I$24,COLUMN()-(COLUMN($BI$2)-1),FALSE)*F$34/SUM($C$34:$I$34)*VLOOKUP($W16,$B$3:$BI$29,(COLUMN($BI$2)-1),FALSE) -> 0.1469193654 | BN16: =VLOOKUP($W16,$B$3:$I$24,COLUMN()-(COLUMN($BI$2)-1),FALSE)*G$34/SUM($C$34:$I$34)*VLOOKUP($W16,$B$3:$BI$29,(COLUMN($BI$2)-1),FALSE) -> 0.9206982273 | BO16: =VLOOKUP($W16,$B$3:$I$24,COLUMN()-(COLUMN($BI$2)-1),FALSE)*H$34/SUM($C$34:$I$34)*VLOOKUP($W16,$B$3:$BI$29,(COLUMN($BI$2)-1),FALSE) -> 0.632183989 | BP16: =VLOOKUP($W16,$B$3:$I$24,COLUMN()-(COLUMN($BI$2)-1),FALSE)*I$34/SUM($C$34:$I$34)*VLOOKUP($W16,$B$3:$BI$29,(COLUMN($BI$2)-1),FALSE) -> 0.6600383162
A17: 6 | B17: Norway | C17: ='Aid 2009'!Q19 -> 14.14855295 | D17: ='Trade 2009'!F19 -> -3.41275187 | E17: ='Finance 2009'!D18 -> 5.625 | F17: ='Migration 2009'!E17 -> 2.962792006 | G17: ='Environment 2009'!K19 -> 4.165428094 | H17: ='Security 2009'!J20 -> 9.937068064 | I17: ='Technology 2009'!D19 -> 4.961698297 | J17: 5.483969649 | K17: 6 | L17: =ROUND(J17,1)-ROUND(VLOOKUP($B17,INDIRECT("'CDI "&Year-1&"'!Score_table"),9,FALSE),1) -> -0.5 | M17: =SUM(IF(ROUND(J17,1)<ROUND($J$3:$J$24,1),1))+1 -> 6 | N17: =VLOOKUP($B17,INDIRECT("'CDI "&Year-1&"'!Score_table"),12,FALSE) -> 4 | O17: Norway | P17: =(SUM(IF($J17<$J$3:$J$26*(1-BF$3:BF$26),1))+1)*(1-BF17) -> 1 | Q17: =(SUM(IF($J17<$J$3:$J$26*(1-BG$3:BG$26),1))+1)*(1-BG17) -> 0 | R17: =(SUM(IF(ROUND($J17,1)<ROUND($J$3:$J$26,1)*(1-BF$3:BF$26),1))+1)*(1-BF17) -> 1 | S17: =(SUM(IF(ROUND($J17,1)<ROUND($J$3:$J$26,1)*(1-BG$3:BG$26),1))+1)*(1-BG17) -> 0 | T17: Norway | U17: 15 | V17: 15 | W17: Canada | X17: 4.327551824 | Y17: 0 | Z17: 2 | BC17: 124.9415496 | BD17: 270.3705539 | BF17: 0 | BG17: 1 | BI17: =ABS(SUM($C17:$I17*$C$34:$I$34)/SUM(IF($C17:$I17>0,$C17:$I17*$C$34:$I$34))) -> 0.918356272 | BJ17: =VLOOKUP($W17,$B$3:$I$24,COLUMN()-(COLUMN($BI$2)-1),FALSE)*C$34/SUM($C$34:$I$34)*VLOOKUP($W17,$B$3:$BI$29,(COLUMN($BI$2)-1),FALSE) -> 0.7151066904 | BK17: =VLOOKUP($W17,$B$3:$I$24,COLUMN()-(COLUMN($BI$2)-1),FALSE)*D$34/SUM($C$34:$I$34)*VLOOKUP($W17,$B$3:$BI$29,(COLUMN($BI$2)-1),FALSE) -> 0.6270674212 | BL17: =VLOOKUP($W17,$B$3:$I$24,COLUMN()-(COLUMN($BI$2)-1),FALSE)*E$34/SUM($C$34:$I$34)*VLOOKUP($W17,$B$3:$BI$29,(COLUMN($BI$2)-1),FALSE) -> 0.6973852041 | BM17: =VLOOKUP($W17,$B$3:$I$24,COLUMN()-(COLUMN($BI$2)-1),FALSE)*F$34/SUM($C$34:$I$34)*VLOOKUP($W17,$B$3:$BI$29,(COLUMN($BI$2)-1),FALSE) -> 0.4466090018 | BN17: =VLOOKUP($W17,$B$3:$I$24,COLUMN()-(COLUMN($BI$2)-1),FALSE)*G$34/SUM($C$34:$I$34)*VLOOKUP($W17,$B$3:$BI$29,(COLUMN($BI$2)-1),FALSE) -> 0.4284129492 | BO17: =VLOOKUP($W17,$B$3:$I$24,COLUMN()-(COLUMN($BI$2)-1),FALSE)*H$34/SUM($C$34:$I$34)*VLOOKUP($W17,$B$3:$BI$29,(COLUMN($BI$2)-1),FALSE) -> 0.6358107102 | BP17: =VLOOKUP($W17,$B$3:$I$24,COLUMN()-(COLUMN($BI$2)-1),FALSE)*I$34/SUM($C$34:$I$34)*VLOOKUP($W17,$B$3:$BI$29,(COLUMN($BI$2)-1),FALSE) -> 0.7771598469
